Workbook

Sheet Program Summary
A1: ='Program Info'!E11 -> 0 | I1: REPORT GENERATION COMMANDS | J1: Windows Users | L1: MAC Users
A2: ='Program Info'!E10 -> 0
A3: ='Program Info'!B1 -> ACADEMIC PROGRAM PROPOSAL PROJECTION
A4: =IF('Program Info'!E15="YES","***ILI AFFILIATION - ILI TUITION RATE APPLIED***","") -> 
A5: =CONCATENATE('Program Info'!$B$6,": ",'Program Info'!$E$6) -> PROGRAM DEVELOPMENT PHASE:
B7: ='Program Info'!E17 -> 0 | C7: ='Program Info'!F17 -> 0-1 | D7: ='Program Info'!G17 ->  | E7: ='Program Info'!H17 ->  | F7: ='Program Info'!I17 ->  | G7: 5 Year Total
A8: YEAR | B8: 1 | C8: 2 | D8: 3 | E8: 4 | F8: 5
A10: PLANNED ENROLLMENT
A11: Continuing Students | C11: =B16 ->  | D11: =C16 ->  | E11: =D16 ->  | F11: =E16 -> 
A12: New Student Intake | B12: ='Program Info'!E49 -> 14 | C12: ='Program Info'!F49 -> 14 | D12: ='Program Info'!G49 -> 16 | E12: ='Program Info'!H49 -> 16 | F12: ='Program Info'!I49 -> 18
A13: Total Enrollment | B13: ='Program Info'!E50 ->  | C13: ='Program Info'!F50 ->  | D13: ='Program Info'!G50 ->  | E13: ='Program Info'!H50 ->  | F13: ='Program Info'!I50 -> 
A14: Student Attrition | B14: ='Calculation Worksheet'!F51 ->  | C14: ='Calculation Worksheet'!G51 ->  | D14: ='Calculation Worksheet'!H51 ->  | E14: ='Calculation Worksheet'!I51 ->  | F14: ='Calculation Worksheet'!J51 -> 
A15: Student Completion | B15: =-'Calculation Worksheet'!E58 -> 0 | C15: =-'Calculation Worksheet'!F58 -> 0 | D15: =-'Calculation Worksheet'!G58 -> 0 | E15: =-'Calculation Worksheet'!H58 -> 0 | F15: =-'Calculation Worksheet'!I58 -> 0
A16: Continuing Students | B16: =B13+B14+B15 ->  | C16: =C13+C14+C15 ->  | D16: =D13+D14+D15 ->  | E16: =E13+E14+E15 ->  | F16: =F13+F14+F15 -> 
A19: PLANNED FACULTY
A20: Tenure/TT (FTE) | B20: ='College Spending Plan'!C14+'College Spending Plan'!C73 -> 0 | C20: ='College Spending Plan'!D14+'College Spending Plan'!D73 -> 0 | D20: ='College Spending Plan'!E14+'College Spending Plan'!E73 -> 0 | E20: ='College Spending Plan'!F14+'College Spending Plan'!F73 -> 0 | F20: ='College Spending Plan'!G14+'College Spending Plan'!G73 -> 0
A21: Lecturer (FTE) | B21: ='College Spending Plan'!C15+'College Spending Plan'!C74 -> 0 | C21: ='College Spending Plan'!D15+'College Spending Plan'!D74 -> 0 | D21: ='College Spending Plan'!E15+'College Spending Plan'!E74 -> 0 | E21: ='College Spending Plan'!F15+'College Spending Plan'!F74 -> 0 | F21: ='College Spending Plan'!G15+'College Spending Plan'!G74 -> 0
A23: PLANNED STAFF
A24: Staff | B24: ='College Spending Plan'!C30+'College Spending Plan'!C31+'College Spending Plan'!C32+'College Spending Plan'!C89+'College Spending Plan'!C90+'College Spending Plan'!C91 -> 0 | C24: ='College Spending Plan'!D30+'College Spending Plan'!D31+'College Spending Plan'!D32+'College Spending Plan'!D89+'College Spending Plan'!D90+'College Spending Plan'!D91 -> 0 | D24: ='College Spending Plan'!E30+'College Spending Plan'!E31+'College Spending Plan'!E32+'College Spending Plan'!E89+'College Spending Plan'!E90+'College Spending Plan'!E91 -> 0 | E24: ='College Spending Plan'!F30+'College Spending Plan'!F31+'College Spending Plan'!F32+'College Spending Plan'!F89+'College Spending Plan'!F90+'College Spending Plan'!F91 -> 0 | F24: ='College Spending Plan'!G30+'College Spending Plan'!G31+'College Spending Plan'!G32+'College Spending Plan'!G89+'College Spending Plan'!G90+'College Spending Plan'!G91 -> 0
A25: =IF(F25<>"","Undergraduate Academic Advisor FTE","") ->  | B25: ='Program Info'!E130 ->  | C25: ='Program Info'!F130 ->  | D25: ='Program Info'!G130 ->  | E25: ='Program Info'!H130 ->  | F25: ='Program Info'!I130 -> 
A28: CREDIT HOURS
A29: Program Required Credit Hours | B29: ='Program Info'!E38 -> 0
A30: % of Curriculum from Newly Created Courses | B30: ='Program Info'!G38/'Program Info'!E38 -> 
A32: CH Consumed | B32: ='Program Info'!E57 ->  | C32: ='Program Info'!F57 ->  | D32: ='Program Info'!G57 ->  | E32: ='Program Info'!H57 ->  | F32: ='Program Info'!I57 -> 
A35: FINANCIALS
A36: Revenue (Net of Aid) | B36: ='APR 5 Year Projection'!B12 ->  | C36: ='APR 5 Year Projection'!C12 ->  | D36: ='APR 5 Year Projection'!D12 ->  | E36: ='APR 5 Year Projection'!E12 ->  | F36: ='APR 5 Year Projection'!F12 ->  | G36: ='APR 5 Year Projection'!G12 -> 
A37: Faculty Expense | B37: ='APR 5 Year Projection'!B26 ->  | C37: ='APR 5 Year Projection'!C26 ->  | D37: ='APR 5 Year Projection'!D26 ->  | E37: ='APR 5 Year Projection'!E26 ->  | F37: ='APR 5 Year Projection'!F26 ->  | G37: ='APR 5 Year Projection'!G26 -> 
A38: Total Expense | B38: ='APR 5 Year Projection'!B26+'APR 5 Year Projection'!B39+'APR 5 Year Projection'!B44+'APR 5 Year Projection'!B51+'APR 5 Year Projection'!B55 ->  | C38: ='APR 5 Year Projection'!C26+'APR 5 Year Projection'!C39+'APR 5 Year Projection'!C44+'APR 5 Year Projection'!C51+'APR 5 Year Projection'!C55 ->  | D38: ='APR 5 Year Projection'!D26+'APR 5 Year Projection'!D39+'APR 5 Year Projection'!D44+'APR 5 Year Projection'!D51+'APR 5 Year Projection'!D55 ->  | E38: ='APR 5 Year Projection'!E26+'APR 5 Year Projection'!E39+'APR 5 Year Projection'!E44+'APR 5 Year Projection'!E51+'APR 5 Year Projection'!E55 ->  | F38: ='APR 5 Year Projection'!F26+'APR 5 Year Projection'!F39+'APR 5 Year Projection'!F44+'APR 5 Year Projection'!F51+'APR 5 Year Projection'!F55 ->  | G38: ='APR 5 Year Projection'!G26+'APR 5 Year Projection'!G39+'APR 5 Year Projection'!G44+'APR 5 Year Projection'!G51+'APR 5 Year Projection'!G55 -> 
A39: Contribution Margin Surplus/(Deficit) | B39: =B36-B38 -> 
A41: Nonrecurring Expenditures
A42: Equipment Capital | B42: ='Space, Nonrecurring, Library'!H17+'Space, Nonrecurring, Library'!H19 -> 0
A43: Nonrecurring Expenditures | B43: ='Space, Nonrecurring, Library'!H19+'Space, Nonrecurring, Library'!H17+'Space, Nonrecurring, Library'!H14+'Space, Nonrecurring, Library'!L11+'Space, Nonrecurring, Library'!L9-B42 -> 0
A44: Total Nonrecurring Expenditures | B44: =B42+B43 -> 0
A46: Space Requested | B46: =CONCATENATE(TEXT(('Space, Nonrecurring, Library'!I9+'Space, Nonrecurring, Library'!I11),"#,###")," Sq Ft") -> Sq Ft
A48: Library
A49: Annual Cost | B49: ='Space, Nonrecurring, Library'!K22 -> 0
A51: Status College Spending Plan: | B51: ='College Spending Plan'!G55 -> 

Sheet APR 5 Year Projection
A1: ='Program Info'!E11 -> 0
A2: ='Program Info'!E10 -> 0
A3: ='Program Info'!B1 -> ACADEMIC PROGRAM PROPOSAL PROJECTION
A4: =IF('Program Info'!E15="YES","***ILI AFFILIATION - ILI TUITION RATE APPLIED***","") -> 
A5: =CONCATENATE('Program Info'!$B$6,": ",'Program Info'!$E$6) -> PROGRAM DEVELOPMENT PHASE:
B7: ='Program Info'!E17 -> 0 | C7: ='Program Info'!F17 -> 0-1 | D7: ='Program Info'!G17 ->  | E7: ='Program Info'!H17 ->  | F7: ='Program Info'!I17 ->  | G7: 5 Year Total
A9: Revenue
A10: Tuition | B10: ='Calculation Worksheet'!E203 ->  | C10: ='Calculation Worksheet'!F203 ->  | D10: ='Calculation Worksheet'!G203 ->  | E10: ='Calculation Worksheet'!H203 ->  | F10: ='Calculation Worksheet'!I203 ->  | G10: =SUM(B10:F10) -> 
A11: Unfunded Aid | B11: =-'Calculation Worksheet'!E211 ->  | C11: =-'Calculation Worksheet'!F211 ->  | D11: =-'Calculation Worksheet'!G211 ->  | E11: =-'Calculation Worksheet'!H211 ->  | F11: =-'Calculation Worksheet'!I211 ->  | G11: =SUM(B11:F11) ->  | H11: =G11/G10 -> 
A12: Net Tuition | B12: =B10+B11 ->  | C12: =C10+C11 ->  | D12: =D10+D11 ->  | E12: =E10+E11 ->  | F12: =F10+F11 ->  | G12: =SUM(B12:F12) -> 
A14: Direct Department Controlled College Expenses
A15: College Faculty Projection
A16: CAST | B16: ='College Exp Projections'!B17 ->  | C16: ='College Exp Projections'!C17 ->  | D16: ='College Exp Projections'!D17 ->  | E16: ='College Exp Projections'!E17 ->  | F16: ='College Exp Projections'!F17 ->  | G16: =SUM(B16:F16) -> 
A17: CHST | B17: ='College Exp Projections'!B26 ->  | C17: ='College Exp Projections'!C26 ->  | D17: ='College Exp Projections'!D26 ->  | E17: ='College Exp Projections'!E26 ->  | F17: ='College Exp Projections'!F26 ->  | G17: =SUM(B17:F17) -> 
A18: CIAS | B18: ='College Exp Projections'!B34 ->  | C18: ='College Exp Projections'!C34 ->  | D18: ='College Exp Projections'!D34 ->  | E18: ='College Exp Projections'!E34 ->  | F18: ='College Exp Projections'!F34 -> 
A19: COLA | B19: ='College Exp Projections'!B42 ->  | C19: ='College Exp Projections'!C42 ->  | D19: ='College Exp Projections'!D42 ->  | E19: ='College Exp Projections'!E42 ->  | F19: ='College Exp Projections'!F42 -> 
A20: COS | B20: ='College Exp Projections'!B50 ->  | C20: ='College Exp Projections'!C50 ->  | D20: ='College Exp Projections'!D50 ->  | E20: ='College Exp Projections'!E50 ->  | F20: ='College Exp Projections'!F50 -> 
A21: COS-CIS | B21: ='College Exp Projections'!B58 ->  | C21: ='College Exp Projections'!C58 ->  | D21: ='College Exp Projections'!D58 ->  | E21: ='College Exp Projections'!E58 ->  | F21: ='College Exp Projections'!F58 -> 
A22: GCCIS | B22: ='College Exp Projections'!B66 ->  | C22: ='College Exp Projections'!C66 ->  | D22: ='College Exp Projections'!D66 ->  | E22: ='College Exp Projections'!E66 ->  | F22: ='College Exp Projections'!F66 -> 
A23: GIS | B23: ='College Exp Projections'!B74 ->  | C23: ='College Exp Projections'!C74 ->  | D23: ='College Exp Projections'!D74 ->  | E23: ='College Exp Projections'!E74 ->  | F23: ='College Exp Projections'!F74 -> 
A24: KGCOE | B24: ='College Exp Projections'!B82 ->  | C24: ='College Exp Projections'!C82 ->  | D24: ='College Exp Projections'!D82 ->  | E24: ='College Exp Projections'!E82 ->  | F24: ='College Exp Projections'!F82 -> 
A25: SCB | B25: ='College Exp Projections'!B90 ->  | C25: ='College Exp Projections'!C90 ->  | D25: ='College Exp Projections'!D90 ->  | E25: ='College Exp Projections'!E90 ->  | F25: ='College Exp Projections'!F90 -> 
A26: Total College Faculty Projection | B26: =SUM(B16:B25) -> 
A28: College Other Direct Costs
A29: CAST | B29: ='College Exp Projections'!B18 ->  | C29: ='College Exp Projections'!C18 ->  | D29: ='College Exp Projections'!D18 ->  | E29: ='College Exp Projections'!E18 ->  | F29: ='College Exp Projections'!F18 ->  | G29: =SUM(B29:F29) -> 
A30: CHST | B30: ='College Exp Projections'!B27 ->  | C30: ='College Exp Projections'!C27 ->  | D30: ='College Exp Projections'!D27 ->  | E30: ='College Exp Projections'!E27 ->  | F30: ='College Exp Projections'!F27 ->  | G30: =SUM(B30:F30) -> 
A31: CIAS | B31: ='College Exp Projections'!B35 ->  | C31: ='College Exp Projections'!C35 ->  | D31: ='College Exp Projections'!D35 ->  | E31: ='College Exp Projections'!E35 ->  | F31: ='College Exp Projections'!F35 -> 
A32: COLA | B32: ='College Exp Projections'!B43 ->  | C32: ='College Exp Projections'!C43 ->  | D32: ='College Exp Projections'!D43 ->  | E32: ='College Exp Projections'!E43 ->  | F32: ='College Exp Projections'!F43 -> 
A33: COS | B33: ='College Exp Projections'!B51 ->  | C33: ='College Exp Projections'!C51 ->  | D33: ='College Exp Projections'!D51 ->  | E33: ='College Exp Projections'!E51 ->  | F33: ='College Exp Projections'!F51 -> 
A34: COS-CIS | B34: ='College Exp Projections'!B59 ->  | C34: ='College Exp Projections'!C59 ->  | D34: ='College Exp Projections'!D59 ->  | E34: ='College Exp Projections'!E59 ->  | F34: ='College Exp Projections'!F59 -> 
A35: GCCIS | B35: ='College Exp Projections'!B67 ->  | C35: ='College Exp Projections'!C67 ->  | D35: ='College Exp Projections'!D67 ->  | E35: ='College Exp Projections'!E67 ->  | F35: ='College Exp Projections'!F67 -> 
A36: GIS | B36: ='College Exp Projections'!B75 ->  | C36: ='College Exp Projections'!C75 ->  | D36: ='College Exp Projections'!D75 ->  | E36: ='College Exp Projections'!E75 ->  | F36: ='College Exp Projections'!F75 -> 
A37: KGCOE | B37: ='College Exp Projections'!B83 ->  | C37: ='College Exp Projections'!C83 ->  | D37: ='College Exp Projections'!D83 ->  | E37: ='College Exp Projections'!E83 ->  | F37: ='College Exp Projections'!F83 -> 
A38: SCB | B38: ='College Exp Projections'!B91 ->  | C38: ='College Exp Projections'!C91 ->  | D38: ='College Exp Projections'!D91 ->  | E38: ='College Exp Projections'!E91 ->  | F38: ='College Exp Projections'!F91 -> 
A39: Total College Other Direct Costs | B39: =SUM(B29:B38) -> 
A41: Direct College Controlled Costs | B41: =B39+B26 -> 
A43: College Overhead (Not Department Controlled) | B43: ='Program Info'!E102+'Program Info'!E103+'Program Info'!E104+'Program Info'!E105+'Program Info'!E106+'Program Info'!E108+'Program Info'!E109+'Program Info'!E110+'Program Info'!E111 ->  | C43: ='Program Info'!F102+'Program Info'!F103+'Program Info'!F104+'Program Info'!F105+'Program Info'!F106+'Program Info'!F108+'Program Info'!F109+'Program Info'!F110+'Program Info'!F111 ->  | D43: ='Program Info'!G102+'Program Info'!G103+'Program Info'!G104+'Program Info'!G105+'Program Info'!G106+'Program Info'!G108+'Program Info'!G109+'Program Info'!G110+'Program Info'!G111 ->  | E43: ='Program Info'!H102+'Program Info'!H103+'Program Info'!H104+'Program Info'!H105+'Program Info'!H106+'Program Info'!H108+'Program Info'!H109+'Program Info'!H110+'Program Info'!H111 ->  | F43: ='Program Info'!I102+'Program Info'!I103+'Program Info'!I104+'Program Info'!I105+'Program Info'!I106+'Program Info'!I108+'Program Info'!I109+'Program Info'!I110+'Program Info'!I111 ->  | G43: =SUM(B43:F43) -> 
A44: Total Overhead | B44: =B43 -> 
A46: Total College Responsibility Cost | B46: =B41+B44 -> 
A48: Total Surplus/Deficit at College Level | B48: =B12-B46 -> 
A49: Contribution at College Level | B49: =B48/B12 -> 
A51: Acadamic Affairs Allocation | B51: ='Program Info'!E126+'Program Info'!E131 ->  | C51: ='Program Info'!F126+'Program Info'!F131 ->  | D51: ='Program Info'!G126+'Program Info'!G131 ->  | E51: ='Program Info'!H126+'Program Info'!H131 ->  | F51: ='Program Info'!I126+'Program Info'!I131 ->  | G51: =SUM(B51:F51) -> 
A52: Total Surplus/Defict at Academic Affairs Level | B52: =B48-B51 -> 
A53: Contribution at Academic Affairs Level | B53: =B52/B12 -> 
A55: Fully Allocated | B55: ='Program Info'!E145 ->  | C55: ='Program Info'!F145 ->  | D55: ='Program Info'!G145 ->  | E55: ='Program Info'!H145 ->  | F55: ='Program Info'!I145 ->  | G55: =SUM(B55:F55) -> 
A56: Total Surplus/Deficit at Fully Allocated Level | B56: =B52-B55 -> 
A57: Contribution at Fully Allocated Level | B57: =B56/B12 -> 
A59: Verification | B59: =B55+B51+B46-B12+B56 -> 

Sheet Program Info
B1: ACADEMIC PROGRAM PROPOSAL PROJECTION
B2: For questions, please contact Leanne Hill, lkhcto@rit.edu
B3: Please submit to Leanne Hill for review prior to submission to Academic Affairs
B6: PROGRAM DEVELOPMENT PHASE
B7: Anticipated Start Date
D9: Today's Date:
D10: Enter name of program:
D11: Select Home College
D12: Select Secondary College | E12: N/A
D13: Enter Home Dept
D14: Program Type | H14: =VLOOKUP(E14,Program_Table,2,FALSE) -> 
D15: ILI affiliated Program | E15: NO
D16: PDF File Name | E16: =CONCATENATE(E11,"_",E10,"_",E7) -> __
E17: =+'Program Info'!E7 -> 0 | F17: =CONCATENATE(RIGHT(E17,4),"-",RIGHT(E17,4)+1) -> 0-1 | G17: =CONCATENATE(RIGHT(F17,4),"-",RIGHT(F17,4)+1) ->  | H17: =CONCATENATE(RIGHT(G17,4),"-",RIGHT(G17,4)+1) ->  | I17: =CONCATENATE(RIGHT(H17,4),"-",RIGHT(H17,4)+1) ->  | J17: =CONCATENATE(RIGHT(I17,4),"-",RIGHT(I17,4)+1) ->  | K17: Total
D18: Preloaded FT CrHr Mask | E18: =VLOOKUP($E$14,MaskTable,'Calculation Worksheet'!F13) ->  | F18: =VLOOKUP($E$14,MaskTable,'Calculation Worksheet'!G13) ->  | G18: =VLOOKUP($E$14,MaskTable,'Calculation Worksheet'!H13) ->  | H18: =VLOOKUP($E$14,MaskTable,'Calculation Worksheet'!I13) ->  | I18: =VLOOKUP($E$14,MaskTable,'Calculation Worksheet'!J13) ->  | J18: =VLOOKUP($E$14,MaskTable,'Calculation Worksheet'!K13) ->  | K18: =SUM(E18:J18) -> 
D19: Program Specific Adjustments | F19: -3 | K19: =SUM(E19:J19) -> -3
D20: FT Basis for Model | E20: =E18+E19 ->  | K20: =SUM(E20:J20) -> 
D22: Student Completion Profiles | E22: Retention Rate / 1 st year | F22: Completion Rate | G22: Years to Complete | H22: Crs/Sem
C23: 1 | D23: Full Time | E23: 0.8764 | F23: 0.6632 | G23: =ROUND(VLOOKUP(E14,MaskTable,'Calculation Worksheet'!D13,FALSE),0) -> 
C24: 2 | D24: Part Time | E24: 0.8764 | F24: 0.6632 | G24: =IF(H24=0,99,IF(E25="No",ROUNDUP(K20/H24/2,0),(ROUNDUP(K20/((H24*2)+H25),0)))) ->  | H24: 6
D25: Summer Classes (Part Time Students Only) | E25: NO | H25: 3
E27: CH Totals | F27: % of Total | G27: CH New Courses | H27: CH Existing Courses
D28: CAST | F28: =E28/$K$20 ->  | H28: =E28-G28 -> 0
D29: CHST | F29: =E29/$K$20 ->  | H29: =E29-G29 -> 0
D30: CIAS | F30: =E30/$K$20 ->  | H30: 0
D31: COLA | H31: 0
D32: COS | H32: 0 | K32: =IF(E38<>K20,"Correct CH to match K20","") -> 
D33: COS-CIS | H33: 0
D34: GCCIS | H34: 0
D35: GIS | H35: 0
D36: KGCOE | H36: 0
D37: SCB | H37: 0
D38: Total | E38: =SUM(E28:E37) -> 0 | F38: =IF(E38<>K20,"Check CH","GOOD") ->  | G38: =SUM(G28:G37) -> 0 | H38: =SUM(H28:H37) -> 0
D39: Hours taken outside of Program college-includes general education classes taken outside of the college and required program courses ** | E39: =E38-SUMIFS(E28:E37,D28:D37,E11) -> 0
D40: Interdisciplinary % of Total | E40: =+E39/K20 -> 
B42: Enrollment
D44: Incremental Intake (Headcount) | E44: =+E17 -> 0 | F44: =+F17 -> 0-1 | G44: =+G17 ->  | H44: =+H17 ->  | I44: =+I17 -> 
C45: 1 | D45: ='Program Info'!D23 -> Full Time | J45: =I45 -> 0 | K45: 0 | L45: 0 | M45: 0 | N45: 0
B46: =IF(AND(SUM(E46:I47)>0,$H$14="GRAD"),"Delete Tfer enr","") ->  | C46: 3 | D46: =IF($H$14="UG","External Transfers - Year 2","") ->  | J46: 0 | K46: 0 | L46: 0 | M46: 0 | N46: 0
B47: =IF(AND(SUM(E46:I47)>0,$H$14="GRAD"),"Delete Tfer enr","") ->  | C47: 4 | D47: =IF($H$14="UG","External Transfers - Year 3","") ->  | E47: 14 | F47: 14 | G47: 16 | H47: 16 | I47: 18 | J47: 18 | K47: 18 | L47: 18 | M47: 18 | N47: 18
C48: 2 | D48: ='Program Info'!D24 -> Part Time | J48: 0 | K48: 0 | L48: 0 | M48: 0 | N48: 0
D49: Total | E49: =SUM(E45:E48) -> 14 | F49: 14 | G49: 16 | H49: 16 | I49: 18 | J49: 18 | K49: 18 | L49: 18 | M49: 18 | N49: 18
D50: Accum. HC | E50: =+'Calculation Worksheet'!E65 ->  | F50: =+'Calculation Worksheet'!F65 ->  | G50: =+'Calculation Worksheet'!G65 ->  | H50: =+'Calculation Worksheet'!H65 ->  | I50: =+'Calculation Worksheet'!I65 ->  | J50: =+'Calculation Worksheet'!J65 ->  | K50: =+'Calculation Worksheet'!K65 ->  | L50: =+'Calculation Worksheet'!L65 ->  | M50: =+'Calculation Worksheet'!M65 ->  | N50: =+'Calculation Worksheet'!N65 -> 
D51: Please check box to confirm you have received confirmation from Enrollment Management for above Incremental Intake. Please submit the confirmation memo with your documentation.
B53: Allowances
C55: CREDIT HOUR DISTRIBUTION AND ALLOWANCES
D57: Credit Hour Demand | E57: ='Calculation Worksheet'!E177 ->  | F57: ='Calculation Worksheet'!F177 ->  | G57: ='Calculation Worksheet'!G177 ->  | H57: ='Calculation Worksheet'!H177 ->  | I57: ='Calculation Worksheet'!I177 -> 
C59: Credit Hour Distribution | D59: Credit Hour Distribution | E59: Year
D60: College | E60: 1 | F60: 2 | G60: 3 | H60: 4 | I60: 5
D61: CAST | E61: =ROUNDUP((E$57*$F28),0) -> 
D62: CHST
D63: CIAS
D64: COLA
D65: COS
D66: COS-CIS
D67: GCCIS
D68: GIS
D69: KGCOE
D70: SCB
C72: Faculty Allowance | D72: =H14 ->  | E72: Year
D73: Faculty Allowance | E73: 1 | F73: 2 | G73: 3 | H73: 4 | I73: 5
D74: CAST | E74: =IF($D$72="GRAD",(SUMIFS(gradSal,College,$D74)*E$61)*((1+expinc)^(start_Gap)),IF($D$72="UG",(SUMIFS(ugradsal,College,$D74)*E$61)*((1+expinc)^(start_Gap)))) ->  | F74: =IF($D$72="GRAD",(SUMIFS(gradSal,College,$D74)*F$61)*((1+expinc)^(start_Gap+E$73)),IF($D$72="UG",(SUMIFS(ugradsal,College,$D74)*F$61)*((1+expinc)^(start_Gap+E$73)))) ->  | G74: =IF($D$72="GRAD",(SUMIFS(gradSal,College,$D74)*G$61)*((1+expinc)^(start_Gap+F$73)),IF($D$72="UG",(SUMIFS(ugradsal,College,$D74)*G$61)*((1+expinc)^(start_Gap+F$73)))) ->  | H74: =IF($D$72="GRAD",(SUMIFS(gradSal,College,$D74)*H$61)*((1+expinc)^(start_Gap+G$73)),IF($D$72="UG",(SUMIFS(ugradsal,College,$D74)*H$61)*((1+expinc)^(start_Gap+G$73)))) ->  | I74: =IF($D$72="GRAD",(SUMIFS(gradSal,College,$D74)*I$61)*((1+expinc)^(start_Gap+H$73)),IF($D$72="UG",(SUMIFS(ugradsal,College,$D74)*I$61)*((1+expinc)^(start_Gap+H$73)))) -> 
D75: CHST | E75: =IF($D$72="GRAD",(SUMIFS(gradSal,College,$D75)*E$62)*((1+expinc)^(start_Gap)),IF($D$72="UG",(SUMIFS(ugradsal,College,$D75)*E$62)*((1+expinc)^(start_Gap)))) ->  | F75: =IF($D$72="GRAD",(SUMIFS(gradSal,College,$D75)*F$62)*((1+expinc)^(start_Gap+E$73)),IF($D$72="UG",(SUMIFS(ugradsal,College,$D75)*F$62)*((1+expinc)^(start_Gap+E$73)))) ->  | G75: =IF($D$72="GRAD",(SUMIFS(gradSal,College,$D75)*G$62)*((1+expinc)^(start_Gap+F$73)),IF($D$72="UG",(SUMIFS(ugradsal,College,$D75)*G$62)*((1+expinc)^(start_Gap+F$73)))) ->  | H75: =IF($D$72="GRAD",(SUMIFS(gradSal,College,$D75)*H$62)*((1+expinc)^(start_Gap+G$73)),IF($D$72="UG",(SUMIFS(ugradsal,College,$D75)*H$62)*((1+expinc)^(start_Gap+G$73)))) ->  | I75: =IF($D$72="GRAD",(SUMIFS(gradSal,College,$D75)*I$62)*((1+expinc)^(start_Gap+H$73)),IF($D$72="UG",(SUMIFS(ugradsal,College,$D75)*I$62)*((1+expinc)^(start_Gap+H$73)))) -> 
D76: CIAS | E76: =IF($D$72="GRAD",(SUMIFS(gradSal,College,$D76)*E63)*((1+expinc)^(start_Gap)),IF($D$72="UG",(SUMIFS(ugradsal,College,$D76)*E63)*((1+expinc)^(start_Gap)))) ->  | F76: =IF($D$72="GRAD",(SUMIFS(gradSal,College,$D76)*F63)*((1+expinc)^(start_Gap+E$73)),IF($D$72="UG",(SUMIFS(ugradsal,College,$D76)*F63)*((1+expinc)^(start_Gap+E$73)))) ->  | I76: =IF($D$72="GRAD",(SUMIFS(gradSal,College,$D76)*I63)*((1+expinc)^(start_Gap+H$73)),IF($D$72="UG",(SUMIFS(ugradsal,College,$D76)*I63)*((1+expinc)^(start_Gap+H$73)))) -> 
D77: COLA
D78: COS
D79: COS-CIS
D80: GCCIS
D81: GIS
D82: KGCOE
D83: SCB
D84: Total | E84: =SUM(E74:E83) ->  | F84: =SUM(F74:F83) ->  | G84: =SUM(G74:G83) ->  | H84: =SUM(H74:H83) ->  | I84: =SUM(I74:I83) -> 
C86: Non Instructional Allowance | E86: Year
C87: Non Salary | D87: Non Salary | E87: 1 | F87: 2 | G87: 3 | H87: 4 | I87: 5
D88: CAST | E88: =IF($D$72="GRAD",(SUMIFS(NonSal,College,$D88)*E61)*((1+expinc)^(start_Gap)),IF($D$72="UG",(SUMIFS(NonSal,College,$D88)*E61)*((1+expinc)^(start_Gap)))) ->  | F88: =IF($D$72="GRAD",(SUMIFS(NonSal,College,$D88)*F61)*((1+expinc)^(start_Gap+E$73)),IF($D$72="UG",(SUMIFS(NonSal,College,$D88)*F61)*((1+expinc)^(start_Gap+E$73)))) ->  | I88: =IF($D$72="GRAD",(SUMIFS(NonSal,College,$D88)*I61)*((1+expinc)^(start_Gap+H$73)),IF($D$72="UG",(SUMIFS(NonSal,College,$D88)*I61)*((1+expinc)^(start_Gap+H$73)))) -> 
D89: CHST
D90: CIAS
D91: COLA
D92: COS
D93: COS-CIS
D94: GCCIS
D95: GIS
D96: KGCOE
D97: SCB
D98: Total | E98: =SUM(E88:E97) ->  | F98: =SUM(F88:F97) ->  | G98: =SUM(G88:G97) ->  | H98: =SUM(H88:H97) ->  | I98: =SUM(I88:I97) -> 
C100: College Overhead | E100: Year
D101: College Overhead | E101: 1 | F101: 2 | G101: 3 | H101: 4 | I101: 5
D102: CAST | E102: =IF($D$72="GRAD",(SUMIFS(COLLOHwHedge,College,$D102)*E61)*((1+expinc)^(start_Gap)),IF($D$72="UG",(SUMIFS(COLLOHwHedge,College,$D102)*E61)*((1+expinc)^(start_Gap)))) ->  | F102: =IF($D$72="GRAD",(SUMIFS(COLLOHwHedge,College,$D102)*F61)*((1+expinc)^(start_Gap+E$73)),IF($D$72="UG",(SUMIFS(COLLOHwHedge,College,$D102)*F61)*((1+expinc)^(start_Gap+E$73)))) ->  | I102: =IF($D$72="GRAD",(SUMIFS(COLLOHwHedge,College,$D102)*I61)*((1+expinc)^(start_Gap+H$73)),IF($D$72="UG",(SUMIFS(COLLOHwHedge,College,$D102)*I61)*((1+expinc)^(start_Gap+H$73)))) -> 
D103: CHST
D104: CIAS
D105: COLA
D106: COS
D107: COS-CIS
D108: GCCIS
D109: GIS
D110: KGCOE
D111: SCB
D112: Total | E112: =SUM(E102:E111) ->  | F112: =SUM(F102:F111) ->  | G112: =SUM(G102:G111) ->  | H112: =SUM(H102:H111) ->  | I112: =SUM(I102:I111) -> 
C114: Academic Affairs | E114: Year
D115: Academic Affairs | E115: 1 | F115: 2 | G115: 3 | H115: 4 | I115: 5
D116: CAST | E116: =IF($D$72="GRAD",(SUMIFS(AAOH,College,$D116)*E61)*((1+expinc)^(start_Gap)),IF($D$72="UG",(SUMIFS(AAOH,College,$D116)*E61)*((1+expinc)^(start_Gap)))) ->  | F116: =IF($D$72="GRAD",(SUMIFS(AAOH,College,$D116)*F61)*((1+expinc)^(start_Gap+E$73)),IF($D$72="UG",(SUMIFS(AAOH,College,$D116)*F61)*((1+expinc)^(start_Gap+E$73)))) ->  | I116: =IF($D$72="GRAD",(SUMIFS(AAOH,College,$D116)*I61)*((1+expinc)^(start_Gap+H$73)),IF($D$72="UG",(SUMIFS(AAOH,College,$D116)*I61)*((1+expinc)^(start_Gap+H$73)))) -> 
D117: CHST
D118: CIAS
D119: COLA
D120: COS
D121: COS-CIS
D122: GCCIS
D123: GIS
D124: KGCOE
D125: SCB
D126: Total | E126: =SUM(E116:E125) ->  | F126: =SUM(F116:F125) ->  | G126: =SUM(G116:G125) ->  | H126: =SUM(H116:H125) ->  | I126: =SUM(I116:I125) -> 
C127: Academic Advising | E127: Year
D128: Academic Advising | E128: 1 | F128: 2 | G128: 3 | H128: 4 | I128: 5
D129: Students | E129: =IF($H$14="UG",E50,0) ->  | F129: =IF($H$14="UG",F50,0) ->  | G129: =IF($H$14="UG",G50,0) ->  | H129: =IF($H$14="UG",H50,0) ->  | I129: =IF($H$14="UG",I50,0) -> 
D130: Eligible FTE | E130: =IF(E129=0,0,VLOOKUP(E129,Assumptions!$A$67:$D$77,3,TRUE)) ->  | F130: =IF(F129=0,0,VLOOKUP(F129,Assumptions!$A$67:$D$77,3,TRUE)) ->  | G130: =IF(G129=0,0,VLOOKUP(G129,Assumptions!$A$67:$D$77,3,TRUE)) ->  | H130: =IF(H129=0,0,VLOOKUP(H129,Assumptions!$A$67:$D$77,3,TRUE)) ->  | I130: =IF(I129=0,0,VLOOKUP(I129,Assumptions!$A$67:$D$77,3,TRUE)) -> 
D131: Annual Salary | E131: =IF(E130=0,0,VLOOKUP(E129,Assumptions!$A$67:$D$77,4,TRUE)*((1+expinc)^(start_Gap))) ->  | F131: =IF(F130=0,0,VLOOKUP(F129,Assumptions!$A$67:$D$77,4,TRUE)*((1+expinc)^(start_Gap))) ->  | G131: =IF(G130=0,0,VLOOKUP(G129,Assumptions!$A$67:$D$77,4,TRUE)*((1+expinc)^(start_Gap))) ->  | H131: =IF(H130=0,0,VLOOKUP(H129,Assumptions!$A$67:$D$77,4,TRUE)*((1+expinc)^(start_Gap))) ->  | I131: =IF(I130=0,0,VLOOKUP(I129,Assumptions!$A$67:$D$77,4,TRUE)*((1+expinc)^(start_Gap))) -> 
C133: Fully Allocated | E133: Year
D134: Fully Allocated Cost | E134: 1 | F134: 2 | G134: 3 | H134: 4 | I134: 5
D135: CAST | E135: =IF($D$72="GRAD",(SUMIFS(FULLOH,College,$D135)*E61)*((1+expinc)^(start_Gap)),IF($D$72="UG",(SUMIFS(FULLOH,College,$D135)*E61)*((1+expinc)^(start_Gap)))) ->  | F135: =IF($D$72="GRAD",(SUMIFS(FULLOH,College,$D135)*F61)*((1+expinc)^(start_Gap+E$73)),IF($D$72="UG",(SUMIFS(FULLOH,College,$D135)*F61)*((1+expinc)^(start_Gap+E$73)))) ->  | I135: =IF($D$72="GRAD",(SUMIFS(FULLOH,College,$D135)*I61)*((1+expinc)^(start_Gap+H$73)),IF($D$72="UG",(SUMIFS(FULLOH,College,$D135)*I61)*((1+expinc)^(start_Gap+H$73)))) -> 
D136: CHST
D137: CIAS
D138: COLA
D139: COS
D140: COS-CIS
D141: GCCIS
D142: GIS
D143: KGCOE
D144: SCB
D145: Total | E145: =SUM(E135:E144) ->  | F145: =SUM(F135:F144) ->  | G145: =SUM(G135:G144) ->  | H145: =SUM(H135:H144) ->  | I145: =SUM(I135:I144) -> 

Sheet Space, Nonrecurring, Library
A1: ='Program Info'!B1 -> ACADEMIC PROGRAM PROPOSAL PROJECTION
A2: Space, Nonrecurring and Library Costs
A3: =CONCATENATE('Program Info'!$B$6,": ",'Program Info'!$E$6) -> PROGRAM DEVELOPMENT PHASE:
A5: The purpose of this worksheet is to identify any space needs, capital costs and other non-recurring needs to launch the program. Listed items will be part of the dialogue in new program approval.
A8: Dedicated Space Needs | H8: Preferred Location | I8: Square Feet | J8: Space Type | K8: Cost Per Sq Foot | L8: Projected Capital Costs
K9: =IF(J9="","",VLOOKUP(J9,Assumptions!$A$61:$B$64,2,FALSE)) ->  | L9: =IF(I9="",0,I9*K9) -> 0
K11: =IF(J11="","",VLOOKUP(J11,Assumptions!$A$61:$B$64,2,FALSE)) ->  | L11: =IF(I11="",0,I11*K11) -> 0
A13: Nonrecurring and One Time Costs | H13: Amount
A16: Equipment Needs | H16: Amount
A21: Library Resources (Required in Table 5, submit letter from librarian with your proposal) | H21: Year 1 | I21: Year 2 | J21: Year 3 | K21: Annual Cost
K22: =SUM(H22:J22)/3 -> 0
A27: <<<Optional Workspace for Calculations>>>
A28: Will not be included in .pdf

Sheet College Exp Projections (hidden)
A1: ='Program Info'!E10 -> 0
A2: College Expense Projections
B3: YEAR
B4: ='Program Summary'!B7 -> 0 | C4: ='Program Summary'!C7 -> 0-1 | D4: ='Program Summary'!D7 ->  | E4: ='Program Summary'!E7 ->  | F4: ='Program Summary'!F7 ->  | G4: ='Program Summary'!G7 -> 5 Year Total
A6: Total College
A7: Salary | B7: =B17+B26+B34+B42+B50+B66+B74+B82+B90 ->  | C7: =C17+C26+C34+C42+C50+C66+C74+C82+C90 ->  | D7: =D17+D26+D34+D42+D50+D66+D74+D82+D90 ->  | E7: =E17+E26+E34+E42+E50+E66+E74+E82+E90 ->  | F7: =F17+F26+F34+F42+F50+F66+F74+F82+F90 ->  | G7: =SUM(B7:F7) -> 
A8: Non Salary | B8: =B18+B27+B35+B43+B51+B67+B75+B83+B91 ->  | C8: =C18+C27+C35+C43+C51+C67+C75+C83+C91 ->  | G8: =SUM(B8:F8) -> 
A9: College Overhead | B9: =B19+B28+B36+B44+B52+B68+B76+B84+B92 ->  | G9: =SUM(B9:F9) -> 
A10: Academic Affairs | B10: =B20+B29+B37+B45+B53+B69+B77+B85+B93 ->  | G10: =SUM(B10:F10) -> 
A11: Fully Allocated | B11: =B21+B30+B38+B46+B54+B70+B78+B86+B94 ->  | G11: =SUM(B11:F11) -> 
A12: Total | B12: =SUM(B6:B11) -> 
A13: From Statement | B13: ='Program Info'!E84+'Program Info'!E98+'Program Info'!E112+'Program Info'!E126+'Program Info'!E131+'Program Info'!E145 ->  | C13: ='Program Info'!F84+'Program Info'!F98+'Program Info'!F112+'Program Info'!F126+'Program Info'!F131+'Program Info'!F145 ->  | D13: ='Program Info'!G84+'Program Info'!G98+'Program Info'!G112+'Program Info'!G126+'Program Info'!G131+'Program Info'!G145 ->  | E13: ='Program Info'!H84+'Program Info'!H98+'Program Info'!H112+'Program Info'!H126+'Program Info'!H131+'Program Info'!H145 ->  | F13: ='Program Info'!I84+'Program Info'!I98+'Program Info'!I112+'Program Info'!I126+'Program Info'!I131+'Program Info'!I145 ->  | G13: =SUM(B13:F13) -> 
A14: Variance | B14: =B12-B13 -> 
A16: CAST
A17: Salary | B17: =SUMIFS('Program Info'!$E$74:$E$83,'Program Info'!$D$74:$D$83,$A16) ->  | C17: =SUMIFS('Program Info'!$F$74:$F$83,'Program Info'!$D$74:$D$83,$A16) ->  | D17: =SUMIFS('Program Info'!$G$74:$G$83,'Program Info'!$D$74:$D$83,$A16) ->  | E17: =SUMIFS('Program Info'!$H$74:$H$83,'Program Info'!$D$74:$D$83,$A16) ->  | F17: =SUMIFS('Program Info'!$I$74:$I$83,'Program Info'!$D$74:$D$83,$A16) ->  | G17: =SUM(B17:F17) -> 
A18: Non Salary | B18: =SUMIFS('Program Info'!E$88:E$97,'Program Info'!$D$88:$D$97,$A16) ->  | C18: =SUMIFS('Program Info'!F$88:F$97,'Program Info'!$D$88:$D$97,$A16) ->  | D18: =SUMIFS('Program Info'!G$88:G$97,'Program Info'!$D$88:$D$97,$A16) ->  | E18: =SUMIFS('Program Info'!H$88:H$97,'Program Info'!$D$88:$D$97,$A16) ->  | F18: =SUMIFS('Program Info'!I$88:I$97,'Program Info'!$D$88:$D$97,$A16) ->  | G18: =SUM(B18:F18) -> 
A19: College Overhead | B19: =SUMIFS('Program Info'!$E$102:$E$111,'Program Info'!$D$102:$D$111,$A16) ->  | C19: =SUMIFS('Program Info'!$F$102:$F$111,'Program Info'!$D$102:$D$111,$A16) ->  | D19: =SUMIFS('Program Info'!$G$102:$G$111,'Program Info'!$D$102:$D$111,$A16) ->  | E19: =SUMIFS('Program Info'!$H$102:$H$111,'Program Info'!$D$102:$D$111,$A16) ->  | F19: =SUMIFS('Program Info'!$I$102:$I$111,'Program Info'!$D$102:$D$111,$A16) ->  | G19: =SUM(B19:F19) -> 
A20: Academic Affairs | B20: =SUMIFS('Program Info'!$E$116:$E$125,'Program Info'!$D$116:$D$125,$A16) ->  | C20: =SUMIFS('Program Info'!$F$116:$F$125,'Program Info'!$D$116:$D$125,$A16) ->  | D20: =SUMIFS('Program Info'!$G$116:$G$125,'Program Info'!$D$116:$D$125,$A16) ->  | E20: =SUMIFS('Program Info'!$H$116:$H$125,'Program Info'!$D$116:$D$125,$A16) ->  | F20: =SUMIFS('Program Info'!$I$116:$I$125,'Program Info'!$D$116:$D$125,$A16) ->  | G20: =SUM(B20:F20) -> 
A21: Fully Allocated | B21: =SUMIFS('Program Info'!E$135:E$144,'Program Info'!$D$135:$D$144,$A16) ->  | C21: =SUMIFS('Program Info'!F$135:F$144,'Program Info'!$D$135:$D$144,$A16) ->  | D21: =SUMIFS('Program Info'!G$135:G$144,'Program Info'!$D$135:$D$144,$A16) ->  | E21: =SUMIFS('Program Info'!H$135:H$144,'Program Info'!$D$135:$D$144,$A16) ->  | F21: =SUMIFS('Program Info'!I$135:I$144,'Program Info'!$D$135:$D$144,$A16) ->  | G21: =SUM(B21:F21) -> 
A22: Total | B22: =SUM(B16:B21) -> 
A25: CHST
A26: Salary | B26: =SUMIFS('Program Info'!$E$74:$E$83,'Program Info'!$D$74:$D$83,$A25) ->  | C26: =SUMIFS('Program Info'!$F$74:$F$83,'Program Info'!$D$74:$D$83,$A25) ->  | D26: =SUMIFS('Program Info'!$G$74:$G$83,'Program Info'!$D$74:$D$83,$A25) ->  | E26: =SUMIFS('Program Info'!$H$74:$H$83,'Program Info'!$D$74:$D$83,$A25) ->  | F26: =SUMIFS('Program Info'!$I$74:$I$83,'Program Info'!$D$74:$D$83,$A25) ->  | G26: =SUM(B26:F26) -> 
A27: Non Salary | B27: =SUMIFS('Program Info'!E$88:E$97,'Program Info'!$D$88:$D$97,$A25) ->  | C27: =SUMIFS('Program Info'!F$88:F$97,'Program Info'!$D$88:$D$97,$A25) ->  | D27: =SUMIFS('Program Info'!G$88:G$97,'Program Info'!$D$88:$D$97,$A25) ->  | E27: =SUMIFS('Program Info'!H$88:H$97,'Program Info'!$D$88:$D$97,$A25) ->  | F27: =SUMIFS('Program Info'!I$88:I$97,'Program Info'!$D$88:$D$97,$A25) ->  | G27: =SUM(B27:F27) -> 
A28: College Overhead | B28: =SUMIFS('Program Info'!$E$102:$E$111,'Program Info'!$D$102:$D$111,$A25) ->  | C28: =SUMIFS('Program Info'!$F$102:$F$111,'Program Info'!$D$102:$D$111,$A25) ->  | D28: =SUMIFS('Program Info'!$G$102:$G$111,'Program Info'!$D$102:$D$111,$A25) ->  | E28: =SUMIFS('Program Info'!$H$102:$H$111,'Program Info'!$D$102:$D$111,$A25) ->  | F28: =SUMIFS('Program Info'!$I$102:$I$111,'Program Info'!$D$102:$D$111,$A25) ->  | G28: =SUM(B28:F28) -> 
A29: Academic Affairs | B29: =SUMIFS('Program Info'!$E$116:$E$125,'Program Info'!$D$116:$D$125,$A25) ->  | C29: =SUMIFS('Program Info'!$F$116:$F$125,'Program Info'!$D$116:$D$125,$A25) ->  | D29: =SUMIFS('Program Info'!$G$116:$G$125,'Program Info'!$D$116:$D$125,$A25) ->  | E29: =SUMIFS('Program Info'!$H$116:$H$125,'Program Info'!$D$116:$D$125,$A25) ->  | F29: =SUMIFS('Program Info'!$I$116:$I$125,'Program Info'!$D$116:$D$125,$A25) ->  | G29: =SUM(B29:F29) -> 
A30: Fully Allocated | B30: =SUMIFS('Program Info'!E$135:E$144,'Program Info'!$D$135:$D$144,$A25) ->  | C30: =SUMIFS('Program Info'!F$135:F$144,'Program Info'!$D$135:$D$144,$A25) ->  | D30: =SUMIFS('Program Info'!G$135:G$144,'Program Info'!$D$135:$D$144,$A25) ->  | E30: =SUMIFS('Program Info'!H$135:H$144,'Program Info'!$D$135:$D$144,$A25) ->  | F30: =SUMIFS('Program Info'!I$135:I$144,'Program Info'!$D$135:$D$144,$A25) ->  | G30: =SUM(B30:F30) -> 
A31: Total | B31: =SUM(B25:B30) -> 
A33: CIAS
A34: Salary | B34: =SUMIFS('Program Info'!$E$74:$E$83,'Program Info'!$D$74:$D$83,$A33) ->  | C34: =SUMIFS('Program Info'!$F$74:$F$83,'Program Info'!$D$74:$D$83,$A33) ->  | D34: =SUMIFS('Program Info'!$G$74:$G$83,'Program Info'!$D$74:$D$83,$A33) ->  | E34: =SUMIFS('Program Info'!$H$74:$H$83,'Program Info'!$D$74:$D$83,$A33) ->  | F34: =SUMIFS('Program Info'!$I$74:$I$83,'Program Info'!$D$74:$D$83,$A33) ->  | G34: =SUM(B34:F34) -> 
A35: Non Salary | B35: =SUMIFS('Program Info'!E$88:E$97,'Program Info'!$D$88:$D$97,$A33) ->  | C35: =SUMIFS('Program Info'!F$88:F$97,'Program Info'!$D$88:$D$97,$A33) ->  | D35: =SUMIFS('Program Info'!G$88:G$97,'Program Info'!$D$88:$D$97,$A33) ->  | E35: =SUMIFS('Program Info'!H$88:H$97,'Program Info'!$D$88:$D$97,$A33) ->  | F35: =SUMIFS('Program Info'!I$88:I$97,'Program Info'!$D$88:$D$97,$A33) ->  | G35: =SUM(B35:F35) -> 
A36: College Overhead | B36: =SUMIFS('Program Info'!$E$102:$E$111,'Program Info'!$D$102:$D$111,$A33) ->  | C36: =SUMIFS('Program Info'!$F$102:$F$111,'Program Info'!$D$102:$D$111,$A33) ->  | D36: =SUMIFS('Program Info'!$G$102:$G$111,'Program Info'!$D$102:$D$111,$A33) ->  | E36: =SUMIFS('Program Info'!$H$102:$H$111,'Program Info'!$D$102:$D$111,$A33) ->  | F36: =SUMIFS('Program Info'!$I$102:$I$111,'Program Info'!$D$102:$D$111,$A33) ->  | G36: =SUM(B36:F36) -> 
A37: Academic Affairs | B37: =SUMIFS('Program Info'!$E$116:$E$125,'Program Info'!$D$116:$D$125,$A33) ->  | C37: =SUMIFS('Program Info'!$F$116:$F$125,'Program Info'!$D$116:$D$125,$A33) ->  | D37: =SUMIFS('Program Info'!$G$116:$G$125,'Program Info'!$D$116:$D$125,$A33) ->  | E37: =SUMIFS('Program Info'!$H$116:$H$125,'Program Info'!$D$116:$D$125,$A33) ->  | F37: =SUMIFS('Program Info'!$I$116:$I$125,'Program Info'!$D$116:$D$125,$A33) ->  | G37: =SUM(B37:F37) -> 
A38: Fully Allocated | B38: =SUMIFS('Program Info'!E$135:E$144,'Program Info'!$D$135:$D$144,$A33) ->  | C38: =SUMIFS('Program Info'!F$135:F$144,'Program Info'!$D$135:$D$144,$A33) ->  | D38: =SUMIFS('Program Info'!G$135:G$144,'Program Info'!$D$135:$D$144,$A33) ->  | E38: =SUMIFS('Program Info'!H$135:H$144,'Program Info'!$D$135:$D$144,$A33) ->  | F38: =SUMIFS('Program Info'!I$135:I$144,'Program Info'!$D$135:$D$144,$A33) ->  | G38: =SUM(B38:F38) -> 
A39: Total | B39: =SUM(B33:B38) -> 
A41: COLA
A42: Salary | B42: =SUMIFS('Program Info'!$E$74:$E$83,'Program Info'!$D$74:$D$83,$A41) ->  | C42: =SUMIFS('Program Info'!$F$74:$F$83,'Program Info'!$D$74:$D$83,$A41) ->  | D42: =SUMIFS('Program Info'!$G$74:$G$83,'Program Info'!$D$74:$D$83,$A41) ->  | E42: =SUMIFS('Program Info'!$H$74:$H$83,'Program Info'!$D$74:$D$83,$A41) ->  | F42: =SUMIFS('Program Info'!$I$74:$I$83,'Program Info'!$D$74:$D$83,$A41) ->  | G42: =SUM(B42:F42) -> 
A43: Non Salary | B43: =SUMIFS('Program Info'!E$88:E$97,'Program Info'!$D$88:$D$97,$A41) ->  | C43: =SUMIFS('Program Info'!F$88:F$97,'Program Info'!$D$88:$D$97,$A41) ->  | D43: =SUMIFS('Program Info'!G$88:G$97,'Program Info'!$D$88:$D$97,$A41) ->  | E43: =SUMIFS('Program Info'!H$88:H$97,'Program Info'!$D$88:$D$97,$A41) ->  | F43: =SUMIFS('Program Info'!I$88:I$97,'Program Info'!$D$88:$D$97,$A41) ->  | G43: =SUM(B43:F43) -> 
A44: College Overhead | B44: =SUMIFS('Program Info'!$E$102:$E$111,'Program Info'!$D$102:$D$111,$A41) ->  | C44: =SUMIFS('Program Info'!$F$102:$F$111,'Program Info'!$D$102:$D$111,$A41) ->  | D44: =SUMIFS('Program Info'!$G$102:$G$111,'Program Info'!$D$102:$D$111,$A41) ->  | E44: =SUMIFS('Program Info'!$H$102:$H$111,'Program Info'!$D$102:$D$111,$A41) ->  | F44: =SUMIFS('Program Info'!$I$102:$I$111,'Program Info'!$D$102:$D$111,$A41) ->  | G44: =SUM(B44:F44) -> 
A45: Academic Affairs | B45: =SUMIFS('Program Info'!$E$116:$E$125,'Program Info'!$D$116:$D$125,$A41) ->  | C45: =SUMIFS('Program Info'!$F$116:$F$125,'Program Info'!$D$116:$D$125,$A41) ->  | D45: =SUMIFS('Program Info'!$G$116:$G$125,'Program Info'!$D$116:$D$125,$A41) ->  | E45: =SUMIFS('Program Info'!$H$116:$H$125,'Program Info'!$D$116:$D$125,$A41) ->  | F45: =SUMIFS('Program Info'!$I$116:$I$125,'Program Info'!$D$116:$D$125,$A41) ->  | G45: =SUM(B45:F45) -> 
A46: Fully Allocated | B46: =SUMIFS('Program Info'!E$135:E$144,'Program Info'!$D$135:$D$144,$A41) ->  | C46: =SUMIFS('Program Info'!F$135:F$144,'Program Info'!$D$135:$D$144,$A41) ->  | D46: =SUMIFS('Program Info'!G$135:G$144,'Program Info'!$D$135:$D$144,$A41) ->  | E46: =SUMIFS('Program Info'!H$135:H$144,'Program Info'!$D$135:$D$144,$A41) ->  | F46: =SUMIFS('Program Info'!I$135:I$144,'Program Info'!$D$135:$D$144,$A41) ->  | G46: =SUM(B46:F46) -> 
A47: Total | B47: =SUM(B41:B46) -> 
A49: COS
A50: Salary | B50: =SUMIFS('Program Info'!$E$74:$E$83,'Program Info'!$D$74:$D$83,$A49) ->  | C50: =SUMIFS('Program Info'!$F$74:$F$83,'Program Info'!$D$74:$D$83,$A49) ->  | D50: =SUMIFS('Program Info'!$G$74:$G$83,'Program Info'!$D$74:$D$83,$A49) ->  | E50: =SUMIFS('Program Info'!$H$74:$H$83,'Program Info'!$D$74:$D$83,$A49) ->  | F50: =SUMIFS('Program Info'!$I$74:$I$83,'Program Info'!$D$74:$D$83,$A49) ->  | G50: =SUM(B50:F50) -> 
A51: Non Salary | B51: =SUMIFS('Program Info'!E$88:E$97,'Program Info'!$D$88:$D$97,$A49) ->  | C51: =SUMIFS('Program Info'!F$88:F$97,'Program Info'!$D$88:$D$97,$A49) ->  | D51: =SUMIFS('Program Info'!G$88:G$97,'Program Info'!$D$88:$D$97,$A49) ->  | E51: =SUMIFS('Program Info'!H$88:H$97,'Program Info'!$D$88:$D$97,$A49) ->  | F51: =SUMIFS('Program Info'!I$88:I$97,'Program Info'!$D$88:$D$97,$A49) ->  | G51: =SUM(B51:F51) -> 
A52: College Overhead | B52: =SUMIFS('Program Info'!$E$102:$E$111,'Program Info'!$D$102:$D$111,$A49) ->  | C52: =SUMIFS('Program Info'!$F$102:$F$111,'Program Info'!$D$102:$D$111,$A49) ->  | D52: =SUMIFS('Program Info'!$G$102:$G$111,'Program Info'!$D$102:$D$111,$A49) ->  | E52: =SUMIFS('Program Info'!$H$102:$H$111,'Program Info'!$D$102:$D$111,$A49) ->  | F52: =SUMIFS('Program Info'!$I$102:$I$111,'Program Info'!$D$102:$D$111,$A49) ->  | G52: =SUM(B52:F52) -> 
A53: Academic Affairs | B53: =SUMIFS('Program Info'!$E$116:$E$125,'Program Info'!$D$116:$D$125,$A49) ->  | C53: =SUMIFS('Program Info'!$F$116:$F$125,'Program Info'!$D$116:$D$125,$A49) ->  | D53: =SUMIFS('Program Info'!$G$116:$G$125,'Program Info'!$D$116:$D$125,$A49) ->  | E53: =SUMIFS('Program Info'!$H$116:$H$125,'Program Info'!$D$116:$D$125,$A49) ->  | F53: =SUMIFS('Program Info'!$I$116:$I$125,'Program Info'!$D$116:$D$125,$A49) ->  | G53: =SUM(B53:F53) -> 
A54: Fully Allocated | B54: =SUMIFS('Program Info'!E$135:E$144,'Program Info'!$D$135:$D$144,$A49) ->  | C54: =SUMIFS('Program Info'!F$135:F$144,'Program Info'!$D$135:$D$144,$A49) ->  | D54: =SUMIFS('Program Info'!G$135:G$144,'Program Info'!$D$135:$D$144,$A49) ->  | E54: =SUMIFS('Program Info'!H$135:H$144,'Program Info'!$D$135:$D$144,$A49) ->  | F54: =SUMIFS('Program Info'!I$135:I$144,'Program Info'!$D$135:$D$144,$A49) ->  | G54: =SUM(B54:F54) -> 
A55: Total | B55: =SUM(B49:B54) -> 
A57: COS-CIS
A58: Salary | B58: =SUMIFS('Program Info'!$E$74:$E$83,'Program Info'!$D$74:$D$83,$A57) ->  | C58: =SUMIFS('Program Info'!$F$74:$F$83,'Program Info'!$D$74:$D$83,$A57) ->  | D58: =SUMIFS('Program Info'!$G$74:$G$83,'Program Info'!$D$74:$D$83,$A57) ->  | E58: =SUMIFS('Program Info'!$H$74:$H$83,'Program Info'!$D$74:$D$83,$A57) ->  | F58: =SUMIFS('Program Info'!$I$74:$I$83,'Program Info'!$D$74:$D$83,$A57) ->  | G58: =SUM(B58:F58) -> 
A59: Non Salary | B59: =SUMIFS('Program Info'!E$88:E$97,'Program Info'!$D$88:$D$97,$A57) ->  | C59: =SUMIFS('Program Info'!F$88:F$97,'Program Info'!$D$88:$D$97,$A57) ->  | D59: =SUMIFS('Program Info'!G$88:G$97,'Program Info'!$D$88:$D$97,$A57) ->  | E59: =SUMIFS('Program Info'!H$88:H$97,'Program Info'!$D$88:$D$97,$A57) ->  | F59: =SUMIFS('Program Info'!I$88:I$97,'Program Info'!$D$88:$D$97,$A57) ->  | G59: =SUM(B59:F59) -> 
A60: College Overhead | B60: =SUMIFS('Program Info'!$E$102:$E$111,'Program Info'!$D$102:$D$111,$A57) ->  | C60: =SUMIFS('Program Info'!$F$102:$F$111,'Program Info'!$D$102:$D$111,$A57) ->  | D60: =SUMIFS('Program Info'!$G$102:$G$111,'Program Info'!$D$102:$D$111,$A57) ->  | E60: =SUMIFS('Program Info'!$H$102:$H$111,'Program Info'!$D$102:$D$111,$A57) ->  | F60: =SUMIFS('Program Info'!$I$102:$I$111,'Program Info'!$D$102:$D$111,$A57) ->  | G60: =SUM(B60:F60) -> 
A61: Academic Affairs | B61: =SUMIFS('Program Info'!$E$116:$E$125,'Program Info'!$D$116:$D$125,$A57) ->  | C61: =SUMIFS('Program Info'!$F$116:$F$125,'Program Info'!$D$116:$D$125,$A57) ->  | D61: =SUMIFS('Program Info'!$G$116:$G$125,'Program Info'!$D$116:$D$125,$A57) ->  | E61: =SUMIFS('Program Info'!$H$116:$H$125,'Program Info'!$D$116:$D$125,$A57) ->  | F61: =SUMIFS('Program Info'!$I$116:$I$125,'Program Info'!$D$116:$D$125,$A57) ->  | G61: =SUM(B61:F61) -> 
A62: Fully Allocated | B62: =SUMIFS('Program Info'!E$135:E$144,'Program Info'!$D$135:$D$144,$A57) ->  | C62: =SUMIFS('Program Info'!F$135:F$144,'Program Info'!$D$135:$D$144,$A57) ->  | D62: =SUMIFS('Program Info'!G$135:G$144,'Program Info'!$D$135:$D$144,$A57) ->  | E62: =SUMIFS('Program Info'!H$135:H$144,'Program Info'!$D$135:$D$144,$A57) ->  | F62: =SUMIFS('Program Info'!I$135:I$144,'Program Info'!$D$135:$D$144,$A57) ->  | G62: =SUM(B62:F62) -> 
A63: Total | B63: =SUM(B57:B62) -> 
A65: GCCIS
A66: Salary | B66: =SUMIFS('Program Info'!$E$74:$E$83,'Program Info'!$D$74:$D$83,$A65) ->  | C66: =SUMIFS('Program Info'!$F$74:$F$83,'Program Info'!$D$74:$D$83,$A65) ->  | D66: =SUMIFS('Program Info'!$G$74:$G$83,'Program Info'!$D$74:$D$83,$A65) ->  | E66: =SUMIFS('Program Info'!$H$74:$H$83,'Program Info'!$D$74:$D$83,$A65) ->  | F66: =SUMIFS('Program Info'!$I$74:$I$83,'Program Info'!$D$74:$D$83,$A65) ->  | G66: =SUM(B66:F66) -> 
A67: Non Salary | B67: =SUMIFS('Program Info'!E$88:E$97,'Program Info'!$D$88:$D$97,$A65) ->  | C67: =SUMIFS('Program Info'!F$88:F$97,'Program Info'!$D$88:$D$97,$A65) ->  | D67: =SUMIFS('Program Info'!G$88:G$97,'Program Info'!$D$88:$D$97,$A65) ->  | E67: =SUMIFS('Program Info'!H$88:H$97,'Program Info'!$D$88:$D$97,$A65) ->  | F67: =SUMIFS('Program Info'!I$88:I$97,'Program Info'!$D$88:$D$97,$A65) ->  | G67: =SUM(B67:F67) -> 
A68: College Overhead | B68: =SUMIFS('Program Info'!$E$102:$E$111,'Program Info'!$D$102:$D$111,$A65) ->  | C68: =SUMIFS('Program Info'!$F$102:$F$111,'Program Info'!$D$102:$D$111,$A65) ->  | D68: =SUMIFS('Program Info'!$G$102:$G$111,'Program Info'!$D$102:$D$111,$A65) ->  | E68: =SUMIFS('Program Info'!$H$102:$H$111,'Program Info'!$D$102:$D$111,$A65) ->  | F68: =SUMIFS('Program Info'!$I$102:$I$111,'Program Info'!$D$102:$D$111,$A65) ->  | G68: =SUM(B68:F68) -> 
A69: Academic Affairs | B69: =SUMIFS('Program Info'!$E$116:$E$125,'Program Info'!$D$116:$D$125,$A65) ->  | C69: =SUMIFS('Program Info'!$F$116:$F$125,'Program Info'!$D$116:$D$125,$A65) ->  | D69: =SUMIFS('Program Info'!$G$116:$G$125,'Program Info'!$D$116:$D$125,$A65) ->  | E69: =SUMIFS('Program Info'!$H$116:$H$125,'Program Info'!$D$116:$D$125,$A65) ->  | F69: =SUMIFS('Program Info'!$I$116:$I$125,'Program Info'!$D$116:$D$125,$A65) ->  | G69: =SUM(B69:F69) -> 
A70: Fully Allocated | B70: =SUMIFS('Program Info'!E$135:E$144,'Program Info'!$D$135:$D$144,$A65) ->  | C70: =SUMIFS('Program Info'!F$135:F$144,'Program Info'!$D$135:$D$144,$A65) ->  | D70: =SUMIFS('Program Info'!G$135:G$144,'Program Info'!$D$135:$D$144,$A65) ->  | E70: =SUMIFS('Program Info'!H$135:H$144,'Program Info'!$D$135:$D$144,$A65) ->  | F70: =SUMIFS('Program Info'!I$135:I$144,'Program Info'!$D$135:$D$144,$A65) ->  | G70: =SUM(B70:F70) -> 
A71: Total | B71: =SUM(B65:B70) -> 
A73: GIS
A74: Salary | B74: =SUMIFS('Program Info'!$E$74:$E$83,'Program Info'!$D$74:$D$83,$A73) ->  | C74: =SUMIFS('Program Info'!$F$74:$F$83,'Program Info'!$D$74:$D$83,$A73) ->  | D74: =SUMIFS('Program Info'!$G$74:$G$83,'Program Info'!$D$74:$D$83,$A73) ->  | E74: =SUMIFS('Program Info'!$H$74:$H$83,'Program Info'!$D$74:$D$83,$A73) ->  | F74: =SUMIFS('Program Info'!$I$74:$I$83,'Program Info'!$D$74:$D$83,$A73) ->  | G74: =SUM(B74:F74) -> 
A75: Non Salary | B75: =SUMIFS('Program Info'!E$88:E$97,'Program Info'!$D$88:$D$97,$A73) ->  | C75: =SUMIFS('Program Info'!F$88:F$97,'Program Info'!$D$88:$D$97,$A73) ->  | D75: =SUMIFS('Program Info'!G$88:G$97,'Program Info'!$D$88:$D$97,$A73) ->  | E75: =SUMIFS('Program Info'!H$88:H$97,'Program Info'!$D$88:$D$97,$A73) ->  | F75: =SUMIFS('Program Info'!I$88:I$97,'Program Info'!$D$88:$D$97,$A73) ->  | G75: =SUM(B75:F75) -> 
A76: College Overhead | B76: =SUMIFS('Program Info'!$E$102:$E$111,'Program Info'!$D$102:$D$111,$A73) ->  | C76: =SUMIFS('Program Info'!$F$102:$F$111,'Program Info'!$D$102:$D$111,$A73) ->  | D76: =SUMIFS('Program Info'!$G$102:$G$111,'Program Info'!$D$102:$D$111,$A73) ->  | E76: =SUMIFS('Program Info'!$H$102:$H$111,'Program Info'!$D$102:$D$111,$A73) ->  | F76: =SUMIFS('Program Info'!$I$102:$I$111,'Program Info'!$D$102:$D$111,$A73) ->  | G76: =SUM(B76:F76) -> 
A77: Academic Affairs | B77: =SUMIFS('Program Info'!$E$116:$E$125,'Program Info'!$D$116:$D$125,$A73) ->  | C77: =SUMIFS('Program Info'!$F$116:$F$125,'Program Info'!$D$116:$D$125,$A73) ->  | D77: =SUMIFS('Program Info'!$G$116:$G$125,'Program Info'!$D$116:$D$125,$A73) ->  | E77: =SUMIFS('Program Info'!$H$116:$H$125,'Program Info'!$D$116:$D$125,$A73) ->  | F77: =SUMIFS('Program Info'!$I$116:$I$125,'Program Info'!$D$116:$D$125,$A73) ->  | G77: =SUM(B77:F77) -> 
A78: Fully Allocated | B78: =SUMIFS('Program Info'!E$135:E$144,'Program Info'!$D$135:$D$144,$A73) ->  | C78: =SUMIFS('Program Info'!F$135:F$144,'Program Info'!$D$135:$D$144,$A73) ->  | D78: =SUMIFS('Program Info'!G$135:G$144,'Program Info'!$D$135:$D$144,$A73) ->  | E78: =SUMIFS('Program Info'!H$135:H$144,'Program Info'!$D$135:$D$144,$A73) ->  | F78: =SUMIFS('Program Info'!I$135:I$144,'Program Info'!$D$135:$D$144,$A73) ->  | G78: =SUM(B78:F78) -> 
A79: Total | B79: =SUM(B73:B78) -> 
A81: KGCOE
A82: Salary | B82: =SUMIFS('Program Info'!$E$74:$E$83,'Program Info'!$D$74:$D$83,$A81) ->  | C82: =SUMIFS('Program Info'!$F$74:$F$83,'Program Info'!$D$74:$D$83,$A81) ->  | D82: =SUMIFS('Program Info'!$G$74:$G$83,'Program Info'!$D$74:$D$83,$A81) ->  | E82: =SUMIFS('Program Info'!$H$74:$H$83,'Program Info'!$D$74:$D$83,$A81) ->  | F82: =SUMIFS('Program Info'!$I$74:$I$83,'Program Info'!$D$74:$D$83,$A81) ->  | G82: =SUM(B82:F82) -> 
A83: Non Salary | B83: =SUMIFS('Program Info'!E$88:E$97,'Program Info'!$D$88:$D$97,$A81) ->  | C83: =SUMIFS('Program Info'!F$88:F$97,'Program Info'!$D$88:$D$97,$A81) ->  | D83: =SUMIFS('Program Info'!G$88:G$97,'Program Info'!$D$88:$D$97,$A81) ->  | E83: =SUMIFS('Program Info'!H$88:H$97,'Program Info'!$D$88:$D$97,$A81) ->  | F83: =SUMIFS('Program Info'!I$88:I$97,'Program Info'!$D$88:$D$97,$A81) ->  | G83: =SUM(B83:F83) -> 
A84: College Overhead | B84: =SUMIFS('Program Info'!$E$102:$E$111,'Program Info'!$D$102:$D$111,$A81) ->  | C84: =SUMIFS('Program Info'!$F$102:$F$111,'Program Info'!$D$102:$D$111,$A81) ->  | D84: =SUMIFS('Program Info'!$G$102:$G$111,'Program Info'!$D$102:$D$111,$A81) ->  | E84: =SUMIFS('Program Info'!$H$102:$H$111,'Program Info'!$D$102:$D$111,$A81) ->  | F84: =SUMIFS('Program Info'!$I$102:$I$111,'Program Info'!$D$102:$D$111,$A81) ->  | G84: =SUM(B84:F84) -> 
A85: Academic Affairs | B85: =SUMIFS('Program Info'!$E$116:$E$125,'Program Info'!$D$116:$D$125,$A81) ->  | C85: =SUMIFS('Program Info'!$F$116:$F$125,'Program Info'!$D$116:$D$125,$A81) ->  | D85: =SUMIFS('Program Info'!$G$116:$G$125,'Program Info'!$D$116:$D$125,$A81) ->  | E85: =SUMIFS('Program Info'!$H$116:$H$125,'Program Info'!$D$116:$D$125,$A81) ->  | F85: =SUMIFS('Program Info'!$I$116:$I$125,'Program Info'!$D$116:$D$125,$A81) ->  | G85: =SUM(B85:F85) -> 
A86: Fully Allocated | B86: =SUMIFS('Program Info'!E$135:E$144,'Program Info'!$D$135:$D$144,$A81) ->  | C86: =SUMIFS('Program Info'!F$135:F$144,'Program Info'!$D$135:$D$144,$A81) ->  | D86: =SUMIFS('Program Info'!G$135:G$144,'Program Info'!$D$135:$D$144,$A81) ->  | E86: =SUMIFS('Program Info'!H$135:H$144,'Program Info'!$D$135:$D$144,$A81) ->  | F86: =SUMIFS('Program Info'!I$135:I$144,'Program Info'!$D$135:$D$144,$A81) ->  | G86: =SUM(B86:F86) -> 
A87: Total | B87: =SUM(B81:B86) -> 
A89: SCB
A90: Salary | B90: =SUMIFS('Program Info'!$E$74:$E$83,'Program Info'!$D$74:$D$83,$A89) ->  | C90: =SUMIFS('Program Info'!$F$74:$F$83,'Program Info'!$D$74:$D$83,$A89) ->  | D90: =SUMIFS('Program Info'!$G$74:$G$83,'Program Info'!$D$74:$D$83,$A89) ->  | E90: =SUMIFS('Program Info'!$H$74:$H$83,'Program Info'!$D$74:$D$83,$A89) ->  | F90: =SUMIFS('Program Info'!$I$74:$I$83,'Program Info'!$D$74:$D$83,$A89) ->  | G90: =SUM(B90:F90) -> 
A91: Non Salary | B91: =SUMIFS('Program Info'!E$88:E$97,'Program Info'!$D$88:$D$97,$A89) ->  | C91: =SUMIFS('Program Info'!F$88:F$97,'Program Info'!$D$88:$D$97,$A89) ->  | D91: =SUMIFS('Program Info'!G$88:G$97,'Program Info'!$D$88:$D$97,$A89) ->  | E91: =SUMIFS('Program Info'!H$88:H$97,'Program Info'!$D$88:$D$97,$A89) ->  | F91: =SUMIFS('Program Info'!I$88:I$97,'Program Info'!$D$88:$D$97,$A89) ->  | G91: =SUM(B91:F91) -> 
A92: College Overhead | B92: =SUMIFS('Program Info'!$E$102:$E$111,'Program Info'!$D$102:$D$111,$A89) ->  | C92: =SUMIFS('Program Info'!$F$102:$F$111,'Program Info'!$D$102:$D$111,$A89) ->  | D92: =SUMIFS('Program Info'!$G$102:$G$111,'Program Info'!$D$102:$D$111,$A89) ->  | E92: =SUMIFS('Program Info'!$H$102:$H$111,'Program Info'!$D$102:$D$111,$A89) ->  | F92: =SUMIFS('Program Info'!$I$102:$I$111,'Program Info'!$D$102:$D$111,$A89) ->  | G92: =SUM(B92:F92) -> 
A93: Academic Affairs | B93: =SUMIFS('Program Info'!$E$116:$E$125,'Program Info'!$D$116:$D$125,$A89) ->  | C93: =SUMIFS('Program Info'!$F$116:$F$125,'Program Info'!$D$116:$D$125,$A89) ->  | D93: =SUMIFS('Program Info'!$G$116:$G$125,'Program Info'!$D$116:$D$125,$A89) ->  | E93: =SUMIFS('Program Info'!$H$116:$H$125,'Program Info'!$D$116:$D$125,$A89) ->  | F93: =SUMIFS('Program Info'!$I$116:$I$125,'Program Info'!$D$116:$D$125,$A89) ->  | G93: =SUM(B93:F93) -> 
A94: Fully Allocated | B94: =SUMIFS('Program Info'!E$135:E$144,'Program Info'!$D$135:$D$144,$A89) ->  | C94: =SUMIFS('Program Info'!F$135:F$144,'Program Info'!$D$135:$D$144,$A89) ->  | D94: =SUMIFS('Program Info'!G$135:G$144,'Program Info'!$D$135:$D$144,$A89) ->  | E94: =SUMIFS('Program Info'!H$135:H$144,'Program Info'!$D$135:$D$144,$A89) ->  | F94: =SUMIFS('Program Info'!I$135:I$144,'Program Info'!$D$135:$D$144,$A89) ->  | G94: =SUM(B94:F94) -> 
A95: Total | B95: =SUM(B89:B94) -> 

Sheet College Spending Plan
A1: ='Program Info'!E11 -> 0 | F1: Secondary College | G1: =A66 -> N/A | H1: =IF('Program Info'!E12<>"N/A",49,0) -> 0
A2: ='Program Summary'!A2:G2 -> 0
A3: Detailed College Spending Plan
A4: =CONCATENATE('Program Info'!$B$6,": ",'Program Info'!$E$6) -> PROGRAM DEVELOPMENT PHASE:
A6: =A1 -> 0
A7: =CONCATENATE("YEAR 5 PLAN STATUS: ",UPPER(G55)) ->  | C7: Year
C8: ='Program Summary'!B7 -> 0 | D8: ='Program Summary'!C7 -> 0-1 | E8: ='Program Summary'!D7 ->  | F8: ='Program Summary'!E7 ->  | G8: ='Program Summary'!F7 ->  | H8: Total
C9: 1 | D9: 2 | E9: 3 | F9: 4 | G9: 5
A11: Faculty Salary Expense Allowance | C11: =SUMIFS('APR 5 Year Projection'!B$16:B$25,'APR 5 Year Projection'!$A$16:$A$25,$A$6) -> 0 | D11: =SUMIFS('APR 5 Year Projection'!C$16:C$25,'APR 5 Year Projection'!$A$16:$A$25,$A$6) -> 0 | E11: =SUMIFS('APR 5 Year Projection'!D$16:D$25,'APR 5 Year Projection'!$A$16:$A$25,$A$6) -> 0 | F11: =SUMIFS('APR 5 Year Projection'!E$16:E$25,'APR 5 Year Projection'!$A$16:$A$25,$A$6) -> 0 | G11: =SUMIFS('APR 5 Year Projection'!F$16:F$25,'APR 5 Year Projection'!$A$16:$A$25,$A$6) -> 0 | H11: =SUM(C11:G11) -> 0
A13: Faculty Inputs | B13: Base Salary Assumption (Exclude Benefits)
A14: Tenure/TT (Enter FTE)
A15: Lecturer (Enter FTE)
A16: Adjunct (Enter Sections)
A17: Other: Faculty Release Time, Program Director
A19: College Planned Faculty Salary Expense
A20: Tenure TT Cost | C20: =IF(C14=0,0,$B$14*C14*(1+expinc)^(start_Gap-1)) -> 0 | D20: =IF(D14=0,0,$B$14*D14*(1+expinc)^(start_Gap-1+C9)) -> 0 | E20: =IF(E14=0,0,$B$14*E14*(1+expinc)^(start_Gap-1+D9)) -> 0 | F20: =IF(F14=0,0,$B$14*F14*(1+expinc)^(start_Gap-1+E9)) -> 0 | G20: =IF(G14=0,0,$B$14*G14*(1+expinc)^(start_Gap-1+F9)) -> 0 | H20: =SUM(C20:G20) -> 0
A21: Lecturer Cost | C21: =IF(C15=0,0,$B$15*C15*(1+expinc)^(start_Gap-1)) -> 0 | D21: =IF(D15=0,0,$B$15*D15*(1+expinc)^(start_Gap-1+C9)) -> 0 | E21: =IF(E15=0,0,$B$15*E15*(1+expinc)^(start_Gap-1+D9)) -> 0 | F21: =IF(F15=0,0,$B$15*F15*(1+expinc)^(start_Gap-1+E9)) -> 0 | G21: =IF(G15=0,0,$B$15*G15*(1+expinc)^(start_Gap-1+F9)) -> 0 | H21: =SUM(C21:G21) -> 0
A22: Total Adjunct Cost | C22: =IF(C16=0,0,$B$16*C16*(1+expinc)^(start_Gap-1)) -> 0 | D22: =IF(D16=0,0,$B$16*D16*(1+expinc)^(start_Gap-1+C9)) -> 0 | E22: =IF(E16=0,0,$B$16*E16*(1+expinc)^(start_Gap-1+D9)) -> 0 | F22: =IF(F16=0,0,$B$16*F16*(1+expinc)^(start_Gap-1+E9)) -> 0 | G22: =IF(G16=0,0,$B$16*G16*(1+expinc)^(start_Gap-1+F9)) -> 0 | H22: =SUM(C22:G22) -> 0
A23: Other Cost | C23: =C17 -> 0 | D23: =D17 -> 0 | E23: =E17 -> 0 | F23: =F17 -> 0 | G23: =G17 -> 0 | H23: =SUM(C23:G23) -> 0
A24: College Planned Faculty Salary Expense | C24: =SUM(C20:C23) -> 0 | D24: =SUM(D20:D23) -> 0 | E24: =SUM(E20:E23) -> 0 | F24: =SUM(F20:F23) -> 0 | G24: =SUM(G20:G23) -> 0 | H24: =SUM(C24:G24) -> 0
A25: Variance to Allowance | C25: =C11-C24 -> 0 | D25: 0 | E25: 0 | F25: 0 | G25: 0 | H25: 0
A28: Other Direct College Costs | C28: =SUMIFS('APR 5 Year Projection'!B$29:B$38,'APR 5 Year Projection'!$A$29:$A$38,$A$6) -> 0 | D28: =SUMIFS('APR 5 Year Projection'!C$29:C$38,'APR 5 Year Projection'!$A$29:$A$38,$A$6) -> 0 | E28: =SUMIFS('APR 5 Year Projection'!D$29:D$38,'APR 5 Year Projection'!$A$29:$A$38,$A$6) -> 0 | F28: =SUMIFS('APR 5 Year Projection'!E$29:E$38,'APR 5 Year Projection'!$A$29:$A$38,$A$6) -> 0 | G28: =SUMIFS('APR 5 Year Projection'!F$29:F$38,'APR 5 Year Projection'!$A$29:$A$38,$A$6) -> 0 | H28: =SUM(C28:G28) -> 0
A29: Staffing: Please List | B29: Base Salary Assumption (Exclude Benefits)
A34: College Planned Staffing Salary Expense
A35: =IF(A30="","",CONCATENATE(A30," ","Cost")) ->  | C35: =IF(C30=0,0,$B$30*C30*(1+expinc)^(start_Gap-1)) -> 0 | D35: =IF(D30=0,0,$B$30*D30*(1+expinc)^(start_Gap-1+C9)) -> 0 | E35: =IF(E30=0,0,$B$30*E30*(1+expinc)^(start_Gap-1+D9)) -> 0 | F35: =IF(F30=0,0,$B$30*F30*(1+expinc)^(start_Gap-1+E9)) -> 0 | G35: =IF(G30=0,0,$B$30*G30*(1+expinc)^(start_Gap-1+F9)) -> 0 | H35: =SUM(C35:G35) -> 0
A36: =IF(A31="","",CONCATENATE(A31," ","Cost")) ->  | C36: =IF(C31=0,0,$B$31*C31*(1+expinc)^(start_Gap-1)) -> 0 | D36: =IF(D31=0,0,$B$31*D31*(1+expinc)^(start_Gap-1+C9)) -> 0 | E36: =IF(E31=0,0,$B$31*E31*(1+expinc)^(start_Gap-1+D9)) -> 0 | F36: =IF(F31=0,0,$B$31*F31*(1+expinc)^(start_Gap-1+E9)) -> 0 | G36: =IF(G31=0,0,$B$31*G31*(1+expinc)^(start_Gap-1+F9)) -> 0 | H36: =SUM(C36:G36) -> 0
A37: =IF(A32="","",CONCATENATE(A32," ","Cost")) ->  | C37: =IF(C32=0,0,$B$32*C32*(1+expinc)^(start_Gap-1)) -> 0 | D37: =IF(D32=0,0,$B$32*D32*(1+expinc)^(start_Gap-1+C9)) -> 0 | E37: =IF(E32=0,0,$B$32*E32*(1+expinc)^(start_Gap-1+D9)) -> 0 | F37: =IF(F32=0,0,$B$32*F32*(1+expinc)^(start_Gap-1+E9)) -> 0 | G37: =IF(G32=0,0,$B$32*G32*(1+expinc)^(start_Gap-1+F9)) -> 0 | H37: =SUM(C37:G37) -> 0
A38: Total Staffing | C38: =SUM(C35:C37) -> 0 | D38: =SUM(D35:D37) -> 0 | E38: =SUM(E35:E37) -> 0 | F38: =SUM(F35:F37) -> 0 | G38: =SUM(G35:G37) -> 0 | H38: =SUM(C38:G38) -> 0
A39: Other Direct Costs (Please List)
H40: =SUM(C40:G40) -> 0
H41: =SUM(C41:G41) -> 0
H42: =SUM(C42:G42) -> 0
H43: =SUM(C43:G43) -> 0
H44: =SUM(C44:G44) -> 0
A45: Total Non-Salary | C45: =SUM(C39:C44) -> 0 | D45: 0 | E45: 0 | F45: 0 | G45: 0 | H45: 0
A46: College Planned Staffing and Other Direct Costs | C46: =C45+C38 -> 0 | D46: 0 | E46: 0 | F46: 0 | G46: 0 | H46: 0
A47: Variance to Allowance | C47: =C28-C46 -> 0 | D47: 0 | E47: 0 | F47: 0 | G47: 0 | H47: 0
A49: College Planned Expense vs. Threshold
A51: Total Home College Planned Expenses | C51: =ROUND((C46+C24),0) -> 0 | D51: =ROUND((D46+D24),0) -> 0 | E51: =ROUND((E46+E24),0) -> 0 | F51: =ROUND((F46+F24),0) -> 0 | G51: =ROUND((G46+G24),0) -> 0
A52: Total Secondary College Planned Expenses | C52: =C83+C105 -> 0 | D52: =D83+D105 -> 0 | E52: =E83+E105 -> 0 | F52: =F83+F105 -> 0 | G52: =G83+G105 -> 0
A53: New Program Expense Allowance Threshold* | C53: =ROUND((('APR 5 Year Projection'!B12*0.02)+'College Spending Plan'!C11+'College Spending Plan'!C28+C70+C87),0) ->  | D53: =ROUND((('APR 5 Year Projection'!C12*0.02)+'College Spending Plan'!D11+'College Spending Plan'!D28+D70+D87),0) ->  | E53: =ROUND((('APR 5 Year Projection'!D12*0.02)+'College Spending Plan'!E11+'College Spending Plan'!E28+E70+E87),0) ->  | F53: =ROUND((('APR 5 Year Projection'!E12*0.02)+'College Spending Plan'!F11+'College Spending Plan'!F28+F70+F87),0) ->  | G53: =ROUND((('APR 5 Year Projection'!F12*0.02)+'College Spending Plan'!G11+'College Spending Plan'!G28+G70+G87),0) -> 
A55: Variance to Model | C55: =IF((C51+C52-C53)<=0,"favorable","unfavorable") ->  | D55: =IF((D51+D52-D53)<=0,"favorable","unfavorable") ->  | E55: =IF((E51+E52-E53)<=0,"favorable","unfavorable") ->  | F55: =IF((F51+F52-F53)<=0,"favorable","unfavorable") ->  | G55: =IF((G51+G52-G53)<=0,"favorable","unfavorable") -> 
A56: *Threshold is the calculated expense allowance for each year plus 2% net tuition revenue.
A60: =CONCATENATE('Program Info'!E12, " (Secondary College)") -> N/A (Secondary College) | H60: =A60 -> N/A (Secondary College)
A61: =A2 -> 0 | H61: =A61 -> 0
A62: =CONCATENATE('Program Info'!$B$6,": ",'Program Info'!$E$6) -> PROGRAM DEVELOPMENT PHASE:
A65: Complete Secondary College Worksheet Below
A66: ='Program Info'!E12 -> N/A
C67: =C8 -> 0 | D67: =D8 -> 0-1 | E67: =E8 ->  | F67: =F8 ->  | G67: =G8 ->  | H67: Total
C68: 1 | D68: 2 | E68: 3 | F68: 4 | G68: 5
A70: Faculty Salary Expense Allowance | C70: =SUMIFS('APR 5 Year Projection'!B$16:B$25,'APR 5 Year Projection'!$A$16:$A$25,$A$66) -> 0 | D70: =SUMIFS('APR 5 Year Projection'!C$16:C$25,'APR 5 Year Projection'!$A$16:$A$25,$A$66) -> 0 | E70: =SUMIFS('APR 5 Year Projection'!D$16:D$25,'APR 5 Year Projection'!$A$16:$A$25,$A$66) -> 0 | F70: =SUMIFS('APR 5 Year Projection'!E$16:E$25,'APR 5 Year Projection'!$A$16:$A$25,$A$66) -> 0 | G70: =SUMIFS('APR 5 Year Projection'!F$16:F$25,'APR 5 Year Projection'!$A$16:$A$25,$A$66) -> 0 | H70: =SUM(C70:G70) -> 0
A72: Faculty Inputs | B72: Base Salary Assumption (Exclude Benefits)
A73: Tenure/TT (Enter FTE)
A74: Lecturer (Enter FTE)
A75: Adjunct (Enter Sections)
A76: Other: Faculty Release Time, Program Director
A78: College Planned Faculty Salary Expense
A79: Tenure TT Cost | C79: =IF(C73=0,0,$B$73*C73*(1+expinc)^(start_Gap-1)) -> 0 | D79: =IF(D73=0,0,$B$73*D73*(1+expinc)^(start_Gap-1+C68)) -> 0 | E79: =IF(E73=0,0,$B$73*E73*(1+expinc)^(start_Gap-1+D68)) -> 0 | F79: =IF(F73=0,0,$B$73*F73*(1+expinc)^(start_Gap-1+E68)) -> 0 | G79: =IF(G73=0,0,$B$73*G73*(1+expinc)^(start_Gap-1+F68)) -> 0 | H79: =SUM(C79:G79) -> 0
A80: Lecturer Cost | C80: =IF(C74=0,0,$B$74*C74*(1+expinc)^(start_Gap-1)) -> 0 | D80: =IF(D74=0,0,$B$74*D74*(1+expinc)^(start_Gap-1+C68)) -> 0 | E80: =IF(E74=0,0,$B$74*E74*(1+expinc)^(start_Gap-1+D68)) -> 0 | F80: =IF(F74=0,0,$B$74*F74*(1+expinc)^(start_Gap-1+E68)) -> 0 | G80: =IF(G74=0,0,$B$74*G74*(1+expinc)^(start_Gap-1+F68)) -> 0 | H80: =SUM(C80:G80) -> 0
A81: Total Adjunct Cost | C81: =IF(C75=0,0,$B$75*C75*(1+expinc)^(start_Gap-1)) -> 0 | D81: =IF(D75=0,0,$B$75*D75*(1+expinc)^(start_Gap-1+C68)) -> 0 | E81: =IF(E75=0,0,$B$75*E75*(1+expinc)^(start_Gap-1+D68)) -> 0 | F81: =IF(F75=0,0,$B$75*F75*(1+expinc)^(start_Gap-1+E68)) -> 0 | G81: =IF(G75=0,0,$B$75*G75*(1+expinc)^(start_Gap-1+F68)) -> 0 | H81: =SUM(C81:G81) -> 0
A82: Other Cost | C82: =C76 -> 0 | D82: =D76 -> 0 | E82: =E76 -> 0 | F82: =F76 -> 0 | G82: =G76 -> 0 | H82: =SUM(C82:G82) -> 0
A83: College Planned Faculty Salary Expense | C83: =SUM(C79:C82) -> 0 | D83: =SUM(D79:D82) -> 0 | E83: =SUM(E79:E82) -> 0 | F83: =SUM(F79:F82) -> 0 | G83: =SUM(G79:G82) -> 0 | H83: =SUM(C83:G83) -> 0
A84: Variance to Allowance | C84: =C70-C83 -> 0 | D84: 0 | E84: 0 | F84: 0 | G84: 0 | H84: 0
A87: Other Direct College Costs | C87: =SUMIFS('APR 5 Year Projection'!B$29:B$38,'APR 5 Year Projection'!$A$29:$A$38,$A$66) -> 0 | D87: =SUMIFS('APR 5 Year Projection'!C$29:C$38,'APR 5 Year Projection'!$A$29:$A$38,$A$66) -> 0 | E87: =SUMIFS('APR 5 Year Projection'!D$29:D$38,'APR 5 Year Projection'!$A$29:$A$38,$A$66) -> 0 | F87: =SUMIFS('APR 5 Year Projection'!E$29:E$38,'APR 5 Year Projection'!$A$29:$A$38,$A$66) -> 0 | G87: =SUMIFS('APR 5 Year Projection'!F$29:F$38,'APR 5 Year Projection'!$A$29:$A$38,$A$66) -> 0 | H87: =SUM(C87:G87) -> 0
A88: Staffing: Please List | B88: Base Salary Assumption (Exclude Benefits)
A93: College Planned Staffing Salary Expense
A94: =IF(A89="","",CONCATENATE(A89," ","Cost")) ->  | C94: =IF(C89=0,0,$B$89*C89*(1+expinc)^(start_Gap-1)) -> 0 | D94: =IF(D89=0,0,$B$89*D89*(1+expinc)^(start_Gap-1+C68)) -> 0 | E94: =IF(E89=0,0,$B$89*E89*(1+expinc)^(start_Gap-1+D68)) -> 0 | F94: =IF(F89=0,0,$B$89*F89*(1+expinc)^(start_Gap-1+E68)) -> 0 | G94: =IF(G89=0,0,$B$89*G89*(1+expinc)^(start_Gap-1+F68)) -> 0 | H94: =SUM(C94:G94) -> 0
A95: =IF(A90="","",CONCATENATE(A90," ","Cost")) ->  | C95: =IF(C90=0,0,$B$90*C90*(1+expinc)^(start_Gap-1)) -> 0 | D95: =IF(D90=0,0,$B$90*D90*(1+expinc)^(start_Gap-1+C68)) -> 0 | E95: =IF(E90=0,0,$B$90*E90*(1+expinc)^(start_Gap-1+D68)) -> 0 | F95: =IF(F90=0,0,$B$90*F90*(1+expinc)^(start_Gap-1+E68)) -> 0 | G95: =IF(G90=0,0,$B$90*G90*(1+expinc)^(start_Gap-1+F68)) -> 0 | H95: =SUM(C95:G95) -> 0
A96: =IF(A91="","",CONCATENATE(A91," ","Cost")) ->  | C96: =IF(C91=0,0,$B$91*C91*(1+expinc)^(start_Gap-1)) -> 0 | D96: =IF(D91=0,0,$B$91*D91*(1+expinc)^(start_Gap-1+C68)) -> 0 | E96: =IF(E91=0,0,$B$91*E91*(1+expinc)^(start_Gap-1+D68)) -> 0 | F96: =IF(F91=0,0,$B$91*F91*(1+expinc)^(start_Gap-1+E68)) -> 0 | G96: =IF(G91=0,0,$B$91*G91*(1+expinc)^(start_Gap-1+F68)) -> 0 | H96: =SUM(C96:G96) -> 0
A97: Total Staffing | C97: =SUM(C94:C96) -> 0 | D97: =SUM(D94:D96) -> 0 | E97: =SUM(E94:E96) -> 0 | F97: =SUM(F94:F96) -> 0 | G97: =SUM(G94:G96) -> 0 | H97: =SUM(C97:G97) -> 0
A98: Other Direct Costs (Please List)
H99: =SUM(C99:G99) -> 0
H100: =SUM(C100:G100) -> 0
H101: =SUM(C101:G101) -> 0
H102: =SUM(C102:G102) -> 0
H103: =SUM(C103:G103) -> 0
A104: Total Non-Salary | C104: =SUM(C98:C103) -> 0 | D104: 0 | E104: 0 | F104: 0 | G104: 0 | H104: 0
A105: College Planned Staffing and Other Direct Costs | C105: =C104+C97 -> 0 | D105: 0 | E105: 0 | F105: 0 | G105: 0 | H105: 0
A106: Variance to Allowance | C106: =C87-C105 -> 0 | D106: 0 | E106: 0 | F106: 0 | G106: 0 | H106: 0

Sheet Table 5
A1: ='Program Info'!B1 -> ACADEMIC PROGRAM PROPOSAL PROJECTION
A2: Table 5: New Resources
A3: =CONCATENATE("College: ",'Program Info'!E11) -> College:
A4: =CONCATENATE("Program Name: ",'Program Info'!E10) -> Program Name:
A6: =CONCATENATE('Program Info'!$B$6,": ",'Program Info'!$E$6) -> PROGRAM DEVELOPMENT PHASE:
A8: Table 5: New Resources
A10: List the costs of the new resources that will be engaged specifically as a result of the new program (e.g., a new faculty position or additional library resources). New resources for a given year should be carried over to the following year(s), with adjustments for inflation, if they represent a continuing cost.
A12: New Expenditures | B12: Year 1 | C12: Year 2 | D12: Year 3 | E12: Status | F12: Description
A13: Personnel | B13: ='College Spending Plan'!C24+'College Spending Plan'!C38+'College Spending Plan'!C83+'College Spending Plan'!C97 -> 0 | C13: ='College Spending Plan'!D24+'College Spending Plan'!D38+'College Spending Plan'!D83+'College Spending Plan'!D97 -> 0 | D13: ='College Spending Plan'!E24+'College Spending Plan'!E38+'College Spending Plan'!E83+'College Spending Plan'!E97 -> 0 | E13: =IF(OR(B13<0,C13<0,D13<0),"Check amount <0","OK") -> OK | F13: Salaries (faculty & staff)
A14: Library | B14: ='Space, Nonrecurring, Library'!H22 -> 0 | C14: ='Space, Nonrecurring, Library'!I22 -> 0 | D14: ='Space, Nonrecurring, Library'!J22 -> 0 | E14: =IF(OR(B14<0,C14<0,D14<0),"Check amount <0","OK") -> OK | F14: Per memo from library
A15: Equipment* | B15: ='Space, Nonrecurring, Library'!H17+'Space, Nonrecurring, Library'!H19 -> 0 | C15: ='Space, Nonrecurring, Library'!I17+'Space, Nonrecurring, Library'!I19 -> 0 | D15: ='Space, Nonrecurring, Library'!J17+'Space, Nonrecurring, Library'!J19 -> 0 | E15: =IF(AND(B15<0,C15<0,D15<0),"Check amount <0",IF(OR(C15<>0,D15<>0),"Check Year 2 and 3","OK")) -> OK | F15: Equipment from Space, Nonrecurring, Library
A16: Laboratories* | B16: =SUMIFS('Space, Nonrecurring, Library'!L9:L11,'Space, Nonrecurring, Library'!J9:J11,"LAB")+SUMIFS('Space, Nonrecurring, Library'!L9:L11,'Space, Nonrecurring, Library'!J9:J11,"WET LAB") -> 0 | C16: =SUMIFS('Space, Nonrecurring, Library'!M9:M11,'Space, Nonrecurring, Library'!$J$9:$J$11,"LAB")+SUMIFS('Space, Nonrecurring, Library'!M9:M11,'Space, Nonrecurring, Library'!$J$9:$J$11,"WET LAB") -> 0 | D16: =SUMIFS('Space, Nonrecurring, Library'!N9:N11,'Space, Nonrecurring, Library'!$J$9:$J$11,"LAB")+SUMIFS('Space, Nonrecurring, Library'!N9:N11,'Space, Nonrecurring, Library'!$J$9:$J$11,"WET LAB") -> 0 | E16: =IF(AND(B16<0,C16<0,D16<0),"Check amount <0",IF(OR(C16<>0,D16<>0),"Check Year 2 and 3","OK")) -> OK | F16: Laboratory space
A17: Supplies & Expenses (Other Than Personal Service) | B17: ='College Spending Plan'!C45+'College Spending Plan'!C104 -> 0 | C17: ='College Spending Plan'!D45+'College Spending Plan'!D104 -> 0 | D17: ='College Spending Plan'!E45+'College Spending Plan'!E104 -> 0 | E17: =IF(OR(B17<0,C17<0,D17<0),"Check amount <0","OK") -> OK | F17: Other Expenses included in detail college spending plan excluding employee benefits
A18: Capital Expenditures* | B18: ='Space, Nonrecurring, Library'!L9+'Space, Nonrecurring, Library'!L11-B16 -> 0 | C18: ='Space, Nonrecurring, Library'!M11+'Space, Nonrecurring, Library'!M9-C16+'Space, Nonrecurring, Library'!I17+'Space, Nonrecurring, Library'!I19-C15 -> 0 | D18: ='Space, Nonrecurring, Library'!N11+'Space, Nonrecurring, Library'!N9-D16+'Space, Nonrecurring, Library'!J17+'Space, Nonrecurring, Library'!J19-D15 -> 0 | E18: =IF(AND(B18<0,C18<0,D18<0),"Check amount <0",IF(OR(C18<>0,D18<>0),"Check Year 2 and 3","OK")) -> OK | F18: Space
A19: Other | B19: =B42+'College Spending Plan'!C51+'College Spending Plan'!C52+'Space, Nonrecurring, Library'!L9+'Space, Nonrecurring, Library'!L11+'Space, Nonrecurring, Library'!H14+'Space, Nonrecurring, Library'!H17+'Space, Nonrecurring, Library'!H19+'Space, Nonrecurring, Library'!H22-B13-B14-B15-B16-B17-B18 ->  | C19: =C42+'College Spending Plan'!D51+'College Spending Plan'!D52+'Space, Nonrecurring, Library'!M9+'Space, Nonrecurring, Library'!M11+'Space, Nonrecurring, Library'!I14+'Space, Nonrecurring, Library'!I17+'Space, Nonrecurring, Library'!I19+'Space, Nonrecurring, Library'!I22-C13-C14-C15-C16-C17-C18 ->  | D19: =D42+'College Spending Plan'!E51+'College Spending Plan'!E52+'Space, Nonrecurring, Library'!N9+'Space, Nonrecurring, Library'!N11+'Space, Nonrecurring, Library'!J14+'Space, Nonrecurring, Library'!J17+'Space, Nonrecurring, Library'!J19+'Space, Nonrecurring, Library'!J22-D13-D14-D15-D16-D17-D18 ->  | E19: =IF(OR(B19<0,C19<0,D19<0),"Check amount <0","OK") ->  | F19: Other (includes employee Benefits, 1 time Expense, I.e. start-up, total less all of the above)
A20: Total all | B20: =SUM(B13:B19) ->  | C20: =SUM(C13:C19) ->  | D20: =SUM(D13:D19) ->  | E20: =IF(OR(B20<0,C20<0,D20<0),"Check amount <0","") -> 
A22: *Capital expenditure total reflects projected spending in years one thru three.
A25: Overall Check | B25: =IF(AND(B50=0,B13>=0,B14>=0,B15>=0,B16>=0,B17>=0,B18>=0,B19>=0),"OK","Check") ->  | C25: =IF(AND(C50=0,C13>=0,C14>=0,C15=0,C16=0,C17>=0,C18=0,C19>=0),"OK","Check") ->  | D25: =IF(AND(D50=0,D13>=0,D14>=0,D15=0,D16=0,D17>=0,D18=0,D19>=0),"OK","Check") ->  | E25: =IF(AND(B25="OK",C25="OK",D25="OK"),"OK", "ERROR") -> 
A26: Current Status | B26: =IF(AND(B25="OK",C25="OK",D25="OK"),"Program Reconciles", "ERROR Please Review") -> 
A29: Employee Benefits Calculation
A30: College Spending Plan Salaries | B30: ='College Spending Plan'!C8 -> 0 | C30: ='College Spending Plan'!D8 -> 0-1 | D30: ='College Spending Plan'!E8 -> 
A31: Full Time Faculty | B31: ='College Spending Plan'!C79+'College Spending Plan'!C80+'College Spending Plan'!C20+'College Spending Plan'!C21 -> 0 | C31: ='College Spending Plan'!D79+'College Spending Plan'!D80+'College Spending Plan'!D20+'College Spending Plan'!D21 -> 0 | D31: ='College Spending Plan'!E79+'College Spending Plan'!E80+'College Spending Plan'!E20+'College Spending Plan'!E21 -> 0
A32: Full Time Staff | B32: ='College Spending Plan'!C38+'College Spending Plan'!C97 -> 0 | C32: ='College Spending Plan'!D38+'College Spending Plan'!D97 -> 0 | D32: ='College Spending Plan'!E38+'College Spending Plan'!E97 -> 0
A33: Adjunct | B33: ='College Spending Plan'!C22+'College Spending Plan'!C81 -> 0 | C33: ='College Spending Plan'!D22+'College Spending Plan'!D81 -> 0 | D33: ='College Spending Plan'!E22+'College Spending Plan'!E81 -> 0
A34: Part Time Faculty | B34: ='College Spending Plan'!C23+'College Spending Plan'!C76 -> 0 | C34: ='College Spending Plan'!D23+'College Spending Plan'!D76 -> 0 | D34: ='College Spending Plan'!E23+'College Spending Plan'!E76 -> 0
A35: Total Salary | B35: =SUM(B31:B34) -> 0 | C35: =SUM(C31:C34) -> 0 | D35: =SUM(D31:D34) -> 0
A37: Benefits
A38: Full Time Faculty Benefits | B38: =HLOOKUP(B$30,Assumptions!$C$80:$K$83,2,FALSE)*B31 ->  | C38: =HLOOKUP(C$30,Assumptions!$C$80:$K$83,2,FALSE)*C31 ->  | D38: =HLOOKUP(D$30,Assumptions!$C$80:$K$83,2,FALSE)*D31 -> 
A39: Full Time Staff Benefits | B39: =HLOOKUP(B$30,Assumptions!$C$80:$K$83,2,FALSE)*B32 ->  | C39: =HLOOKUP(C$30,Assumptions!$C$80:$K$83,2,FALSE)*C32 ->  | D39: =HLOOKUP(D$30,Assumptions!$C$80:$K$83,2,FALSE)*D32 -> 
A40: Adjunct Benefits | B40: =HLOOKUP(B$30,Assumptions!$C$80:$K$83,3,FALSE)*B33 ->  | C40: =HLOOKUP(C$30,Assumptions!$C$80:$K$83,3,FALSE)*C33 ->  | D40: =HLOOKUP(D$30,Assumptions!$C$80:$K$83,3,FALSE)*D33 -> 
A41: PartTime Faculty Benefits | B41: =HLOOKUP(B$30,Assumptions!$C$80:$K$83,4,FALSE)*B34 ->  | C41: =HLOOKUP(C$30,Assumptions!$C$80:$K$83,4,FALSE)*C34 ->  | D41: =HLOOKUP(D$30,Assumptions!$C$80:$K$83,4,FALSE)*D34 -> 
A42: Total Benefits | B42: =SUM(B38:B41) ->  | C42: =SUM(C38:C41) -> 
A45: Reconciliation of Data - Variance should be 0 with table status of OK
A46: College Spending Plan | B46: ='College Spending Plan'!C51+'College Spending Plan'!C52 -> 0 | C46: ='College Spending Plan'!D51+'College Spending Plan'!D52 -> 0 | D46: ='College Spending Plan'!E51+'College Spending Plan'!E52 -> 0
A47: Space, Nonrecurring, Library | B47: ='Space, Nonrecurring, Library'!L9+'Space, Nonrecurring, Library'!L11+'Space, Nonrecurring, Library'!H14+'Space, Nonrecurring, Library'!H17+'Space, Nonrecurring, Library'!H19+'Space, Nonrecurring, Library'!H22 -> 0 | C47: ='Space, Nonrecurring, Library'!M9+'Space, Nonrecurring, Library'!M11+'Space, Nonrecurring, Library'!I14+'Space, Nonrecurring, Library'!I17+'Space, Nonrecurring, Library'!I19+'Space, Nonrecurring, Library'!I22 -> 0 | D47: ='Space, Nonrecurring, Library'!N9+'Space, Nonrecurring, Library'!N11+'Space, Nonrecurring, Library'!J14+'Space, Nonrecurring, Library'!J17+'Space, Nonrecurring, Library'!J19+'Space, Nonrecurring, Library'!J22 -> 0
A48: Calculated Benefits | B48: =B42 ->  | C48: =C42 ->  | D48: =D42 -> 
A49: Total From Detail | B49: =SUM(B46:B48) ->  | C49: =SUM(C46:C48) ->  | D49: =SUM(D46:D48) -> 
A50: Variance | B50: =B49-B20 ->  | C50: =C49-C20 ->  | D50: =D49-D20 -> 

Sheet Assumptions
A2: ASSUMPTIONS
B4: = calculated rates
A7: Rate Year | B7: 2014-2015
A8: Year of Plan | B8: ='Program Info'!E7 -> 0
A9: Expense Gap | B9: =RIGHT(B8,4)-RIGHT(B7,4) -> -2015
A10: Inflation | B10: 0.025
A13: Planned Tuition Increase | B13: 0.035 | C13: =$B$13 -> 0.035 | D13: 0.035 | E13: 0.035 | F13: 0.035 | G13: 0.035 | H13: 0.035 | I13: 0.035 | J13: 0.035 | K13: 0.035 | L13: 0.035 | M13: 0.035 | N13: 0.035 | O13: 0.035 | P13: 0.035 | Q13: 0.035 | R13: 0.035 | S13: 0.035 | T13: 0.035 | U13: 0.035 | V13: 0.035 | W13: 0.035 | X13: 0.035 | Y13: 0.035 | Z13: 0.035
A15: Graduate | B15: 2015-2016 | C15: =CONCATENATE(LEFT(B15,4)+1,"-",RIGHT(B15,4)+1) -> 2016-2017 | D15: 2017-2018 | E15: 2018-2019 | F15: 2019-2020 | G15: 2020-2021 | H15: 2021-2022 | I15: 2022-2023 | J15: 2023-2024 | K15: =CONCATENATE(LEFT(J15,4)+1,"-",RIGHT(J15,4)+1) -> 2024-2025 | L15: 2025-2026 | M15: 2026-2027 | N15: 2027-2028 | O15: 2028-2029 | P15: 2029-2030 | Q15: 2030-2031 | R15: 2031-2032 | S15: 2032-2033 | T15: 2033-2034 | U15: 2034-2035 | V15: 2035-2036 | W15: 2036-2037 | X15: 2037-2038 | Y15: 2038-2039 | Z15: 2039-2040
A16: Full-time semester/annual/other tuition | B16: 40158 | C16: 41804 | D16: =C16*(1+D13) -> 43267.14 | E16: 44781.4899 | F16: 46348.84205 | G16: 47971.05152 | H16: 49650.03832 | I16: 51387.78966 | J16: 53186.3623 | K16: =J16*(1+K13) -> 55047.88498 | L16: 56974.56096 | M16: 58968.67059 | N16: 61032.57406 | O16: 63168.71415 | P16: 65379.61915 | Q16: 67667.90582 | R16: 70036.28252 | S16: 72487.55241 | T16: 75024.61674 | U16: 77650.47833 | V16: 80368.24507 | W16: 83181.13365 | X16: 86092.47333 | Y16: 89105.70989 | Z16: 92224.40974
A17: Per Semester Tuition | B17: =+B16/2 -> 20079 | C17: 20902 | D17: 21633.57 | E17: 22390.74495 | F17: 23174.42102 | G17: 23985.52576 | H17: 24825.01916 | I17: 25693.89483 | J17: 26593.18115 | K17: =+K16/2 -> 27523.94249 | L17: 28487.28048 | M17: 29484.33529 | N17: 30516.28703 | O17: 31584.35708 | P17: 32689.80957 | Q17: 33833.95291 | R17: 35018.14126 | S17: 36243.7762 | T17: 37512.30837 | U17: 38825.23916 | V17: 40184.12254 | W17: =+W16/2 -> 41590.56682 | X17: =+X16/2 -> 43046.23666 | Y17: =+Y16/2 -> 44552.85495 | Z17: =+Z16/2 -> 46112.20487
A18: Per Credit Tuition | B18: =ROUND((B17/12),0) -> 1673 | C18: 1742 | D18: =D17/12 -> 1802.7975 | E18: 1865.895412 | F18: 1931.201752 | G18: 1998.793813 | H18: 2068.751597 | I18: 2141.157903 | J18: 2216.098429 | K18: =K17/12 -> 2293.661874 | L18: 2373.94004 | M18: 2457.027941 | N18: 2543.023919 | O18: 2632.029756 | P18: 2724.150798 | Q18: 2819.496076 | R18: 2918.178438 | S18: 3020.314684 | T18: 3126.025698 | U18: 3235.436597 | V18: 3348.676878 | W18: =W17/12 -> 3465.880569 | X18: =X17/12 -> 3587.186389 | Y18: =Y17/12 -> 3712.737912 | Z18: =Z17/12 -> 3842.683739
A20: Undergraduate | B20: 2015-2016 | C20: =C15 -> 2016-2017 | D20: 2017-2018 | E20: 2018-2019 | F20: 2019-2020 | G20: 2020-2021 | H20: 2021-2022 | I20: 2022-2023 | J20: 2023-2024 | K20: =K15 -> 2024-2025 | L20: 2025-2026 | M20: 2026-2027 | N20: 2027-2028 | O20: 2028-2029 | P20: 2029-2030 | Q20: 2030-2031 | R20: 2031-2032 | S20: 2032-2033 | T20: 2033-2034 | U20: 2034-2035 | V20: 2035-2036 | W20: =W15 -> 2036-2037 | X20: =X15 -> 2037-2038 | Y20: =Y15 -> 2038-2039 | Z20: =Z15 -> 2039-2040
A21: Full-time semester/annual/other tuition | B21: 36596 | C21: 38024 | D21: =C21*(1+D13) -> 39354.84 | E21: 40732.2594 | F21: 42157.88848 | G21: 43633.41458 | H21: 45160.58409 | I21: 46741.20453 | J21: 48377.14669 | K21: =J21*(1+K13) -> 50070.34682 | L21: 51822.80896 | M21: 53636.60727 | N21: 55513.88853 | O21: 57456.87463 | P21: 59467.86524 | Q21: 61549.24052 | R21: 63703.46394 | S21: 65933.08518 | T21: 68240.74316 | U21: 70629.16917 | V21: 73101.19009 | W21: 75659.73174 | X21: 78307.82236 | Y21: 81048.59614 | Z21: 83885.297
A22: Per Semester Tuition | B22: =+B21/2 -> 18298 | C22: 19012 | D22: 19677.42 | E22: 20366.1297 | F22: 21078.94424 | G22: 21816.70729 | H22: 22580.29204 | I22: 23370.60226 | J22: 24188.57334 | K22: =+K21/2 -> 25035.17341 | L22: 25911.40448 | M22: 26818.30364 | N22: 27756.94426 | O22: 28728.43731 | P22: 29733.93262 | Q22: 30774.62026 | R22: 31851.73197 | S22: 32966.54259 | T22: 34120.37158 | U22: 35314.58459 | V22: 36550.59505 | W22: =+W21/2 -> 37829.86587 | X22: =+X21/2 -> 39153.91118 | Y22: =+Y21/2 -> 40524.29807 | Z22: =+Z21/2 -> 41942.6485
A23: Per Credit Tuition | B23: 1331 | C23: 1408 | D23: =C23*(1+D13) -> 1457.28 | E23: 1508.2848 | F23: 1561.074768 | G23: 1615.712385 | H23: 1672.262318 | I23: 1730.791499 | J23: 1791.369202 | K23: =J23*(1+K13) -> 1854.067124 | L23: 1918.959473 | M23: 1986.123055 | N23: 2055.637362 | O23: 2127.58467 | P23: 2202.050133 | Q23: 2279.121888 | R23: 2358.891154 | S23: 2441.452344 | T23: 2526.903176 | U23: 2615.344787 | V23: 2706.881855 | W23: 2801.62272 | X23: 2899.679515 | Y23: 3001.168298 | Z23: 3106.209188
A25: Graduate - Online | B25: 2015-2016 | C25: =CONCATENATE(LEFT(B25,4)+1,"-",RIGHT(B25,4)+1) -> 2016-2017 | D25: 2017-2018 | E25: 2018-2019 | F25: 2019-2020 | G25: 2020-2021 | H25: 2021-2022 | I25: 2022-2023 | J25: 2023-2024 | K25: =CONCATENATE(LEFT(J25,4)+1,"-",RIGHT(J25,4)+1) -> 2024-2025 | L25: 2025-2026 | M25: 2026-2027 | N25: 2027-2028 | O25: 2028-2029 | P25: 2029-2030 | Q25: 2030-2031 | R25: 2031-2032 | S25: 2032-2033 | T25: 2033-2034 | U25: 2034-2035 | V25: 2035-2036 | W25: 2036-2037 | X25: 2037-2038 | Y25: 2038-2039 | Z25: 2039-2040
A26: Online Discount | B26: 0.43 | C26: 0.43 | D26: 0.43 | E26: 0.43 | F26: 0.43 | G26: 0.43 | H26: 0.43 | I26: 0.43 | J26: 0.43 | K26: 0.43 | L26: 0.43 | M26: 0.43 | N26: 0.43 | O26: 0.43 | P26: 0.43 | Q26: 0.43 | R26: 0.43 | S26: 0.43 | T26: 0.43 | U26: 0.43 | V26: 0.43 | W26: 1.43 | X26: 2.43 | Y26: 3.43 | Z26: 4.43
A27: Full-time semester/annual/other tuition
A28: Per Semester Tuition
A29: Per Credit Tuition | B29: 954 | C29: =ROUND(C18*(1-C26),0) -> 993 | D29: =C29*(1+D13) -> 1027.755 | E29: 1063.726425 | F29: 1100.95685 | G29: 1139.49034 | H29: 1179.372502 | I29: 1220.650539 | J29: 1263.373308 | K29: =J29*(1+K13) -> 1307.591374 | L29: 1353.357072 | M29: 1400.724569 | N29: 1449.749929 | O29: 1500.491177 | P29: 1553.008368 | Q29: 1607.363661 | R29: 1663.621389 | S29: 1721.848138 | T29: 1782.112822 | U29: 1844.486771 | V29: 1909.043808 | W29: 1975.860341 | X29: 2045.015453 | Y29: 2116.590994 | Z29: 2190.671679
A31: Undergraduate - Online | B31: 2015-2016 | C31: =CONCATENATE(LEFT(B31,4)+1,"-",RIGHT(B31,4)+1) -> 2016-2017 | D31: 2017-2018 | E31: 2018-2019 | F31: 2019-2020 | G31: 2020-2021 | H31: 2021-2022 | I31: 2022-2023 | J31: 2023-2024 | K31: =CONCATENATE(LEFT(J31,4)+1,"-",RIGHT(J31,4)+1) -> 2024-2025 | L31: 2025-2026 | M31: 2026-2027 | N31: 2027-2028 | O31: 2028-2029 | P31: 2029-2030 | Q31: 2030-2031 | R31: 2031-2032 | S31: 2032-2033 | T31: 2033-2034 | U31: 2034-2035 | V31: 2035-2036 | W31: 2036-2037 | X31: 2037-2038 | Y31: 2038-2039 | Z31: 2039-2040
A32: Online Discount | B32: 0.36 | C32: 0.36 | D32: 0.36 | E32: 0.36 | F32: 0.36 | G32: 0.36 | H32: 0.36 | I32: 0.36 | J32: 0.36 | K32: 0.36 | L32: 0.36 | M32: 0.36 | N32: 0.36 | O32: 0.36 | P32: 0.36 | Q32: 0.36 | R32: 0.36 | S32: 0.36 | T32: 0.36 | U32: 0.36 | V32: 0.36 | W32: 1.36 | X32: 2.36 | Y32: 3.36 | Z32: 4.36
A33: Full-time semester/annual/other tuition
A34: Per Semester Tuition
A35: Per Credit Tuition | B35: =ROUNDUP(B23*(1-B32),0) -> 852 | C35: 901 | D35: =C35*(1+D13) -> 932.535 | E35: =D35*(1+E13) -> 965.173725 | F35: 998.9548054 | G35: 1033.918224 | H35: 1070.105361 | I35: 1107.559049 | J35: 1146.323616 | K35: =J35*(1+K13) -> 1186.444942 | L35: 1227.970515 | M35: 1270.949483 | N35: 1315.432715 | O35: 1361.47286 | P35: 1409.12441 | Q35: 1458.443765 | R35: 1509.489297 | S35: 1562.321422 | T35: 1617.002672 | U35: 1673.597765 | V35: 1732.173687 | W35: 1792.799766 | X35: 1855.547758 | Y35: 1920.491929 | Z35: 1987.709147
A37: Average Discount rate/Financial Aid
A38: Undergradate | B38: 0.35
A39: Graduate | B39: 0.25
A42: RATES FOR NPC | D42: Hedge Rate | E42: 0 | G42: HEDGE RATE | H42: =IF('Program Info'!H14="GRAD",0.23,0.19) -> 
A43: College | B43: Ugrad Fac Sal | C43: Grad Fac Sal | D43: Non-Salary | E43: Hedge | F43: Non Salary | G43: OH Rate at College Level | H43: =CONCATENATE("Plus: Hedge of ",H42) ->  | I43: Total OH | J43: AA | K43: Full Cost
A45: CAST | B45: 207.098203 | C45: 429.2456628 | D45: 53.14918753 | E45: =D45*$E$42 -> 0 | F45: =D45+E45 -> 53.14918753 | G45: 277.95 | H45: =G45*$H$42 ->  | I45: =G45+H45 ->  | J45: 82.53 | K45: 135.38
A46: CHST | B46: 164.9264534 | C46: 211.6980355 | D46: 24.77631796 | E46: =D46*$E$42 -> 0 | F46: 24.77631796 | G46: 253.91 | J46: 65.46 | K46: 127.84
A47: CIAS | B47: 248.35 | C47: 442.63 | D47: 49.3 | E47: =D47*$E$42 -> 0 | F47: 49.3 | G47: 386.45 | J47: 99.45 | K47: 138.62
A48: COLA | B48: 161.7191933 | C48: 528.96 | D48: 9.1370579 | E48: =D48*$E$42 -> 0 | F48: 9.1370579 | G48: 98.64 | J48: 43.66 | K48: 125.65
A49: COS | B49: 188.42 | C49: 583.78 | D49: 20.02 | E49: =D49*$E$42 -> 0 | F49: 20.02 | G49: 154.39 | J49: 48.14 | K49: 124.77
A50: COS-CIS | B50: 778.4665162 | C50: 1677.378795 | D50: 339.93 | F50: 339.93 | G50: 1132.39 | J50: 340.33 | K50: 211.88
A51: GCCIS | B51: 181.8905604 | C51: 487.3317434 | D51: 47.34281521 | E51: =D51*$E$42 -> 0 | F51: 47.34281521 | G51: 247.81 | J51: 77.94 | K51: 134.26
A52: GIS | B52: 200 | C52: 341.65 | D52: 53.25 | E52: 0 | F52: 53.25 | G52: =AVERAGE(G47,G45,G46,G49,G51,+G53) -> 277.205 | J52: 122.81 | K52: 150.83 | L52: OH Rate: Calculated Average of CAST, CHST, CIAS, COS,GCCIS, KGCOE, Acc Affs: Same as M Arch Program, Full Cost: M Arch Program, Non Salary, Same is M Program.
A53: KGCOE | B53: 226.8260799 | C53: 542.7033362 | D53: 68.77119582 | E53: =D53*$E$42 -> 0 | F53: 68.77119582 | G53: 342.72 | J53: 98.58 | K53: 140.63
A54: SCB | B54: 195.0772524 | C54: 535.4695569 | D54: 11.70150219 | E54: =D54*$E$42 -> 0 | F54: 11.70150219 | G54: 233.05 | J54: 74.18 | K54: 131.56
A60: Space Cost Estimates | B60: Renovated | C60: New Base | D60: New Total
A61: Classroom | B61: 100 | C61: 120 | D61: =B61+C61 -> 220
A62: Office | B62: 90 | C62: =C61 -> 120 | D62: =B62+C62 -> 210
A63: Lab | B63: 280 | C63: =C62 -> 120 | D63: =B63+C63 -> 400
A64: Wet Lab | B64: 350 | C64: =C63 -> 120 | D64: =B64+C64 -> 470
A67: Student count | B67: Range End | C67: FTE | D67: Average Salary | E67: 45000
A68: 1 | B68: 30 | C68: 0.1 | D68: =$E$67*C68 -> 4500
A69: =B68+1 -> 31 | B69: =A69+29 -> 60 | C69: 0.2 | D69: =$E$67*C69 -> 9000
A70: =B69+1 -> 61 | B70: =A70+29 -> 90 | C70: 0.3 | D70: 13500
A71: 91 | B71: 120 | C71: 0.4 | D71: 18000
A72: 121 | B72: 150 | C72: 0.5 | D72: 22500
A73: 151 | B73: 180 | C73: 0.6 | D73: 27000
A74: 181 | B74: 210 | C74: 0.7 | D74: 31500
A75: 211 | B75: 240 | C75: 0.8 | D75: 36000
A76: 241 | B76: 270 | C76: 0.9 | D76: 40500
A77: 271 | B77: 300 | C77: 1 | D77: 45000
A80: Benefit Rates | B80: 2015-2016 | C80: =C31 -> 2016-2017 | D80: 2017-2018 | E80: 2018-2019 | F80: 2019-2020 | G80: 2020-2021 | H80: 2021-2022 | I80: 2022-2023 | J80: 2023-2024 | K80: 2024-2025
A81: Full Time | C81: 0.367 | D81: =C81*(1+expinc) -> 0.376175 | E81: 0.385579375 | F81: 0.3952188594 | G81: 0.4050993309 | H81: 0.4152268141 | I81: 0.4256074845 | J81: 0.4362476716 | K81: 0.4471538634
A82: Adjunct | C82: 0.225 | D82: 0.230625 | E82: 0.236390625 | F82: 0.2423003906 | G82: 0.2483579004 | H82: 0.2545668479 | I82: 0.2609310191 | J82: 0.2674542946 | K82: 0.2741406519
A83: Part Time | C83: 0.079 | D83: 0.080975 | E83: 0.082999375 | F83: 0.08507435937 | G83: 0.08720121836 | H83: 0.08938124882 | I83: 0.09161578004 | J83: 0.09390617454 | K83: 0.0962538289

Sheet Calculation Worksheet
A1: ='Program Summary'!A1 -> 0
A2: ='Program Summary'!A2 -> 0
A3: Calculation Worksheet
A13: 1 | B13: 2 | C13: 3 | D13: 4 | E13: 5 | F13: 6 | G13: 7 | H13: 8 | I13: 9 | J13: 10 | K13: 11 | L13: 12 | M13: 13 | N13: 14
A14: MaskTable | D14: FT Yrs to Compl | E14: Total CrHr | F14: Year 1 | G14: Year 2 | H14: Year 3 | I14: Year 4 | J14: Year 5 | K14: Year 6 | M14: Avg Sect Size | N14: Avg Fac Load/Yr | O14: Avg Fac CrHr/Yr
A15: Bachelors 4 Yr | C15: UG | D15: 4 | E15: =SUM(F15:L15) -> 123 | F15: 30 | G15: 33 | H15: 30 | I15: 30 | M15: 22 | N15: 6.5 | O15: =+N15*3 -> 19.5
A16: Bachelors 5 yr w/Coop | C16: UG | D16: 5 | E16: =SUM(F16:L16) -> 123 | F16: 30 | G16: 33 | H16: 15 | I16: 15 | J16: 30 | M16: 22 | N16: 6.5 | O16: 19.5 | Q16: 35
A17: Bachelors 5 yr w/o Coop | C17: UG | D17: 5 | E17: =SUM(F17:L17) -> 150 | F17: 30 | G17: 30 | H17: 30 | I17: 30 | J17: 30 | M17: 22 | N17: 6.5 | O17: 19.5 | Q17: =(0.2*6)+(0.8*4) -> 4.4
A18: Masters - 1 Yr 30 | C18: Grad | D18: 1 | E18: =SUM(F18:L18) -> 30 | F18: 30 | M18: 12 | N18: 5 | O18: 15
A19: Masters - 1 Yr 36 | C19: Grad | D19: 1 | E19: 36 | F19: 36 | M19: 12 | N19: 5 | O19: 15
A20: Masters - 2 Yr 30 | C20: Grad | D20: 2 | E20: =SUM(F20:L20) -> 30 | F20: 18 | G20: 12 | M20: 12 | N20: 5 | O20: 15
A21: Masters - 2 yr 36 | C21: Grad | D21: 2 | E21: =SUM(F21:L21) -> 36 | F21: 18 | G21: 18 | M21: 12 | N21: 5 | O21: 15
A22: Masters - 2 yr 60 | C22: Grad | D22: 2 | E22: 60 | F22: 30 | G22: 30
A24: Retention Rates: | F24: 1 | G24: 2 | H24: 3 | I24: 4 | J24: 5 | K24: 1st Year | L24: Years 2+ | M24: Transfers 2 Year2+ | N24: Transfers 3 Year 3+
A25: Bachelors 4 year | D25: 4 | F25: 1 | G25: ='Program Info'!$E$23 -> 0.8764 | H25: =1/('Program Info'!$E$23/Com_Rate)^(1/($D25-2)) -> 0.8699034922 | I25: =1/('Program Info'!$E$23/Com_Rate)^(1/($D25-2)) -> 0.8699034922 | K25: =G25 -> 0.8764 | L25: 0.8699034922 | M25: =1/('Program Info'!$E$23/Com_Rate)^(1/($D25-3)) -> 0.7567320858 | N25: =F25*0.702 -> 0.702
A26: Bachelors 5 year | D26: 5 | F26: 1 | G26: ='Program Info'!$E$23 -> 0.8764 | H26: =1/('Program Info'!$E$23/Com_Rate)^(1/($D26-2)) -> 0.9112706501 | I26: =1/('Program Info'!$E$23/Com_Rate)^(1/($D26-2)) -> 0.9112706501 | J26: =1/('Program Info'!$E$23/Com_Rate)^(1/($D26-2)) -> 0.9112706501 | K26: 0.8764 | L26: 0.9112706501 | M26: =1/('Program Info'!$E$23/Com_Rate)^(1/($D26-3)) -> 0.8699034922 | N26: =1/('Program Info'!$E$23/Com_Rate)^(1/($D26-4)) -> 0.7567320858
A27: Masters | D27: 2 | F27: 1 | G27: ='Program Info'!$E$23 -> 0.8764 | K27: 0.8764 | L27: 0
A28: Part Time | D28: ='Program Info'!G24 ->  | F28: 1 | G28: ='Program Info'!E24 -> 0.8764 | H28: =1/('Program Info'!$E$23/Com_RatePT)^(1/($D28-2)) ->  | K28: =G28 -> 0.8764 | L28: =IF(D28=2,0%,H28) -> 
E37: =+'Program Info'!E17 -> 0 | F37: =+'Program Info'!F17 -> 0-1 | G37: =+'Program Info'!G17 ->  | H37: =+'Program Info'!H17 ->  | I37: =+'Program Info'!I17 ->  | J37: =+'Program Info'!J17 ->  | K37: =CONCATENATE(RIGHT(J37,4),"-",RIGHT(J37,4)+1) ->  | L37: =CONCATENATE(RIGHT(K37,4),"-",RIGHT(K37,4)+1) ->  | M37: =CONCATENATE(RIGHT(L37,4),"-",RIGHT(L37,4)+1) ->  | N37: =CONCATENATE(RIGHT(M37,4),"-",RIGHT(M37,4)+1) -> 
C38: Year | E38: 1 | F38: 2 | G38: 3 | H38: 4 | I38: 5 | J38: 6 | K38: 7 | L38: 8 | M38: 9 | N38: 10
C39: Term
E44: ='Program Info'!E49 -> 14 | F44: ='Program Info'!F49 -> 14 | G44: ='Program Info'!G49 -> 16 | H44: ='Program Info'!H49 -> 16 | I44: ='Program Info'!I49 -> 18
C46: Attriting from prior year (Headcount)
B47: ='Program Info'!C45 -> 1 | C47: ='Program Info'!D23 -> Full Time | F47: =SUM(F70:F79)-INDEX(Student1,F69+1,F69+1)-E80+SUMIFS(E70:E79,F70:F79,0) -> 
B48: 3 | C48: =VLOOKUP(B48,Cohort,2,FALSE) ->  | F48: =SUM(F84:F93)-INDEX(Student3,F83+1,F83+1)-E94+SUMIFS(E84:E93,F84:F93,0) -> 
B49: 4 | C49: =VLOOKUP(B49,Cohort,2,FALSE) ->  | F49: =SUM(F98:F107)-INDEX(Student4,F97+1,F97+1)-E108+SUMIFS(E98:E107,F98:F107,0) -> 
B50: ='Program Info'!C48 -> 2 | C50: ='Program Info'!D24 -> Part Time | F50: =SUM(F149:F158)-INDEX(Student2,F148+1,F148+1)-E159+SUMIFS(E149:E158,F149:F158,0) -> 
D51: Total | E51: =SUM(E47:E50) -> 0
C53: Completing this Year (Headcount)
B54: =B47 -> 1 | C54: ='Program Info'!D23 -> Full Time | E54: =SUMIFS(E70:E79,F70:F79,"=0") -> 0 | F54: =SUMIFS(F70:F79,G70:G79,"=0") -> 0 | G54: =SUMIFS(G70:G79,H70:H79,"=0") -> 0 | H54: =SUMIFS(H70:H79,I70:I79,"=0") -> 0 | I54: 0 | J54: 0 | K54: 0 | L54: 0 | M54: 0 | N54: 0
B55: 3 | C55: =VLOOKUP(B55,Cohort,2,FALSE) ->  | E55: =SUMIFS(E84:E93,F84:F93,"=0") -> 0 | F55: =SUMIFS(F84:F93,G84:G93,"=0") -> 0 | G55: 0 | H55: 0 | I55: 0 | J55: 0 | K55: 0 | L55: 0 | M55: 0 | N55: 0
B56: 4 | C56: =VLOOKUP(B56,Cohort,2,FALSE) ->  | E56: =SUMIFS(E98:E107,F98:F107,"=0") -> 0 | F56: =SUMIFS(F98:F107,G98:G107,"=0") -> 0 | G56: 0 | H56: 0 | I56: 0 | J56: 0 | K56: 0 | L56: 0 | M56: 0 | N56: 0
B57: =B50 -> 2 | C57: ='Program Info'!D24 -> Part Time | E57: =SUMIFS(E149:E158,F149:F158,"=0") -> 0 | F57: =SUMIFS(F149:F158,G149:G158,"=0") -> 0 | G57: =SUMIFS(G149:G158,H149:H158,"=0") -> 0 | H57: 0 | I57: 0 | J57: 0 | K57: 0 | L57: 0 | M57: 0 | N57: 0
D58: Total | E58: =SUM(E54:E57) -> 0 | F58: 0 | G58: 0 | H58: 0 | I58: 0 | J58: 0 | K58: 0 | L58: 0 | M58: 0 | N58: 0
C60: Total Enrollment (Headcount)
B61: =B54 -> 1 | C61: ='Program Info'!D23 -> Full Time | E61: ='Program Info'!E45 -> 0 | F61: =ROUND(E61+'Program Info'!F45+F47-E54,2) ->  | G61: =ROUND(F61+'Program Info'!G45+G47-F54,2) ->  | H61: =ROUND(G61+'Program Info'!H45+H47-G54,2) ->  | I61: =ROUND(H61+'Program Info'!I45+I47-H54,2) ->  | J61: =ROUND(I61+'Program Info'!J45+J47-I54,2) ->  | K61: =ROUND(J61+'Program Info'!K45+K47-J54,2) ->  | L61: =ROUND(K61+'Program Info'!L45+L47-K54,2) ->  | M61: =ROUND(L61+'Program Info'!M45+M47-L54,2) ->  | N61: =ROUND(M61+'Program Info'!N45+N47-M54,2) -> 
B62: 3 | C62: =VLOOKUP(B62,Cohort,2,FALSE) ->  | E62: =IF('Program Info'!$H$14="GRAD",0,'Program Info'!E46) ->  | F62: =IF('Program Info'!$H$14="GRAD",0,ROUND(E62+'Program Info'!F46+F48-E55,2)) ->  | G62: =IF('Program Info'!$H$14="GRAD",0,ROUND(F62+'Program Info'!G46+G48-F55,2)) ->  | H62: =IF('Program Info'!$H$14="GRAD",0,ROUND(G62+'Program Info'!H46+H48-G55,2)) ->  | I62: =IF('Program Info'!$H$14="GRAD",0,ROUND(H62+'Program Info'!I46+I48-H55,2)) ->  | J62: =IF('Program Info'!$H$14="GRAD",0,ROUND(I62+'Program Info'!J46+J48-I55,2)) ->  | K62: =IF('Program Info'!$H$14="GRAD",0,ROUND(J62+'Program Info'!K46+K48-J55,2)) ->  | L62: =IF('Program Info'!$H$14="GRAD",0,ROUND(K62+'Program Info'!L46+L48-K55,2)) ->  | M62: =IF('Program Info'!$H$14="GRAD",0,ROUND(L62+'Program Info'!M46+M48-L55,2)) ->  | N62: =IF('Program Info'!$H$14="GRAD",0,ROUND(M62+'Program Info'!N46+N48-M55,2)) -> 
B63: 4 | C63: =VLOOKUP(B63,Cohort,2,FALSE) ->  | E63: =IF('Program Info'!$H$14="GRAD",0,'Program Info'!E47) ->  | F63: =IF('Program Info'!$H$14="GRAD",0,ROUND(E63+'Program Info'!F47+F49-E56,2)) ->  | G63: =IF('Program Info'!$H$14="GRAD",0,ROUND(F63+'Program Info'!G47+G49-F56,2)) ->  | H63: =IF('Program Info'!$H$14="GRAD",0,ROUND(G63+'Program Info'!H47+H49-G56,2)) ->  | I63: =IF('Program Info'!$H$14="GRAD",0,ROUND(H63+'Program Info'!I47+I49-H56,2)) ->  | J63: =IF('Program Info'!$H$14="GRAD",0,ROUND(I63+'Program Info'!J47+J49-I56,2)) ->  | K63: =IF('Program Info'!$H$14="GRAD",0,ROUND(J63+'Program Info'!K47+K49-J56,2)) ->  | L63: =IF('Program Info'!$H$14="GRAD",0,ROUND(K63+'Program Info'!L47+L49-K56,2)) ->  | M63: =IF('Program Info'!$H$14="GRAD",0,ROUND(L63+'Program Info'!M47+M49-L56,2)) ->  | N63: =IF('Program Info'!$H$14="GRAD",0,ROUND(M63+'Program Info'!N47+N49-M56,2)) -> 
B64: =B57 -> 2 | C64: ='Program Info'!D24 -> Part Time | E64: ='Program Info'!E48 -> 0 | F64: =ROUND(E64+'Program Info'!F48+F50-E57,2) ->  | G64: =ROUND(F64+'Program Info'!G48+G50-F57,2) ->  | H64: =ROUND(G64+'Program Info'!H48+H50-G57,2) ->  | I64: =ROUND(H64+'Program Info'!I48+I50-H57,2) ->  | J64: =ROUND(I64+'Program Info'!J48+J50-I57,2) ->  | K64: =ROUND(J64+'Program Info'!K48+K50-J57,2) ->  | L64: =ROUND(K64+'Program Info'!L48+L50-K57,2) ->  | M64: =ROUND(L64+'Program Info'!M48+M50-L57,2) ->  | N64: =ROUND(M64+'Program Info'!N48+N50-M57,2) -> 
D65: Total | E65: =SUM(E61:E64) -> 
D66: Chk | F66: =IF(ABS(SUM('Program Info'!$E49:F49)+SUM($E51:F51)-SUM($E58:E58)-F65)<0.01,"OK","ERROR") ->  | G66: =IF(ABS(SUM('Program Info'!$E49:G49)+SUM($E51:G51)-SUM($E58:F58)-G65)<0.01,"OK","ERROR") ->  | H66: =IF(ABS(SUM('Program Info'!$E49:H49)+SUM($E51:H51)-SUM($E58:G58)-H65)<0.01,"OK","ERROR") ->  | I66: =IF(ABS(SUM('Program Info'!$E49:I49)+SUM($E51:I51)-SUM($E58:H58)-I65)<0.01,"OK","ERROR") ->  | J66: =IF(ABS(SUM('Program Info'!$E49:J49)+SUM($E51:J51)-SUM($E58:I58)-J65)<0.01,"OK","ERROR") ->  | K66: =IF(ABS(SUM('Program Info'!$E49:K49)+SUM($E51:K51)-SUM($E58:J58)-K65)<0.01,"OK","ERROR") ->  | L66: =IF(ABS(SUM('Program Info'!$E49:L49)+SUM($E51:L51)-SUM($E58:K58)-L65)<0.01,"OK","ERROR") ->  | M66: =IF(ABS(SUM('Program Info'!$E49:M49)+SUM($E51:M51)-SUM($E58:L58)-M65)<0.01,"OK","ERROR") ->  | N66: =IF(ABS(SUM('Program Info'!$E49:N49)+SUM($E51:N51)-SUM($E58:M58)-N65)<0.01,"OK","ERROR") -> 
E67: =E80+E94+E108+E159 -> 
C68: Cohort Groups | E68: =+'Program Info'!E17 -> 0 | F68: =+'Program Info'!F17 -> 0-1 | G68: =+'Program Info'!G17 ->  | H68: =+'Program Info'!H17 ->  | I68: =+'Program Info'!I17 ->  | J68: =+'Program Info'!J17 ->  | K68: =CONCATENATE(RIGHT(J68,4),"-",RIGHT(J68,4)+1) ->  | L68: =CONCATENATE(RIGHT(K68,4),"-",RIGHT(K68,4)+1) ->  | M68: =CONCATENATE(RIGHT(L68,4),"-",RIGHT(L68,4)+1) ->  | N68: =CONCATENATE(RIGHT(M68,4),"-",RIGHT(M68,4)+1) -> 
C69: Credit Hour Matrix | D69: Coh | E69: =E38 -> 1 | F69: 2 | G69: 3 | H69: 4 | I69: 5 | J69: 6 | K69: 7 | L69: 8 | M69: 9 | N69: 10 | O69: 11
B70: 1 | C70: =VLOOKUP(B70,Cohort,2,FALSE) -> Full Time | D70: 1 | E70: =ROUND(IF($D70>E$69,0,IF(E$69=$D70,OFFSET('Program Info'!$E$45,0,E$69-1,1,1),IF($D70+'Program Info'!$G$23=E$69,0,IF(AND(E$69-$D70=1,'Program Info'!$G$23=4),D70*$K$25, IF(AND(E$69-$D70>=2,'Program Info'!$G$23=4),D70*$L$25, IF(AND(E$69-$D70=1,'Program Info'!$G$23=5),D70*$K$26, IF(AND(E$69-$D70>=2,'Program Info'!$G$23=5),D70*$L$26,D70*'Program Info'!$E$23))))))),2) -> 0 | F70: =ROUND(IF($D70>F$69,0,IF(F$69=$D70,OFFSET('Program Info'!$E$45,0,F$69-1,1,1),IF($D70+'Program Info'!$G$23=F$69,0,IF(AND(F$69-$D70=1,'Program Info'!$G$23=4),E70*$K$25, IF(AND(F$69-$D70>=2,'Program Info'!$G$23=4),E70*$L$25, IF(AND(F$69-$D70=1,'Program Info'!$G$23=5),E70*$K$26, IF(AND(F$69-$D70>=2,'Program Info'!$G$23=5),E70*$L$26,E70*'Program Info'!$E$23))))))),2) ->  | G70: =ROUND(IF($D70>G$69,0,IF(G$69=$D70,OFFSET('Program Info'!$E$45,0,G$69-1,1,1),IF($D70+'Program Info'!$G$23=G$69,0,IF(AND(G$69-$D70=1,'Program Info'!$G$23=4),F70*$K$25, IF(AND(G$69-$D70>=2,'Program Info'!$G$23=4),F70*$L$25, IF(AND(G$69-$D70=1,'Program Info'!$G$23=5),F70*$K$26, IF(AND(G$69-$D70>=2,'Program Info'!$G$23=5),F70*$L$26,F70*'Program Info'!$E$23))))))),2) ->  | H70: =ROUND(IF($D70>H$69,0,IF(H$69=$D70,OFFSET('Program Info'!$E$45,0,H$69-1,1,1),IF($D70+'Program Info'!$G$23=H$69,0,IF(AND(H$69-$D70=1,'Program Info'!$G$23=4),G70*$K$25, IF(AND(H$69-$D70>=2,'Program Info'!$G$23=4),G70*$L$25, IF(AND(H$69-$D70=1,'Program Info'!$G$23=5),G70*$K$26, IF(AND(H$69-$D70>=2,'Program Info'!$G$23=5),G70*$L$26,G70*'Program Info'!$E$23))))))),2) ->  | I70: =ROUND(IF($D70>I$69,0,IF(I$69=$D70,OFFSET('Program Info'!$E$45,0,I$69-1,1,1),IF($D70+'Program Info'!$G$23=I$69,0,IF(AND(I$69-$D70=1,'Program Info'!$G$23=4),H70*$K$25, IF(AND(I$69-$D70>=2,'Program Info'!$G$23=4),H70*$L$25, IF(AND(I$69-$D70=1,'Program Info'!$G$23=5),H70*$K$26, IF(AND(I$69-$D70>=2,'Program Info'!$G$23=5),H70*$L$26,H70*'Program Info'!$E$23))))))),2) ->  | J70: =ROUND(IF($D70>J$69,0,IF(J$69=$D70,OFFSET('Program Info'!$E$45,0,J$69-1,1,1),IF($D70+'Program Info'!$G$23=J$69,0,IF(AND(J$69-$D70=1,'Program Info'!$G$23=4),I70*$K$25, IF(AND(J$69-$D70>=2,'Program Info'!$G$23=4),I70*$L$25, IF(AND(J$69-$D70=1,'Program Info'!$G$23=5),I70*$K$26, IF(AND(J$69-$D70>=2,'Program Info'!$G$23=5),I70*$L$26,I70*'Program Info'!$E$23))))))),2) ->  | K70: =ROUND(IF($D70>K$69,0,IF(K$69=$D70,OFFSET('Program Info'!$E$45,0,K$69-1,1,1),IF($D70+'Program Info'!$G$23=K$69,0,IF(AND(K$69-$D70=1,'Program Info'!$G$23=4),J70*$K$25, IF(AND(K$69-$D70>=2,'Program Info'!$G$23=4),J70*$L$25, IF(AND(K$69-$D70=1,'Program Info'!$G$23=5),J70*$K$26, IF(AND(K$69-$D70>=2,'Program Info'!$G$23=5),J70*$L$26,J70*'Program Info'!$E$23))))))),2) ->  | L70: =ROUND(IF($D70>L$69,0,IF(L$69=$D70,OFFSET('Program Info'!$E$45,0,L$69-1,1,1),IF($D70+'Program Info'!$G$23=L$69,0,IF(AND(L$69-$D70=1,'Program Info'!$G$23=4),K70*$K$25, IF(AND(L$69-$D70>=2,'Program Info'!$G$23=4),K70*$L$25, IF(AND(L$69-$D70=1,'Program Info'!$G$23=5),K70*$K$26, IF(AND(L$69-$D70>=2,'Program Info'!$G$23=5),K70*$L$26,K70*'Program Info'!$E$23))))))),2) ->  | M70: =ROUND(IF($D70>M$69,0,IF(M$69=$D70,OFFSET('Program Info'!$E$45,0,M$69-1,1,1),IF($D70+'Program Info'!$G$23=M$69,0,IF(AND(M$69-$D70=1,'Program Info'!$G$23=4),L70*$K$25, IF(AND(M$69-$D70>=2,'Program Info'!$G$23=4),L70*$L$25, IF(AND(M$69-$D70=1,'Program Info'!$G$23=5),L70*$K$26, IF(AND(M$69-$D70>=2,'Program Info'!$G$23=5),L70*$L$26,L70*'Program Info'!$E$23))))))),2) ->  | N70: =ROUND(IF($D70>N$69,0,IF(N$69=$D70,OFFSET('Program Info'!$E$45,0,N$69-1,1,1),IF($D70+'Program Info'!$G$23=N$69,0,IF(AND(N$69-$D70=1,'Program Info'!$G$23=4),M70*$K$25, IF(AND(N$69-$D70>=2,'Program Info'!$G$23=4),M70*$L$25, IF(AND(N$69-$D70=1,'Program Info'!$G$23=5),M70*$K$26, IF(AND(N$69-$D70>=2,'Program Info'!$G$23=5),M70*$L$26,M70*'Program Info'!$E$23))))))),2) ->  | O70: =ROUND(IF($D70>O$69,0,IF(O$69=$D70,OFFSET('Program Info'!$E$45,0,O$69-1,1,1),IF($D70+'Program Info'!$G$23=O$69,0,IF(AND(O$69-$D70=1,'Program Info'!$G$23=4),N70*$K$25, IF(AND(O$69-$D70>=2,'Program Info'!$G$23=4),N70*$L$25, IF(AND(O$69-$D70=1,'Program Info'!$G$23=5),N70*$K$26, IF(AND(O$69-$D70>=2,'Program Info'!$G$23=5),N70*$L$26,N70*'Program Info'!$E$23))))))),2) -> 
B71: 1 | C71: Full Time | D71: 2 | E71: =ROUND(IF($D71>E$69,0,IF(E$69=$D71,OFFSET('Program Info'!$E$45,0,E$69-1,1,1),IF($D71+'Program Info'!$G$23=E$69,0,IF(AND(E$69-$D71=1,'Program Info'!$G$23=4),D71*$K$25, IF(AND(E$69-$D71>=2,'Program Info'!$G$23=4),D71*$L$25, IF(AND(E$69-$D71=1,'Program Info'!$G$23=5),D71*$K$26, IF(AND(E$69-$D71>=2,'Program Info'!$G$23=5),D71*$L$26,D71*'Program Info'!$E$23))))))),2) -> 0 | F71: =ROUND(IF($D71>F$69,0,IF(F$69=$D71,OFFSET('Program Info'!$E$45,0,F$69-1,1,1),IF($D71+'Program Info'!$G$23=F$69,0,IF(AND(F$69-$D71=1,'Program Info'!$G$23=4),E71*$K$25, IF(AND(F$69-$D71>=2,'Program Info'!$G$23=4),E71*$L$25, IF(AND(F$69-$D71=1,'Program Info'!$G$23=5),E71*$K$26, IF(AND(F$69-$D71>=2,'Program Info'!$G$23=5),E71*$L$26,E71*'Program Info'!$E$23))))))),2) -> 0 | G71: =ROUND(IF($D71>G$69,0,IF(G$69=$D71,OFFSET('Program Info'!$E$45,0,G$69-1,1,1),IF($D71+'Program Info'!$G$23=G$69,0,IF(AND(G$69-$D71=1,'Program Info'!$G$23=4),F71*$K$25, IF(AND(G$69-$D71>=2,'Program Info'!$G$23=4),F71*$L$25, IF(AND(G$69-$D71=1,'Program Info'!$G$23=5),F71*$K$26, IF(AND(G$69-$D71>=2,'Program Info'!$G$23=5),F71*$L$26,F71*'Program Info'!$E$23))))))),2) ->  | H71: =ROUND(IF($D71>H$69,0,IF(H$69=$D71,OFFSET('Program Info'!$E$45,0,H$69-1,1,1),IF($D71+'Program Info'!$G$23=H$69,0,IF(AND(H$69-$D71=1,'Program Info'!$G$23=4),G71*$K$25, IF(AND(H$69-$D71>=2,'Program Info'!$G$23=4),G71*$L$25, IF(AND(H$69-$D71=1,'Program Info'!$G$23=5),G71*$K$26, IF(AND(H$69-$D71>=2,'Program Info'!$G$23=5),G71*$L$26,G71*'Program Info'!$E$23))))))),2) ->  | I71: =ROUND(IF($D71>I$69,0,IF(I$69=$D71,OFFSET('Program Info'!$E$45,0,I$69-1,1,1),IF($D71+'Program Info'!$G$23=I$69,0,IF(AND(I$69-$D71=1,'Program Info'!$G$23=4),H71*$K$25, IF(AND(I$69-$D71>=2,'Program Info'!$G$23=4),H71*$L$25, IF(AND(I$69-$D71=1,'Program Info'!$G$23=5),H71*$K$26, IF(AND(I$69-$D71>=2,'Program Info'!$G$23=5),H71*$L$26,H71*'Program Info'!$E$23))))))),2) ->  | J71: =ROUND(IF($D71>J$69,0,IF(J$69=$D71,OFFSET('Program Info'!$E$45,0,J$69-1,1,1),IF($D71+'Program Info'!$G$23=J$69,0,IF(AND(J$69-$D71=1,'Program Info'!$G$23=4),I71*$K$25, IF(AND(J$69-$D71>=2,'Program Info'!$G$23=4),I71*$L$25, IF(AND(J$69-$D71=1,'Program Info'!$G$23=5),I71*$K$26, IF(AND(J$69-$D71>=2,'Program Info'!$G$23=5),I71*$L$26,I71*'Program Info'!$E$23))))))),2) ->  | K71: =ROUND(IF($D71>K$69,0,IF(K$69=$D71,OFFSET('Program Info'!$E$45,0,K$69-1,1,1),IF($D71+'Program Info'!$G$23=K$69,0,IF(AND(K$69-$D71=1,'Program Info'!$G$23=4),J71*$K$25, IF(AND(K$69-$D71>=2,'Program Info'!$G$23=4),J71*$L$25, IF(AND(K$69-$D71=1,'Program Info'!$G$23=5),J71*$K$26, IF(AND(K$69-$D71>=2,'Program Info'!$G$23=5),J71*$L$26,J71*'Program Info'!$E$23))))))),2) ->  | L71: =ROUND(IF($D71>L$69,0,IF(L$69=$D71,OFFSET('Program Info'!$E$45,0,L$69-1,1,1),IF($D71+'Program Info'!$G$23=L$69,0,IF(AND(L$69-$D71=1,'Program Info'!$G$23=4),K71*$K$25, IF(AND(L$69-$D71>=2,'Program Info'!$G$23=4),K71*$L$25, IF(AND(L$69-$D71=1,'Program Info'!$G$23=5),K71*$K$26, IF(AND(L$69-$D71>=2,'Program Info'!$G$23=5),K71*$L$26,K71*'Program Info'!$E$23))))))),2) ->  | M71: =ROUND(IF($D71>M$69,0,IF(M$69=$D71,OFFSET('Program Info'!$E$45,0,M$69-1,1,1),IF($D71+'Program Info'!$G$23=M$69,0,IF(AND(M$69-$D71=1,'Program Info'!$G$23=4),L71*$K$25, IF(AND(M$69-$D71>=2,'Program Info'!$G$23=4),L71*$L$25, IF(AND(M$69-$D71=1,'Program Info'!$G$23=5),L71*$K$26, IF(AND(M$69-$D71>=2,'Program Info'!$G$23=5),L71*$L$26,L71*'Program Info'!$E$23))))))),2) ->  | N71: =ROUND(IF($D71>N$69,0,IF(N$69=$D71,OFFSET('Program Info'!$E$45,0,N$69-1,1,1),IF($D71+'Program Info'!$G$23=N$69,0,IF(AND(N$69-$D71=1,'Program Info'!$G$23=4),M71*$K$25, IF(AND(N$69-$D71>=2,'Program Info'!$G$23=4),M71*$L$25, IF(AND(N$69-$D71=1,'Program Info'!$G$23=5),M71*$K$26, IF(AND(N$69-$D71>=2,'Program Info'!$G$23=5),M71*$L$26,M71*'Program Info'!$E$23))))))),2) ->  | O71: =ROUND(IF($D71>O$69,0,IF(O$69=$D71,OFFSET('Program Info'!$E$45,0,O$69-1,1,1),IF($D71+'Program Info'!$G$23=O$69,0,IF(AND(O$69-$D71=1,'Program Info'!$G$23=4),N71*$K$25, IF(AND(O$69-$D71>=2,'Program Info'!$G$23=4),N71*$L$25, IF(AND(O$69-$D71=1,'Program Info'!$G$23=5),N71*$K$26, IF(AND(O$69-$D71>=2,'Program Info'!$G$23=5),N71*$L$26,N71*'Program Info'!$E$23))))))),2) -> 
B72: 1 | C72: Full Time | D72: 3 | E72: =ROUND(IF($D72>E$69,0,IF(E$69=$D72,OFFSET('Program Info'!$E$45,0,E$69-1,1,1),IF($D72+'Program Info'!$G$23=E$69,0,IF(AND(E$69-$D72=1,'Program Info'!$G$23=4),D72*$K$25, IF(AND(E$69-$D72>=2,'Program Info'!$G$23=4),D72*$L$25, IF(AND(E$69-$D72=1,'Program Info'!$G$23=5),D72*$K$26, IF(AND(E$69-$D72>=2,'Program Info'!$G$23=5),D72*$L$26,D72*'Program Info'!$E$23))))))),2) -> 0 | F72: =ROUND(IF($D72>F$69,0,IF(F$69=$D72,OFFSET('Program Info'!$E$45,0,F$69-1,1,1),IF($D72+'Program Info'!$G$23=F$69,0,IF(AND(F$69-$D72=1,'Program Info'!$G$23=4),E72*$K$25, IF(AND(F$69-$D72>=2,'Program Info'!$G$23=4),E72*$L$25, IF(AND(F$69-$D72=1,'Program Info'!$G$23=5),E72*$K$26, IF(AND(F$69-$D72>=2,'Program Info'!$G$23=5),E72*$L$26,E72*'Program Info'!$E$23))))))),2) -> 0 | G72: =ROUND(IF($D72>G$69,0,IF(G$69=$D72,OFFSET('Program Info'!$E$45,0,G$69-1,1,1),IF($D72+'Program Info'!$G$23=G$69,0,IF(AND(G$69-$D72=1,'Program Info'!$G$23=4),F72*$K$25, IF(AND(G$69-$D72>=2,'Program Info'!$G$23=4),F72*$L$25, IF(AND(G$69-$D72=1,'Program Info'!$G$23=5),F72*$K$26, IF(AND(G$69-$D72>=2,'Program Info'!$G$23=5),F72*$L$26,F72*'Program Info'!$E$23))))))),2) -> 0 | H72: =ROUND(IF($D72>H$69,0,IF(H$69=$D72,OFFSET('Program Info'!$E$45,0,H$69-1,1,1),IF($D72+'Program Info'!$G$23=H$69,0,IF(AND(H$69-$D72=1,'Program Info'!$G$23=4),G72*$K$25, IF(AND(H$69-$D72>=2,'Program Info'!$G$23=4),G72*$L$25, IF(AND(H$69-$D72=1,'Program Info'!$G$23=5),G72*$K$26, IF(AND(H$69-$D72>=2,'Program Info'!$G$23=5),G72*$L$26,G72*'Program Info'!$E$23))))))),2) ->  | I72: =ROUND(IF($D72>I$69,0,IF(I$69=$D72,OFFSET('Program Info'!$E$45,0,I$69-1,1,1),IF($D72+'Program Info'!$G$23=I$69,0,IF(AND(I$69-$D72=1,'Program Info'!$G$23=4),H72*$K$25, IF(AND(I$69-$D72>=2,'Program Info'!$G$23=4),H72*$L$25, IF(AND(I$69-$D72=1,'Program Info'!$G$23=5),H72*$K$26, IF(AND(I$69-$D72>=2,'Program Info'!$G$23=5),H72*$L$26,H72*'Program Info'!$E$23))))))),2) ->  | J72: =ROUND(IF($D72>J$69,0,IF(J$69=$D72,OFFSET('Program Info'!$E$45,0,J$69-1,1,1),IF($D72+'Program Info'!$G$23=J$69,0,IF(AND(J$69-$D72=1,'Program Info'!$G$23=4),I72*$K$25, IF(AND(J$69-$D72>=2,'Program Info'!$G$23=4),I72*$L$25, IF(AND(J$69-$D72=1,'Program Info'!$G$23=5),I72*$K$26, IF(AND(J$69-$D72>=2,'Program Info'!$G$23=5),I72*$L$26,I72*'Program Info'!$E$23))))))),2) ->  | K72: =ROUND(IF($D72>K$69,0,IF(K$69=$D72,OFFSET('Program Info'!$E$45,0,K$69-1,1,1),IF($D72+'Program Info'!$G$23=K$69,0,IF(AND(K$69-$D72=1,'Program Info'!$G$23=4),J72*$K$25, IF(AND(K$69-$D72>=2,'Program Info'!$G$23=4),J72*$L$25, IF(AND(K$69-$D72=1,'Program Info'!$G$23=5),J72*$K$26, IF(AND(K$69-$D72>=2,'Program Info'!$G$23=5),J72*$L$26,J72*'Program Info'!$E$23))))))),2) ->  | L72: =ROUND(IF($D72>L$69,0,IF(L$69=$D72,OFFSET('Program Info'!$E$45,0,L$69-1,1,1),IF($D72+'Program Info'!$G$23=L$69,0,IF(AND(L$69-$D72=1,'Program Info'!$G$23=4),K72*$K$25, IF(AND(L$69-$D72>=2,'Program Info'!$G$23=4),K72*$L$25, IF(AND(L$69-$D72=1,'Program Info'!$G$23=5),K72*$K$26, IF(AND(L$69-$D72>=2,'Program Info'!$G$23=5),K72*$L$26,K72*'Program Info'!$E$23))))))),2) ->  | M72: =ROUND(IF($D72>M$69,0,IF(M$69=$D72,OFFSET('Program Info'!$E$45,0,M$69-1,1,1),IF($D72+'Program Info'!$G$23=M$69,0,IF(AND(M$69-$D72=1,'Program Info'!$G$23=4),L72*$K$25, IF(AND(M$69-$D72>=2,'Program Info'!$G$23=4),L72*$L$25, IF(AND(M$69-$D72=1,'Program Info'!$G$23=5),L72*$K$26, IF(AND(M$69-$D72>=2,'Program Info'!$G$23=5),L72*$L$26,L72*'Program Info'!$E$23))))))),2) ->  | N72: =ROUND(IF($D72>N$69,0,IF(N$69=$D72,OFFSET('Program Info'!$E$45,0,N$69-1,1,1),IF($D72+'Program Info'!$G$23=N$69,0,IF(AND(N$69-$D72=1,'Program Info'!$G$23=4),M72*$K$25, IF(AND(N$69-$D72>=2,'Program Info'!$G$23=4),M72*$L$25, IF(AND(N$69-$D72=1,'Program Info'!$G$23=5),M72*$K$26, IF(AND(N$69-$D72>=2,'Program Info'!$G$23=5),M72*$L$26,M72*'Program Info'!$E$23))))))),2) ->  | O72: =ROUND(IF($D72>O$69,0,IF(O$69=$D72,OFFSET('Program Info'!$E$45,0,O$69-1,1,1),IF($D72+'Program Info'!$G$23=O$69,0,IF(AND(O$69-$D72=1,'Program Info'!$G$23=4),N72*$K$25, IF(AND(O$69-$D72>=2,'Program Info'!$G$23=4),N72*$L$25, IF(AND(O$69-$D72=1,'Program Info'!$G$23=5),N72*$K$26, IF(AND(O$69-$D72>=2,'Program Info'!$G$23=5),N72*$L$26,N72*'Program Info'!$E$23))))))),2) -> 
B73: 1 | C73: Full Time | D73: 4 | E73: =ROUND(IF($D73>E$69,0,IF(E$69=$D73,OFFSET('Program Info'!$E$45,0,E$69-1,1,1),IF($D73+'Program Info'!$G$23=E$69,0,IF(AND(E$69-$D73=1,'Program Info'!$G$23=4),D73*$K$25, IF(AND(E$69-$D73>=2,'Program Info'!$G$23=4),D73*$L$25, IF(AND(E$69-$D73=1,'Program Info'!$G$23=5),D73*$K$26, IF(AND(E$69-$D73>=2,'Program Info'!$G$23=5),D73*$L$26,D73*'Program Info'!$E$23))))))),2) -> 0 | F73: =ROUND(IF($D73>F$69,0,IF(F$69=$D73,OFFSET('Program Info'!$E$45,0,F$69-1,1,1),IF($D73+'Program Info'!$G$23=F$69,0,IF(AND(F$69-$D73=1,'Program Info'!$G$23=4),E73*$K$25, IF(AND(F$69-$D73>=2,'Program Info'!$G$23=4),E73*$L$25, IF(AND(F$69-$D73=1,'Program Info'!$G$23=5),E73*$K$26, IF(AND(F$69-$D73>=2,'Program Info'!$G$23=5),E73*$L$26,E73*'Program Info'!$E$23))))))),2) -> 0 | G73: =ROUND(IF($D73>G$69,0,IF(G$69=$D73,OFFSET('Program Info'!$E$45,0,G$69-1,1,1),IF($D73+'Program Info'!$G$23=G$69,0,IF(AND(G$69-$D73=1,'Program Info'!$G$23=4),F73*$K$25, IF(AND(G$69-$D73>=2,'Program Info'!$G$23=4),F73*$L$25, IF(AND(G$69-$D73=1,'Program Info'!$G$23=5),F73*$K$26, IF(AND(G$69-$D73>=2,'Program Info'!$G$23=5),F73*$L$26,F73*'Program Info'!$E$23))))))),2) -> 0 | H73: =ROUND(IF($D73>H$69,0,IF(H$69=$D73,OFFSET('Program Info'!$E$45,0,H$69-1,1,1),IF($D73+'Program Info'!$G$23=H$69,0,IF(AND(H$69-$D73=1,'Program Info'!$G$23=4),G73*$K$25, IF(AND(H$69-$D73>=2,'Program Info'!$G$23=4),G73*$L$25, IF(AND(H$69-$D73=1,'Program Info'!$G$23=5),G73*$K$26, IF(AND(H$69-$D73>=2,'Program Info'!$G$23=5),G73*$L$26,G73*'Program Info'!$E$23))))))),2) -> 0 | I73: =ROUND(IF($D73>I$69,0,IF(I$69=$D73,OFFSET('Program Info'!$E$45,0,I$69-1,1,1),IF($D73+'Program Info'!$G$23=I$69,0,IF(AND(I$69-$D73=1,'Program Info'!$G$23=4),H73*$K$25, IF(AND(I$69-$D73>=2,'Program Info'!$G$23=4),H73*$L$25, IF(AND(I$69-$D73=1,'Program Info'!$G$23=5),H73*$K$26, IF(AND(I$69-$D73>=2,'Program Info'!$G$23=5),H73*$L$26,H73*'Program Info'!$E$23))))))),2) ->  | J73: =ROUND(IF($D73>J$69,0,IF(J$69=$D73,OFFSET('Program Info'!$E$45,0,J$69-1,1,1),IF($D73+'Program Info'!$G$23=J$69,0,IF(AND(J$69-$D73=1,'Program Info'!$G$23=4),I73*$K$25, IF(AND(J$69-$D73>=2,'Program Info'!$G$23=4),I73*$L$25, IF(AND(J$69-$D73=1,'Program Info'!$G$23=5),I73*$K$26, IF(AND(J$69-$D73>=2,'Program Info'!$G$23=5),I73*$L$26,I73*'Program Info'!$E$23))))))),2) ->  | K73: =ROUND(IF($D73>K$69,0,IF(K$69=$D73,OFFSET('Program Info'!$E$45,0,K$69-1,1,1),IF($D73+'Program Info'!$G$23=K$69,0,IF(AND(K$69-$D73=1,'Program Info'!$G$23=4),J73*$K$25, IF(AND(K$69-$D73>=2,'Program Info'!$G$23=4),J73*$L$25, IF(AND(K$69-$D73=1,'Program Info'!$G$23=5),J73*$K$26, IF(AND(K$69-$D73>=2,'Program Info'!$G$23=5),J73*$L$26,J73*'Program Info'!$E$23))))))),2) ->  | L73: =ROUND(IF($D73>L$69,0,IF(L$69=$D73,OFFSET('Program Info'!$E$45,0,L$69-1,1,1),IF($D73+'Program Info'!$G$23=L$69,0,IF(AND(L$69-$D73=1,'Program Info'!$G$23=4),K73*$K$25, IF(AND(L$69-$D73>=2,'Program Info'!$G$23=4),K73*$L$25, IF(AND(L$69-$D73=1,'Program Info'!$G$23=5),K73*$K$26, IF(AND(L$69-$D73>=2,'Program Info'!$G$23=5),K73*$L$26,K73*'Program Info'!$E$23))))))),2) ->  | M73: =ROUND(IF($D73>M$69,0,IF(M$69=$D73,OFFSET('Program Info'!$E$45,0,M$69-1,1,1),IF($D73+'Program Info'!$G$23=M$69,0,IF(AND(M$69-$D73=1,'Program Info'!$G$23=4),L73*$K$25, IF(AND(M$69-$D73>=2,'Program Info'!$G$23=4),L73*$L$25, IF(AND(M$69-$D73=1,'Program Info'!$G$23=5),L73*$K$26, IF(AND(M$69-$D73>=2,'Program Info'!$G$23=5),L73*$L$26,L73*'Program Info'!$E$23))))))),2) ->  | N73: =ROUND(IF($D73>N$69,0,IF(N$69=$D73,OFFSET('Program Info'!$E$45,0,N$69-1,1,1),IF($D73+'Program Info'!$G$23=N$69,0,IF(AND(N$69-$D73=1,'Program Info'!$G$23=4),M73*$K$25, IF(AND(N$69-$D73>=2,'Program Info'!$G$23=4),M73*$L$25, IF(AND(N$69-$D73=1,'Program Info'!$G$23=5),M73*$K$26, IF(AND(N$69-$D73>=2,'Program Info'!$G$23=5),M73*$L$26,M73*'Program Info'!$E$23))))))),2) ->  | O73: =ROUND(IF($D73>O$69,0,IF(O$69=$D73,OFFSET('Program Info'!$E$45,0,O$69-1,1,1),IF($D73+'Program Info'!$G$23=O$69,0,IF(AND(O$69-$D73=1,'Program Info'!$G$23=4),N73*$K$25, IF(AND(O$69-$D73>=2,'Program Info'!$G$23=4),N73*$L$25, IF(AND(O$69-$D73=1,'Program Info'!$G$23=5),N73*$K$26, IF(AND(O$69-$D73>=2,'Program Info'!$G$23=5),N73*$L$26,N73*'Program Info'!$E$23))))))),2) -> 
B74: 1 | C74: Full Time | D74: 5 | E74: =ROUND(IF($D74>E$69,0,IF(E$69=$D74,OFFSET('Program Info'!$E$45,0,E$69-1,1,1),IF($D74+'Program Info'!$G$23=E$69,0,IF(AND(E$69-$D74=1,'Program Info'!$G$23=4),D74*$K$25, IF(AND(E$69-$D74>=2,'Program Info'!$G$23=4),D74*$L$25, IF(AND(E$69-$D74=1,'Program Info'!$G$23=5),D74*$K$26, IF(AND(E$69-$D74>=2,'Program Info'!$G$23=5),D74*$L$26,D74*'Program Info'!$E$23))))))),2) -> 0 | F74: =ROUND(IF($D74>F$69,0,IF(F$69=$D74,OFFSET('Program Info'!$E$45,0,F$69-1,1,1),IF($D74+'Program Info'!$G$23=F$69,0,IF(AND(F$69-$D74=1,'Program Info'!$G$23=4),E74*$K$25, IF(AND(F$69-$D74>=2,'Program Info'!$G$23=4),E74*$L$25, IF(AND(F$69-$D74=1,'Program Info'!$G$23=5),E74*$K$26, IF(AND(F$69-$D74>=2,'Program Info'!$G$23=5),E74*$L$26,E74*'Program Info'!$E$23))))))),2) -> 0 | G74: =ROUND(IF($D74>G$69,0,IF(G$69=$D74,OFFSET('Program Info'!$E$45,0,G$69-1,1,1),IF($D74+'Program Info'!$G$23=G$69,0,IF(AND(G$69-$D74=1,'Program Info'!$G$23=4),F74*$K$25, IF(AND(G$69-$D74>=2,'Program Info'!$G$23=4),F74*$L$25, IF(AND(G$69-$D74=1,'Program Info'!$G$23=5),F74*$K$26, IF(AND(G$69-$D74>=2,'Program Info'!$G$23=5),F74*$L$26,F74*'Program Info'!$E$23))))))),2) -> 0 | H74: =ROUND(IF($D74>H$69,0,IF(H$69=$D74,OFFSET('Program Info'!$E$45,0,H$69-1,1,1),IF($D74+'Program Info'!$G$23=H$69,0,IF(AND(H$69-$D74=1,'Program Info'!$G$23=4),G74*$K$25, IF(AND(H$69-$D74>=2,'Program Info'!$G$23=4),G74*$L$25, IF(AND(H$69-$D74=1,'Program Info'!$G$23=5),G74*$K$26, IF(AND(H$69-$D74>=2,'Program Info'!$G$23=5),G74*$L$26,G74*'Program Info'!$E$23))))))),2) -> 0 | I74: =ROUND(IF($D74>I$69,0,IF(I$69=$D74,OFFSET('Program Info'!$E$45,0,I$69-1,1,1),IF($D74+'Program Info'!$G$23=I$69,0,IF(AND(I$69-$D74=1,'Program Info'!$G$23=4),H74*$K$25, IF(AND(I$69-$D74>=2,'Program Info'!$G$23=4),H74*$L$25, IF(AND(I$69-$D74=1,'Program Info'!$G$23=5),H74*$K$26, IF(AND(I$69-$D74>=2,'Program Info'!$G$23=5),H74*$L$26,H74*'Program Info'!$E$23))))))),2) -> 0 | J74: =ROUND(IF($D74>J$69,0,IF(J$69=$D74,OFFSET('Program Info'!$E$45,0,J$69-1,1,1),IF($D74+'Program Info'!$G$23=J$69,0,IF(AND(J$69-$D74=1,'Program Info'!$G$23=4),I74*$K$25, IF(AND(J$69-$D74>=2,'Program Info'!$G$23=4),I74*$L$25, IF(AND(J$69-$D74=1,'Program Info'!$G$23=5),I74*$K$26, IF(AND(J$69-$D74>=2,'Program Info'!$G$23=5),I74*$L$26,I74*'Program Info'!$E$23))))))),2) ->  | K74: =ROUND(IF($D74>K$69,0,IF(K$69=$D74,OFFSET('Program Info'!$E$45,0,K$69-1,1,1),IF($D74+'Program Info'!$G$23=K$69,0,IF(AND(K$69-$D74=1,'Program Info'!$G$23=4),J74*$K$25, IF(AND(K$69-$D74>=2,'Program Info'!$G$23=4),J74*$L$25, IF(AND(K$69-$D74=1,'Program Info'!$G$23=5),J74*$K$26, IF(AND(K$69-$D74>=2,'Program Info'!$G$23=5),J74*$L$26,J74*'Program Info'!$E$23))))))),2) ->  | L74: =ROUND(IF($D74>L$69,0,IF(L$69=$D74,OFFSET('Program Info'!$E$45,0,L$69-1,1,1),IF($D74+'Program Info'!$G$23=L$69,0,IF(AND(L$69-$D74=1,'Program Info'!$G$23=4),K74*$K$25, IF(AND(L$69-$D74>=2,'Program Info'!$G$23=4),K74*$L$25, IF(AND(L$69-$D74=1,'Program Info'!$G$23=5),K74*$K$26, IF(AND(L$69-$D74>=2,'Program Info'!$G$23=5),K74*$L$26,K74*'Program Info'!$E$23))))))),2) ->  | M74: =ROUND(IF($D74>M$69,0,IF(M$69=$D74,OFFSET('Program Info'!$E$45,0,M$69-1,1,1),IF($D74+'Program Info'!$G$23=M$69,0,IF(AND(M$69-$D74=1,'Program Info'!$G$23=4),L74*$K$25, IF(AND(M$69-$D74>=2,'Program Info'!$G$23=4),L74*$L$25, IF(AND(M$69-$D74=1,'Program Info'!$G$23=5),L74*$K$26, IF(AND(M$69-$D74>=2,'Program Info'!$G$23=5),L74*$L$26,L74*'Program Info'!$E$23))))))),2) ->  | N74: =ROUND(IF($D74>N$69,0,IF(N$69=$D74,OFFSET('Program Info'!$E$45,0,N$69-1,1,1),IF($D74+'Program Info'!$G$23=N$69,0,IF(AND(N$69-$D74=1,'Program Info'!$G$23=4),M74*$K$25, IF(AND(N$69-$D74>=2,'Program Info'!$G$23=4),M74*$L$25, IF(AND(N$69-$D74=1,'Program Info'!$G$23=5),M74*$K$26, IF(AND(N$69-$D74>=2,'Program Info'!$G$23=5),M74*$L$26,M74*'Program Info'!$E$23))))))),2) ->  | O74: =ROUND(IF($D74>O$69,0,IF(O$69=$D74,OFFSET('Program Info'!$E$45,0,O$69-1,1,1),IF($D74+'Program Info'!$G$23=O$69,0,IF(AND(O$69-$D74=1,'Program Info'!$G$23=4),N74*$K$25, IF(AND(O$69-$D74>=2,'Program Info'!$G$23=4),N74*$L$25, IF(AND(O$69-$D74=1,'Program Info'!$G$23=5),N74*$K$26, IF(AND(O$69-$D74>=2,'Program Info'!$G$23=5),N74*$L$26,N74*'Program Info'!$E$23))))))),2) -> 
B75: 1 | C75: Full Time | D75: 6 | E75: =ROUND(IF($D75>E$69,0,IF(E$69=$D75,OFFSET('Program Info'!$E$45,0,E$69-1,1,1),IF($D75+'Program Info'!$G$23=E$69,0,IF(AND(E$69-$D75=1,'Program Info'!$G$23=4),D75*$K$25, IF(AND(E$69-$D75>=2,'Program Info'!$G$23=4),D75*$L$25, IF(AND(E$69-$D75=1,'Program Info'!$G$23=5),D75*$K$26, IF(AND(E$69-$D75>=2,'Program Info'!$G$23=5),D75*$L$26,D75*'Program Info'!$E$23))))))),2) -> 0 | F75: =ROUND(IF($D75>F$69,0,IF(F$69=$D75,OFFSET('Program Info'!$E$45,0,F$69-1,1,1),IF($D75+'Program Info'!$G$23=F$69,0,IF(AND(F$69-$D75=1,'Program Info'!$G$23=4),E75*$K$25, IF(AND(F$69-$D75>=2,'Program Info'!$G$23=4),E75*$L$25, IF(AND(F$69-$D75=1,'Program Info'!$G$23=5),E75*$K$26, IF(AND(F$69-$D75>=2,'Program Info'!$G$23=5),E75*$L$26,E75*'Program Info'!$E$23))))))),2) -> 0 | G75: =ROUND(IF($D75>G$69,0,IF(G$69=$D75,OFFSET('Program Info'!$E$45,0,G$69-1,1,1),IF($D75+'Program Info'!$G$23=G$69,0,IF(AND(G$69-$D75=1,'Program Info'!$G$23=4),F75*$K$25, IF(AND(G$69-$D75>=2,'Program Info'!$G$23=4),F75*$L$25, IF(AND(G$69-$D75=1,'Program Info'!$G$23=5),F75*$K$26, IF(AND(G$69-$D75>=2,'Program Info'!$G$23=5),F75*$L$26,F75*'Program Info'!$E$23))))))),2) -> 0 | H75: =ROUND(IF($D75>H$69,0,IF(H$69=$D75,OFFSET('Program Info'!$E$45,0,H$69-1,1,1),IF($D75+'Program Info'!$G$23=H$69,0,IF(AND(H$69-$D75=1,'Program Info'!$G$23=4),G75*$K$25, IF(AND(H$69-$D75>=2,'Program Info'!$G$23=4),G75*$L$25, IF(AND(H$69-$D75=1,'Program Info'!$G$23=5),G75*$K$26, IF(AND(H$69-$D75>=2,'Program Info'!$G$23=5),G75*$L$26,G75*'Program Info'!$E$23))))))),2) -> 0 | I75: =ROUND(IF($D75>I$69,0,IF(I$69=$D75,OFFSET('Program Info'!$E$45,0,I$69-1,1,1),IF($D75+'Program Info'!$G$23=I$69,0,IF(AND(I$69-$D75=1,'Program Info'!$G$23=4),H75*$K$25, IF(AND(I$69-$D75>=2,'Program Info'!$G$23=4),H75*$L$25, IF(AND(I$69-$D75=1,'Program Info'!$G$23=5),H75*$K$26, IF(AND(I$69-$D75>=2,'Program Info'!$G$23=5),H75*$L$26,H75*'Program Info'!$E$23))))))),2) -> 0 | J75: =ROUND(IF($D75>J$69,0,IF(J$69=$D75,OFFSET('Program Info'!$E$45,0,J$69-1,1,1),IF($D75+'Program Info'!$G$23=J$69,0,IF(AND(J$69-$D75=1,'Program Info'!$G$23=4),I75*$K$25, IF(AND(J$69-$D75>=2,'Program Info'!$G$23=4),I75*$L$25, IF(AND(J$69-$D75=1,'Program Info'!$G$23=5),I75*$K$26, IF(AND(J$69-$D75>=2,'Program Info'!$G$23=5),I75*$L$26,I75*'Program Info'!$E$23))))))),2) -> 0 | K75: =ROUND(IF($D75>K$69,0,IF(K$69=$D75,OFFSET('Program Info'!$E$45,0,K$69-1,1,1),IF($D75+'Program Info'!$G$23=K$69,0,IF(AND(K$69-$D75=1,'Program Info'!$G$23=4),J75*$K$25, IF(AND(K$69-$D75>=2,'Program Info'!$G$23=4),J75*$L$25, IF(AND(K$69-$D75=1,'Program Info'!$G$23=5),J75*$K$26, IF(AND(K$69-$D75>=2,'Program Info'!$G$23=5),J75*$L$26,J75*'Program Info'!$E$23))))))),2) ->  | L75: =ROUND(IF($D75>L$69,0,IF(L$69=$D75,OFFSET('Program Info'!$E$45,0,L$69-1,1,1),IF($D75+'Program Info'!$G$23=L$69,0,IF(AND(L$69-$D75=1,'Program Info'!$G$23=4),K75*$K$25, IF(AND(L$69-$D75>=2,'Program Info'!$G$23=4),K75*$L$25, IF(AND(L$69-$D75=1,'Program Info'!$G$23=5),K75*$K$26, IF(AND(L$69-$D75>=2,'Program Info'!$G$23=5),K75*$L$26,K75*'Program Info'!$E$23))))))),2) ->  | M75: =ROUND(IF($D75>M$69,0,IF(M$69=$D75,OFFSET('Program Info'!$E$45,0,M$69-1,1,1),IF($D75+'Program Info'!$G$23=M$69,0,IF(AND(M$69-$D75=1,'Program Info'!$G$23=4),L75*$K$25, IF(AND(M$69-$D75>=2,'Program Info'!$G$23=4),L75*$L$25, IF(AND(M$69-$D75=1,'Program Info'!$G$23=5),L75*$K$26, IF(AND(M$69-$D75>=2,'Program Info'!$G$23=5),L75*$L$26,L75*'Program Info'!$E$23))))))),2) ->  | N75: =ROUND(IF($D75>N$69,0,IF(N$69=$D75,OFFSET('Program Info'!$E$45,0,N$69-1,1,1),IF($D75+'Program Info'!$G$23=N$69,0,IF(AND(N$69-$D75=1,'Program Info'!$G$23=4),M75*$K$25, IF(AND(N$69-$D75>=2,'Program Info'!$G$23=4),M75*$L$25, IF(AND(N$69-$D75=1,'Program Info'!$G$23=5),M75*$K$26, IF(AND(N$69-$D75>=2,'Program Info'!$G$23=5),M75*$L$26,M75*'Program Info'!$E$23))))))),2) ->  | O75: =ROUND(IF($D75>O$69,0,IF(O$69=$D75,OFFSET('Program Info'!$E$45,0,O$69-1,1,1),IF($D75+'Program Info'!$G$23=O$69,0,IF(AND(O$69-$D75=1,'Program Info'!$G$23=4),N75*$K$25, IF(AND(O$69-$D75>=2,'Program Info'!$G$23=4),N75*$L$25, IF(AND(O$69-$D75=1,'Program Info'!$G$23=5),N75*$K$26, IF(AND(O$69-$D75>=2,'Program Info'!$G$23=5),N75*$L$26,N75*'Program Info'!$E$23))))))),2) -> 
B76: 1 | C76: Full Time | D76: 7 | E76: =ROUND(IF($D76>E$69,0,IF(E$69=$D76,OFFSET('Program Info'!$E$45,0,E$69-1,1,1),IF($D76+'Program Info'!$G$23=E$69,0,IF(AND(E$69-$D76=1,'Program Info'!$G$23=4),D76*$K$25, IF(AND(E$69-$D76>=2,'Program Info'!$G$23=4),D76*$L$25, IF(AND(E$69-$D76=1,'Program Info'!$G$23=5),D76*$K$26, IF(AND(E$69-$D76>=2,'Program Info'!$G$23=5),D76*$L$26,D76*'Program Info'!$E$23))))))),2) -> 0 | F76: =ROUND(IF($D76>F$69,0,IF(F$69=$D76,OFFSET('Program Info'!$E$45,0,F$69-1,1,1),IF($D76+'Program Info'!$G$23=F$69,0,IF(AND(F$69-$D76=1,'Program Info'!$G$23=4),E76*$K$25, IF(AND(F$69-$D76>=2,'Program Info'!$G$23=4),E76*$L$25, IF(AND(F$69-$D76=1,'Program Info'!$G$23=5),E76*$K$26, IF(AND(F$69-$D76>=2,'Program Info'!$G$23=5),E76*$L$26,E76*'Program Info'!$E$23))))))),2) -> 0 | G76: =ROUND(IF($D76>G$69,0,IF(G$69=$D76,OFFSET('Program Info'!$E$45,0,G$69-1,1,1),IF($D76+'Program Info'!$G$23=G$69,0,IF(AND(G$69-$D76=1,'Program Info'!$G$23=4),F76*$K$25, IF(AND(G$69-$D76>=2,'Program Info'!$G$23=4),F76*$L$25, IF(AND(G$69-$D76=1,'Program Info'!$G$23=5),F76*$K$26, IF(AND(G$69-$D76>=2,'Program Info'!$G$23=5),F76*$L$26,F76*'Program Info'!$E$23))))))),2) -> 0 | H76: =ROUND(IF($D76>H$69,0,IF(H$69=$D76,OFFSET('Program Info'!$E$45,0,H$69-1,1,1),IF($D76+'Program Info'!$G$23=H$69,0,IF(AND(H$69-$D76=1,'Program Info'!$G$23=4),G76*$K$25, IF(AND(H$69-$D76>=2,'Program Info'!$G$23=4),G76*$L$25, IF(AND(H$69-$D76=1,'Program Info'!$G$23=5),G76*$K$26, IF(AND(H$69-$D76>=2,'Program Info'!$G$23=5),G76*$L$26,G76*'Program Info'!$E$23))))))),2) -> 0 | I76: =ROUND(IF($D76>I$69,0,IF(I$69=$D76,OFFSET('Program Info'!$E$45,0,I$69-1,1,1),IF($D76+'Program Info'!$G$23=I$69,0,IF(AND(I$69-$D76=1,'Program Info'!$G$23=4),H76*$K$25, IF(AND(I$69-$D76>=2,'Program Info'!$G$23=4),H76*$L$25, IF(AND(I$69-$D76=1,'Program Info'!$G$23=5),H76*$K$26, IF(AND(I$69-$D76>=2,'Program Info'!$G$23=5),H76*$L$26,H76*'Program Info'!$E$23))))))),2) -> 0 | J76: =ROUND(IF($D76>J$69,0,IF(J$69=$D76,OFFSET('Program Info'!$E$45,0,J$69-1,1,1),IF($D76+'Program Info'!$G$23=J$69,0,IF(AND(J$69-$D76=1,'Program Info'!$G$23=4),I76*$K$25, IF(AND(J$69-$D76>=2,'Program Info'!$G$23=4),I76*$L$25, IF(AND(J$69-$D76=1,'Program Info'!$G$23=5),I76*$K$26, IF(AND(J$69-$D76>=2,'Program Info'!$G$23=5),I76*$L$26,I76*'Program Info'!$E$23))))))),2) -> 0 | K76: =ROUND(IF($D76>K$69,0,IF(K$69=$D76,OFFSET('Program Info'!$E$45,0,K$69-1,1,1),IF($D76+'Program Info'!$G$23=K$69,0,IF(AND(K$69-$D76=1,'Program Info'!$G$23=4),J76*$K$25, IF(AND(K$69-$D76>=2,'Program Info'!$G$23=4),J76*$L$25, IF(AND(K$69-$D76=1,'Program Info'!$G$23=5),J76*$K$26, IF(AND(K$69-$D76>=2,'Program Info'!$G$23=5),J76*$L$26,J76*'Program Info'!$E$23))))))),2) -> 0 | L76: =ROUND(IF($D76>L$69,0,IF(L$69=$D76,OFFSET('Program Info'!$E$45,0,L$69-1,1,1),IF($D76+'Program Info'!$G$23=L$69,0,IF(AND(L$69-$D76=1,'Program Info'!$G$23=4),K76*$K$25, IF(AND(L$69-$D76>=2,'Program Info'!$G$23=4),K76*$L$25, IF(AND(L$69-$D76=1,'Program Info'!$G$23=5),K76*$K$26, IF(AND(L$69-$D76>=2,'Program Info'!$G$23=5),K76*$L$26,K76*'Program Info'!$E$23))))))),2) ->  | M76: =ROUND(IF($D76>M$69,0,IF(M$69=$D76,OFFSET('Program Info'!$E$45,0,M$69-1,1,1),IF($D76+'Program Info'!$G$23=M$69,0,IF(AND(M$69-$D76=1,'Program Info'!$G$23=4),L76*$K$25, IF(AND(M$69-$D76>=2,'Program Info'!$G$23=4),L76*$L$25, IF(AND(M$69-$D76=1,'Program Info'!$G$23=5),L76*$K$26, IF(AND(M$69-$D76>=2,'Program Info'!$G$23=5),L76*$L$26,L76*'Program Info'!$E$23))))))),2) ->  | N76: =ROUND(IF($D76>N$69,0,IF(N$69=$D76,OFFSET('Program Info'!$E$45,0,N$69-1,1,1),IF($D76+'Program Info'!$G$23=N$69,0,IF(AND(N$69-$D76=1,'Program Info'!$G$23=4),M76*$K$25, IF(AND(N$69-$D76>=2,'Program Info'!$G$23=4),M76*$L$25, IF(AND(N$69-$D76=1,'Program Info'!$G$23=5),M76*$K$26, IF(AND(N$69-$D76>=2,'Program Info'!$G$23=5),M76*$L$26,M76*'Program Info'!$E$23))))))),2) ->  | O76: =ROUND(IF($D76>O$69,0,IF(O$69=$D76,OFFSET('Program Info'!$E$45,0,O$69-1,1,1),IF($D76+'Program Info'!$G$23=O$69,0,IF(AND(O$69-$D76=1,'Program Info'!$G$23=4),N76*$K$25, IF(AND(O$69-$D76>=2,'Program Info'!$G$23=4),N76*$L$25, IF(AND(O$69-$D76=1,'Program Info'!$G$23=5),N76*$K$26, IF(AND(O$69-$D76>=2,'Program Info'!$G$23=5),N76*$L$26,N76*'Program Info'!$E$23))))))),2) -> 
B77: 1 | C77: Full Time | D77: 8 | E77: =ROUND(IF($D77>E$69,0,IF(E$69=$D77,OFFSET('Program Info'!$E$45,0,E$69-1,1,1),IF($D77+'Program Info'!$G$23=E$69,0,IF(AND(E$69-$D77=1,'Program Info'!$G$23=4),D77*$K$25, IF(AND(E$69-$D77>=2,'Program Info'!$G$23=4),D77*$L$25, IF(AND(E$69-$D77=1,'Program Info'!$G$23=5),D77*$K$26, IF(AND(E$69-$D77>=2,'Program Info'!$G$23=5),D77*$L$26,D77*'Program Info'!$E$23))))))),2) -> 0 | F77: =ROUND(IF($D77>F$69,0,IF(F$69=$D77,OFFSET('Program Info'!$E$45,0,F$69-1,1,1),IF($D77+'Program Info'!$G$23=F$69,0,IF(AND(F$69-$D77=1,'Program Info'!$G$23=4),E77*$K$25, IF(AND(F$69-$D77>=2,'Program Info'!$G$23=4),E77*$L$25, IF(AND(F$69-$D77=1,'Program Info'!$G$23=5),E77*$K$26, IF(AND(F$69-$D77>=2,'Program Info'!$G$23=5),E77*$L$26,E77*'Program Info'!$E$23))))))),2) -> 0 | G77: =ROUND(IF($D77>G$69,0,IF(G$69=$D77,OFFSET('Program Info'!$E$45,0,G$69-1,1,1),IF($D77+'Program Info'!$G$23=G$69,0,IF(AND(G$69-$D77=1,'Program Info'!$G$23=4),F77*$K$25, IF(AND(G$69-$D77>=2,'Program Info'!$G$23=4),F77*$L$25, IF(AND(G$69-$D77=1,'Program Info'!$G$23=5),F77*$K$26, IF(AND(G$69-$D77>=2,'Program Info'!$G$23=5),F77*$L$26,F77*'Program Info'!$E$23))))))),2) -> 0 | H77: =ROUND(IF($D77>H$69,0,IF(H$69=$D77,OFFSET('Program Info'!$E$45,0,H$69-1,1,1),IF($D77+'Program Info'!$G$23=H$69,0,IF(AND(H$69-$D77=1,'Program Info'!$G$23=4),G77*$K$25, IF(AND(H$69-$D77>=2,'Program Info'!$G$23=4),G77*$L$25, IF(AND(H$69-$D77=1,'Program Info'!$G$23=5),G77*$K$26, IF(AND(H$69-$D77>=2,'Program Info'!$G$23=5),G77*$L$26,G77*'Program Info'!$E$23))))))),2) -> 0 | I77: =ROUND(IF($D77>I$69,0,IF(I$69=$D77,OFFSET('Program Info'!$E$45,0,I$69-1,1,1),IF($D77+'Program Info'!$G$23=I$69,0,IF(AND(I$69-$D77=1,'Program Info'!$G$23=4),H77*$K$25, IF(AND(I$69-$D77>=2,'Program Info'!$G$23=4),H77*$L$25, IF(AND(I$69-$D77=1,'Program Info'!$G$23=5),H77*$K$26, IF(AND(I$69-$D77>=2,'Program Info'!$G$23=5),H77*$L$26,H77*'Program Info'!$E$23))))))),2) -> 0 | J77: =ROUND(IF($D77>J$69,0,IF(J$69=$D77,OFFSET('Program Info'!$E$45,0,J$69-1,1,1),IF($D77+'Program Info'!$G$23=J$69,0,IF(AND(J$69-$D77=1,'Program Info'!$G$23=4),I77*$K$25, IF(AND(J$69-$D77>=2,'Program Info'!$G$23=4),I77*$L$25, IF(AND(J$69-$D77=1,'Program Info'!$G$23=5),I77*$K$26, IF(AND(J$69-$D77>=2,'Program Info'!$G$23=5),I77*$L$26,I77*'Program Info'!$E$23))))))),2) -> 0 | K77: =ROUND(IF($D77>K$69,0,IF(K$69=$D77,OFFSET('Program Info'!$E$45,0,K$69-1,1,1),IF($D77+'Program Info'!$G$23=K$69,0,IF(AND(K$69-$D77=1,'Program Info'!$G$23=4),J77*$K$25, IF(AND(K$69-$D77>=2,'Program Info'!$G$23=4),J77*$L$25, IF(AND(K$69-$D77=1,'Program Info'!$G$23=5),J77*$K$26, IF(AND(K$69-$D77>=2,'Program Info'!$G$23=5),J77*$L$26,J77*'Program Info'!$E$23))))))),2) -> 0 | L77: =ROUND(IF($D77>L$69,0,IF(L$69=$D77,OFFSET('Program Info'!$E$45,0,L$69-1,1,1),IF($D77+'Program Info'!$G$23=L$69,0,IF(AND(L$69-$D77=1,'Program Info'!$G$23=4),K77*$K$25, IF(AND(L$69-$D77>=2,'Program Info'!$G$23=4),K77*$L$25, IF(AND(L$69-$D77=1,'Program Info'!$G$23=5),K77*$K$26, IF(AND(L$69-$D77>=2,'Program Info'!$G$23=5),K77*$L$26,K77*'Program Info'!$E$23))))))),2) -> 0 | M77: =ROUND(IF($D77>M$69,0,IF(M$69=$D77,OFFSET('Program Info'!$E$45,0,M$69-1,1,1),IF($D77+'Program Info'!$G$23=M$69,0,IF(AND(M$69-$D77=1,'Program Info'!$G$23=4),L77*$K$25, IF(AND(M$69-$D77>=2,'Program Info'!$G$23=4),L77*$L$25, IF(AND(M$69-$D77=1,'Program Info'!$G$23=5),L77*$K$26, IF(AND(M$69-$D77>=2,'Program Info'!$G$23=5),L77*$L$26,L77*'Program Info'!$E$23))))))),2) ->  | N77: =ROUND(IF($D77>N$69,0,IF(N$69=$D77,OFFSET('Program Info'!$E$45,0,N$69-1,1,1),IF($D77+'Program Info'!$G$23=N$69,0,IF(AND(N$69-$D77=1,'Program Info'!$G$23=4),M77*$K$25, IF(AND(N$69-$D77>=2,'Program Info'!$G$23=4),M77*$L$25, IF(AND(N$69-$D77=1,'Program Info'!$G$23=5),M77*$K$26, IF(AND(N$69-$D77>=2,'Program Info'!$G$23=5),M77*$L$26,M77*'Program Info'!$E$23))))))),2) ->  | O77: =ROUND(IF($D77>O$69,0,IF(O$69=$D77,OFFSET('Program Info'!$E$45,0,O$69-1,1,1),IF($D77+'Program Info'!$G$23=O$69,0,IF(AND(O$69-$D77=1,'Program Info'!$G$23=4),N77*$K$25, IF(AND(O$69-$D77>=2,'Program Info'!$G$23=4),N77*$L$25, IF(AND(O$69-$D77=1,'Program Info'!$G$23=5),N77*$K$26, IF(AND(O$69-$D77>=2,'Program Info'!$G$23=5),N77*$L$26,N77*'Program Info'!$E$23))))))),2) -> 
B78: 1 | C78: Full Time | D78: 9 | E78: =ROUND(IF($D78>E$69,0,IF(E$69=$D78,OFFSET('Program Info'!$E$45,0,E$69-1,1,1),IF($D78+'Program Info'!$G$23=E$69,0,IF(AND(E$69-$D78=1,'Program Info'!$G$23=4),D78*$K$25, IF(AND(E$69-$D78>=2,'Program Info'!$G$23=4),D78*$L$25, IF(AND(E$69-$D78=1,'Program Info'!$G$23=5),D78*$K$26, IF(AND(E$69-$D78>=2,'Program Info'!$G$23=5),D78*$L$26,D78*'Program Info'!$E$23))))))),2) -> 0 | F78: =ROUND(IF($D78>F$69,0,IF(F$69=$D78,OFFSET('Program Info'!$E$45,0,F$69-1,1,1),IF($D78+'Program Info'!$G$23=F$69,0,IF(AND(F$69-$D78=1,'Program Info'!$G$23=4),E78*$K$25, IF(AND(F$69-$D78>=2,'Program Info'!$G$23=4),E78*$L$25, IF(AND(F$69-$D78=1,'Program Info'!$G$23=5),E78*$K$26, IF(AND(F$69-$D78>=2,'Program Info'!$G$23=5),E78*$L$26,E78*'Program Info'!$E$23))))))),2) -> 0 | G78: =ROUND(IF($D78>G$69,0,IF(G$69=$D78,OFFSET('Program Info'!$E$45,0,G$69-1,1,1),IF($D78+'Program Info'!$G$23=G$69,0,IF(AND(G$69-$D78=1,'Program Info'!$G$23=4),F78*$K$25, IF(AND(G$69-$D78>=2,'Program Info'!$G$23=4),F78*$L$25, IF(AND(G$69-$D78=1,'Program Info'!$G$23=5),F78*$K$26, IF(AND(G$69-$D78>=2,'Program Info'!$G$23=5),F78*$L$26,F78*'Program Info'!$E$23))))))),2) -> 0 | H78: =ROUND(IF($D78>H$69,0,IF(H$69=$D78,OFFSET('Program Info'!$E$45,0,H$69-1,1,1),IF($D78+'Program Info'!$G$23=H$69,0,IF(AND(H$69-$D78=1,'Program Info'!$G$23=4),G78*$K$25, IF(AND(H$69-$D78>=2,'Program Info'!$G$23=4),G78*$L$25, IF(AND(H$69-$D78=1,'Program Info'!$G$23=5),G78*$K$26, IF(AND(H$69-$D78>=2,'Program Info'!$G$23=5),G78*$L$26,G78*'Program Info'!$E$23))))))),2) -> 0 | I78: =ROUND(IF($D78>I$69,0,IF(I$69=$D78,OFFSET('Program Info'!$E$45,0,I$69-1,1,1),IF($D78+'Program Info'!$G$23=I$69,0,IF(AND(I$69-$D78=1,'Program Info'!$G$23=4),H78*$K$25, IF(AND(I$69-$D78>=2,'Program Info'!$G$23=4),H78*$L$25, IF(AND(I$69-$D78=1,'Program Info'!$G$23=5),H78*$K$26, IF(AND(I$69-$D78>=2,'Program Info'!$G$23=5),H78*$L$26,H78*'Program Info'!$E$23))))))),2) -> 0 | J78: =ROUND(IF($D78>J$69,0,IF(J$69=$D78,OFFSET('Program Info'!$E$45,0,J$69-1,1,1),IF($D78+'Program Info'!$G$23=J$69,0,IF(AND(J$69-$D78=1,'Program Info'!$G$23=4),I78*$K$25, IF(AND(J$69-$D78>=2,'Program Info'!$G$23=4),I78*$L$25, IF(AND(J$69-$D78=1,'Program Info'!$G$23=5),I78*$K$26, IF(AND(J$69-$D78>=2,'Program Info'!$G$23=5),I78*$L$26,I78*'Program Info'!$E$23))))))),2) -> 0 | K78: =ROUND(IF($D78>K$69,0,IF(K$69=$D78,OFFSET('Program Info'!$E$45,0,K$69-1,1,1),IF($D78+'Program Info'!$G$23=K$69,0,IF(AND(K$69-$D78=1,'Program Info'!$G$23=4),J78*$K$25, IF(AND(K$69-$D78>=2,'Program Info'!$G$23=4),J78*$L$25, IF(AND(K$69-$D78=1,'Program Info'!$G$23=5),J78*$K$26, IF(AND(K$69-$D78>=2,'Program Info'!$G$23=5),J78*$L$26,J78*'Program Info'!$E$23))))))),2) -> 0 | L78: =ROUND(IF($D78>L$69,0,IF(L$69=$D78,OFFSET('Program Info'!$E$45,0,L$69-1,1,1),IF($D78+'Program Info'!$G$23=L$69,0,IF(AND(L$69-$D78=1,'Program Info'!$G$23=4),K78*$K$25, IF(AND(L$69-$D78>=2,'Program Info'!$G$23=4),K78*$L$25, IF(AND(L$69-$D78=1,'Program Info'!$G$23=5),K78*$K$26, IF(AND(L$69-$D78>=2,'Program Info'!$G$23=5),K78*$L$26,K78*'Program Info'!$E$23))))))),2) -> 0 | M78: =ROUND(IF($D78>M$69,0,IF(M$69=$D78,OFFSET('Program Info'!$E$45,0,M$69-1,1,1),IF($D78+'Program Info'!$G$23=M$69,0,IF(AND(M$69-$D78=1,'Program Info'!$G$23=4),L78*$K$25, IF(AND(M$69-$D78>=2,'Program Info'!$G$23=4),L78*$L$25, IF(AND(M$69-$D78=1,'Program Info'!$G$23=5),L78*$K$26, IF(AND(M$69-$D78>=2,'Program Info'!$G$23=5),L78*$L$26,L78*'Program Info'!$E$23))))))),2) -> 0 | N78: =ROUND(IF($D78>N$69,0,IF(N$69=$D78,OFFSET('Program Info'!$E$45,0,N$69-1,1,1),IF($D78+'Program Info'!$G$23=N$69,0,IF(AND(N$69-$D78=1,'Program Info'!$G$23=4),M78*$K$25, IF(AND(N$69-$D78>=2,'Program Info'!$G$23=4),M78*$L$25, IF(AND(N$69-$D78=1,'Program Info'!$G$23=5),M78*$K$26, IF(AND(N$69-$D78>=2,'Program Info'!$G$23=5),M78*$L$26,M78*'Program Info'!$E$23))))))),2) ->  | O78: =ROUND(IF($D78>O$69,0,IF(O$69=$D78,OFFSET('Program Info'!$E$45,0,O$69-1,1,1),IF($D78+'Program Info'!$G$23=O$69,0,IF(AND(O$69-$D78=1,'Program Info'!$G$23=4),N78*$K$25, IF(AND(O$69-$D78>=2,'Program Info'!$G$23=4),N78*$L$25, IF(AND(O$69-$D78=1,'Program Info'!$G$23=5),N78*$K$26, IF(AND(O$69-$D78>=2,'Program Info'!$G$23=5),N78*$L$26,N78*'Program Info'!$E$23))))))),2) -> 
B79: 1 | C79: Full Time | D79: 10 | E79: =ROUND(IF($D79>E$69,0,IF(E$69=$D79,OFFSET('Program Info'!$E$45,0,E$69-1,1,1),IF($D79+'Program Info'!$G$23=E$69,0,IF(AND(E$69-$D79=1,'Program Info'!$G$23=4),D79*$K$25, IF(AND(E$69-$D79>=2,'Program Info'!$G$23=4),D79*$L$25, IF(AND(E$69-$D79=1,'Program Info'!$G$23=5),D79*$K$26, IF(AND(E$69-$D79>=2,'Program Info'!$G$23=5),D79*$L$26,D79*'Program Info'!$E$23))))))),2) -> 0 | F79: =ROUND(IF($D79>F$69,0,IF(F$69=$D79,OFFSET('Program Info'!$E$45,0,F$69-1,1,1),IF($D79+'Program Info'!$G$23=F$69,0,IF(AND(F$69-$D79=1,'Program Info'!$G$23=4),E79*$K$25, IF(AND(F$69-$D79>=2,'Program Info'!$G$23=4),E79*$L$25, IF(AND(F$69-$D79=1,'Program Info'!$G$23=5),E79*$K$26, IF(AND(F$69-$D79>=2,'Program Info'!$G$23=5),E79*$L$26,E79*'Program Info'!$E$23))))))),2) -> 0 | G79: =ROUND(IF($D79>G$69,0,IF(G$69=$D79,OFFSET('Program Info'!$E$45,0,G$69-1,1,1),IF($D79+'Program Info'!$G$23=G$69,0,IF(AND(G$69-$D79=1,'Program Info'!$G$23=4),F79*$K$25, IF(AND(G$69-$D79>=2,'Program Info'!$G$23=4),F79*$L$25, IF(AND(G$69-$D79=1,'Program Info'!$G$23=5),F79*$K$26, IF(AND(G$69-$D79>=2,'Program Info'!$G$23=5),F79*$L$26,F79*'Program Info'!$E$23))))))),2) -> 0 | H79: =ROUND(IF($D79>H$69,0,IF(H$69=$D79,OFFSET('Program Info'!$E$45,0,H$69-1,1,1),IF($D79+'Program Info'!$G$23=H$69,0,IF(AND(H$69-$D79=1,'Program Info'!$G$23=4),G79*$K$25, IF(AND(H$69-$D79>=2,'Program Info'!$G$23=4),G79*$L$25, IF(AND(H$69-$D79=1,'Program Info'!$G$23=5),G79*$K$26, IF(AND(H$69-$D79>=2,'Program Info'!$G$23=5),G79*$L$26,G79*'Program Info'!$E$23))))))),2) -> 0 | I79: =ROUND(IF($D79>I$69,0,IF(I$69=$D79,OFFSET('Program Info'!$E$45,0,I$69-1,1,1),IF($D79+'Program Info'!$G$23=I$69,0,IF(AND(I$69-$D79=1,'Program Info'!$G$23=4),H79*$K$25, IF(AND(I$69-$D79>=2,'Program Info'!$G$23=4),H79*$L$25, IF(AND(I$69-$D79=1,'Program Info'!$G$23=5),H79*$K$26, IF(AND(I$69-$D79>=2,'Program Info'!$G$23=5),H79*$L$26,H79*'Program Info'!$E$23))))))),2) -> 0 | J79: =ROUND(IF($D79>J$69,0,IF(J$69=$D79,OFFSET('Program Info'!$E$45,0,J$69-1,1,1),IF($D79+'Program Info'!$G$23=J$69,0,IF(AND(J$69-$D79=1,'Program Info'!$G$23=4),I79*$K$25, IF(AND(J$69-$D79>=2,'Program Info'!$G$23=4),I79*$L$25, IF(AND(J$69-$D79=1,'Program Info'!$G$23=5),I79*$K$26, IF(AND(J$69-$D79>=2,'Program Info'!$G$23=5),I79*$L$26,I79*'Program Info'!$E$23))))))),2) -> 0 | K79: =ROUND(IF($D79>K$69,0,IF(K$69=$D79,OFFSET('Program Info'!$E$45,0,K$69-1,1,1),IF($D79+'Program Info'!$G$23=K$69,0,IF(AND(K$69-$D79=1,'Program Info'!$G$23=4),J79*$K$25, IF(AND(K$69-$D79>=2,'Program Info'!$G$23=4),J79*$L$25, IF(AND(K$69-$D79=1,'Program Info'!$G$23=5),J79*$K$26, IF(AND(K$69-$D79>=2,'Program Info'!$G$23=5),J79*$L$26,J79*'Program Info'!$E$23))))))),2) -> 0 | L79: =ROUND(IF($D79>L$69,0,IF(L$69=$D79,OFFSET('Program Info'!$E$45,0,L$69-1,1,1),IF($D79+'Program Info'!$G$23=L$69,0,IF(AND(L$69-$D79=1,'Program Info'!$G$23=4),K79*$K$25, IF(AND(L$69-$D79>=2,'Program Info'!$G$23=4),K79*$L$25, IF(AND(L$69-$D79=1,'Program Info'!$G$23=5),K79*$K$26, IF(AND(L$69-$D79>=2,'Program Info'!$G$23=5),K79*$L$26,K79*'Program Info'!$E$23))))))),2) -> 0 | M79: =ROUND(IF($D79>M$69,0,IF(M$69=$D79,OFFSET('Program Info'!$E$45,0,M$69-1,1,1),IF($D79+'Program Info'!$G$23=M$69,0,IF(AND(M$69-$D79=1,'Program Info'!$G$23=4),L79*$K$25, IF(AND(M$69-$D79>=2,'Program Info'!$G$23=4),L79*$L$25, IF(AND(M$69-$D79=1,'Program Info'!$G$23=5),L79*$K$26, IF(AND(M$69-$D79>=2,'Program Info'!$G$23=5),L79*$L$26,L79*'Program Info'!$E$23))))))),2) -> 0 | N79: =ROUND(IF($D79>N$69,0,IF(N$69=$D79,OFFSET('Program Info'!$E$45,0,N$69-1,1,1),IF($D79+'Program Info'!$G$23=N$69,0,IF(AND(N$69-$D79=1,'Program Info'!$G$23=4),M79*$K$25, IF(AND(N$69-$D79>=2,'Program Info'!$G$23=4),M79*$L$25, IF(AND(N$69-$D79=1,'Program Info'!$G$23=5),M79*$K$26, IF(AND(N$69-$D79>=2,'Program Info'!$G$23=5),M79*$L$26,M79*'Program Info'!$E$23))))))),2) -> 0 | O79: =ROUND(IF($D79>O$69,0,IF(O$69=$D79,OFFSET('Program Info'!$E$45,0,O$69-1,1,1),IF($D79+'Program Info'!$G$23=O$69,0,IF(AND(O$69-$D79=1,'Program Info'!$G$23=4),N79*$K$25, IF(AND(O$69-$D79>=2,'Program Info'!$G$23=4),N79*$L$25, IF(AND(O$69-$D79=1,'Program Info'!$G$23=5),N79*$K$26, IF(AND(O$69-$D79>=2,'Program Info'!$G$23=5),N79*$L$26,N79*'Program Info'!$E$23))))))),2) -> 
E80: =SUM(E70:E79) -> 0
C82: Cohort Groups | E82: =E68 -> 0 | F82: =F68 -> 0-1
C83: Credit Hour Matrix | D83: Coh | E83: =E69 -> 1 | F83: =F69 -> 2 | G83: 3 | H83: 4 | I83: 5 | J83: 6 | K83: 7 | L83: 8 | M83: 9 | N83: 10 | O83: 11
B84: 3 | C84: =VLOOKUP(B84,Cohort,2,FALSE) ->  | D84: 1 | E84: =ROUND(IF('Program Info'!$H$14="GRAD",0, IF($D84>E$69,0,IF(E$69=$D84,OFFSET('Program Info'!$E$46,0,E$69-1,1,1),IF($D84+'Program Info'!$G$23-1=E$69,0,IF(AND(E$69-$D84=1,'Program Info'!$G$23=4),D84*$K$25, IF(AND(E$69-$D84>=2,'Program Info'!$G$23=4),D84*$M$25, IF(AND(E$69-$D84=1,'Program Info'!$G$23=5),D84*$K$26, IF(AND(E$69-$D84>=2,'Program Info'!$G$23=5),D84*$M$26,D84*'Program Info'!$E$23)))))))),2) ->  | F84: =ROUND(IF('Program Info'!$H$14="GRAD",0, IF($D84>F$69,0,IF(F$69=$D84,OFFSET('Program Info'!$E$46,0,F$69-1,1,1),IF($D84+'Program Info'!$G$23-1=F$69,0,IF(AND(F$69-$D84=1,'Program Info'!$G$23=4),E84*$K$25, IF(AND(F$69-$D84>=2,'Program Info'!$G$23=4),E84*$M$25, IF(AND(F$69-$D84=1,'Program Info'!$G$23=5),E84*$K$26, IF(AND(F$69-$D84>=2,'Program Info'!$G$23=5),E84*$M$26,E84*'Program Info'!$E$23)))))))),2) ->  | G84: =ROUND(IF('Program Info'!$H$14="GRAD",0, IF($D84>G$69,0,IF(G$69=$D84,OFFSET('Program Info'!$E$46,0,G$69-1,1,1),IF($D84+'Program Info'!$G$23-1=G$69,0,IF(AND(G$69-$D84=1,'Program Info'!$G$23=4),F84*$K$25, IF(AND(G$69-$D84>=2,'Program Info'!$G$23=4),F84*$M$25, IF(AND(G$69-$D84=1,'Program Info'!$G$23=5),F84*$K$26, IF(AND(G$69-$D84>=2,'Program Info'!$G$23=5),F84*$M$26,F84*'Program Info'!$E$23)))))))),2) ->  | H84: =ROUND(IF('Program Info'!$H$14="GRAD",0, IF($D84>H$69,0,IF(H$69=$D84,OFFSET('Program Info'!$E$46,0,H$69-1,1,1),IF($D84+'Program Info'!$G$23-1=H$69,0,IF(AND(H$69-$D84=1,'Program Info'!$G$23=4),G84*$K$25, IF(AND(H$69-$D84>=2,'Program Info'!$G$23=4),G84*$M$25, IF(AND(H$69-$D84=1,'Program Info'!$G$23=5),G84*$K$26, IF(AND(H$69-$D84>=2,'Program Info'!$G$23=5),G84*$M$26,G84*'Program Info'!$E$23)))))))),2) ->  | I84: =ROUND(IF('Program Info'!$H$14="GRAD",0, IF($D84>I$69,0,IF(I$69=$D84,OFFSET('Program Info'!$E$46,0,I$69-1,1,1),IF($D84+'Program Info'!$G$23-1=I$69,0,IF(AND(I$69-$D84=1,'Program Info'!$G$23=4),H84*$K$25, IF(AND(I$69-$D84>=2,'Program Info'!$G$23=4),H84*$M$25, IF(AND(I$69-$D84=1,'Program Info'!$G$23=5),H84*$K$26, IF(AND(I$69-$D84>=2,'Program Info'!$G$23=5),H84*$M$26,H84*'Program Info'!$E$23)))))))),2) ->  | J84: =ROUND(IF('Program Info'!$H$14="GRAD",0, IF($D84>J$69,0,IF(J$69=$D84,OFFSET('Program Info'!$E$46,0,J$69-1,1,1),IF($D84+'Program Info'!$G$23-1=J$69,0,IF(AND(J$69-$D84=1,'Program Info'!$G$23=4),I84*$K$25, IF(AND(J$69-$D84>=2,'Program Info'!$G$23=4),I84*$M$25, IF(AND(J$69-$D84=1,'Program Info'!$G$23=5),I84*$K$26, IF(AND(J$69-$D84>=2,'Program Info'!$G$23=5),I84*$M$26,I84*'Program Info'!$E$23)))))))),2) ->  | K84: =ROUND(IF('Program Info'!$H$14="GRAD",0, IF($D84>K$69,0,IF(K$69=$D84,OFFSET('Program Info'!$E$46,0,K$69-1,1,1),IF($D84+'Program Info'!$G$23-1=K$69,0,IF(AND(K$69-$D84=1,'Program Info'!$G$23=4),J84*$K$25, IF(AND(K$69-$D84>=2,'Program Info'!$G$23=4),J84*$M$25, IF(AND(K$69-$D84=1,'Program Info'!$G$23=5),J84*$K$26, IF(AND(K$69-$D84>=2,'Program Info'!$G$23=5),J84*$M$26,J84*'Program Info'!$E$23)))))))),2) ->  | L84: =ROUND(IF('Program Info'!$H$14="GRAD",0, IF($D84>L$69,0,IF(L$69=$D84,OFFSET('Program Info'!$E$46,0,L$69-1,1,1),IF($D84+'Program Info'!$G$23-1=L$69,0,IF(AND(L$69-$D84=1,'Program Info'!$G$23=4),K84*$K$25, IF(AND(L$69-$D84>=2,'Program Info'!$G$23=4),K84*$M$25, IF(AND(L$69-$D84=1,'Program Info'!$G$23=5),K84*$K$26, IF(AND(L$69-$D84>=2,'Program Info'!$G$23=5),K84*$M$26,K84*'Program Info'!$E$23)))))))),2) ->  | M84: =ROUND(IF('Program Info'!$H$14="GRAD",0, IF($D84>M$69,0,IF(M$69=$D84,OFFSET('Program Info'!$E$46,0,M$69-1,1,1),IF($D84+'Program Info'!$G$23-1=M$69,0,IF(AND(M$69-$D84=1,'Program Info'!$G$23=4),L84*$K$25, IF(AND(M$69-$D84>=2,'Program Info'!$G$23=4),L84*$M$25, IF(AND(M$69-$D84=1,'Program Info'!$G$23=5),L84*$K$26, IF(AND(M$69-$D84>=2,'Program Info'!$G$23=5),L84*$M$26,L84*'Program Info'!$E$23)))))))),2) ->  | N84: =ROUND(IF('Program Info'!$H$14="GRAD",0, IF($D84>N$69,0,IF(N$69=$D84,OFFSET('Program Info'!$E$46,0,N$69-1,1,1),IF($D84+'Program Info'!$G$23-1=N$69,0,IF(AND(N$69-$D84=1,'Program Info'!$G$23=4),M84*$K$25, IF(AND(N$69-$D84>=2,'Program Info'!$G$23=4),M84*$M$25, IF(AND(N$69-$D84=1,'Program Info'!$G$23=5),M84*$K$26, IF(AND(N$69-$D84>=2,'Program Info'!$G$23=5),M84*$M$26,M84*'Program Info'!$E$23)))))))),2) ->  | O84: =ROUND(IF('Program Info'!$H$14="GRAD",0, IF($D84>O$69,0,IF(O$69=$D84,OFFSET('Program Info'!$E$46,0,O$69-1,1,1),IF($D84+'Program Info'!$G$23-1=O$69,0,IF(AND(O$69-$D84=1,'Program Info'!$G$23=4),N84*$K$25, IF(AND(O$69-$D84>=2,'Program Info'!$G$23=4),N84*$M$25, IF(AND(O$69-$D84=1,'Program Info'!$G$23=5),N84*$K$26, IF(AND(O$69-$D84>=2,'Program Info'!$G$23=5),N84*$M$26,N84*'Program Info'!$E$23)))))))),2) -> 
B85: 3 | D85: 2 | E85: =ROUND(IF('Program Info'!$H$14="GRAD",0, IF($D85>E$69,0,IF(E$69=$D85,OFFSET('Program Info'!$E$46,0,E$69-1,1,1),IF($D85+'Program Info'!$G$23-1=E$69,0,IF(AND(E$69-$D85=1,'Program Info'!$G$23=4),D85*$K$25, IF(AND(E$69-$D85>=2,'Program Info'!$G$23=4),D85*$M$25, IF(AND(E$69-$D85=1,'Program Info'!$G$23=5),D85*$K$26, IF(AND(E$69-$D85>=2,'Program Info'!$G$23=5),D85*$M$26,D85*'Program Info'!$E$23)))))))),2) ->  | F85: =ROUND(IF('Program Info'!$H$14="GRAD",0, IF($D85>F$69,0,IF(F$69=$D85,OFFSET('Program Info'!$E$46,0,F$69-1,1,1),IF($D85+'Program Info'!$G$23-1=F$69,0,IF(AND(F$69-$D85=1,'Program Info'!$G$23=4),E85*$K$25, IF(AND(F$69-$D85>=2,'Program Info'!$G$23=4),E85*$M$25, IF(AND(F$69-$D85=1,'Program Info'!$G$23=5),E85*$K$26, IF(AND(F$69-$D85>=2,'Program Info'!$G$23=5),E85*$M$26,E85*'Program Info'!$E$23)))))))),2) ->  | G85: =ROUND(IF('Program Info'!$H$14="GRAD",0, IF($D85>G$69,0,IF(G$69=$D85,OFFSET('Program Info'!$E$46,0,G$69-1,1,1),IF($D85+'Program Info'!$G$23-1=G$69,0,IF(AND(G$69-$D85=1,'Program Info'!$G$23=4),F85*$K$25, IF(AND(G$69-$D85>=2,'Program Info'!$G$23=4),F85*$M$25, IF(AND(G$69-$D85=1,'Program Info'!$G$23=5),F85*$K$26, IF(AND(G$69-$D85>=2,'Program Info'!$G$23=5),F85*$M$26,F85*'Program Info'!$E$23)))))))),2) ->  | H85: =ROUND(IF('Program Info'!$H$14="GRAD",0, IF($D85>H$69,0,IF(H$69=$D85,OFFSET('Program Info'!$E$46,0,H$69-1,1,1),IF($D85+'Program Info'!$G$23-1=H$69,0,IF(AND(H$69-$D85=1,'Program Info'!$G$23=4),G85*$K$25, IF(AND(H$69-$D85>=2,'Program Info'!$G$23=4),G85*$M$25, IF(AND(H$69-$D85=1,'Program Info'!$G$23=5),G85*$K$26, IF(AND(H$69-$D85>=2,'Program Info'!$G$23=5),G85*$M$26,G85*'Program Info'!$E$23)))))))),2) ->  | I85: =ROUND(IF('Program Info'!$H$14="GRAD",0, IF($D85>I$69,0,IF(I$69=$D85,OFFSET('Program Info'!$E$46,0,I$69-1,1,1),IF($D85+'Program Info'!$G$23-1=I$69,0,IF(AND(I$69-$D85=1,'Program Info'!$G$23=4),H85*$K$25, IF(AND(I$69-$D85>=2,'Program Info'!$G$23=4),H85*$M$25, IF(AND(I$69-$D85=1,'Program Info'!$G$23=5),H85*$K$26, IF(AND(I$69-$D85>=2,'Program Info'!$G$23=5),H85*$M$26,H85*'Program Info'!$E$23)))))))),2) ->  | J85: =ROUND(IF('Program Info'!$H$14="GRAD",0, IF($D85>J$69,0,IF(J$69=$D85,OFFSET('Program Info'!$E$46,0,J$69-1,1,1),IF($D85+'Program Info'!$G$23-1=J$69,0,IF(AND(J$69-$D85=1,'Program Info'!$G$23=4),I85*$K$25, IF(AND(J$69-$D85>=2,'Program Info'!$G$23=4),I85*$M$25, IF(AND(J$69-$D85=1,'Program Info'!$G$23=5),I85*$K$26, IF(AND(J$69-$D85>=2,'Program Info'!$G$23=5),I85*$M$26,I85*'Program Info'!$E$23)))))))),2) ->  | K85: =ROUND(IF('Program Info'!$H$14="GRAD",0, IF($D85>K$69,0,IF(K$69=$D85,OFFSET('Program Info'!$E$46,0,K$69-1,1,1),IF($D85+'Program Info'!$G$23-1=K$69,0,IF(AND(K$69-$D85=1,'Program Info'!$G$23=4),J85*$K$25, IF(AND(K$69-$D85>=2,'Program Info'!$G$23=4),J85*$M$25, IF(AND(K$69-$D85=1,'Program Info'!$G$23=5),J85*$K$26, IF(AND(K$69-$D85>=2,'Program Info'!$G$23=5),J85*$M$26,J85*'Program Info'!$E$23)))))))),2) ->  | L85: =ROUND(IF('Program Info'!$H$14="GRAD",0, IF($D85>L$69,0,IF(L$69=$D85,OFFSET('Program Info'!$E$46,0,L$69-1,1,1),IF($D85+'Program Info'!$G$23-1=L$69,0,IF(AND(L$69-$D85=1,'Program Info'!$G$23=4),K85*$K$25, IF(AND(L$69-$D85>=2,'Program Info'!$G$23=4),K85*$M$25, IF(AND(L$69-$D85=1,'Program Info'!$G$23=5),K85*$K$26, IF(AND(L$69-$D85>=2,'Program Info'!$G$23=5),K85*$M$26,K85*'Program Info'!$E$23)))))))),2) ->  | M85: =ROUND(IF('Program Info'!$H$14="GRAD",0, IF($D85>M$69,0,IF(M$69=$D85,OFFSET('Program Info'!$E$46,0,M$69-1,1,1),IF($D85+'Program Info'!$G$23-1=M$69,0,IF(AND(M$69-$D85=1,'Program Info'!$G$23=4),L85*$K$25, IF(AND(M$69-$D85>=2,'Program Info'!$G$23=4),L85*$M$25, IF(AND(M$69-$D85=1,'Program Info'!$G$23=5),L85*$K$26, IF(AND(M$69-$D85>=2,'Program Info'!$G$23=5),L85*$M$26,L85*'Program Info'!$E$23)))))))),2) ->  | N85: =ROUND(IF('Program Info'!$H$14="GRAD",0, IF($D85>N$69,0,IF(N$69=$D85,OFFSET('Program Info'!$E$46,0,N$69-1,1,1),IF($D85+'Program Info'!$G$23-1=N$69,0,IF(AND(N$69-$D85=1,'Program Info'!$G$23=4),M85*$K$25, IF(AND(N$69-$D85>=2,'Program Info'!$G$23=4),M85*$M$25, IF(AND(N$69-$D85=1,'Program Info'!$G$23=5),M85*$K$26, IF(AND(N$69-$D85>=2,'Program Info'!$G$23=5),M85*$M$26,M85*'Program Info'!$E$23)))))))),2) ->  | O85: =ROUND(IF('Program Info'!$H$14="GRAD",0, IF($D85>O$69,0,IF(O$69=$D85,OFFSET('Program Info'!$E$46,0,O$69-1,1,1),IF($D85+'Program Info'!$G$23-1=O$69,0,IF(AND(O$69-$D85=1,'Program Info'!$G$23=4),N85*$K$25, IF(AND(O$69-$D85>=2,'Program Info'!$G$23=4),N85*$M$25, IF(AND(O$69-$D85=1,'Program Info'!$G$23=5),N85*$K$26, IF(AND(O$69-$D85>=2,'Program Info'!$G$23=5),N85*$M$26,N85*'Program Info'!$E$23)))))))),2) -> 
B86: 3 | D86: 3 | E86: =ROUND(IF('Program Info'!$H$14="GRAD",0, IF($D86>E$69,0,IF(E$69=$D86,OFFSET('Program Info'!$E$46,0,E$69-1,1,1),IF($D86+'Program Info'!$G$23-1=E$69,0,IF(AND(E$69-$D86=1,'Program Info'!$G$23=4),D86*$K$25, IF(AND(E$69-$D86>=2,'Program Info'!$G$23=4),D86*$M$25, IF(AND(E$69-$D86=1,'Program Info'!$G$23=5),D86*$K$26, IF(AND(E$69-$D86>=2,'Program Info'!$G$23=5),D86*$M$26,D86*'Program Info'!$E$23)))))))),2) ->  | F86: =ROUND(IF('Program Info'!$H$14="GRAD",0, IF($D86>F$69,0,IF(F$69=$D86,OFFSET('Program Info'!$E$46,0,F$69-1,1,1),IF($D86+'Program Info'!$G$23-1=F$69,0,IF(AND(F$69-$D86=1,'Program Info'!$G$23=4),E86*$K$25, IF(AND(F$69-$D86>=2,'Program Info'!$G$23=4),E86*$M$25, IF(AND(F$69-$D86=1,'Program Info'!$G$23=5),E86*$K$26, IF(AND(F$69-$D86>=2,'Program Info'!$G$23=5),E86*$M$26,E86*'Program Info'!$E$23)))))))),2) ->  | G86: =ROUND(IF('Program Info'!$H$14="GRAD",0, IF($D86>G$69,0,IF(G$69=$D86,OFFSET('Program Info'!$E$46,0,G$69-1,1,1),IF($D86+'Program Info'!$G$23-1=G$69,0,IF(AND(G$69-$D86=1,'Program Info'!$G$23=4),F86*$K$25, IF(AND(G$69-$D86>=2,'Program Info'!$G$23=4),F86*$M$25, IF(AND(G$69-$D86=1,'Program Info'!$G$23=5),F86*$K$26, IF(AND(G$69-$D86>=2,'Program Info'!$G$23=5),F86*$M$26,F86*'Program Info'!$E$23)))))))),2) ->  | H86: =ROUND(IF('Program Info'!$H$14="GRAD",0, IF($D86>H$69,0,IF(H$69=$D86,OFFSET('Program Info'!$E$46,0,H$69-1,1,1),IF($D86+'Program Info'!$G$23-1=H$69,0,IF(AND(H$69-$D86=1,'Program Info'!$G$23=4),G86*$K$25, IF(AND(H$69-$D86>=2,'Program Info'!$G$23=4),G86*$M$25, IF(AND(H$69-$D86=1,'Program Info'!$G$23=5),G86*$K$26, IF(AND(H$69-$D86>=2,'Program Info'!$G$23=5),G86*$M$26,G86*'Program Info'!$E$23)))))))),2) ->  | I86: =ROUND(IF('Program Info'!$H$14="GRAD",0, IF($D86>I$69,0,IF(I$69=$D86,OFFSET('Program Info'!$E$46,0,I$69-1,1,1),IF($D86+'Program Info'!$G$23-1=I$69,0,IF(AND(I$69-$D86=1,'Program Info'!$G$23=4),H86*$K$25, IF(AND(I$69-$D86>=2,'Program Info'!$G$23=4),H86*$M$25, IF(AND(I$69-$D86=1,'Program Info'!$G$23=5),H86*$K$26, IF(AND(I$69-$D86>=2,'Program Info'!$G$23=5),H86*$M$26,H86*'Program Info'!$E$23)))))))),2) ->  | J86: =ROUND(IF('Program Info'!$H$14="GRAD",0, IF($D86>J$69,0,IF(J$69=$D86,OFFSET('Program Info'!$E$46,0,J$69-1,1,1),IF($D86+'Program Info'!$G$23-1=J$69,0,IF(AND(J$69-$D86=1,'Program Info'!$G$23=4),I86*$K$25, IF(AND(J$69-$D86>=2,'Program Info'!$G$23=4),I86*$M$25, IF(AND(J$69-$D86=1,'Program Info'!$G$23=5),I86*$K$26, IF(AND(J$69-$D86>=2,'Program Info'!$G$23=5),I86*$M$26,I86*'Program Info'!$E$23)))))))),2) ->  | K86: =ROUND(IF('Program Info'!$H$14="GRAD",0, IF($D86>K$69,0,IF(K$69=$D86,OFFSET('Program Info'!$E$46,0,K$69-1,1,1),IF($D86+'Program Info'!$G$23-1=K$69,0,IF(AND(K$69-$D86=1,'Program Info'!$G$23=4),J86*$K$25, IF(AND(K$69-$D86>=2,'Program Info'!$G$23=4),J86*$M$25, IF(AND(K$69-$D86=1,'Program Info'!$G$23=5),J86*$K$26, IF(AND(K$69-$D86>=2,'Program Info'!$G$23=5),J86*$M$26,J86*'Program Info'!$E$23)))))))),2) ->  | L86: =ROUND(IF('Program Info'!$H$14="GRAD",0, IF($D86>L$69,0,IF(L$69=$D86,OFFSET('Program Info'!$E$46,0,L$69-1,1,1),IF($D86+'Program Info'!$G$23-1=L$69,0,IF(AND(L$69-$D86=1,'Program Info'!$G$23=4),K86*$K$25, IF(AND(L$69-$D86>=2,'Program Info'!$G$23=4),K86*$M$25, IF(AND(L$69-$D86=1,'Program Info'!$G$23=5),K86*$K$26, IF(AND(L$69-$D86>=2,'Program Info'!$G$23=5),K86*$M$26,K86*'Program Info'!$E$23)))))))),2) ->  | M86: =ROUND(IF('Program Info'!$H$14="GRAD",0, IF($D86>M$69,0,IF(M$69=$D86,OFFSET('Program Info'!$E$46,0,M$69-1,1,1),IF($D86+'Program Info'!$G$23-1=M$69,0,IF(AND(M$69-$D86=1,'Program Info'!$G$23=4),L86*$K$25, IF(AND(M$69-$D86>=2,'Program Info'!$G$23=4),L86*$M$25, IF(AND(M$69-$D86=1,'Program Info'!$G$23=5),L86*$K$26, IF(AND(M$69-$D86>=2,'Program Info'!$G$23=5),L86*$M$26,L86*'Program Info'!$E$23)))))))),2) ->  | N86: =ROUND(IF('Program Info'!$H$14="GRAD",0, IF($D86>N$69,0,IF(N$69=$D86,OFFSET('Program Info'!$E$46,0,N$69-1,1,1),IF($D86+'Program Info'!$G$23-1=N$69,0,IF(AND(N$69-$D86=1,'Program Info'!$G$23=4),M86*$K$25, IF(AND(N$69-$D86>=2,'Program Info'!$G$23=4),M86*$M$25, IF(AND(N$69-$D86=1,'Program Info'!$G$23=5),M86*$K$26, IF(AND(N$69-$D86>=2,'Program Info'!$G$23=5),M86*$M$26,M86*'Program Info'!$E$23)))))))),2) ->  | O86: =ROUND(IF('Program Info'!$H$14="GRAD",0, IF($D86>O$69,0,IF(O$69=$D86,OFFSET('Program Info'!$E$46,0,O$69-1,1,1),IF($D86+'Program Info'!$G$23-1=O$69,0,IF(AND(O$69-$D86=1,'Program Info'!$G$23=4),N86*$K$25, IF(AND(O$69-$D86>=2,'Program Info'!$G$23=4),N86*$M$25, IF(AND(O$69-$D86=1,'Program Info'!$G$23=5),N86*$K$26, IF(AND(O$69-$D86>=2,'Program Info'!$G$23=5),N86*$M$26,N86*'Program Info'!$E$23)))))))),2) -> 
B87: 3 | D87: 4 | E87: =ROUND(IF('Program Info'!$H$14="GRAD",0, IF($D87>E$69,0,IF(E$69=$D87,OFFSET('Program Info'!$E$46,0,E$69-1,1,1),IF($D87+'Program Info'!$G$23-1=E$69,0,IF(AND(E$69-$D87=1,'Program Info'!$G$23=4),D87*$K$25, IF(AND(E$69-$D87>=2,'Program Info'!$G$23=4),D87*$M$25, IF(AND(E$69-$D87=1,'Program Info'!$G$23=5),D87*$K$26, IF(AND(E$69-$D87>=2,'Program Info'!$G$23=5),D87*$M$26,D87*'Program Info'!$E$23)))))))),2) ->  | F87: =ROUND(IF('Program Info'!$H$14="GRAD",0, IF($D87>F$69,0,IF(F$69=$D87,OFFSET('Program Info'!$E$46,0,F$69-1,1,1),IF($D87+'Program Info'!$G$23-1=F$69,0,IF(AND(F$69-$D87=1,'Program Info'!$G$23=4),E87*$K$25, IF(AND(F$69-$D87>=2,'Program Info'!$G$23=4),E87*$M$25, IF(AND(F$69-$D87=1,'Program Info'!$G$23=5),E87*$K$26, IF(AND(F$69-$D87>=2,'Program Info'!$G$23=5),E87*$M$26,E87*'Program Info'!$E$23)))))))),2) ->  | G87: =ROUND(IF('Program Info'!$H$14="GRAD",0, IF($D87>G$69,0,IF(G$69=$D87,OFFSET('Program Info'!$E$46,0,G$69-1,1,1),IF($D87+'Program Info'!$G$23-1=G$69,0,IF(AND(G$69-$D87=1,'Program Info'!$G$23=4),F87*$K$25, IF(AND(G$69-$D87>=2,'Program Info'!$G$23=4),F87*$M$25, IF(AND(G$69-$D87=1,'Program Info'!$G$23=5),F87*$K$26, IF(AND(G$69-$D87>=2,'Program Info'!$G$23=5),F87*$M$26,F87*'Program Info'!$E$23)))))))),2) ->  | H87: =ROUND(IF('Program Info'!$H$14="GRAD",0, IF($D87>H$69,0,IF(H$69=$D87,OFFSET('Program Info'!$E$46,0,H$69-1,1,1),IF($D87+'Program Info'!$G$23-1=H$69,0,IF(AND(H$69-$D87=1,'Program Info'!$G$23=4),G87*$K$25, IF(AND(H$69-$D87>=2,'Program Info'!$G$23=4),G87*$M$25, IF(AND(H$69-$D87=1,'Program Info'!$G$23=5),G87*$K$26, IF(AND(H$69-$D87>=2,'Program Info'!$G$23=5),G87*$M$26,G87*'Program Info'!$E$23)))))))),2) ->  | I87: =ROUND(IF('Program Info'!$H$14="GRAD",0, IF($D87>I$69,0,IF(I$69=$D87,OFFSET('Program Info'!$E$46,0,I$69-1,1,1),IF($D87+'Program Info'!$G$23-1=I$69,0,IF(AND(I$69-$D87=1,'Program Info'!$G$23=4),H87*$K$25, IF(AND(I$69-$D87>=2,'Program Info'!$G$23=4),H87*$M$25, IF(AND(I$69-$D87=1,'Program Info'!$G$23=5),H87*$K$26, IF(AND(I$69-$D87>=2,'Program Info'!$G$23=5),H87*$M$26,H87*'Program Info'!$E$23)))))))),2) ->  | J87: =ROUND(IF('Program Info'!$H$14="GRAD",0, IF($D87>J$69,0,IF(J$69=$D87,OFFSET('Program Info'!$E$46,0,J$69-1,1,1),IF($D87+'Program Info'!$G$23-1=J$69,0,IF(AND(J$69-$D87=1,'Program Info'!$G$23=4),I87*$K$25, IF(AND(J$69-$D87>=2,'Program Info'!$G$23=4),I87*$M$25, IF(AND(J$69-$D87=1,'Program Info'!$G$23=5),I87*$K$26, IF(AND(J$69-$D87>=2,'Program Info'!$G$23=5),I87*$M$26,I87*'Program Info'!$E$23)))))))),2) ->  | K87: =ROUND(IF('Program Info'!$H$14="GRAD",0, IF($D87>K$69,0,IF(K$69=$D87,OFFSET('Program Info'!$E$46,0,K$69-1,1,1),IF($D87+'Program Info'!$G$23-1=K$69,0,IF(AND(K$69-$D87=1,'Program Info'!$G$23=4),J87*$K$25, IF(AND(K$69-$D87>=2,'Program Info'!$G$23=4),J87*$M$25, IF(AND(K$69-$D87=1,'Program Info'!$G$23=5),J87*$K$26, IF(AND(K$69-$D87>=2,'Program Info'!$G$23=5),J87*$M$26,J87*'Program Info'!$E$23)))))))),2) ->  | L87: =ROUND(IF('Program Info'!$H$14="GRAD",0, IF($D87>L$69,0,IF(L$69=$D87,OFFSET('Program Info'!$E$46,0,L$69-1,1,1),IF($D87+'Program Info'!$G$23-1=L$69,0,IF(AND(L$69-$D87=1,'Program Info'!$G$23=4),K87*$K$25, IF(AND(L$69-$D87>=2,'Program Info'!$G$23=4),K87*$M$25, IF(AND(L$69-$D87=1,'Program Info'!$G$23=5),K87*$K$26, IF(AND(L$69-$D87>=2,'Program Info'!$G$23=5),K87*$M$26,K87*'Program Info'!$E$23)))))))),2) ->  | M87: =ROUND(IF('Program Info'!$H$14="GRAD",0, IF($D87>M$69,0,IF(M$69=$D87,OFFSET('Program Info'!$E$46,0,M$69-1,1,1),IF($D87+'Program Info'!$G$23-1=M$69,0,IF(AND(M$69-$D87=1,'Program Info'!$G$23=4),L87*$K$25, IF(AND(M$69-$D87>=2,'Program Info'!$G$23=4),L87*$M$25, IF(AND(M$69-$D87=1,'Program Info'!$G$23=5),L87*$K$26, IF(AND(M$69-$D87>=2,'Program Info'!$G$23=5),L87*$M$26,L87*'Program Info'!$E$23)))))))),2) ->  | N87: =ROUND(IF('Program Info'!$H$14="GRAD",0, IF($D87>N$69,0,IF(N$69=$D87,OFFSET('Program Info'!$E$46,0,N$69-1,1,1),IF($D87+'Program Info'!$G$23-1=N$69,0,IF(AND(N$69-$D87=1,'Program Info'!$G$23=4),M87*$K$25, IF(AND(N$69-$D87>=2,'Program Info'!$G$23=4),M87*$M$25, IF(AND(N$69-$D87=1,'Program Info'!$G$23=5),M87*$K$26, IF(AND(N$69-$D87>=2,'Program Info'!$G$23=5),M87*$M$26,M87*'Program Info'!$E$23)))))))),2) ->  | O87: =ROUND(IF('Program Info'!$H$14="GRAD",0, IF($D87>O$69,0,IF(O$69=$D87,OFFSET('Program Info'!$E$46,0,O$69-1,1,1),IF($D87+'Program Info'!$G$23-1=O$69,0,IF(AND(O$69-$D87=1,'Program Info'!$G$23=4),N87*$K$25, IF(AND(O$69-$D87>=2,'Program Info'!$G$23=4),N87*$M$25, IF(AND(O$69-$D87=1,'Program Info'!$G$23=5),N87*$K$26, IF(AND(O$69-$D87>=2,'Program Info'!$G$23=5),N87*$M$26,N87*'Program Info'!$E$23)))))))),2) -> 
B88: 3 | D88: 5 | E88: =ROUND(IF('Program Info'!$H$14="GRAD",0, IF($D88>E$69,0,IF(E$69=$D88,OFFSET('Program Info'!$E$46,0,E$69-1,1,1),IF($D88+'Program Info'!$G$23-1=E$69,0,IF(AND(E$69-$D88=1,'Program Info'!$G$23=4),D88*$K$25, IF(AND(E$69-$D88>=2,'Program Info'!$G$23=4),D88*$M$25, IF(AND(E$69-$D88=1,'Program Info'!$G$23=5),D88*$K$26, IF(AND(E$69-$D88>=2,'Program Info'!$G$23=5),D88*$M$26,D88*'Program Info'!$E$23)))))))),2) ->  | F88: =ROUND(IF('Program Info'!$H$14="GRAD",0, IF($D88>F$69,0,IF(F$69=$D88,OFFSET('Program Info'!$E$46,0,F$69-1,1,1),IF($D88+'Program Info'!$G$23-1=F$69,0,IF(AND(F$69-$D88=1,'Program Info'!$G$23=4),E88*$K$25, IF(AND(F$69-$D88>=2,'Program Info'!$G$23=4),E88*$M$25, IF(AND(F$69-$D88=1,'Program Info'!$G$23=5),E88*$K$26, IF(AND(F$69-$D88>=2,'Program Info'!$G$23=5),E88*$M$26,E88*'Program Info'!$E$23)))))))),2) ->  | G88: =ROUND(IF('Program Info'!$H$14="GRAD",0, IF($D88>G$69,0,IF(G$69=$D88,OFFSET('Program Info'!$E$46,0,G$69-1,1,1),IF($D88+'Program Info'!$G$23-1=G$69,0,IF(AND(G$69-$D88=1,'Program Info'!$G$23=4),F88*$K$25, IF(AND(G$69-$D88>=2,'Program Info'!$G$23=4),F88*$M$25, IF(AND(G$69-$D88=1,'Program Info'!$G$23=5),F88*$K$26, IF(AND(G$69-$D88>=2,'Program Info'!$G$23=5),F88*$M$26,F88*'Program Info'!$E$23)))))))),2) ->  | H88: =ROUND(IF('Program Info'!$H$14="GRAD",0, IF($D88>H$69,0,IF(H$69=$D88,OFFSET('Program Info'!$E$46,0,H$69-1,1,1),IF($D88+'Program Info'!$G$23-1=H$69,0,IF(AND(H$69-$D88=1,'Program Info'!$G$23=4),G88*$K$25, IF(AND(H$69-$D88>=2,'Program Info'!$G$23=4),G88*$M$25, IF(AND(H$69-$D88=1,'Program Info'!$G$23=5),G88*$K$26, IF(AND(H$69-$D88>=2,'Program Info'!$G$23=5),G88*$M$26,G88*'Program Info'!$E$23)))))))),2) ->  | I88: =ROUND(IF('Program Info'!$H$14="GRAD",0, IF($D88>I$69,0,IF(I$69=$D88,OFFSET('Program Info'!$E$46,0,I$69-1,1,1),IF($D88+'Program Info'!$G$23-1=I$69,0,IF(AND(I$69-$D88=1,'Program Info'!$G$23=4),H88*$K$25, IF(AND(I$69-$D88>=2,'Program Info'!$G$23=4),H88*$M$25, IF(AND(I$69-$D88=1,'Program Info'!$G$23=5),H88*$K$26, IF(AND(I$69-$D88>=2,'Program Info'!$G$23=5),H88*$M$26,H88*'Program Info'!$E$23)))))))),2) ->  | J88: =ROUND(IF('Program Info'!$H$14="GRAD",0, IF($D88>J$69,0,IF(J$69=$D88,OFFSET('Program Info'!$E$46,0,J$69-1,1,1),IF($D88+'Program Info'!$G$23-1=J$69,0,IF(AND(J$69-$D88=1,'Program Info'!$G$23=4),I88*$K$25, IF(AND(J$69-$D88>=2,'Program Info'!$G$23=4),I88*$M$25, IF(AND(J$69-$D88=1,'Program Info'!$G$23=5),I88*$K$26, IF(AND(J$69-$D88>=2,'Program Info'!$G$23=5),I88*$M$26,I88*'Program Info'!$E$23)))))))),2) ->  | K88: =ROUND(IF('Program Info'!$H$14="GRAD",0, IF($D88>K$69,0,IF(K$69=$D88,OFFSET('Program Info'!$E$46,0,K$69-1,1,1),IF($D88+'Program Info'!$G$23-1=K$69,0,IF(AND(K$69-$D88=1,'Program Info'!$G$23=4),J88*$K$25, IF(AND(K$69-$D88>=2,'Program Info'!$G$23=4),J88*$M$25, IF(AND(K$69-$D88=1,'Program Info'!$G$23=5),J88*$K$26, IF(AND(K$69-$D88>=2,'Program Info'!$G$23=5),J88*$M$26,J88*'Program Info'!$E$23)))))))),2) ->  | L88: =ROUND(IF('Program Info'!$H$14="GRAD",0, IF($D88>L$69,0,IF(L$69=$D88,OFFSET('Program Info'!$E$46,0,L$69-1,1,1),IF($D88+'Program Info'!$G$23-1=L$69,0,IF(AND(L$69-$D88=1,'Program Info'!$G$23=4),K88*$K$25, IF(AND(L$69-$D88>=2,'Program Info'!$G$23=4),K88*$M$25, IF(AND(L$69-$D88=1,'Program Info'!$G$23=5),K88*$K$26, IF(AND(L$69-$D88>=2,'Program Info'!$G$23=5),K88*$M$26,K88*'Program Info'!$E$23)))))))),2) ->  | M88: =ROUND(IF('Program Info'!$H$14="GRAD",0, IF($D88>M$69,0,IF(M$69=$D88,OFFSET('Program Info'!$E$46,0,M$69-1,1,1),IF($D88+'Program Info'!$G$23-1=M$69,0,IF(AND(M$69-$D88=1,'Program Info'!$G$23=4),L88*$K$25, IF(AND(M$69-$D88>=2,'Program Info'!$G$23=4),L88*$M$25, IF(AND(M$69-$D88=1,'Program Info'!$G$23=5),L88*$K$26, IF(AND(M$69-$D88>=2,'Program Info'!$G$23=5),L88*$M$26,L88*'Program Info'!$E$23)))))))),2) ->  | N88: =ROUND(IF('Program Info'!$H$14="GRAD",0, IF($D88>N$69,0,IF(N$69=$D88,OFFSET('Program Info'!$E$46,0,N$69-1,1,1),IF($D88+'Program Info'!$G$23-1=N$69,0,IF(AND(N$69-$D88=1,'Program Info'!$G$23=4),M88*$K$25, IF(AND(N$69-$D88>=2,'Program Info'!$G$23=4),M88*$M$25, IF(AND(N$69-$D88=1,'Program Info'!$G$23=5),M88*$K$26, IF(AND(N$69-$D88>=2,'Program Info'!$G$23=5),M88*$M$26,M88*'Program Info'!$E$23)))))))),2) ->  | O88: =ROUND(IF('Program Info'!$H$14="GRAD",0, IF($D88>O$69,0,IF(O$69=$D88,OFFSET('Program Info'!$E$46,0,O$69-1,1,1),IF($D88+'Program Info'!$G$23-1=O$69,0,IF(AND(O$69-$D88=1,'Program Info'!$G$23=4),N88*$K$25, IF(AND(O$69-$D88>=2,'Program Info'!$G$23=4),N88*$M$25, IF(AND(O$69-$D88=1,'Program Info'!$G$23=5),N88*$K$26, IF(AND(O$69-$D88>=2,'Program Info'!$G$23=5),N88*$M$26,N88*'Program Info'!$E$23)))))))),2) -> 
B89: 3 | D89: 6 | E89: =ROUND(IF('Program Info'!$H$14="GRAD",0, IF($D89>E$69,0,IF(E$69=$D89,OFFSET('Program Info'!$E$46,0,E$69-1,1,1),IF($D89+'Program Info'!$G$23-1=E$69,0,IF(AND(E$69-$D89=1,'Program Info'!$G$23=4),D89*$K$25, IF(AND(E$69-$D89>=2,'Program Info'!$G$23=4),D89*$M$25, IF(AND(E$69-$D89=1,'Program Info'!$G$23=5),D89*$K$26, IF(AND(E$69-$D89>=2,'Program Info'!$G$23=5),D89*$M$26,D89*'Program Info'!$E$23)))))))),2) ->  | F89: =ROUND(IF('Program Info'!$H$14="GRAD",0, IF($D89>F$69,0,IF(F$69=$D89,OFFSET('Program Info'!$E$46,0,F$69-1,1,1),IF($D89+'Program Info'!$G$23-1=F$69,0,IF(AND(F$69-$D89=1,'Program Info'!$G$23=4),E89*$K$25, IF(AND(F$69-$D89>=2,'Program Info'!$G$23=4),E89*$M$25, IF(AND(F$69-$D89=1,'Program Info'!$G$23=5),E89*$K$26, IF(AND(F$69-$D89>=2,'Program Info'!$G$23=5),E89*$M$26,E89*'Program Info'!$E$23)))))))),2) ->  | G89: =ROUND(IF('Program Info'!$H$14="GRAD",0, IF($D89>G$69,0,IF(G$69=$D89,OFFSET('Program Info'!$E$46,0,G$69-1,1,1),IF($D89+'Program Info'!$G$23-1=G$69,0,IF(AND(G$69-$D89=1,'Program Info'!$G$23=4),F89*$K$25, IF(AND(G$69-$D89>=2,'Program Info'!$G$23=4),F89*$M$25, IF(AND(G$69-$D89=1,'Program Info'!$G$23=5),F89*$K$26, IF(AND(G$69-$D89>=2,'Program Info'!$G$23=5),F89*$M$26,F89*'Program Info'!$E$23)))))))),2) ->  | H89: =ROUND(IF('Program Info'!$H$14="GRAD",0, IF($D89>H$69,0,IF(H$69=$D89,OFFSET('Program Info'!$E$46,0,H$69-1,1,1),IF($D89+'Program Info'!$G$23-1=H$69,0,IF(AND(H$69-$D89=1,'Program Info'!$G$23=4),G89*$K$25, IF(AND(H$69-$D89>=2,'Program Info'!$G$23=4),G89*$M$25, IF(AND(H$69-$D89=1,'Program Info'!$G$23=5),G89*$K$26, IF(AND(H$69-$D89>=2,'Program Info'!$G$23=5),G89*$M$26,G89*'Program Info'!$E$23)))))))),2) ->  | I89: =ROUND(IF('Program Info'!$H$14="GRAD",0, IF($D89>I$69,0,IF(I$69=$D89,OFFSET('Program Info'!$E$46,0,I$69-1,1,1),IF($D89+'Program Info'!$G$23-1=I$69,0,IF(AND(I$69-$D89=1,'Program Info'!$G$23=4),H89*$K$25, IF(AND(I$69-$D89>=2,'Program Info'!$G$23=4),H89*$M$25, IF(AND(I$69-$D89=1,'Program Info'!$G$23=5),H89*$K$26, IF(AND(I$69-$D89>=2,'Program Info'!$G$23=5),H89*$M$26,H89*'Program Info'!$E$23)))))))),2) ->  | J89: =ROUND(IF('Program Info'!$H$14="GRAD",0, IF($D89>J$69,0,IF(J$69=$D89,OFFSET('Program Info'!$E$46,0,J$69-1,1,1),IF($D89+'Program Info'!$G$23-1=J$69,0,IF(AND(J$69-$D89=1,'Program Info'!$G$23=4),I89*$K$25, IF(AND(J$69-$D89>=2,'Program Info'!$G$23=4),I89*$M$25, IF(AND(J$69-$D89=1,'Program Info'!$G$23=5),I89*$K$26, IF(AND(J$69-$D89>=2,'Program Info'!$G$23=5),I89*$M$26,I89*'Program Info'!$E$23)))))))),2) ->  | K89: =ROUND(IF('Program Info'!$H$14="GRAD",0, IF($D89>K$69,0,IF(K$69=$D89,OFFSET('Program Info'!$E$46,0,K$69-1,1,1),IF($D89+'Program Info'!$G$23-1=K$69,0,IF(AND(K$69-$D89=1,'Program Info'!$G$23=4),J89*$K$25, IF(AND(K$69-$D89>=2,'Program Info'!$G$23=4),J89*$M$25, IF(AND(K$69-$D89=1,'Program Info'!$G$23=5),J89*$K$26, IF(AND(K$69-$D89>=2,'Program Info'!$G$23=5),J89*$M$26,J89*'Program Info'!$E$23)))))))),2) ->  | L89: =ROUND(IF('Program Info'!$H$14="GRAD",0, IF($D89>L$69,0,IF(L$69=$D89,OFFSET('Program Info'!$E$46,0,L$69-1,1,1),IF($D89+'Program Info'!$G$23-1=L$69,0,IF(AND(L$69-$D89=1,'Program Info'!$G$23=4),K89*$K$25, IF(AND(L$69-$D89>=2,'Program Info'!$G$23=4),K89*$M$25, IF(AND(L$69-$D89=1,'Program Info'!$G$23=5),K89*$K$26, IF(AND(L$69-$D89>=2,'Program Info'!$G$23=5),K89*$M$26,K89*'Program Info'!$E$23)))))))),2) ->  | M89: =ROUND(IF('Program Info'!$H$14="GRAD",0, IF($D89>M$69,0,IF(M$69=$D89,OFFSET('Program Info'!$E$46,0,M$69-1,1,1),IF($D89+'Program Info'!$G$23-1=M$69,0,IF(AND(M$69-$D89=1,'Program Info'!$G$23=4),L89*$K$25, IF(AND(M$69-$D89>=2,'Program Info'!$G$23=4),L89*$M$25, IF(AND(M$69-$D89=1,'Program Info'!$G$23=5),L89*$K$26, IF(AND(M$69-$D89>=2,'Program Info'!$G$23=5),L89*$M$26,L89*'Program Info'!$E$23)))))))),2) ->  | N89: =ROUND(IF('Program Info'!$H$14="GRAD",0, IF($D89>N$69,0,IF(N$69=$D89,OFFSET('Program Info'!$E$46,0,N$69-1,1,1),IF($D89+'Program Info'!$G$23-1=N$69,0,IF(AND(N$69-$D89=1,'Program Info'!$G$23=4),M89*$K$25, IF(AND(N$69-$D89>=2,'Program Info'!$G$23=4),M89*$M$25, IF(AND(N$69-$D89=1,'Program Info'!$G$23=5),M89*$K$26, IF(AND(N$69-$D89>=2,'Program Info'!$G$23=5),M89*$M$26,M89*'Program Info'!$E$23)))))))),2) ->  | O89: =ROUND(IF('Program Info'!$H$14="GRAD",0, IF($D89>O$69,0,IF(O$69=$D89,OFFSET('Program Info'!$E$46,0,O$69-1,1,1),IF($D89+'Program Info'!$G$23-1=O$69,0,IF(AND(O$69-$D89=1,'Program Info'!$G$23=4),N89*$K$25, IF(AND(O$69-$D89>=2,'Program Info'!$G$23=4),N89*$M$25, IF(AND(O$69-$D89=1,'Program Info'!$G$23=5),N89*$K$26, IF(AND(O$69-$D89>=2,'Program Info'!$G$23=5),N89*$M$26,N89*'Program Info'!$E$23)))))))),2) -> 
B90: 3 | D90: 7 | E90: =ROUND(IF('Program Info'!$H$14="GRAD",0, IF($D90>E$69,0,IF(E$69=$D90,OFFSET('Program Info'!$E$46,0,E$69-1,1,1),IF($D90+'Program Info'!$G$23-1=E$69,0,IF(AND(E$69-$D90=1,'Program Info'!$G$23=4),D90*$K$25, IF(AND(E$69-$D90>=2,'Program Info'!$G$23=4),D90*$M$25, IF(AND(E$69-$D90=1,'Program Info'!$G$23=5),D90*$K$26, IF(AND(E$69-$D90>=2,'Program Info'!$G$23=5),D90*$M$26,D90*'Program Info'!$E$23)))))))),2) ->  | F90: =ROUND(IF('Program Info'!$H$14="GRAD",0, IF($D90>F$69,0,IF(F$69=$D90,OFFSET('Program Info'!$E$46,0,F$69-1,1,1),IF($D90+'Program Info'!$G$23-1=F$69,0,IF(AND(F$69-$D90=1,'Program Info'!$G$23=4),E90*$K$25, IF(AND(F$69-$D90>=2,'Program Info'!$G$23=4),E90*$M$25, IF(AND(F$69-$D90=1,'Program Info'!$G$23=5),E90*$K$26, IF(AND(F$69-$D90>=2,'Program Info'!$G$23=5),E90*$M$26,E90*'Program Info'!$E$23)))))))),2) ->  | G90: =ROUND(IF('Program Info'!$H$14="GRAD",0, IF($D90>G$69,0,IF(G$69=$D90,OFFSET('Program Info'!$E$46,0,G$69-1,1,1),IF($D90+'Program Info'!$G$23-1=G$69,0,IF(AND(G$69-$D90=1,'Program Info'!$G$23=4),F90*$K$25, IF(AND(G$69-$D90>=2,'Program Info'!$G$23=4),F90*$M$25, IF(AND(G$69-$D90=1,'Program Info'!$G$23=5),F90*$K$26, IF(AND(G$69-$D90>=2,'Program Info'!$G$23=5),F90*$M$26,F90*'Program Info'!$E$23)))))))),2) ->  | H90: =ROUND(IF('Program Info'!$H$14="GRAD",0, IF($D90>H$69,0,IF(H$69=$D90,OFFSET('Program Info'!$E$46,0,H$69-1,1,1),IF($D90+'Program Info'!$G$23-1=H$69,0,IF(AND(H$69-$D90=1,'Program Info'!$G$23=4),G90*$K$25, IF(AND(H$69-$D90>=2,'Program Info'!$G$23=4),G90*$M$25, IF(AND(H$69-$D90=1,'Program Info'!$G$23=5),G90*$K$26, IF(AND(H$69-$D90>=2,'Program Info'!$G$23=5),G90*$M$26,G90*'Program Info'!$E$23)))))))),2) ->  | I90: =ROUND(IF('Program Info'!$H$14="GRAD",0, IF($D90>I$69,0,IF(I$69=$D90,OFFSET('Program Info'!$E$46,0,I$69-1,1,1),IF($D90+'Program Info'!$G$23-1=I$69,0,IF(AND(I$69-$D90=1,'Program Info'!$G$23=4),H90*$K$25, IF(AND(I$69-$D90>=2,'Program Info'!$G$23=4),H90*$M$25, IF(AND(I$69-$D90=1,'Program Info'!$G$23=5),H90*$K$26, IF(AND(I$69-$D90>=2,'Program Info'!$G$23=5),H90*$M$26,H90*'Program Info'!$E$23)))))))),2) ->  | J90: =ROUND(IF('Program Info'!$H$14="GRAD",0, IF($D90>J$69,0,IF(J$69=$D90,OFFSET('Program Info'!$E$46,0,J$69-1,1,1),IF($D90+'Program Info'!$G$23-1=J$69,0,IF(AND(J$69-$D90=1,'Program Info'!$G$23=4),I90*$K$25, IF(AND(J$69-$D90>=2,'Program Info'!$G$23=4),I90*$M$25, IF(AND(J$69-$D90=1,'Program Info'!$G$23=5),I90*$K$26, IF(AND(J$69-$D90>=2,'Program Info'!$G$23=5),I90*$M$26,I90*'Program Info'!$E$23)))))))),2) ->  | K90: =ROUND(IF('Program Info'!$H$14="GRAD",0, IF($D90>K$69,0,IF(K$69=$D90,OFFSET('Program Info'!$E$46,0,K$69-1,1,1),IF($D90+'Program Info'!$G$23-1=K$69,0,IF(AND(K$69-$D90=1,'Program Info'!$G$23=4),J90*$K$25, IF(AND(K$69-$D90>=2,'Program Info'!$G$23=4),J90*$M$25, IF(AND(K$69-$D90=1,'Program Info'!$G$23=5),J90*$K$26, IF(AND(K$69-$D90>=2,'Program Info'!$G$23=5),J90*$M$26,J90*'Program Info'!$E$23)))))))),2) ->  | L90: =ROUND(IF('Program Info'!$H$14="GRAD",0, IF($D90>L$69,0,IF(L$69=$D90,OFFSET('Program Info'!$E$46,0,L$69-1,1,1),IF($D90+'Program Info'!$G$23-1=L$69,0,IF(AND(L$69-$D90=1,'Program Info'!$G$23=4),K90*$K$25, IF(AND(L$69-$D90>=2,'Program Info'!$G$23=4),K90*$M$25, IF(AND(L$69-$D90=1,'Program Info'!$G$23=5),K90*$K$26, IF(AND(L$69-$D90>=2,'Program Info'!$G$23=5),K90*$M$26,K90*'Program Info'!$E$23)))))))),2) ->  | M90: =ROUND(IF('Program Info'!$H$14="GRAD",0, IF($D90>M$69,0,IF(M$69=$D90,OFFSET('Program Info'!$E$46,0,M$69-1,1,1),IF($D90+'Program Info'!$G$23-1=M$69,0,IF(AND(M$69-$D90=1,'Program Info'!$G$23=4),L90*$K$25, IF(AND(M$69-$D90>=2,'Program Info'!$G$23=4),L90*$M$25, IF(AND(M$69-$D90=1,'Program Info'!$G$23=5),L90*$K$26, IF(AND(M$69-$D90>=2,'Program Info'!$G$23=5),L90*$M$26,L90*'Program Info'!$E$23)))))))),2) ->  | N90: =ROUND(IF('Program Info'!$H$14="GRAD",0, IF($D90>N$69,0,IF(N$69=$D90,OFFSET('Program Info'!$E$46,0,N$69-1,1,1),IF($D90+'Program Info'!$G$23-1=N$69,0,IF(AND(N$69-$D90=1,'Program Info'!$G$23=4),M90*$K$25, IF(AND(N$69-$D90>=2,'Program Info'!$G$23=4),M90*$M$25, IF(AND(N$69-$D90=1,'Program Info'!$G$23=5),M90*$K$26, IF(AND(N$69-$D90>=2,'Program Info'!$G$23=5),M90*$M$26,M90*'Program Info'!$E$23)))))))),2) ->  | O90: =ROUND(IF('Program Info'!$H$14="GRAD",0, IF($D90>O$69,0,IF(O$69=$D90,OFFSET('Program Info'!$E$46,0,O$69-1,1,1),IF($D90+'Program Info'!$G$23-1=O$69,0,IF(AND(O$69-$D90=1,'Program Info'!$G$23=4),N90*$K$25, IF(AND(O$69-$D90>=2,'Program Info'!$G$23=4),N90*$M$25, IF(AND(O$69-$D90=1,'Program Info'!$G$23=5),N90*$K$26, IF(AND(O$69-$D90>=2,'Program Info'!$G$23=5),N90*$M$26,N90*'Program Info'!$E$23)))))))),2) -> 
B91: 3 | D91: 8 | E91: =ROUND(IF('Program Info'!$H$14="GRAD",0, IF($D91>E$69,0,IF(E$69=$D91,OFFSET('Program Info'!$E$46,0,E$69-1,1,1),IF($D91+'Program Info'!$G$23-1=E$69,0,IF(AND(E$69-$D91=1,'Program Info'!$G$23=4),D91*$K$25, IF(AND(E$69-$D91>=2,'Program Info'!$G$23=4),D91*$M$25, IF(AND(E$69-$D91=1,'Program Info'!$G$23=5),D91*$K$26, IF(AND(E$69-$D91>=2,'Program Info'!$G$23=5),D91*$M$26,D91*'Program Info'!$E$23)))))))),2) ->  | F91: =ROUND(IF('Program Info'!$H$14="GRAD",0, IF($D91>F$69,0,IF(F$69=$D91,OFFSET('Program Info'!$E$46,0,F$69-1,1,1),IF($D91+'Program Info'!$G$23-1=F$69,0,IF(AND(F$69-$D91=1,'Program Info'!$G$23=4),E91*$K$25, IF(AND(F$69-$D91>=2,'Program Info'!$G$23=4),E91*$M$25, IF(AND(F$69-$D91=1,'Program Info'!$G$23=5),E91*$K$26, IF(AND(F$69-$D91>=2,'Program Info'!$G$23=5),E91*$M$26,E91*'Program Info'!$E$23)))))))),2) ->  | G91: =ROUND(IF('Program Info'!$H$14="GRAD",0, IF($D91>G$69,0,IF(G$69=$D91,OFFSET('Program Info'!$E$46,0,G$69-1,1,1),IF($D91+'Program Info'!$G$23-1=G$69,0,IF(AND(G$69-$D91=1,'Program Info'!$G$23=4),F91*$K$25, IF(AND(G$69-$D91>=2,'Program Info'!$G$23=4),F91*$M$25, IF(AND(G$69-$D91=1,'Program Info'!$G$23=5),F91*$K$26, IF(AND(G$69-$D91>=2,'Program Info'!$G$23=5),F91*$M$26,F91*'Program Info'!$E$23)))))))),2) ->  | H91: =ROUND(IF('Program Info'!$H$14="GRAD",0, IF($D91>H$69,0,IF(H$69=$D91,OFFSET('Program Info'!$E$46,0,H$69-1,1,1),IF($D91+'Program Info'!$G$23-1=H$69,0,IF(AND(H$69-$D91=1,'Program Info'!$G$23=4),G91*$K$25, IF(AND(H$69-$D91>=2,'Program Info'!$G$23=4),G91*$M$25, IF(AND(H$69-$D91=1,'Program Info'!$G$23=5),G91*$K$26, IF(AND(H$69-$D91>=2,'Program Info'!$G$23=5),G91*$M$26,G91*'Program Info'!$E$23)))))))),2) ->  | I91: =ROUND(IF('Program Info'!$H$14="GRAD",0, IF($D91>I$69,0,IF(I$69=$D91,OFFSET('Program Info'!$E$46,0,I$69-1,1,1),IF($D91+'Program Info'!$G$23-1=I$69,0,IF(AND(I$69-$D91=1,'Program Info'!$G$23=4),H91*$K$25, IF(AND(I$69-$D91>=2,'Program Info'!$G$23=4),H91*$M$25, IF(AND(I$69-$D91=1,'Program Info'!$G$23=5),H91*$K$26, IF(AND(I$69-$D91>=2,'Program Info'!$G$23=5),H91*$M$26,H91*'Program Info'!$E$23)))))))),2) ->  | J91: =ROUND(IF('Program Info'!$H$14="GRAD",0, IF($D91>J$69,0,IF(J$69=$D91,OFFSET('Program Info'!$E$46,0,J$69-1,1,1),IF($D91+'Program Info'!$G$23-1=J$69,0,IF(AND(J$69-$D91=1,'Program Info'!$G$23=4),I91*$K$25, IF(AND(J$69-$D91>=2,'Program Info'!$G$23=4),I91*$M$25, IF(AND(J$69-$D91=1,'Program Info'!$G$23=5),I91*$K$26, IF(AND(J$69-$D91>=2,'Program Info'!$G$23=5),I91*$M$26,I91*'Program Info'!$E$23)))))))),2) ->  | K91: =ROUND(IF('Program Info'!$H$14="GRAD",0, IF($D91>K$69,0,IF(K$69=$D91,OFFSET('Program Info'!$E$46,0,K$69-1,1,1),IF($D91+'Program Info'!$G$23-1=K$69,0,IF(AND(K$69-$D91=1,'Program Info'!$G$23=4),J91*$K$25, IF(AND(K$69-$D91>=2,'Program Info'!$G$23=4),J91*$M$25, IF(AND(K$69-$D91=1,'Program Info'!$G$23=5),J91*$K$26, IF(AND(K$69-$D91>=2,'Program Info'!$G$23=5),J91*$M$26,J91*'Program Info'!$E$23)))))))),2) ->  | L91: =ROUND(IF('Program Info'!$H$14="GRAD",0, IF($D91>L$69,0,IF(L$69=$D91,OFFSET('Program Info'!$E$46,0,L$69-1,1,1),IF($D91+'Program Info'!$G$23-1=L$69,0,IF(AND(L$69-$D91=1,'Program Info'!$G$23=4),K91*$K$25, IF(AND(L$69-$D91>=2,'Program Info'!$G$23=4),K91*$M$25, IF(AND(L$69-$D91=1,'Program Info'!$G$23=5),K91*$K$26, IF(AND(L$69-$D91>=2,'Program Info'!$G$23=5),K91*$M$26,K91*'Program Info'!$E$23)))))))),2) ->  | M91: =ROUND(IF('Program Info'!$H$14="GRAD",0, IF($D91>M$69,0,IF(M$69=$D91,OFFSET('Program Info'!$E$46,0,M$69-1,1,1),IF($D91+'Program Info'!$G$23-1=M$69,0,IF(AND(M$69-$D91=1,'Program Info'!$G$23=4),L91*$K$25, IF(AND(M$69-$D91>=2,'Program Info'!$G$23=4),L91*$M$25, IF(AND(M$69-$D91=1,'Program Info'!$G$23=5),L91*$K$26, IF(AND(M$69-$D91>=2,'Program Info'!$G$23=5),L91*$M$26,L91*'Program Info'!$E$23)))))))),2) ->  | N91: =ROUND(IF('Program Info'!$H$14="GRAD",0, IF($D91>N$69,0,IF(N$69=$D91,OFFSET('Program Info'!$E$46,0,N$69-1,1,1),IF($D91+'Program Info'!$G$23-1=N$69,0,IF(AND(N$69-$D91=1,'Program Info'!$G$23=4),M91*$K$25, IF(AND(N$69-$D91>=2,'Program Info'!$G$23=4),M91*$M$25, IF(AND(N$69-$D91=1,'Program Info'!$G$23=5),M91*$K$26, IF(AND(N$69-$D91>=2,'Program Info'!$G$23=5),M91*$M$26,M91*'Program Info'!$E$23)))))))),2) ->  | O91: =ROUND(IF('Program Info'!$H$14="GRAD",0, IF($D91>O$69,0,IF(O$69=$D91,OFFSET('Program Info'!$E$46,0,O$69-1,1,1),IF($D91+'Program Info'!$G$23-1=O$69,0,IF(AND(O$69-$D91=1,'Program Info'!$G$23=4),N91*$K$25, IF(AND(O$69-$D91>=2,'Program Info'!$G$23=4),N91*$M$25, IF(AND(O$69-$D91=1,'Program Info'!$G$23=5),N91*$K$26, IF(AND(O$69-$D91>=2,'Program Info'!$G$23=5),N91*$M$26,N91*'Program Info'!$E$23)))))))),2) -> 
B92: 3 | D92: 9 | E92: =ROUND(IF('Program Info'!$H$14="GRAD",0, IF($D92>E$69,0,IF(E$69=$D92,OFFSET('Program Info'!$E$46,0,E$69-1,1,1),IF($D92+'Program Info'!$G$23-1=E$69,0,IF(AND(E$69-$D92=1,'Program Info'!$G$23=4),D92*$K$25, IF(AND(E$69-$D92>=2,'Program Info'!$G$23=4),D92*$M$25, IF(AND(E$69-$D92=1,'Program Info'!$G$23=5),D92*$K$26, IF(AND(E$69-$D92>=2,'Program Info'!$G$23=5),D92*$M$26,D92*'Program Info'!$E$23)))))))),2) ->  | F92: =ROUND(IF('Program Info'!$H$14="GRAD",0, IF($D92>F$69,0,IF(F$69=$D92,OFFSET('Program Info'!$E$46,0,F$69-1,1,1),IF($D92+'Program Info'!$G$23-1=F$69,0,IF(AND(F$69-$D92=1,'Program Info'!$G$23=4),E92*$K$25, IF(AND(F$69-$D92>=2,'Program Info'!$G$23=4),E92*$M$25, IF(AND(F$69-$D92=1,'Program Info'!$G$23=5),E92*$K$26, IF(AND(F$69-$D92>=2,'Program Info'!$G$23=5),E92*$M$26,E92*'Program Info'!$E$23)))))))),2) ->  | G92: =ROUND(IF('Program Info'!$H$14="GRAD",0, IF($D92>G$69,0,IF(G$69=$D92,OFFSET('Program Info'!$E$46,0,G$69-1,1,1),IF($D92+'Program Info'!$G$23-1=G$69,0,IF(AND(G$69-$D92=1,'Program Info'!$G$23=4),F92*$K$25, IF(AND(G$69-$D92>=2,'Program Info'!$G$23=4),F92*$M$25, IF(AND(G$69-$D92=1,'Program Info'!$G$23=5),F92*$K$26, IF(AND(G$69-$D92>=2,'Program Info'!$G$23=5),F92*$M$26,F92*'Program Info'!$E$23)))))))),2) ->  | H92: =ROUND(IF('Program Info'!$H$14="GRAD",0, IF($D92>H$69,0,IF(H$69=$D92,OFFSET('Program Info'!$E$46,0,H$69-1,1,1),IF($D92+'Program Info'!$G$23-1=H$69,0,IF(AND(H$69-$D92=1,'Program Info'!$G$23=4),G92*$K$25, IF(AND(H$69-$D92>=2,'Program Info'!$G$23=4),G92*$M$25, IF(AND(H$69-$D92=1,'Program Info'!$G$23=5),G92*$K$26, IF(AND(H$69-$D92>=2,'Program Info'!$G$23=5),G92*$M$26,G92*'Program Info'!$E$23)))))))),2) ->  | I92: =ROUND(IF('Program Info'!$H$14="GRAD",0, IF($D92>I$69,0,IF(I$69=$D92,OFFSET('Program Info'!$E$46,0,I$69-1,1,1),IF($D92+'Program Info'!$G$23-1=I$69,0,IF(AND(I$69-$D92=1,'Program Info'!$G$23=4),H92*$K$25, IF(AND(I$69-$D92>=2,'Program Info'!$G$23=4),H92*$M$25, IF(AND(I$69-$D92=1,'Program Info'!$G$23=5),H92*$K$26, IF(AND(I$69-$D92>=2,'Program Info'!$G$23=5),H92*$M$26,H92*'Program Info'!$E$23)))))))),2) ->  | J92: =ROUND(IF('Program Info'!$H$14="GRAD",0, IF($D92>J$69,0,IF(J$69=$D92,OFFSET('Program Info'!$E$46,0,J$69-1,1,1),IF($D92+'Program Info'!$G$23-1=J$69,0,IF(AND(J$69-$D92=1,'Program Info'!$G$23=4),I92*$K$25, IF(AND(J$69-$D92>=2,'Program Info'!$G$23=4),I92*$M$25, IF(AND(J$69-$D92=1,'Program Info'!$G$23=5),I92*$K$26, IF(AND(J$69-$D92>=2,'Program Info'!$G$23=5),I92*$M$26,I92*'Program Info'!$E$23)))))))),2) ->  | K92: =ROUND(IF('Program Info'!$H$14="GRAD",0, IF($D92>K$69,0,IF(K$69=$D92,OFFSET('Program Info'!$E$46,0,K$69-1,1,1),IF($D92+'Program Info'!$G$23-1=K$69,0,IF(AND(K$69-$D92=1,'Program Info'!$G$23=4),J92*$K$25, IF(AND(K$69-$D92>=2,'Program Info'!$G$23=4),J92*$M$25, IF(AND(K$69-$D92=1,'Program Info'!$G$23=5),J92*$K$26, IF(AND(K$69-$D92>=2,'Program Info'!$G$23=5),J92*$M$26,J92*'Program Info'!$E$23)))))))),2) ->  | L92: =ROUND(IF('Program Info'!$H$14="GRAD",0, IF($D92>L$69,0,IF(L$69=$D92,OFFSET('Program Info'!$E$46,0,L$69-1,1,1),IF($D92+'Program Info'!$G$23-1=L$69,0,IF(AND(L$69-$D92=1,'Program Info'!$G$23=4),K92*$K$25, IF(AND(L$69-$D92>=2,'Program Info'!$G$23=4),K92*$M$25, IF(AND(L$69-$D92=1,'Program Info'!$G$23=5),K92*$K$26, IF(AND(L$69-$D92>=2,'Program Info'!$G$23=5),K92*$M$26,K92*'Program Info'!$E$23)))))))),2) ->  | M92: =ROUND(IF('Program Info'!$H$14="GRAD",0, IF($D92>M$69,0,IF(M$69=$D92,OFFSET('Program Info'!$E$46,0,M$69-1,1,1),IF($D92+'Program Info'!$G$23-1=M$69,0,IF(AND(M$69-$D92=1,'Program Info'!$G$23=4),L92*$K$25, IF(AND(M$69-$D92>=2,'Program Info'!$G$23=4),L92*$M$25, IF(AND(M$69-$D92=1,'Program Info'!$G$23=5),L92*$K$26, IF(AND(M$69-$D92>=2,'Program Info'!$G$23=5),L92*$M$26,L92*'Program Info'!$E$23)))))))),2) ->  | N92: =ROUND(IF('Program Info'!$H$14="GRAD",0, IF($D92>N$69,0,IF(N$69=$D92,OFFSET('Program Info'!$E$46,0,N$69-1,1,1),IF($D92+'Program Info'!$G$23-1=N$69,0,IF(AND(N$69-$D92=1,'Program Info'!$G$23=4),M92*$K$25, IF(AND(N$69-$D92>=2,'Program Info'!$G$23=4),M92*$M$25, IF(AND(N$69-$D92=1,'Program Info'!$G$23=5),M92*$K$26, IF(AND(N$69-$D92>=2,'Program Info'!$G$23=5),M92*$M$26,M92*'Program Info'!$E$23)))))))),2) ->  | O92: =ROUND(IF('Program Info'!$H$14="GRAD",0, IF($D92>O$69,0,IF(O$69=$D92,OFFSET('Program Info'!$E$46,0,O$69-1,1,1),IF($D92+'Program Info'!$G$23-1=O$69,0,IF(AND(O$69-$D92=1,'Program Info'!$G$23=4),N92*$K$25, IF(AND(O$69-$D92>=2,'Program Info'!$G$23=4),N92*$M$25, IF(AND(O$69-$D92=1,'Program Info'!$G$23=5),N92*$K$26, IF(AND(O$69-$D92>=2,'Program Info'!$G$23=5),N92*$M$26,N92*'Program Info'!$E$23)))))))),2) -> 
B93: 3 | D93: 10 | E93: =ROUND(IF('Program Info'!$H$14="GRAD",0, IF($D93>E$69,0,IF(E$69=$D93,OFFSET('Program Info'!$E$46,0,E$69-1,1,1),IF($D93+'Program Info'!$G$23-1=E$69,0,IF(AND(E$69-$D93=1,'Program Info'!$G$23=4),D93*$K$25, IF(AND(E$69-$D93>=2,'Program Info'!$G$23=4),D93*$M$25, IF(AND(E$69-$D93=1,'Program Info'!$G$23=5),D93*$K$26, IF(AND(E$69-$D93>=2,'Program Info'!$G$23=5),D93*$M$26,D93*'Program Info'!$E$23)))))))),2) ->  | F93: =ROUND(IF('Program Info'!$H$14="GRAD",0, IF($D93>F$69,0,IF(F$69=$D93,OFFSET('Program Info'!$E$46,0,F$69-1,1,1),IF($D93+'Program Info'!$G$23-1=F$69,0,IF(AND(F$69-$D93=1,'Program Info'!$G$23=4),E93*$K$25, IF(AND(F$69-$D93>=2,'Program Info'!$G$23=4),E93*$M$25, IF(AND(F$69-$D93=1,'Program Info'!$G$23=5),E93*$K$26, IF(AND(F$69-$D93>=2,'Program Info'!$G$23=5),E93*$M$26,E93*'Program Info'!$E$23)))))))),2) ->  | G93: =ROUND(IF('Program Info'!$H$14="GRAD",0, IF($D93>G$69,0,IF(G$69=$D93,OFFSET('Program Info'!$E$46,0,G$69-1,1,1),IF($D93+'Program Info'!$G$23-1=G$69,0,IF(AND(G$69-$D93=1,'Program Info'!$G$23=4),F93*$K$25, IF(AND(G$69-$D93>=2,'Program Info'!$G$23=4),F93*$M$25, IF(AND(G$69-$D93=1,'Program Info'!$G$23=5),F93*$K$26, IF(AND(G$69-$D93>=2,'Program Info'!$G$23=5),F93*$M$26,F93*'Program Info'!$E$23)))))))),2) ->  | H93: =ROUND(IF('Program Info'!$H$14="GRAD",0, IF($D93>H$69,0,IF(H$69=$D93,OFFSET('Program Info'!$E$46,0,H$69-1,1,1),IF($D93+'Program Info'!$G$23-1=H$69,0,IF(AND(H$69-$D93=1,'Program Info'!$G$23=4),G93*$K$25, IF(AND(H$69-$D93>=2,'Program Info'!$G$23=4),G93*$M$25, IF(AND(H$69-$D93=1,'Program Info'!$G$23=5),G93*$K$26, IF(AND(H$69-$D93>=2,'Program Info'!$G$23=5),G93*$M$26,G93*'Program Info'!$E$23)))))))),2) ->  | I93: =ROUND(IF('Program Info'!$H$14="GRAD",0, IF($D93>I$69,0,IF(I$69=$D93,OFFSET('Program Info'!$E$46,0,I$69-1,1,1),IF($D93+'Program Info'!$G$23-1=I$69,0,IF(AND(I$69-$D93=1,'Program Info'!$G$23=4),H93*$K$25, IF(AND(I$69-$D93>=2,'Program Info'!$G$23=4),H93*$M$25, IF(AND(I$69-$D93=1,'Program Info'!$G$23=5),H93*$K$26, IF(AND(I$69-$D93>=2,'Program Info'!$G$23=5),H93*$M$26,H93*'Program Info'!$E$23)))))))),2) ->  | J93: =ROUND(IF('Program Info'!$H$14="GRAD",0, IF($D93>J$69,0,IF(J$69=$D93,OFFSET('Program Info'!$E$46,0,J$69-1,1,1),IF($D93+'Program Info'!$G$23-1=J$69,0,IF(AND(J$69-$D93=1,'Program Info'!$G$23=4),I93*$K$25, IF(AND(J$69-$D93>=2,'Program Info'!$G$23=4),I93*$M$25, IF(AND(J$69-$D93=1,'Program Info'!$G$23=5),I93*$K$26, IF(AND(J$69-$D93>=2,'Program Info'!$G$23=5),I93*$M$26,I93*'Program Info'!$E$23)))))))),2) ->  | K93: =ROUND(IF('Program Info'!$H$14="GRAD",0, IF($D93>K$69,0,IF(K$69=$D93,OFFSET('Program Info'!$E$46,0,K$69-1,1,1),IF($D93+'Program Info'!$G$23-1=K$69,0,IF(AND(K$69-$D93=1,'Program Info'!$G$23=4),J93*$K$25, IF(AND(K$69-$D93>=2,'Program Info'!$G$23=4),J93*$M$25, IF(AND(K$69-$D93=1,'Program Info'!$G$23=5),J93*$K$26, IF(AND(K$69-$D93>=2,'Program Info'!$G$23=5),J93*$M$26,J93*'Program Info'!$E$23)))))))),2) ->  | L93: =ROUND(IF('Program Info'!$H$14="GRAD",0, IF($D93>L$69,0,IF(L$69=$D93,OFFSET('Program Info'!$E$46,0,L$69-1,1,1),IF($D93+'Program Info'!$G$23-1=L$69,0,IF(AND(L$69-$D93=1,'Program Info'!$G$23=4),K93*$K$25, IF(AND(L$69-$D93>=2,'Program Info'!$G$23=4),K93*$M$25, IF(AND(L$69-$D93=1,'Program Info'!$G$23=5),K93*$K$26, IF(AND(L$69-$D93>=2,'Program Info'!$G$23=5),K93*$M$26,K93*'Program Info'!$E$23)))))))),2) ->  | M93: =ROUND(IF('Program Info'!$H$14="GRAD",0, IF($D93>M$69,0,IF(M$69=$D93,OFFSET('Program Info'!$E$46,0,M$69-1,1,1),IF($D93+'Program Info'!$G$23-1=M$69,0,IF(AND(M$69-$D93=1,'Program Info'!$G$23=4),L93*$K$25, IF(AND(M$69-$D93>=2,'Program Info'!$G$23=4),L93*$M$25, IF(AND(M$69-$D93=1,'Program Info'!$G$23=5),L93*$K$26, IF(AND(M$69-$D93>=2,'Program Info'!$G$23=5),L93*$M$26,L93*'Program Info'!$E$23)))))))),2) ->  | N93: =ROUND(IF('Program Info'!$H$14="GRAD",0, IF($D93>N$69,0,IF(N$69=$D93,OFFSET('Program Info'!$E$46,0,N$69-1,1,1),IF($D93+'Program Info'!$G$23-1=N$69,0,IF(AND(N$69-$D93=1,'Program Info'!$G$23=4),M93*$K$25, IF(AND(N$69-$D93>=2,'Program Info'!$G$23=4),M93*$M$25, IF(AND(N$69-$D93=1,'Program Info'!$G$23=5),M93*$K$26, IF(AND(N$69-$D93>=2,'Program Info'!$G$23=5),M93*$M$26,M93*'Program Info'!$E$23)))))))),2) ->  | O93: =ROUND(IF('Program Info'!$H$14="GRAD",0, IF($D93>O$69,0,IF(O$69=$D93,OFFSET('Program Info'!$E$46,0,O$69-1,1,1),IF($D93+'Program Info'!$G$23-1=O$69,0,IF(AND(O$69-$D93=1,'Program Info'!$G$23=4),N93*$K$25, IF(AND(O$69-$D93>=2,'Program Info'!$G$23=4),N93*$M$25, IF(AND(O$69-$D93=1,'Program Info'!$G$23=5),N93*$K$26, IF(AND(O$69-$D93>=2,'Program Info'!$G$23=5),N93*$M$26,N93*'Program Info'!$E$23)))))))),2) -> 
E94: =SUM(E84:E93) ->  | O94: =SUM(O84:O93) -> 
F95: =SUM(F84:F93)-INDEX(Student3,F83+1,F83+1)-E94+SUMIFS(E84:E93,F84:F93,0) -> 
C96: Cohort Groups | E96: =E82 -> 0 | F96: =F82 -> 0-1
C97: Credit Hour Matrix | D97: Coh | E97: =E83 -> 1 | F97: =F83 -> 2 | G97: 3 | H97: 4 | I97: 5 | J97: 6 | K97: 7 | L97: 8 | M97: 9 | N97: 10 | O97: 11
B98: 4 | C98: =VLOOKUP(B98,Cohort,2,FALSE) ->  | D98: 1 | E98: =ROUND(IF('Program Info'!$H$14="GRAD",0,IF($D98>E$69,0,IF(E$69=$D98,OFFSET('Program Info'!$E$47,0,E$69-1,1,1),IF($D98+'Program Info'!$G$23-2=E$69,0,IF(AND(E$69-$D98=1,'Program Info'!$G$23=4),D98*$K$25, IF(AND(E$69-$D98>=2,'Program Info'!$G$23=4),D98*$N$25, IF(AND(E$69-$D98=1,'Program Info'!$G$23=5),D98*$K$26, IF(AND(E$69-$D98>=2,'Program Info'!$G$23=5),D98*$N$26,D98*'Program Info'!$E$23)))))))),2) ->  | F98: =ROUND(IF('Program Info'!$H$14="GRAD",0,IF($D98>F$69,0,IF(F$69=$D98,OFFSET('Program Info'!$E$47,0,F$69-1,1,1),IF($D98+'Program Info'!$G$23-2=F$69,0,IF(AND(F$69-$D98=1,'Program Info'!$G$23=4),E98*$K$25, IF(AND(F$69-$D98>=2,'Program Info'!$G$23=4),E98*$N$25, IF(AND(F$69-$D98=1,'Program Info'!$G$23=5),E98*$K$26, IF(AND(F$69-$D98>=2,'Program Info'!$G$23=5),E98*$N$26,E98*'Program Info'!$E$23)))))))),2) ->  | G98: =ROUND(IF('Program Info'!$H$14="GRAD",0,IF($D98>G$69,0,IF(G$69=$D98,OFFSET('Program Info'!$E$47,0,G$69-1,1,1),IF($D98+'Program Info'!$G$23-2=G$69,0,IF(AND(G$69-$D98=1,'Program Info'!$G$23=4),F98*$K$25, IF(AND(G$69-$D98>=2,'Program Info'!$G$23=4),F98*$N$25, IF(AND(G$69-$D98=1,'Program Info'!$G$23=5),F98*$K$26, IF(AND(G$69-$D98>=2,'Program Info'!$G$23=5),F98*$N$26,F98*'Program Info'!$E$23)))))))),2) ->  | H98: =ROUND(IF('Program Info'!$H$14="GRAD",0,IF($D98>H$69,0,IF(H$69=$D98,OFFSET('Program Info'!$E$47,0,H$69-1,1,1),IF($D98+'Program Info'!$G$23-2=H$69,0,IF(AND(H$69-$D98=1,'Program Info'!$G$23=4),G98*$K$25, IF(AND(H$69-$D98>=2,'Program Info'!$G$23=4),G98*$N$25, IF(AND(H$69-$D98=1,'Program Info'!$G$23=5),G98*$K$26, IF(AND(H$69-$D98>=2,'Program Info'!$G$23=5),G98*$N$26,G98*'Program Info'!$E$23)))))))),2) ->  | I98: =ROUND(IF('Program Info'!$H$14="GRAD",0,IF($D98>I$69,0,IF(I$69=$D98,OFFSET('Program Info'!$E$47,0,I$69-1,1,1),IF($D98+'Program Info'!$G$23-2=I$69,0,IF(AND(I$69-$D98=1,'Program Info'!$G$23=4),H98*$K$25, IF(AND(I$69-$D98>=2,'Program Info'!$G$23=4),H98*$N$25, IF(AND(I$69-$D98=1,'Program Info'!$G$23=5),H98*$K$26, IF(AND(I$69-$D98>=2,'Program Info'!$G$23=5),H98*$N$26,H98*'Program Info'!$E$23)))))))),2) ->  | J98: =ROUND(IF('Program Info'!$H$14="GRAD",0,IF($D98>J$69,0,IF(J$69=$D98,OFFSET('Program Info'!$E$47,0,J$69-1,1,1),IF($D98+'Program Info'!$G$23-2=J$69,0,IF(AND(J$69-$D98=1,'Program Info'!$G$23=4),I98*$K$25, IF(AND(J$69-$D98>=2,'Program Info'!$G$23=4),I98*$N$25, IF(AND(J$69-$D98=1,'Program Info'!$G$23=5),I98*$K$26, IF(AND(J$69-$D98>=2,'Program Info'!$G$23=5),I98*$N$26,I98*'Program Info'!$E$23)))))))),2) ->  | K98: =ROUND(IF('Program Info'!$H$14="GRAD",0,IF($D98>K$69,0,IF(K$69=$D98,OFFSET('Program Info'!$E$47,0,K$69-1,1,1),IF($D98+'Program Info'!$G$23-2=K$69,0,IF(AND(K$69-$D98=1,'Program Info'!$G$23=4),J98*$K$25, IF(AND(K$69-$D98>=2,'Program Info'!$G$23=4),J98*$N$25, IF(AND(K$69-$D98=1,'Program Info'!$G$23=5),J98*$K$26, IF(AND(K$69-$D98>=2,'Program Info'!$G$23=5),J98*$N$26,J98*'Program Info'!$E$23)))))))),2) ->  | L98: =ROUND(IF('Program Info'!$H$14="GRAD",0,IF($D98>L$69,0,IF(L$69=$D98,OFFSET('Program Info'!$E$47,0,L$69-1,1,1),IF($D98+'Program Info'!$G$23-2=L$69,0,IF(AND(L$69-$D98=1,'Program Info'!$G$23=4),K98*$K$25, IF(AND(L$69-$D98>=2,'Program Info'!$G$23=4),K98*$N$25, IF(AND(L$69-$D98=1,'Program Info'!$G$23=5),K98*$K$26, IF(AND(L$69-$D98>=2,'Program Info'!$G$23=5),K98*$N$26,K98*'Program Info'!$E$23)))))))),2) ->  | M98: =ROUND(IF('Program Info'!$H$14="GRAD",0,IF($D98>M$69,0,IF(M$69=$D98,OFFSET('Program Info'!$E$47,0,M$69-1,1,1),IF($D98+'Program Info'!$G$23-2=M$69,0,IF(AND(M$69-$D98=1,'Program Info'!$G$23=4),L98*$K$25, IF(AND(M$69-$D98>=2,'Program Info'!$G$23=4),L98*$N$25, IF(AND(M$69-$D98=1,'Program Info'!$G$23=5),L98*$K$26, IF(AND(M$69-$D98>=2,'Program Info'!$G$23=5),L98*$N$26,L98*'Program Info'!$E$23)))))))),2) ->  | N98: =ROUND(IF('Program Info'!$H$14="GRAD",0,IF($D98>N$69,0,IF(N$69=$D98,OFFSET('Program Info'!$E$47,0,N$69-1,1,1),IF($D98+'Program Info'!$G$23-2=N$69,0,IF(AND(N$69-$D98=1,'Program Info'!$G$23=4),M98*$K$25, IF(AND(N$69-$D98>=2,'Program Info'!$G$23=4),M98*$N$25, IF(AND(N$69-$D98=1,'Program Info'!$G$23=5),M98*$K$26, IF(AND(N$69-$D98>=2,'Program Info'!$G$23=5),M98*$N$26,M98*'Program Info'!$E$23)))))))),2) ->  | O98: =ROUND(IF('Program Info'!$H$14="GRAD",0,IF($D98>O$69,0,IF(O$69=$D98,OFFSET('Program Info'!$E$47,0,O$69-1,1,1),IF($D98+'Program Info'!$G$23-2=O$69,0,IF(AND(O$69-$D98=1,'Program Info'!$G$23=4),N98*$K$25, IF(AND(O$69-$D98>=2,'Program Info'!$G$23=4),N98*$N$25, IF(AND(O$69-$D98=1,'Program Info'!$G$23=5),N98*$K$26, IF(AND(O$69-$D98>=2,'Program Info'!$G$23=5),N98*$N$26,N98*'Program Info'!$E$23)))))))),2) -> 
B99: 4 | D99: 2 | E99: =ROUND(IF('Program Info'!$H$14="GRAD",0,IF($D99>E$69,0,IF(E$69=$D99,OFFSET('Program Info'!$E$47,0,E$69-1,1,1),IF($D99+'Program Info'!$G$23-2=E$69,0,IF(AND(E$69-$D99=1,'Program Info'!$G$23=4),D99*$K$25, IF(AND(E$69-$D99>=2,'Program Info'!$G$23=4),D99*$N$25, IF(AND(E$69-$D99=1,'Program Info'!$G$23=5),D99*$K$26, IF(AND(E$69-$D99>=2,'Program Info'!$G$23=5),D99*$N$26,D99*'Program Info'!$E$23)))))))),2) ->  | F99: =ROUND(IF('Program Info'!$H$14="GRAD",0,IF($D99>F$69,0,IF(F$69=$D99,OFFSET('Program Info'!$E$47,0,F$69-1,1,1),IF($D99+'Program Info'!$G$23-2=F$69,0,IF(AND(F$69-$D99=1,'Program Info'!$G$23=4),E99*$K$25, IF(AND(F$69-$D99>=2,'Program Info'!$G$23=4),E99*$N$25, IF(AND(F$69-$D99=1,'Program Info'!$G$23=5),E99*$K$26, IF(AND(F$69-$D99>=2,'Program Info'!$G$23=5),E99*$N$26,E99*'Program Info'!$E$23)))))))),2) ->  | G99: =ROUND(IF('Program Info'!$H$14="GRAD",0,IF($D99>G$69,0,IF(G$69=$D99,OFFSET('Program Info'!$E$47,0,G$69-1,1,1),IF($D99+'Program Info'!$G$23-2=G$69,0,IF(AND(G$69-$D99=1,'Program Info'!$G$23=4),F99*$K$25, IF(AND(G$69-$D99>=2,'Program Info'!$G$23=4),F99*$N$25, IF(AND(G$69-$D99=1,'Program Info'!$G$23=5),F99*$K$26, IF(AND(G$69-$D99>=2,'Program Info'!$G$23=5),F99*$N$26,F99*'Program Info'!$E$23)))))))),2) ->  | H99: =ROUND(IF('Program Info'!$H$14="GRAD",0,IF($D99>H$69,0,IF(H$69=$D99,OFFSET('Program Info'!$E$47,0,H$69-1,1,1),IF($D99+'Program Info'!$G$23-2=H$69,0,IF(AND(H$69-$D99=1,'Program Info'!$G$23=4),G99*$K$25, IF(AND(H$69-$D99>=2,'Program Info'!$G$23=4),G99*$N$25, IF(AND(H$69-$D99=1,'Program Info'!$G$23=5),G99*$K$26, IF(AND(H$69-$D99>=2,'Program Info'!$G$23=5),G99*$N$26,G99*'Program Info'!$E$23)))))))),2) ->  | I99: =ROUND(IF('Program Info'!$H$14="GRAD",0,IF($D99>I$69,0,IF(I$69=$D99,OFFSET('Program Info'!$E$47,0,I$69-1,1,1),IF($D99+'Program Info'!$G$23-2=I$69,0,IF(AND(I$69-$D99=1,'Program Info'!$G$23=4),H99*$K$25, IF(AND(I$69-$D99>=2,'Program Info'!$G$23=4),H99*$N$25, IF(AND(I$69-$D99=1,'Program Info'!$G$23=5),H99*$K$26, IF(AND(I$69-$D99>=2,'Program Info'!$G$23=5),H99*$N$26,H99*'Program Info'!$E$23)))))))),2) ->  | J99: =ROUND(IF('Program Info'!$H$14="GRAD",0,IF($D99>J$69,0,IF(J$69=$D99,OFFSET('Program Info'!$E$47,0,J$69-1,1,1),IF($D99+'Program Info'!$G$23-2=J$69,0,IF(AND(J$69-$D99=1,'Program Info'!$G$23=4),I99*$K$25, IF(AND(J$69-$D99>=2,'Program Info'!$G$23=4),I99*$N$25, IF(AND(J$69-$D99=1,'Program Info'!$G$23=5),I99*$K$26, IF(AND(J$69-$D99>=2,'Program Info'!$G$23=5),I99*$N$26,I99*'Program Info'!$E$23)))))))),2) ->  | K99: =ROUND(IF('Program Info'!$H$14="GRAD",0,IF($D99>K$69,0,IF(K$69=$D99,OFFSET('Program Info'!$E$47,0,K$69-1,1,1),IF($D99+'Program Info'!$G$23-2=K$69,0,IF(AND(K$69-$D99=1,'Program Info'!$G$23=4),J99*$K$25, IF(AND(K$69-$D99>=2,'Program Info'!$G$23=4),J99*$N$25, IF(AND(K$69-$D99=1,'Program Info'!$G$23=5),J99*$K$26, IF(AND(K$69-$D99>=2,'Program Info'!$G$23=5),J99*$N$26,J99*'Program Info'!$E$23)))))))),2) ->  | L99: =ROUND(IF('Program Info'!$H$14="GRAD",0,IF($D99>L$69,0,IF(L$69=$D99,OFFSET('Program Info'!$E$47,0,L$69-1,1,1),IF($D99+'Program Info'!$G$23-2=L$69,0,IF(AND(L$69-$D99=1,'Program Info'!$G$23=4),K99*$K$25, IF(AND(L$69-$D99>=2,'Program Info'!$G$23=4),K99*$N$25, IF(AND(L$69-$D99=1,'Program Info'!$G$23=5),K99*$K$26, IF(AND(L$69-$D99>=2,'Program Info'!$G$23=5),K99*$N$26,K99*'Program Info'!$E$23)))))))),2) ->  | M99: =ROUND(IF('Program Info'!$H$14="GRAD",0,IF($D99>M$69,0,IF(M$69=$D99,OFFSET('Program Info'!$E$47,0,M$69-1,1,1),IF($D99+'Program Info'!$G$23-2=M$69,0,IF(AND(M$69-$D99=1,'Program Info'!$G$23=4),L99*$K$25, IF(AND(M$69-$D99>=2,'Program Info'!$G$23=4),L99*$N$25, IF(AND(M$69-$D99=1,'Program Info'!$G$23=5),L99*$K$26, IF(AND(M$69-$D99>=2,'Program Info'!$G$23=5),L99*$N$26,L99*'Program Info'!$E$23)))))))),2) ->  | N99: =ROUND(IF('Program Info'!$H$14="GRAD",0,IF($D99>N$69,0,IF(N$69=$D99,OFFSET('Program Info'!$E$47,0,N$69-1,1,1),IF($D99+'Program Info'!$G$23-2=N$69,0,IF(AND(N$69-$D99=1,'Program Info'!$G$23=4),M99*$K$25, IF(AND(N$69-$D99>=2,'Program Info'!$G$23=4),M99*$N$25, IF(AND(N$69-$D99=1,'Program Info'!$G$23=5),M99*$K$26, IF(AND(N$69-$D99>=2,'Program Info'!$G$23=5),M99*$N$26,M99*'Program Info'!$E$23)))))))),2) ->  | O99: =ROUND(IF('Program Info'!$H$14="GRAD",0,IF($D99>O$69,0,IF(O$69=$D99,OFFSET('Program Info'!$E$47,0,O$69-1,1,1),IF($D99+'Program Info'!$G$23-2=O$69,0,IF(AND(O$69-$D99=1,'Program Info'!$G$23=4),N99*$K$25, IF(AND(O$69-$D99>=2,'Program Info'!$G$23=4),N99*$N$25, IF(AND(O$69-$D99=1,'Program Info'!$G$23=5),N99*$K$26, IF(AND(O$69-$D99>=2,'Program Info'!$G$23=5),N99*$N$26,N99*'Program Info'!$E$23)))))))),2) -> 
B100: 4 | D100: 3 | E100: =ROUND(IF('Program Info'!$H$14="GRAD",0,IF($D100>E$69,0,IF(E$69=$D100,OFFSET('Program Info'!$E$47,0,E$69-1,1,1),IF($D100+'Program Info'!$G$23-2=E$69,0,IF(AND(E$69-$D100=1,'Program Info'!$G$23=4),D100*$K$25, IF(AND(E$69-$D100>=2,'Program Info'!$G$23=4),D100*$N$25, IF(AND(E$69-$D100=1,'Program Info'!$G$23=5),D100*$K$26, IF(AND(E$69-$D100>=2,'Program Info'!$G$23=5),D100*$N$26,D100*'Program Info'!$E$23)))))))),2) ->  | F100: =ROUND(IF('Program Info'!$H$14="GRAD",0,IF($D100>F$69,0,IF(F$69=$D100,OFFSET('Program Info'!$E$47,0,F$69-1,1,1),IF($D100+'Program Info'!$G$23-2=F$69,0,IF(AND(F$69-$D100=1,'Program Info'!$G$23=4),E100*$K$25, IF(AND(F$69-$D100>=2,'Program Info'!$G$23=4),E100*$N$25, IF(AND(F$69-$D100=1,'Program Info'!$G$23=5),E100*$K$26, IF(AND(F$69-$D100>=2,'Program Info'!$G$23=5),E100*$N$26,E100*'Program Info'!$E$23)))))))),2) ->  | G100: =ROUND(IF('Program Info'!$H$14="GRAD",0,IF($D100>G$69,0,IF(G$69=$D100,OFFSET('Program Info'!$E$47,0,G$69-1,1,1),IF($D100+'Program Info'!$G$23-2=G$69,0,IF(AND(G$69-$D100=1,'Program Info'!$G$23=4),F100*$K$25, IF(AND(G$69-$D100>=2,'Program Info'!$G$23=4),F100*$N$25, IF(AND(G$69-$D100=1,'Program Info'!$G$23=5),F100*$K$26, IF(AND(G$69-$D100>=2,'Program Info'!$G$23=5),F100*$N$26,F100*'Program Info'!$E$23)))))))),2) ->  | H100: =ROUND(IF('Program Info'!$H$14="GRAD",0,IF($D100>H$69,0,IF(H$69=$D100,OFFSET('Program Info'!$E$47,0,H$69-1,1,1),IF($D100+'Program Info'!$G$23-2=H$69,0,IF(AND(H$69-$D100=1,'Program Info'!$G$23=4),G100*$K$25, IF(AND(H$69-$D100>=2,'Program Info'!$G$23=4),G100*$N$25, IF(AND(H$69-$D100=1,'Program Info'!$G$23=5),G100*$K$26, IF(AND(H$69-$D100>=2,'Program Info'!$G$23=5),G100*$N$26,G100*'Program Info'!$E$23)))))))),2) ->  | I100: =ROUND(IF('Program Info'!$H$14="GRAD",0,IF($D100>I$69,0,IF(I$69=$D100,OFFSET('Program Info'!$E$47,0,I$69-1,1,1),IF($D100+'Program Info'!$G$23-2=I$69,0,IF(AND(I$69-$D100=1,'Program Info'!$G$23=4),H100*$K$25, IF(AND(I$69-$D100>=2,'Program Info'!$G$23=4),H100*$N$25, IF(AND(I$69-$D100=1,'Program Info'!$G$23=5),H100*$K$26, IF(AND(I$69-$D100>=2,'Program Info'!$G$23=5),H100*$N$26,H100*'Program Info'!$E$23)))))))),2) ->  | J100: =ROUND(IF('Program Info'!$H$14="GRAD",0,IF($D100>J$69,0,IF(J$69=$D100,OFFSET('Program Info'!$E$47,0,J$69-1,1,1),IF($D100+'Program Info'!$G$23-2=J$69,0,IF(AND(J$69-$D100=1,'Program Info'!$G$23=4),I100*$K$25, IF(AND(J$69-$D100>=2,'Program Info'!$G$23=4),I100*$N$25, IF(AND(J$69-$D100=1,'Program Info'!$G$23=5),I100*$K$26, IF(AND(J$69-$D100>=2,'Program Info'!$G$23=5),I100*$N$26,I100*'Program Info'!$E$23)))))))),2) ->  | K100: =ROUND(IF('Program Info'!$H$14="GRAD",0,IF($D100>K$69,0,IF(K$69=$D100,OFFSET('Program Info'!$E$47,0,K$69-1,1,1),IF($D100+'Program Info'!$G$23-2=K$69,0,IF(AND(K$69-$D100=1,'Program Info'!$G$23=4),J100*$K$25, IF(AND(K$69-$D100>=2,'Program Info'!$G$23=4),J100*$N$25, IF(AND(K$69-$D100=1,'Program Info'!$G$23=5),J100*$K$26, IF(AND(K$69-$D100>=2,'Program Info'!$G$23=5),J100*$N$26,J100*'Program Info'!$E$23)))))))),2) ->  | L100: =ROUND(IF('Program Info'!$H$14="GRAD",0,IF($D100>L$69,0,IF(L$69=$D100,OFFSET('Program Info'!$E$47,0,L$69-1,1,1),IF($D100+'Program Info'!$G$23-2=L$69,0,IF(AND(L$69-$D100=1,'Program Info'!$G$23=4),K100*$K$25, IF(AND(L$69-$D100>=2,'Program Info'!$G$23=4),K100*$N$25, IF(AND(L$69-$D100=1,'Program Info'!$G$23=5),K100*$K$26, IF(AND(L$69-$D100>=2,'Program Info'!$G$23=5),K100*$N$26,K100*'Program Info'!$E$23)))))))),2) ->  | M100: =ROUND(IF('Program Info'!$H$14="GRAD",0,IF($D100>M$69,0,IF(M$69=$D100,OFFSET('Program Info'!$E$47,0,M$69-1,1,1),IF($D100+'Program Info'!$G$23-2=M$69,0,IF(AND(M$69-$D100=1,'Program Info'!$G$23=4),L100*$K$25, IF(AND(M$69-$D100>=2,'Program Info'!$G$23=4),L100*$N$25, IF(AND(M$69-$D100=1,'Program Info'!$G$23=5),L100*$K$26, IF(AND(M$69-$D100>=2,'Program Info'!$G$23=5),L100*$N$26,L100*'Program Info'!$E$23)))))))),2) ->  | N100: =ROUND(IF('Program Info'!$H$14="GRAD",0,IF($D100>N$69,0,IF(N$69=$D100,OFFSET('Program Info'!$E$47,0,N$69-1,1,1),IF($D100+'Program Info'!$G$23-2=N$69,0,IF(AND(N$69-$D100=1,'Program Info'!$G$23=4),M100*$K$25, IF(AND(N$69-$D100>=2,'Program Info'!$G$23=4),M100*$N$25, IF(AND(N$69-$D100=1,'Program Info'!$G$23=5),M100*$K$26, IF(AND(N$69-$D100>=2,'Program Info'!$G$23=5),M100*$N$26,M100*'Program Info'!$E$23)))))))),2) ->  | O100: =ROUND(IF('Program Info'!$H$14="GRAD",0,IF($D100>O$69,0,IF(O$69=$D100,OFFSET('Program Info'!$E$47,0,O$69-1,1,1),IF($D100+'Program Info'!$G$23-2=O$69,0,IF(AND(O$69-$D100=1,'Program Info'!$G$23=4),N100*$K$25, IF(AND(O$69-$D100>=2,'Program Info'!$G$23=4),N100*$N$25, IF(AND(O$69-$D100=1,'Program Info'!$G$23=5),N100*$K$26, IF(AND(O$69-$D100>=2,'Program Info'!$G$23=5),N100*$N$26,N100*'Program Info'!$E$23)))))))),2) -> 
B101: 4 | D101: 4 | E101: =ROUND(IF('Program Info'!$H$14="GRAD",0,IF($D101>E$69,0,IF(E$69=$D101,OFFSET('Program Info'!$E$47,0,E$69-1,1,1),IF($D101+'Program Info'!$G$23-2=E$69,0,IF(AND(E$69-$D101=1,'Program Info'!$G$23=4),D101*$K$25, IF(AND(E$69-$D101>=2,'Program Info'!$G$23=4),D101*$N$25, IF(AND(E$69-$D101=1,'Program Info'!$G$23=5),D101*$K$26, IF(AND(E$69-$D101>=2,'Program Info'!$G$23=5),D101*$N$26,D101*'Program Info'!$E$23)))))))),2) ->  | F101: =ROUND(IF('Program Info'!$H$14="GRAD",0,IF($D101>F$69,0,IF(F$69=$D101,OFFSET('Program Info'!$E$47,0,F$69-1,1,1),IF($D101+'Program Info'!$G$23-2=F$69,0,IF(AND(F$69-$D101=1,'Program Info'!$G$23=4),E101*$K$25, IF(AND(F$69-$D101>=2,'Program Info'!$G$23=4),E101*$N$25, IF(AND(F$69-$D101=1,'Program Info'!$G$23=5),E101*$K$26, IF(AND(F$69-$D101>=2,'Program Info'!$G$23=5),E101*$N$26,E101*'Program Info'!$E$23)))))))),2) ->  | G101: =ROUND(IF('Program Info'!$H$14="GRAD",0,IF($D101>G$69,0,IF(G$69=$D101,OFFSET('Program Info'!$E$47,0,G$69-1,1,1),IF($D101+'Program Info'!$G$23-2=G$69,0,IF(AND(G$69-$D101=1,'Program Info'!$G$23=4),F101*$K$25, IF(AND(G$69-$D101>=2,'Program Info'!$G$23=4),F101*$N$25, IF(AND(G$69-$D101=1,'Program Info'!$G$23=5),F101*$K$26, IF(AND(G$69-$D101>=2,'Program Info'!$G$23=5),F101*$N$26,F101*'Program Info'!$E$23)))))))),2) ->  | H101: =ROUND(IF('Program Info'!$H$14="GRAD",0,IF($D101>H$69,0,IF(H$69=$D101,OFFSET('Program Info'!$E$47,0,H$69-1,1,1),IF($D101+'Program Info'!$G$23-2=H$69,0,IF(AND(H$69-$D101=1,'Program Info'!$G$23=4),G101*$K$25, IF(AND(H$69-$D101>=2,'Program Info'!$G$23=4),G101*$N$25, IF(AND(H$69-$D101=1,'Program Info'!$G$23=5),G101*$K$26, IF(AND(H$69-$D101>=2,'Program Info'!$G$23=5),G101*$N$26,G101*'Program Info'!$E$23)))))))),2) ->  | I101: =ROUND(IF('Program Info'!$H$14="GRAD",0,IF($D101>I$69,0,IF(I$69=$D101,OFFSET('Program Info'!$E$47,0,I$69-1,1,1),IF($D101+'Program Info'!$G$23-2=I$69,0,IF(AND(I$69-$D101=1,'Program Info'!$G$23=4),H101*$K$25, IF(AND(I$69-$D101>=2,'Program Info'!$G$23=4),H101*$N$25, IF(AND(I$69-$D101=1,'Program Info'!$G$23=5),H101*$K$26, IF(AND(I$69-$D101>=2,'Program Info'!$G$23=5),H101*$N$26,H101*'Program Info'!$E$23)))))))),2) ->  | J101: =ROUND(IF('Program Info'!$H$14="GRAD",0,IF($D101>J$69,0,IF(J$69=$D101,OFFSET('Program Info'!$E$47,0,J$69-1,1,1),IF($D101+'Program Info'!$G$23-2=J$69,0,IF(AND(J$69-$D101=1,'Program Info'!$G$23=4),I101*$K$25, IF(AND(J$69-$D101>=2,'Program Info'!$G$23=4),I101*$N$25, IF(AND(J$69-$D101=1,'Program Info'!$G$23=5),I101*$K$26, IF(AND(J$69-$D101>=2,'Program Info'!$G$23=5),I101*$N$26,I101*'Program Info'!$E$23)))))))),2) ->  | K101: =ROUND(IF('Program Info'!$H$14="GRAD",0,IF($D101>K$69,0,IF(K$69=$D101,OFFSET('Program Info'!$E$47,0,K$69-1,1,1),IF($D101+'Program Info'!$G$23-2=K$69,0,IF(AND(K$69-$D101=1,'Program Info'!$G$23=4),J101*$K$25, IF(AND(K$69-$D101>=2,'Program Info'!$G$23=4),J101*$N$25, IF(AND(K$69-$D101=1,'Program Info'!$G$23=5),J101*$K$26, IF(AND(K$69-$D101>=2,'Program Info'!$G$23=5),J101*$N$26,J101*'Program Info'!$E$23)))))))),2) ->  | L101: =ROUND(IF('Program Info'!$H$14="GRAD",0,IF($D101>L$69,0,IF(L$69=$D101,OFFSET('Program Info'!$E$47,0,L$69-1,1,1),IF($D101+'Program Info'!$G$23-2=L$69,0,IF(AND(L$69-$D101=1,'Program Info'!$G$23=4),K101*$K$25, IF(AND(L$69-$D101>=2,'Program Info'!$G$23=4),K101*$N$25, IF(AND(L$69-$D101=1,'Program Info'!$G$23=5),K101*$K$26, IF(AND(L$69-$D101>=2,'Program Info'!$G$23=5),K101*$N$26,K101*'Program Info'!$E$23)))))))),2) ->  | M101: =ROUND(IF('Program Info'!$H$14="GRAD",0,IF($D101>M$69,0,IF(M$69=$D101,OFFSET('Program Info'!$E$47,0,M$69-1,1,1),IF($D101+'Program Info'!$G$23-2=M$69,0,IF(AND(M$69-$D101=1,'Program Info'!$G$23=4),L101*$K$25, IF(AND(M$69-$D101>=2,'Program Info'!$G$23=4),L101*$N$25, IF(AND(M$69-$D101=1,'Program Info'!$G$23=5),L101*$K$26, IF(AND(M$69-$D101>=2,'Program Info'!$G$23=5),L101*$N$26,L101*'Program Info'!$E$23)))))))),2) ->  | N101: =ROUND(IF('Program Info'!$H$14="GRAD",0,IF($D101>N$69,0,IF(N$69=$D101,OFFSET('Program Info'!$E$47,0,N$69-1,1,1),IF($D101+'Program Info'!$G$23-2=N$69,0,IF(AND(N$69-$D101=1,'Program Info'!$G$23=4),M101*$K$25, IF(AND(N$69-$D101>=2,'Program Info'!$G$23=4),M101*$N$25, IF(AND(N$69-$D101=1,'Program Info'!$G$23=5),M101*$K$26, IF(AND(N$69-$D101>=2,'Program Info'!$G$23=5),M101*$N$26,M101*'Program Info'!$E$23)))))))),2) ->  | O101: =ROUND(IF('Program Info'!$H$14="GRAD",0,IF($D101>O$69,0,IF(O$69=$D101,OFFSET('Program Info'!$E$47,0,O$69-1,1,1),IF($D101+'Program Info'!$G$23-2=O$69,0,IF(AND(O$69-$D101=1,'Program Info'!$G$23=4),N101*$K$25, IF(AND(O$69-$D101>=2,'Program Info'!$G$23=4),N101*$N$25, IF(AND(O$69-$D101=1,'Program Info'!$G$23=5),N101*$K$26, IF(AND(O$69-$D101>=2,'Program Info'!$G$23=5),N101*$N$26,N101*'Program Info'!$E$23)))))))),2) -> 
B102: 4 | D102: 5 | E102: =ROUND(IF('Program Info'!$H$14="GRAD",0,IF($D102>E$69,0,IF(E$69=$D102,OFFSET('Program Info'!$E$47,0,E$69-1,1,1),IF($D102+'Program Info'!$G$23-2=E$69,0,IF(AND(E$69-$D102=1,'Program Info'!$G$23=4),D102*$K$25, IF(AND(E$69-$D102>=2,'Program Info'!$G$23=4),D102*$N$25, IF(AND(E$69-$D102=1,'Program Info'!$G$23=5),D102*$K$26, IF(AND(E$69-$D102>=2,'Program Info'!$G$23=5),D102*$N$26,D102*'Program Info'!$E$23)))))))),2) ->  | F102: =ROUND(IF('Program Info'!$H$14="GRAD",0,IF($D102>F$69,0,IF(F$69=$D102,OFFSET('Program Info'!$E$47,0,F$69-1,1,1),IF($D102+'Program Info'!$G$23-2=F$69,0,IF(AND(F$69-$D102=1,'Program Info'!$G$23=4),E102*$K$25, IF(AND(F$69-$D102>=2,'Program Info'!$G$23=4),E102*$N$25, IF(AND(F$69-$D102=1,'Program Info'!$G$23=5),E102*$K$26, IF(AND(F$69-$D102>=2,'Program Info'!$G$23=5),E102*$N$26,E102*'Program Info'!$E$23)))))))),2) ->  | G102: =ROUND(IF('Program Info'!$H$14="GRAD",0,IF($D102>G$69,0,IF(G$69=$D102,OFFSET('Program Info'!$E$47,0,G$69-1,1,1),IF($D102+'Program Info'!$G$23-2=G$69,0,IF(AND(G$69-$D102=1,'Program Info'!$G$23=4),F102*$K$25, IF(AND(G$69-$D102>=2,'Program Info'!$G$23=4),F102*$N$25, IF(AND(G$69-$D102=1,'Program Info'!$G$23=5),F102*$K$26, IF(AND(G$69-$D102>=2,'Program Info'!$G$23=5),F102*$N$26,F102*'Program Info'!$E$23)))))))),2) ->  | H102: =ROUND(IF('Program Info'!$H$14="GRAD",0,IF($D102>H$69,0,IF(H$69=$D102,OFFSET('Program Info'!$E$47,0,H$69-1,1,1),IF($D102+'Program Info'!$G$23-2=H$69,0,IF(AND(H$69-$D102=1,'Program Info'!$G$23=4),G102*$K$25, IF(AND(H$69-$D102>=2,'Program Info'!$G$23=4),G102*$N$25, IF(AND(H$69-$D102=1,'Program Info'!$G$23=5),G102*$K$26, IF(AND(H$69-$D102>=2,'Program Info'!$G$23=5),G102*$N$26,G102*'Program Info'!$E$23)))))))),2) ->  | I102: =ROUND(IF('Program Info'!$H$14="GRAD",0,IF($D102>I$69,0,IF(I$69=$D102,OFFSET('Program Info'!$E$47,0,I$69-1,1,1),IF($D102+'Program Info'!$G$23-2=I$69,0,IF(AND(I$69-$D102=1,'Program Info'!$G$23=4),H102*$K$25, IF(AND(I$69-$D102>=2,'Program Info'!$G$23=4),H102*$N$25, IF(AND(I$69-$D102=1,'Program Info'!$G$23=5),H102*$K$26, IF(AND(I$69-$D102>=2,'Program Info'!$G$23=5),H102*$N$26,H102*'Program Info'!$E$23)))))))),2) ->  | J102: =ROUND(IF('Program Info'!$H$14="GRAD",0,IF($D102>J$69,0,IF(J$69=$D102,OFFSET('Program Info'!$E$47,0,J$69-1,1,1),IF($D102+'Program Info'!$G$23-2=J$69,0,IF(AND(J$69-$D102=1,'Program Info'!$G$23=4),I102*$K$25, IF(AND(J$69-$D102>=2,'Program Info'!$G$23=4),I102*$N$25, IF(AND(J$69-$D102=1,'Program Info'!$G$23=5),I102*$K$26, IF(AND(J$69-$D102>=2,'Program Info'!$G$23=5),I102*$N$26,I102*'Program Info'!$E$23)))))))),2) ->  | K102: =ROUND(IF('Program Info'!$H$14="GRAD",0,IF($D102>K$69,0,IF(K$69=$D102,OFFSET('Program Info'!$E$47,0,K$69-1,1,1),IF($D102+'Program Info'!$G$23-2=K$69,0,IF(AND(K$69-$D102=1,'Program Info'!$G$23=4),J102*$K$25, IF(AND(K$69-$D102>=2,'Program Info'!$G$23=4),J102*$N$25, IF(AND(K$69-$D102=1,'Program Info'!$G$23=5),J102*$K$26, IF(AND(K$69-$D102>=2,'Program Info'!$G$23=5),J102*$N$26,J102*'Program Info'!$E$23)))))))),2) ->  | L102: =ROUND(IF('Program Info'!$H$14="GRAD",0,IF($D102>L$69,0,IF(L$69=$D102,OFFSET('Program Info'!$E$47,0,L$69-1,1,1),IF($D102+'Program Info'!$G$23-2=L$69,0,IF(AND(L$69-$D102=1,'Program Info'!$G$23=4),K102*$K$25, IF(AND(L$69-$D102>=2,'Program Info'!$G$23=4),K102*$N$25, IF(AND(L$69-$D102=1,'Program Info'!$G$23=5),K102*$K$26, IF(AND(L$69-$D102>=2,'Program Info'!$G$23=5),K102*$N$26,K102*'Program Info'!$E$23)))))))),2) ->  | M102: =ROUND(IF('Program Info'!$H$14="GRAD",0,IF($D102>M$69,0,IF(M$69=$D102,OFFSET('Program Info'!$E$47,0,M$69-1,1,1),IF($D102+'Program Info'!$G$23-2=M$69,0,IF(AND(M$69-$D102=1,'Program Info'!$G$23=4),L102*$K$25, IF(AND(M$69-$D102>=2,'Program Info'!$G$23=4),L102*$N$25, IF(AND(M$69-$D102=1,'Program Info'!$G$23=5),L102*$K$26, IF(AND(M$69-$D102>=2,'Program Info'!$G$23=5),L102*$N$26,L102*'Program Info'!$E$23)))))))),2) ->  | N102: =ROUND(IF('Program Info'!$H$14="GRAD",0,IF($D102>N$69,0,IF(N$69=$D102,OFFSET('Program Info'!$E$47,0,N$69-1,1,1),IF($D102+'Program Info'!$G$23-2=N$69,0,IF(AND(N$69-$D102=1,'Program Info'!$G$23=4),M102*$K$25, IF(AND(N$69-$D102>=2,'Program Info'!$G$23=4),M102*$N$25, IF(AND(N$69-$D102=1,'Program Info'!$G$23=5),M102*$K$26, IF(AND(N$69-$D102>=2,'Program Info'!$G$23=5),M102*$N$26,M102*'Program Info'!$E$23)))))))),2) ->  | O102: =ROUND(IF('Program Info'!$H$14="GRAD",0,IF($D102>O$69,0,IF(O$69=$D102,OFFSET('Program Info'!$E$47,0,O$69-1,1,1),IF($D102+'Program Info'!$G$23-2=O$69,0,IF(AND(O$69-$D102=1,'Program Info'!$G$23=4),N102*$K$25, IF(AND(O$69-$D102>=2,'Program Info'!$G$23=4),N102*$N$25, IF(AND(O$69-$D102=1,'Program Info'!$G$23=5),N102*$K$26, IF(AND(O$69-$D102>=2,'Program Info'!$G$23=5),N102*$N$26,N102*'Program Info'!$E$23)))))))),2) -> 
B103: 4 | D103: 6 | E103: =ROUND(IF('Program Info'!$H$14="GRAD",0,IF($D103>E$69,0,IF(E$69=$D103,OFFSET('Program Info'!$E$47,0,E$69-1,1,1),IF($D103+'Program Info'!$G$23-2=E$69,0,IF(AND(E$69-$D103=1,'Program Info'!$G$23=4),D103*$K$25, IF(AND(E$69-$D103>=2,'Program Info'!$G$23=4),D103*$N$25, IF(AND(E$69-$D103=1,'Program Info'!$G$23=5),D103*$K$26, IF(AND(E$69-$D103>=2,'Program Info'!$G$23=5),D103*$N$26,D103*'Program Info'!$E$23)))))))),2) ->  | F103: =ROUND(IF('Program Info'!$H$14="GRAD",0,IF($D103>F$69,0,IF(F$69=$D103,OFFSET('Program Info'!$E$47,0,F$69-1,1,1),IF($D103+'Program Info'!$G$23-2=F$69,0,IF(AND(F$69-$D103=1,'Program Info'!$G$23=4),E103*$K$25, IF(AND(F$69-$D103>=2,'Program Info'!$G$23=4),E103*$N$25, IF(AND(F$69-$D103=1,'Program Info'!$G$23=5),E103*$K$26, IF(AND(F$69-$D103>=2,'Program Info'!$G$23=5),E103*$N$26,E103*'Program Info'!$E$23)))))))),2) ->  | G103: =ROUND(IF('Program Info'!$H$14="GRAD",0,IF($D103>G$69,0,IF(G$69=$D103,OFFSET('Program Info'!$E$47,0,G$69-1,1,1),IF($D103+'Program Info'!$G$23-2=G$69,0,IF(AND(G$69-$D103=1,'Program Info'!$G$23=4),F103*$K$25, IF(AND(G$69-$D103>=2,'Program Info'!$G$23=4),F103*$N$25, IF(AND(G$69-$D103=1,'Program Info'!$G$23=5),F103*$K$26, IF(AND(G$69-$D103>=2,'Program Info'!$G$23=5),F103*$N$26,F103*'Program Info'!$E$23)))))))),2) ->  | H103: =ROUND(IF('Program Info'!$H$14="GRAD",0,IF($D103>H$69,0,IF(H$69=$D103,OFFSET('Program Info'!$E$47,0,H$69-1,1,1),IF($D103+'Program Info'!$G$23-2=H$69,0,IF(AND(H$69-$D103=1,'Program Info'!$G$23=4),G103*$K$25, IF(AND(H$69-$D103>=2,'Program Info'!$G$23=4),G103*$N$25, IF(AND(H$69-$D103=1,'Program Info'!$G$23=5),G103*$K$26, IF(AND(H$69-$D103>=2,'Program Info'!$G$23=5),G103*$N$26,G103*'Program Info'!$E$23)))))))),2) ->  | I103: =ROUND(IF('Program Info'!$H$14="GRAD",0,IF($D103>I$69,0,IF(I$69=$D103,OFFSET('Program Info'!$E$47,0,I$69-1,1,1),IF($D103+'Program Info'!$G$23-2=I$69,0,IF(AND(I$69-$D103=1,'Program Info'!$G$23=4),H103*$K$25, IF(AND(I$69-$D103>=2,'Program Info'!$G$23=4),H103*$N$25, IF(AND(I$69-$D103=1,'Program Info'!$G$23=5),H103*$K$26, IF(AND(I$69-$D103>=2,'Program Info'!$G$23=5),H103*$N$26,H103*'Program Info'!$E$23)))))))),2) ->  | J103: =ROUND(IF('Program Info'!$H$14="GRAD",0,IF($D103>J$69,0,IF(J$69=$D103,OFFSET('Program Info'!$E$47,0,J$69-1,1,1),IF($D103+'Program Info'!$G$23-2=J$69,0,IF(AND(J$69-$D103=1,'Program Info'!$G$23=4),I103*$K$25, IF(AND(J$69-$D103>=2,'Program Info'!$G$23=4),I103*$N$25, IF(AND(J$69-$D103=1,'Program Info'!$G$23=5),I103*$K$26, IF(AND(J$69-$D103>=2,'Program Info'!$G$23=5),I103*$N$26,I103*'Program Info'!$E$23)))))))),2) ->  | K103: =ROUND(IF('Program Info'!$H$14="GRAD",0,IF($D103>K$69,0,IF(K$69=$D103,OFFSET('Program Info'!$E$47,0,K$69-1,1,1),IF($D103+'Program Info'!$G$23-2=K$69,0,IF(AND(K$69-$D103=1,'Program Info'!$G$23=4),J103*$K$25, IF(AND(K$69-$D103>=2,'Program Info'!$G$23=4),J103*$N$25, IF(AND(K$69-$D103=1,'Program Info'!$G$23=5),J103*$K$26, IF(AND(K$69-$D103>=2,'Program Info'!$G$23=5),J103*$N$26,J103*'Program Info'!$E$23)))))))),2) ->  | L103: =ROUND(IF('Program Info'!$H$14="GRAD",0,IF($D103>L$69,0,IF(L$69=$D103,OFFSET('Program Info'!$E$47,0,L$69-1,1,1),IF($D103+'Program Info'!$G$23-2=L$69,0,IF(AND(L$69-$D103=1,'Program Info'!$G$23=4),K103*$K$25, IF(AND(L$69-$D103>=2,'Program Info'!$G$23=4),K103*$N$25, IF(AND(L$69-$D103=1,'Program Info'!$G$23=5),K103*$K$26, IF(AND(L$69-$D103>=2,'Program Info'!$G$23=5),K103*$N$26,K103*'Program Info'!$E$23)))))))),2) ->  | M103: =ROUND(IF('Program Info'!$H$14="GRAD",0,IF($D103>M$69,0,IF(M$69=$D103,OFFSET('Program Info'!$E$47,0,M$69-1,1,1),IF($D103+'Program Info'!$G$23-2=M$69,0,IF(AND(M$69-$D103=1,'Program Info'!$G$23=4),L103*$K$25, IF(AND(M$69-$D103>=2,'Program Info'!$G$23=4),L103*$N$25, IF(AND(M$69-$D103=1,'Program Info'!$G$23=5),L103*$K$26, IF(AND(M$69-$D103>=2,'Program Info'!$G$23=5),L103*$N$26,L103*'Program Info'!$E$23)))))))),2) ->  | N103: =ROUND(IF('Program Info'!$H$14="GRAD",0,IF($D103>N$69,0,IF(N$69=$D103,OFFSET('Program Info'!$E$47,0,N$69-1,1,1),IF($D103+'Program Info'!$G$23-2=N$69,0,IF(AND(N$69-$D103=1,'Program Info'!$G$23=4),M103*$K$25, IF(AND(N$69-$D103>=2,'Program Info'!$G$23=4),M103*$N$25, IF(AND(N$69-$D103=1,'Program Info'!$G$23=5),M103*$K$26, IF(AND(N$69-$D103>=2,'Program Info'!$G$23=5),M103*$N$26,M103*'Program Info'!$E$23)))))))),2) ->  | O103: =ROUND(IF('Program Info'!$H$14="GRAD",0,IF($D103>O$69,0,IF(O$69=$D103,OFFSET('Program Info'!$E$47,0,O$69-1,1,1),IF($D103+'Program Info'!$G$23-2=O$69,0,IF(AND(O$69-$D103=1,'Program Info'!$G$23=4),N103*$K$25, IF(AND(O$69-$D103>=2,'Program Info'!$G$23=4),N103*$N$25, IF(AND(O$69-$D103=1,'Program Info'!$G$23=5),N103*$K$26, IF(AND(O$69-$D103>=2,'Program Info'!$G$23=5),N103*$N$26,N103*'Program Info'!$E$23)))))))),2) -> 
B104: 4 | D104: 7 | E104: =ROUND(IF('Program Info'!$H$14="GRAD",0,IF($D104>E$69,0,IF(E$69=$D104,OFFSET('Program Info'!$E$47,0,E$69-1,1,1),IF($D104+'Program Info'!$G$23-2=E$69,0,IF(AND(E$69-$D104=1,'Program Info'!$G$23=4),D104*$K$25, IF(AND(E$69-$D104>=2,'Program Info'!$G$23=4),D104*$N$25, IF(AND(E$69-$D104=1,'Program Info'!$G$23=5),D104*$K$26, IF(AND(E$69-$D104>=2,'Program Info'!$G$23=5),D104*$N$26,D104*'Program Info'!$E$23)))))))),2) ->  | F104: =ROUND(IF('Program Info'!$H$14="GRAD",0,IF($D104>F$69,0,IF(F$69=$D104,OFFSET('Program Info'!$E$47,0,F$69-1,1,1),IF($D104+'Program Info'!$G$23-2=F$69,0,IF(AND(F$69-$D104=1,'Program Info'!$G$23=4),E104*$K$25, IF(AND(F$69-$D104>=2,'Program Info'!$G$23=4),E104*$N$25, IF(AND(F$69-$D104=1,'Program Info'!$G$23=5),E104*$K$26, IF(AND(F$69-$D104>=2,'Program Info'!$G$23=5),E104*$N$26,E104*'Program Info'!$E$23)))))))),2) ->  | G104: =ROUND(IF('Program Info'!$H$14="GRAD",0,IF($D104>G$69,0,IF(G$69=$D104,OFFSET('Program Info'!$E$47,0,G$69-1,1,1),IF($D104+'Program Info'!$G$23-2=G$69,0,IF(AND(G$69-$D104=1,'Program Info'!$G$23=4),F104*$K$25, IF(AND(G$69-$D104>=2,'Program Info'!$G$23=4),F104*$N$25, IF(AND(G$69-$D104=1,'Program Info'!$G$23=5),F104*$K$26, IF(AND(G$69-$D104>=2,'Program Info'!$G$23=5),F104*$N$26,F104*'Program Info'!$E$23)))))))),2) ->  | H104: =ROUND(IF('Program Info'!$H$14="GRAD",0,IF($D104>H$69,0,IF(H$69=$D104,OFFSET('Program Info'!$E$47,0,H$69-1,1,1),IF($D104+'Program Info'!$G$23-2=H$69,0,IF(AND(H$69-$D104=1,'Program Info'!$G$23=4),G104*$K$25, IF(AND(H$69-$D104>=2,'Program Info'!$G$23=4),G104*$N$25, IF(AND(H$69-$D104=1,'Program Info'!$G$23=5),G104*$K$26, IF(AND(H$69-$D104>=2,'Program Info'!$G$23=5),G104*$N$26,G104*'Program Info'!$E$23)))))))),2) ->  | I104: =ROUND(IF('Program Info'!$H$14="GRAD",0,IF($D104>I$69,0,IF(I$69=$D104,OFFSET('Program Info'!$E$47,0,I$69-1,1,1),IF($D104+'Program Info'!$G$23-2=I$69,0,IF(AND(I$69-$D104=1,'Program Info'!$G$23=4),H104*$K$25, IF(AND(I$69-$D104>=2,'Program Info'!$G$23=4),H104*$N$25, IF(AND(I$69-$D104=1,'Program Info'!$G$23=5),H104*$K$26, IF(AND(I$69-$D104>=2,'Program Info'!$G$23=5),H104*$N$26,H104*'Program Info'!$E$23)))))))),2) ->  | J104: =ROUND(IF('Program Info'!$H$14="GRAD",0,IF($D104>J$69,0,IF(J$69=$D104,OFFSET('Program Info'!$E$47,0,J$69-1,1,1),IF($D104+'Program Info'!$G$23-2=J$69,0,IF(AND(J$69-$D104=1,'Program Info'!$G$23=4),I104*$K$25, IF(AND(J$69-$D104>=2,'Program Info'!$G$23=4),I104*$N$25, IF(AND(J$69-$D104=1,'Program Info'!$G$23=5),I104*$K$26, IF(AND(J$69-$D104>=2,'Program Info'!$G$23=5),I104*$N$26,I104*'Program Info'!$E$23)))))))),2) ->  | K104: =ROUND(IF('Program Info'!$H$14="GRAD",0,IF($D104>K$69,0,IF(K$69=$D104,OFFSET('Program Info'!$E$47,0,K$69-1,1,1),IF($D104+'Program Info'!$G$23-2=K$69,0,IF(AND(K$69-$D104=1,'Program Info'!$G$23=4),J104*$K$25, IF(AND(K$69-$D104>=2,'Program Info'!$G$23=4),J104*$N$25, IF(AND(K$69-$D104=1,'Program Info'!$G$23=5),J104*$K$26, IF(AND(K$69-$D104>=2,'Program Info'!$G$23=5),J104*$N$26,J104*'Program Info'!$E$23)))))))),2) ->  | L104: =ROUND(IF('Program Info'!$H$14="GRAD",0,IF($D104>L$69,0,IF(L$69=$D104,OFFSET('Program Info'!$E$47,0,L$69-1,1,1),IF($D104+'Program Info'!$G$23-2=L$69,0,IF(AND(L$69-$D104=1,'Program Info'!$G$23=4),K104*$K$25, IF(AND(L$69-$D104>=2,'Program Info'!$G$23=4),K104*$N$25, IF(AND(L$69-$D104=1,'Program Info'!$G$23=5),K104*$K$26, IF(AND(L$69-$D104>=2,'Program Info'!$G$23=5),K104*$N$26,K104*'Program Info'!$E$23)))))))),2) ->  | M104: =ROUND(IF('Program Info'!$H$14="GRAD",0,IF($D104>M$69,0,IF(M$69=$D104,OFFSET('Program Info'!$E$47,0,M$69-1,1,1),IF($D104+'Program Info'!$G$23-2=M$69,0,IF(AND(M$69-$D104=1,'Program Info'!$G$23=4),L104*$K$25, IF(AND(M$69-$D104>=2,'Program Info'!$G$23=4),L104*$N$25, IF(AND(M$69-$D104=1,'Program Info'!$G$23=5),L104*$K$26, IF(AND(M$69-$D104>=2,'Program Info'!$G$23=5),L104*$N$26,L104*'Program Info'!$E$23)))))))),2) ->  | N104: =ROUND(IF('Program Info'!$H$14="GRAD",0,IF($D104>N$69,0,IF(N$69=$D104,OFFSET('Program Info'!$E$47,0,N$69-1,1,1),IF($D104+'Program Info'!$G$23-2=N$69,0,IF(AND(N$69-$D104=1,'Program Info'!$G$23=4),M104*$K$25, IF(AND(N$69-$D104>=2,'Program Info'!$G$23=4),M104*$N$25, IF(AND(N$69-$D104=1,'Program Info'!$G$23=5),M104*$K$26, IF(AND(N$69-$D104>=2,'Program Info'!$G$23=5),M104*$N$26,M104*'Program Info'!$E$23)))))))),2) ->  | O104: =ROUND(IF('Program Info'!$H$14="GRAD",0,IF($D104>O$69,0,IF(O$69=$D104,OFFSET('Program Info'!$E$47,0,O$69-1,1,1),IF($D104+'Program Info'!$G$23-2=O$69,0,IF(AND(O$69-$D104=1,'Program Info'!$G$23=4),N104*$K$25, IF(AND(O$69-$D104>=2,'Program Info'!$G$23=4),N104*$N$25, IF(AND(O$69-$D104=1,'Program Info'!$G$23=5),N104*$K$26, IF(AND(O$69-$D104>=2,'Program Info'!$G$23=5),N104*$N$26,N104*'Program Info'!$E$23)))))))),2) -> 
B105: 4 | D105: 8 | E105: =ROUND(IF('Program Info'!$H$14="GRAD",0,IF($D105>E$69,0,IF(E$69=$D105,OFFSET('Program Info'!$E$47,0,E$69-1,1,1),IF($D105+'Program Info'!$G$23-2=E$69,0,IF(AND(E$69-$D105=1,'Program Info'!$G$23=4),D105*$K$25, IF(AND(E$69-$D105>=2,'Program Info'!$G$23=4),D105*$N$25, IF(AND(E$69-$D105=1,'Program Info'!$G$23=5),D105*$K$26, IF(AND(E$69-$D105>=2,'Program Info'!$G$23=5),D105*$N$26,D105*'Program Info'!$E$23)))))))),2) ->  | F105: =ROUND(IF('Program Info'!$H$14="GRAD",0,IF($D105>F$69,0,IF(F$69=$D105,OFFSET('Program Info'!$E$47,0,F$69-1,1,1),IF($D105+'Program Info'!$G$23-2=F$69,0,IF(AND(F$69-$D105=1,'Program Info'!$G$23=4),E105*$K$25, IF(AND(F$69-$D105>=2,'Program Info'!$G$23=4),E105*$N$25, IF(AND(F$69-$D105=1,'Program Info'!$G$23=5),E105*$K$26, IF(AND(F$69-$D105>=2,'Program Info'!$G$23=5),E105*$N$26,E105*'Program Info'!$E$23)))))))),2) ->  | G105: =ROUND(IF('Program Info'!$H$14="GRAD",0,IF($D105>G$69,0,IF(G$69=$D105,OFFSET('Program Info'!$E$47,0,G$69-1,1,1),IF($D105+'Program Info'!$G$23-2=G$69,0,IF(AND(G$69-$D105=1,'Program Info'!$G$23=4),F105*$K$25, IF(AND(G$69-$D105>=2,'Program Info'!$G$23=4),F105*$N$25, IF(AND(G$69-$D105=1,'Program Info'!$G$23=5),F105*$K$26, IF(AND(G$69-$D105>=2,'Program Info'!$G$23=5),F105*$N$26,F105*'Program Info'!$E$23)))))))),2) ->  | H105: =ROUND(IF('Program Info'!$H$14="GRAD",0,IF($D105>H$69,0,IF(H$69=$D105,OFFSET('Program Info'!$E$47,0,H$69-1,1,1),IF($D105+'Program Info'!$G$23-2=H$69,0,IF(AND(H$69-$D105=1,'Program Info'!$G$23=4),G105*$K$25, IF(AND(H$69-$D105>=2,'Program Info'!$G$23=4),G105*$N$25, IF(AND(H$69-$D105=1,'Program Info'!$G$23=5),G105*$K$26, IF(AND(H$69-$D105>=2,'Program Info'!$G$23=5),G105*$N$26,G105*'Program Info'!$E$23)))))))),2) ->  | I105: =ROUND(IF('Program Info'!$H$14="GRAD",0,IF($D105>I$69,0,IF(I$69=$D105,OFFSET('Program Info'!$E$47,0,I$69-1,1,1),IF($D105+'Program Info'!$G$23-2=I$69,0,IF(AND(I$69-$D105=1,'Program Info'!$G$23=4),H105*$K$25, IF(AND(I$69-$D105>=2,'Program Info'!$G$23=4),H105*$N$25, IF(AND(I$69-$D105=1,'Program Info'!$G$23=5),H105*$K$26, IF(AND(I$69-$D105>=2,'Program Info'!$G$23=5),H105*$N$26,H105*'Program Info'!$E$23)))))))),2) ->  | J105: =ROUND(IF('Program Info'!$H$14="GRAD",0,IF($D105>J$69,0,IF(J$69=$D105,OFFSET('Program Info'!$E$47,0,J$69-1,1,1),IF($D105+'Program Info'!$G$23-2=J$69,0,IF(AND(J$69-$D105=1,'Program Info'!$G$23=4),I105*$K$25, IF(AND(J$69-$D105>=2,'Program Info'!$G$23=4),I105*$N$25, IF(AND(J$69-$D105=1,'Program Info'!$G$23=5),I105*$K$26, IF(AND(J$69-$D105>=2,'Program Info'!$G$23=5),I105*$N$26,I105*'Program Info'!$E$23)))))))),2) ->  | K105: =ROUND(IF('Program Info'!$H$14="GRAD",0,IF($D105>K$69,0,IF(K$69=$D105,OFFSET('Program Info'!$E$47,0,K$69-1,1,1),IF($D105+'Program Info'!$G$23-2=K$69,0,IF(AND(K$69-$D105=1,'Program Info'!$G$23=4),J105*$K$25, IF(AND(K$69-$D105>=2,'Program Info'!$G$23=4),J105*$N$25, IF(AND(K$69-$D105=1,'Program Info'!$G$23=5),J105*$K$26, IF(AND(K$69-$D105>=2,'Program Info'!$G$23=5),J105*$N$26,J105*'Program Info'!$E$23)))))))),2) ->  | L105: =ROUND(IF('Program Info'!$H$14="GRAD",0,IF($D105>L$69,0,IF(L$69=$D105,OFFSET('Program Info'!$E$47,0,L$69-1,1,1),IF($D105+'Program Info'!$G$23-2=L$69,0,IF(AND(L$69-$D105=1,'Program Info'!$G$23=4),K105*$K$25, IF(AND(L$69-$D105>=2,'Program Info'!$G$23=4),K105*$N$25, IF(AND(L$69-$D105=1,'Program Info'!$G$23=5),K105*$K$26, IF(AND(L$69-$D105>=2,'Program Info'!$G$23=5),K105*$N$26,K105*'Program Info'!$E$23)))))))),2) ->  | M105: =ROUND(IF('Program Info'!$H$14="GRAD",0,IF($D105>M$69,0,IF(M$69=$D105,OFFSET('Program Info'!$E$47,0,M$69-1,1,1),IF($D105+'Program Info'!$G$23-2=M$69,0,IF(AND(M$69-$D105=1,'Program Info'!$G$23=4),L105*$K$25, IF(AND(M$69-$D105>=2,'Program Info'!$G$23=4),L105*$N$25, IF(AND(M$69-$D105=1,'Program Info'!$G$23=5),L105*$K$26, IF(AND(M$69-$D105>=2,'Program Info'!$G$23=5),L105*$N$26,L105*'Program Info'!$E$23)))))))),2) ->  | N105: =ROUND(IF('Program Info'!$H$14="GRAD",0,IF($D105>N$69,0,IF(N$69=$D105,OFFSET('Program Info'!$E$47,0,N$69-1,1,1),IF($D105+'Program Info'!$G$23-2=N$69,0,IF(AND(N$69-$D105=1,'Program Info'!$G$23=4),M105*$K$25, IF(AND(N$69-$D105>=2,'Program Info'!$G$23=4),M105*$N$25, IF(AND(N$69-$D105=1,'Program Info'!$G$23=5),M105*$K$26, IF(AND(N$69-$D105>=2,'Program Info'!$G$23=5),M105*$N$26,M105*'Program Info'!$E$23)))))))),2) ->  | O105: =ROUND(IF('Program Info'!$H$14="GRAD",0,IF($D105>O$69,0,IF(O$69=$D105,OFFSET('Program Info'!$E$47,0,O$69-1,1,1),IF($D105+'Program Info'!$G$23-2=O$69,0,IF(AND(O$69-$D105=1,'Program Info'!$G$23=4),N105*$K$25, IF(AND(O$69-$D105>=2,'Program Info'!$G$23=4),N105*$N$25, IF(AND(O$69-$D105=1,'Program Info'!$G$23=5),N105*$K$26, IF(AND(O$69-$D105>=2,'Program Info'!$G$23=5),N105*$N$26,N105*'Program Info'!$E$23)))))))),2) -> 
B106: 4 | D106: 9 | E106: =ROUND(IF('Program Info'!$H$14="GRAD",0,IF($D106>E$69,0,IF(E$69=$D106,OFFSET('Program Info'!$E$47,0,E$69-1,1,1),IF($D106+'Program Info'!$G$23-2=E$69,0,IF(AND(E$69-$D106=1,'Program Info'!$G$23=4),D106*$K$25, IF(AND(E$69-$D106>=2,'Program Info'!$G$23=4),D106*$N$25, IF(AND(E$69-$D106=1,'Program Info'!$G$23=5),D106*$K$26, IF(AND(E$69-$D106>=2,'Program Info'!$G$23=5),D106*$N$26,D106*'Program Info'!$E$23)))))))),2) ->  | F106: =ROUND(IF('Program Info'!$H$14="GRAD",0,IF($D106>F$69,0,IF(F$69=$D106,OFFSET('Program Info'!$E$47,0,F$69-1,1,1),IF($D106+'Program Info'!$G$23-2=F$69,0,IF(AND(F$69-$D106=1,'Program Info'!$G$23=4),E106*$K$25, IF(AND(F$69-$D106>=2,'Program Info'!$G$23=4),E106*$N$25, IF(AND(F$69-$D106=1,'Program Info'!$G$23=5),E106*$K$26, IF(AND(F$69-$D106>=2,'Program Info'!$G$23=5),E106*$N$26,E106*'Program Info'!$E$23)))))))),2) ->  | G106: =ROUND(IF('Program Info'!$H$14="GRAD",0,IF($D106>G$69,0,IF(G$69=$D106,OFFSET('Program Info'!$E$47,0,G$69-1,1,1),IF($D106+'Program Info'!$G$23-2=G$69,0,IF(AND(G$69-$D106=1,'Program Info'!$G$23=4),F106*$K$25, IF(AND(G$69-$D106>=2,'Program Info'!$G$23=4),F106*$N$25, IF(AND(G$69-$D106=1,'Program Info'!$G$23=5),F106*$K$26, IF(AND(G$69-$D106>=2,'Program Info'!$G$23=5),F106*$N$26,F106*'Program Info'!$E$23)))))))),2) ->  | H106: =ROUND(IF('Program Info'!$H$14="GRAD",0,IF($D106>H$69,0,IF(H$69=$D106,OFFSET('Program Info'!$E$47,0,H$69-1,1,1),IF($D106+'Program Info'!$G$23-2=H$69,0,IF(AND(H$69-$D106=1,'Program Info'!$G$23=4),G106*$K$25, IF(AND(H$69-$D106>=2,'Program Info'!$G$23=4),G106*$N$25, IF(AND(H$69-$D106=1,'Program Info'!$G$23=5),G106*$K$26, IF(AND(H$69-$D106>=2,'Program Info'!$G$23=5),G106*$N$26,G106*'Program Info'!$E$23)))))))),2) ->  | I106: =ROUND(IF('Program Info'!$H$14="GRAD",0,IF($D106>I$69,0,IF(I$69=$D106,OFFSET('Program Info'!$E$47,0,I$69-1,1,1),IF($D106+'Program Info'!$G$23-2=I$69,0,IF(AND(I$69-$D106=1,'Program Info'!$G$23=4),H106*$K$25, IF(AND(I$69-$D106>=2,'Program Info'!$G$23=4),H106*$N$25, IF(AND(I$69-$D106=1,'Program Info'!$G$23=5),H106*$K$26, IF(AND(I$69-$D106>=2,'Program Info'!$G$23=5),H106*$N$26,H106*'Program Info'!$E$23)))))))),2) ->  | J106: =ROUND(IF('Program Info'!$H$14="GRAD",0,IF($D106>J$69,0,IF(J$69=$D106,OFFSET('Program Info'!$E$47,0,J$69-1,1,1),IF($D106+'Program Info'!$G$23-2=J$69,0,IF(AND(J$69-$D106=1,'Program Info'!$G$23=4),I106*$K$25, IF(AND(J$69-$D106>=2,'Program Info'!$G$23=4),I106*$N$25, IF(AND(J$69-$D106=1,'Program Info'!$G$23=5),I106*$K$26, IF(AND(J$69-$D106>=2,'Program Info'!$G$23=5),I106*$N$26,I106*'Program Info'!$E$23)))))))),2) ->  | K106: =ROUND(IF('Program Info'!$H$14="GRAD",0,IF($D106>K$69,0,IF(K$69=$D106,OFFSET('Program Info'!$E$47,0,K$69-1,1,1),IF($D106+'Program Info'!$G$23-2=K$69,0,IF(AND(K$69-$D106=1,'Program Info'!$G$23=4),J106*$K$25, IF(AND(K$69-$D106>=2,'Program Info'!$G$23=4),J106*$N$25, IF(AND(K$69-$D106=1,'Program Info'!$G$23=5),J106*$K$26, IF(AND(K$69-$D106>=2,'Program Info'!$G$23=5),J106*$N$26,J106*'Program Info'!$E$23)))))))),2) ->  | L106: =ROUND(IF('Program Info'!$H$14="GRAD",0,IF($D106>L$69,0,IF(L$69=$D106,OFFSET('Program Info'!$E$47,0,L$69-1,1,1),IF($D106+'Program Info'!$G$23-2=L$69,0,IF(AND(L$69-$D106=1,'Program Info'!$G$23=4),K106*$K$25, IF(AND(L$69-$D106>=2,'Program Info'!$G$23=4),K106*$N$25, IF(AND(L$69-$D106=1,'Program Info'!$G$23=5),K106*$K$26, IF(AND(L$69-$D106>=2,'Program Info'!$G$23=5),K106*$N$26,K106*'Program Info'!$E$23)))))))),2) ->  | M106: =ROUND(IF('Program Info'!$H$14="GRAD",0,IF($D106>M$69,0,IF(M$69=$D106,OFFSET('Program Info'!$E$47,0,M$69-1,1,1),IF($D106+'Program Info'!$G$23-2=M$69,0,IF(AND(M$69-$D106=1,'Program Info'!$G$23=4),L106*$K$25, IF(AND(M$69-$D106>=2,'Program Info'!$G$23=4),L106*$N$25, IF(AND(M$69-$D106=1,'Program Info'!$G$23=5),L106*$K$26, IF(AND(M$69-$D106>=2,'Program Info'!$G$23=5),L106*$N$26,L106*'Program Info'!$E$23)))))))),2) ->  | N106: =ROUND(IF('Program Info'!$H$14="GRAD",0,IF($D106>N$69,0,IF(N$69=$D106,OFFSET('Program Info'!$E$47,0,N$69-1,1,1),IF($D106+'Program Info'!$G$23-2=N$69,0,IF(AND(N$69-$D106=1,'Program Info'!$G$23=4),M106*$K$25, IF(AND(N$69-$D106>=2,'Program Info'!$G$23=4),M106*$N$25, IF(AND(N$69-$D106=1,'Program Info'!$G$23=5),M106*$K$26, IF(AND(N$69-$D106>=2,'Program Info'!$G$23=5),M106*$N$26,M106*'Program Info'!$E$23)))))))),2) ->  | O106: =ROUND(IF('Program Info'!$H$14="GRAD",0,IF($D106>O$69,0,IF(O$69=$D106,OFFSET('Program Info'!$E$47,0,O$69-1,1,1),IF($D106+'Program Info'!$G$23-2=O$69,0,IF(AND(O$69-$D106=1,'Program Info'!$G$23=4),N106*$K$25, IF(AND(O$69-$D106>=2,'Program Info'!$G$23=4),N106*$N$25, IF(AND(O$69-$D106=1,'Program Info'!$G$23=5),N106*$K$26, IF(AND(O$69-$D106>=2,'Program Info'!$G$23=5),N106*$N$26,N106*'Program Info'!$E$23)))))))),2) -> 
B107: 4 | D107: 10 | E107: =ROUND(IF('Program Info'!$H$14="GRAD",0,IF($D107>E$69,0,IF(E$69=$D107,OFFSET('Program Info'!$E$47,0,E$69-1,1,1),IF($D107+'Program Info'!$G$23-2=E$69,0,IF(AND(E$69-$D107=1,'Program Info'!$G$23=4),D107*$K$25, IF(AND(E$69-$D107>=2,'Program Info'!$G$23=4),D107*$N$25, IF(AND(E$69-$D107=1,'Program Info'!$G$23=5),D107*$K$26, IF(AND(E$69-$D107>=2,'Program Info'!$G$23=5),D107*$N$26,D107*'Program Info'!$E$23)))))))),2) ->  | F107: =ROUND(IF('Program Info'!$H$14="GRAD",0,IF($D107>F$69,0,IF(F$69=$D107,OFFSET('Program Info'!$E$47,0,F$69-1,1,1),IF($D107+'Program Info'!$G$23-2=F$69,0,IF(AND(F$69-$D107=1,'Program Info'!$G$23=4),E107*$K$25, IF(AND(F$69-$D107>=2,'Program Info'!$G$23=4),E107*$N$25, IF(AND(F$69-$D107=1,'Program Info'!$G$23=5),E107*$K$26, IF(AND(F$69-$D107>=2,'Program Info'!$G$23=5),E107*$N$26,E107*'Program Info'!$E$23)))))))),2) ->  | G107: =ROUND(IF('Program Info'!$H$14="GRAD",0,IF($D107>G$69,0,IF(G$69=$D107,OFFSET('Program Info'!$E$47,0,G$69-1,1,1),IF($D107+'Program Info'!$G$23-2=G$69,0,IF(AND(G$69-$D107=1,'Program Info'!$G$23=4),F107*$K$25, IF(AND(G$69-$D107>=2,'Program Info'!$G$23=4),F107*$N$25, IF(AND(G$69-$D107=1,'Program Info'!$G$23=5),F107*$K$26, IF(AND(G$69-$D107>=2,'Program Info'!$G$23=5),F107*$N$26,F107*'Program Info'!$E$23)))))))),2) ->  | H107: =ROUND(IF('Program Info'!$H$14="GRAD",0,IF($D107>H$69,0,IF(H$69=$D107,OFFSET('Program Info'!$E$47,0,H$69-1,1,1),IF($D107+'Program Info'!$G$23-2=H$69,0,IF(AND(H$69-$D107=1,'Program Info'!$G$23=4),G107*$K$25, IF(AND(H$69-$D107>=2,'Program Info'!$G$23=4),G107*$N$25, IF(AND(H$69-$D107=1,'Program Info'!$G$23=5),G107*$K$26, IF(AND(H$69-$D107>=2,'Program Info'!$G$23=5),G107*$N$26,G107*'Program Info'!$E$23)))))))),2) ->  | I107: =ROUND(IF('Program Info'!$H$14="GRAD",0,IF($D107>I$69,0,IF(I$69=$D107,OFFSET('Program Info'!$E$47,0,I$69-1,1,1),IF($D107+'Program Info'!$G$23-2=I$69,0,IF(AND(I$69-$D107=1,'Program Info'!$G$23=4),H107*$K$25, IF(AND(I$69-$D107>=2,'Program Info'!$G$23=4),H107*$N$25, IF(AND(I$69-$D107=1,'Program Info'!$G$23=5),H107*$K$26, IF(AND(I$69-$D107>=2,'Program Info'!$G$23=5),H107*$N$26,H107*'Program Info'!$E$23)))))))),2) ->  | J107: =ROUND(IF('Program Info'!$H$14="GRAD",0,IF($D107>J$69,0,IF(J$69=$D107,OFFSET('Program Info'!$E$47,0,J$69-1,1,1),IF($D107+'Program Info'!$G$23-2=J$69,0,IF(AND(J$69-$D107=1,'Program Info'!$G$23=4),I107*$K$25, IF(AND(J$69-$D107>=2,'Program Info'!$G$23=4),I107*$N$25, IF(AND(J$69-$D107=1,'Program Info'!$G$23=5),I107*$K$26, IF(AND(J$69-$D107>=2,'Program Info'!$G$23=5),I107*$N$26,I107*'Program Info'!$E$23)))))))),2) ->  | K107: =ROUND(IF('Program Info'!$H$14="GRAD",0,IF($D107>K$69,0,IF(K$69=$D107,OFFSET('Program Info'!$E$47,0,K$69-1,1,1),IF($D107+'Program Info'!$G$23-2=K$69,0,IF(AND(K$69-$D107=1,'Program Info'!$G$23=4),J107*$K$25, IF(AND(K$69-$D107>=2,'Program Info'!$G$23=4),J107*$N$25, IF(AND(K$69-$D107=1,'Program Info'!$G$23=5),J107*$K$26, IF(AND(K$69-$D107>=2,'Program Info'!$G$23=5),J107*$N$26,J107*'Program Info'!$E$23)))))))),2) ->  | L107: =ROUND(IF('Program Info'!$H$14="GRAD",0,IF($D107>L$69,0,IF(L$69=$D107,OFFSET('Program Info'!$E$47,0,L$69-1,1,1),IF($D107+'Program Info'!$G$23-2=L$69,0,IF(AND(L$69-$D107=1,'Program Info'!$G$23=4),K107*$K$25, IF(AND(L$69-$D107>=2,'Program Info'!$G$23=4),K107*$N$25, IF(AND(L$69-$D107=1,'Program Info'!$G$23=5),K107*$K$26, IF(AND(L$69-$D107>=2,'Program Info'!$G$23=5),K107*$N$26,K107*'Program Info'!$E$23)))))))),2) ->  | M107: =ROUND(IF('Program Info'!$H$14="GRAD",0,IF($D107>M$69,0,IF(M$69=$D107,OFFSET('Program Info'!$E$47,0,M$69-1,1,1),IF($D107+'Program Info'!$G$23-2=M$69,0,IF(AND(M$69-$D107=1,'Program Info'!$G$23=4),L107*$K$25, IF(AND(M$69-$D107>=2,'Program Info'!$G$23=4),L107*$N$25, IF(AND(M$69-$D107=1,'Program Info'!$G$23=5),L107*$K$26, IF(AND(M$69-$D107>=2,'Program Info'!$G$23=5),L107*$N$26,L107*'Program Info'!$E$23)))))))),2) ->  | N107: =ROUND(IF('Program Info'!$H$14="GRAD",0,IF($D107>N$69,0,IF(N$69=$D107,OFFSET('Program Info'!$E$47,0,N$69-1,1,1),IF($D107+'Program Info'!$G$23-2=N$69,0,IF(AND(N$69-$D107=1,'Program Info'!$G$23=4),M107*$K$25, IF(AND(N$69-$D107>=2,'Program Info'!$G$23=4),M107*$N$25, IF(AND(N$69-$D107=1,'Program Info'!$G$23=5),M107*$K$26, IF(AND(N$69-$D107>=2,'Program Info'!$G$23=5),M107*$N$26,M107*'Program Info'!$E$23)))))))),2) ->  | O107: =ROUND(IF('Program Info'!$H$14="GRAD",0,IF($D107>O$69,0,IF(O$69=$D107,OFFSET('Program Info'!$E$47,0,O$69-1,1,1),IF($D107+'Program Info'!$G$23-2=O$69,0,IF(AND(O$69-$D107=1,'Program Info'!$G$23=4),N107*$K$25, IF(AND(O$69-$D107>=2,'Program Info'!$G$23=4),N107*$N$25, IF(AND(O$69-$D107=1,'Program Info'!$G$23=5),N107*$K$26, IF(AND(O$69-$D107>=2,'Program Info'!$G$23=5),N107*$N$26,N107*'Program Info'!$E$23)))))))),2) -> 
E108: =SUM(E98:E107) ->  | O108: =SUM(O98:O107) -> 
C110: Student Year Level | D110: 1 | E110: =IF(OR(E$69+1>11,$D110>E$69),0,INDEX(Student1,E$69-$D110+2,E$69+1)) -> 0 | F110: 0 | G110: 0 | H110: 0 | I110: 0 | J110: 0 | K110: 0 | L110: 0 | M110: 0 | N110: 0 | P110: ='Program Info'!E20 ->  | Q110: =IF('Program Info'!$H$14="Grad",1,IF('Program Info'!$H$14="UG",ROUND(P110/'Program Info'!$K$20*4*2,0)/2,0)) -> 
C111: Student Year Level | D111: 2 | E111: 0 | P111: ='Program Info'!F20 ->  | Q111: =IF('Program Info'!$H$14="Grad",1,IF('Program Info'!$H$14="UG",ROUND(P111/'Program Info'!$K$20*4*2,0)/2,0)) -> 
C112: Student Year Level | D112: 3 | E112: 0 | F112: 0 | P112: ='Program Info'!G20 ->  | Q112: =IF('Program Info'!$H$14="Grad",1,IF('Program Info'!$H$14="UG",ROUND(P112/'Program Info'!$K$20*4*2,0)/2,0)) -> 
C113: Student Year Level | D113: 4 | E113: 0 | F113: 0 | G113: 0 | P113: ='Program Info'!H20 ->  | Q113: =IF('Program Info'!$H$14="Grad",1,IF('Program Info'!$H$14="UG",ROUND(P113/'Program Info'!$K$20*4*2,0)/2,0)) -> 
C114: Student Year Level | D114: 5 | E114: 0 | F114: 0 | G114: 0 | H114: 0 | P114: ='Program Info'!I20 ->  | Q114: =IF('Program Info'!$H$14="Grad",1,IF('Program Info'!$H$14="UG",ROUND(P114/'Program Info'!$K$20*4*2,0)/2,0)) -> 
C115: Student Year Level | D115: 6 | E115: 0 | F115: 0 | G115: 0 | H115: 0 | I115: 0 | P115: ='Program Info'!J20 ->  | Q115: =IF('Program Info'!$H$14="Grad",1,IF('Program Info'!$H$14="UG",ROUND(P115/'Program Info'!$K$20*4*2,0)/2,0)) -> 
E116: =SUM(E110:E115) -> 0
C118: Transfer Year 2 | D118: 1
C119: Transfer Year 2 | D119: 2 | E119: =IF(OR(E$69+1>11,$D118>E$69),0,INDEX(Student3,E$69-$D118+2,E$69+1)) -> 
C120: Transfer Year 2 | D120: 3 | E120: 0
C121: Transfer Year 2 | D121: 4 | E121: 0 | F121: 0
C122: Transfer Year 2 | D122: 5 | E122: 0 | F122: 0 | G122: 0
C123: Transfer Year 2 | D123: 6 | E123: 0 | F123: 0 | G123: 0 | H123: 0
E124: =SUM(E119:E123) -> 
C126: Transfers Year 3 | D126: 1
C127: Transfers Year 3 | D127: 2
C128: Transfers Year 3 | D128: 3 | E128: =IF(OR(E$69+1>11,$D126>E$69),0,INDEX(Student4,E$69-$D126+2,E$69+1)) -> 
C129: Transfers Year 3 | D129: 4 | E129: =IF(OR(E$69+1>11,$D127>E$69),0,INDEX(Student4,E$69-$D127+2,E$69+1)) -> 0
C130: Transfers Year 3 | D130: 5 | E130: =IF(OR(E$69+1>11,$D128>E$69),0,INDEX(Student4,E$69-$D128+2,E$69+1)) -> 0 | F130: 0
C131: Transfers Year 3 | D131: 6 | E131: =IF(OR(E$69+1>11,$D129>E$69),0,INDEX(Student4,E$69-$D129+2,E$69+1)) -> 0 | F131: 0 | G131: 0
E132: =SUM(E128:E131) -> 
C136: FTE considering Coop
D137: 1 | E137: =(E110+E118+E126)*$Q137 ->  | P137: =+P110 -> 
D138: 2 | E138: =(E111+E119+E127)*$Q138 ->  | G138: =(G111+G119+G127)*$Q138 -> 
D139: 3 | G139: =(G112+G120+G128)*$Q139 -> 
D140: 4 | G140: =(G113+G121+G129)*$Q140 -> 
D141: 5 | G141: =(G114+G122+G130)*$Q141 -> 
D142: 6 | E142: 0 | F142: 0 | G142: =(G115+G123+G131)*$Q142 -> 0
C143: Students not on Co-op | E143: =SUM(E137:E142) -> 
C145: CrHr Demand | E145: =SUMPRODUCT(E$137:E$142,$P$137:$P$142) ->  | F145: =SUMPRODUCT(F$137:F$142,$P$137:$P$142) ->  | G145: =SUMPRODUCT(G$137:G$142,$P$137:$P$142) -> 
C147: Cohort Groups | E147: =+E68 -> 0 | F147: 0-1
C148: Credit Hour Matrix | D148: Coh | E148: =E69 -> 1 | F148: 2 | G148: 3 | H148: 4 | I148: 5 | J148: 6 | K148: 7 | L148: 8 | M148: 9 | N148: 10 | O148: 11
B149: 2 | C149: =VLOOKUP(B149,Cohort,2,FALSE) -> Part Time | D149: 1 | E149: =ROUND(IF($D149>E$148,0,IF(E$148=$D149,OFFSET('Program Info'!$E$48,0,E$148-1,1,1),IF($D149+'Program Info'!$G$24=E$148,0,IF(E$148-$D149=1,D149*$K$28, IF(E$148-$D149>=2,D149*$L$28))))),2) -> 0 | F149: =ROUND(IF($D149>F$148,0,IF(F$148=$D149,OFFSET('Program Info'!$E$48,0,F$148-1,1,1),IF($D149+'Program Info'!$G$24=F$148,0,IF(F$148-$D149=1,E149*$K$28, IF(F$148-$D149>=2,E149*$L$28))))),2) ->  | G149: =ROUND(IF($D149>G$148,0,IF(G$148=$D149,OFFSET('Program Info'!$E$48,0,G$148-1,1,1),IF($D149+'Program Info'!$G$24=G$148,0,IF(G$148-$D149=1,F149*$K$28, IF(G$148-$D149>=2,F149*$L$28))))),2) ->  | H149: =ROUND(IF($D149>H$148,0,IF(H$148=$D149,OFFSET('Program Info'!$E$48,0,H$148-1,1,1),IF($D149+'Program Info'!$G$24=H$148,0,IF(H$148-$D149=1,G149*$K$28, IF(H$148-$D149>=2,G149*$L$28))))),2) ->  | I149: =ROUND(IF($D149>I$148,0,IF(I$148=$D149,OFFSET('Program Info'!$E$48,0,I$148-1,1,1),IF($D149+'Program Info'!$G$24=I$148,0,IF(I$148-$D149=1,H149*$K$28, IF(I$148-$D149>=2,H149*$L$28))))),2) ->  | J149: =ROUND(IF($D149>J$148,0,IF(J$148=$D149,OFFSET('Program Info'!$E$48,0,J$148-1,1,1),IF($D149+'Program Info'!$G$24=J$148,0,IF(J$148-$D149=1,I149*$K$28, IF(J$148-$D149>=2,I149*$L$28))))),2) ->  | K149: =ROUND(IF($D149>K$148,0,IF(K$148=$D149,OFFSET('Program Info'!$E$48,0,K$148-1,1,1),IF($D149+'Program Info'!$G$24=K$148,0,IF(K$148-$D149=1,J149*$K$28, IF(K$148-$D149>=2,J149*$L$28))))),2) ->  | L149: =ROUND(IF($D149>L$148,0,IF(L$148=$D149,OFFSET('Program Info'!$E$48,0,L$148-1,1,1),IF($D149+'Program Info'!$G$24=L$148,0,IF(L$148-$D149=1,K149*$K$28, IF(L$148-$D149>=2,K149*$L$28))))),2) ->  | M149: =ROUND(IF($D149>M$148,0,IF(M$148=$D149,OFFSET('Program Info'!$E$48,0,M$148-1,1,1),IF($D149+'Program Info'!$G$24=M$148,0,IF(M$148-$D149=1,L149*$K$28, IF(M$148-$D149>=2,L149*$L$28))))),2) ->  | N149: =ROUND(IF($D149>N$148,0,IF(N$148=$D149,OFFSET('Program Info'!$E$48,0,N$148-1,1,1),IF($D149+'Program Info'!$G$24=N$148,0,IF(N$148-$D149=1,M149*$K$28, IF(N$148-$D149>=2,M149*$L$28))))),2) ->  | O149: =ROUND(IF($D149>O$148,0,IF(O$148=$D149,OFFSET('Program Info'!$E$48,0,O$148-1,1,1),IF($D149+'Program Info'!$G$24=O$148,0,IF(O$148-$D149=1,N149*$K$28, IF(O$148-$D149>=2,N149*$L$28))))),2) -> 
B150: 2 | C150: Part Time | D150: 2 | E150: =ROUND(IF($D150>E$148,0,IF(E$148=$D150,OFFSET('Program Info'!$E$48,0,E$148-1,1,1),IF($D150+'Program Info'!$G$24=E$148,0,IF(E$148-$D150=1,D150*$K$28, IF(E$148-$D150>=2,D150*$L$28))))),2) -> 0 | F150: =ROUND(IF($D150>F$148,0,IF(F$148=$D150,OFFSET('Program Info'!$E$48,0,F$148-1,1,1),IF($D150+'Program Info'!$G$24=F$148,0,IF(F$148-$D150=1,E150*$K$28, IF(F$148-$D150>=2,E150*$L$28))))),2) -> 0 | G150: =ROUND(IF($D150>G$148,0,IF(G$148=$D150,OFFSET('Program Info'!$E$48,0,G$148-1,1,1),IF($D150+'Program Info'!$G$24=G$148,0,IF(G$148-$D150=1,F150*$K$28, IF(G$148-$D150>=2,F150*$L$28))))),2) ->  | H150: =ROUND(IF($D150>H$148,0,IF(H$148=$D150,OFFSET('Program Info'!$E$48,0,H$148-1,1,1),IF($D150+'Program Info'!$G$24=H$148,0,IF(H$148-$D150=1,G150*$K$28, IF(H$148-$D150>=2,G150*$L$28))))),2) ->  | I150: =ROUND(IF($D150>I$148,0,IF(I$148=$D150,OFFSET('Program Info'!$E$48,0,I$148-1,1,1),IF($D150+'Program Info'!$G$24=I$148,0,IF(I$148-$D150=1,H150*$K$28, IF(I$148-$D150>=2,H150*$L$28))))),2) ->  | J150: =ROUND(IF($D150>J$148,0,IF(J$148=$D150,OFFSET('Program Info'!$E$48,0,J$148-1,1,1),IF($D150+'Program Info'!$G$24=J$148,0,IF(J$148-$D150=1,I150*$K$28, IF(J$148-$D150>=2,I150*$L$28))))),2) ->  | K150: =ROUND(IF($D150>K$148,0,IF(K$148=$D150,OFFSET('Program Info'!$E$48,0,K$148-1,1,1),IF($D150+'Program Info'!$G$24=K$148,0,IF(K$148-$D150=1,J150*$K$28, IF(K$148-$D150>=2,J150*$L$28))))),2) ->  | L150: =ROUND(IF($D150>L$148,0,IF(L$148=$D150,OFFSET('Program Info'!$E$48,0,L$148-1,1,1),IF($D150+'Program Info'!$G$24=L$148,0,IF(L$148-$D150=1,K150*$K$28, IF(L$148-$D150>=2,K150*$L$28))))),2) ->  | M150: =ROUND(IF($D150>M$148,0,IF(M$148=$D150,OFFSET('Program Info'!$E$48,0,M$148-1,1,1),IF($D150+'Program Info'!$G$24=M$148,0,IF(M$148-$D150=1,L150*$K$28, IF(M$148-$D150>=2,L150*$L$28))))),2) ->  | N150: =ROUND(IF($D150>N$148,0,IF(N$148=$D150,OFFSET('Program Info'!$E$48,0,N$148-1,1,1),IF($D150+'Program Info'!$G$24=N$148,0,IF(N$148-$D150=1,M150*$K$28, IF(N$148-$D150>=2,M150*$L$28))))),2) ->  | O150: =ROUND(IF($D150>O$148,0,IF(O$148=$D150,OFFSET('Program Info'!$E$48,0,O$148-1,1,1),IF($D150+'Program Info'!$G$24=O$148,0,IF(O$148-$D150=1,N150*$K$28, IF(O$148-$D150>=2,N150*$L$28))))),2) -> 
B151: 2 | C151: Part Time | D151: 3 | E151: =ROUND(IF($D151>E$148,0,IF(E$148=$D151,OFFSET('Program Info'!$E$48,0,E$148-1,1,1),IF($D151+'Program Info'!$G$24=E$148,0,IF(E$148-$D151=1,D151*$K$28, IF(E$148-$D151>=2,D151*$L$28))))),2) -> 0 | F151: =ROUND(IF($D151>F$148,0,IF(F$148=$D151,OFFSET('Program Info'!$E$48,0,F$148-1,1,1),IF($D151+'Program Info'!$G$24=F$148,0,IF(F$148-$D151=1,E151*$K$28, IF(F$148-$D151>=2,E151*$L$28))))),2) -> 0 | G151: =ROUND(IF($D151>G$148,0,IF(G$148=$D151,OFFSET('Program Info'!$E$48,0,G$148-1,1,1),IF($D151+'Program Info'!$G$24=G$148,0,IF(G$148-$D151=1,F151*$K$28, IF(G$148-$D151>=2,F151*$L$28))))),2) -> 0 | H151: =ROUND(IF($D151>H$148,0,IF(H$148=$D151,OFFSET('Program Info'!$E$48,0,H$148-1,1,1),IF($D151+'Program Info'!$G$24=H$148,0,IF(H$148-$D151=1,G151*$K$28, IF(H$148-$D151>=2,G151*$L$28))))),2) ->  | I151: =ROUND(IF($D151>I$148,0,IF(I$148=$D151,OFFSET('Program Info'!$E$48,0,I$148-1,1,1),IF($D151+'Program Info'!$G$24=I$148,0,IF(I$148-$D151=1,H151*$K$28, IF(I$148-$D151>=2,H151*$L$28))))),2) ->  | J151: =ROUND(IF($D151>J$148,0,IF(J$148=$D151,OFFSET('Program Info'!$E$48,0,J$148-1,1,1),IF($D151+'Program Info'!$G$24=J$148,0,IF(J$148-$D151=1,I151*$K$28, IF(J$148-$D151>=2,I151*$L$28))))),2) ->  | K151: =ROUND(IF($D151>K$148,0,IF(K$148=$D151,OFFSET('Program Info'!$E$48,0,K$148-1,1,1),IF($D151+'Program Info'!$G$24=K$148,0,IF(K$148-$D151=1,J151*$K$28, IF(K$148-$D151>=2,J151*$L$28))))),2) ->  | L151: =ROUND(IF($D151>L$148,0,IF(L$148=$D151,OFFSET('Program Info'!$E$48,0,L$148-1,1,1),IF($D151+'Program Info'!$G$24=L$148,0,IF(L$148-$D151=1,K151*$K$28, IF(L$148-$D151>=2,K151*$L$28))))),2) ->  | M151: =ROUND(IF($D151>M$148,0,IF(M$148=$D151,OFFSET('Program Info'!$E$48,0,M$148-1,1,1),IF($D151+'Program Info'!$G$24=M$148,0,IF(M$148-$D151=1,L151*$K$28, IF(M$148-$D151>=2,L151*$L$28))))),2) ->  | N151: =ROUND(IF($D151>N$148,0,IF(N$148=$D151,OFFSET('Program Info'!$E$48,0,N$148-1,1,1),IF($D151+'Program Info'!$G$24=N$148,0,IF(N$148-$D151=1,M151*$K$28, IF(N$148-$D151>=2,M151*$L$28))))),2) ->  | O151: =ROUND(IF($D151>O$148,0,IF(O$148=$D151,OFFSET('Program Info'!$E$48,0,O$148-1,1,1),IF($D151+'Program Info'!$G$24=O$148,0,IF(O$148-$D151=1,N151*$K$28, IF(O$148-$D151>=2,N151*$L$28))))),2) -> 
B152: 2 | C152: Part Time | D152: 4 | E152: =ROUND(IF($D152>E$148,0,IF(E$148=$D152,OFFSET('Program Info'!$E$48,0,E$148-1,1,1),IF($D152+'Program Info'!$G$24=E$148,0,IF(E$148-$D152=1,D152*$K$28, IF(E$148-$D152>=2,D152*$L$28))))),2) -> 0 | F152: =ROUND(IF($D152>F$148,0,IF(F$148=$D152,OFFSET('Program Info'!$E$48,0,F$148-1,1,1),IF($D152+'Program Info'!$G$24=F$148,0,IF(F$148-$D152=1,E152*$K$28, IF(F$148-$D152>=2,E152*$L$28))))),2) -> 0 | G152: =ROUND(IF($D152>G$148,0,IF(G$148=$D152,OFFSET('Program Info'!$E$48,0,G$148-1,1,1),IF($D152+'Program Info'!$G$24=G$148,0,IF(G$148-$D152=1,F152*$K$28, IF(G$148-$D152>=2,F152*$L$28))))),2) -> 0 | H152: =ROUND(IF($D152>H$148,0,IF(H$148=$D152,OFFSET('Program Info'!$E$48,0,H$148-1,1,1),IF($D152+'Program Info'!$G$24=H$148,0,IF(H$148-$D152=1,G152*$K$28, IF(H$148-$D152>=2,G152*$L$28))))),2) -> 0 | I152: =ROUND(IF($D152>I$148,0,IF(I$148=$D152,OFFSET('Program Info'!$E$48,0,I$148-1,1,1),IF($D152+'Program Info'!$G$24=I$148,0,IF(I$148-$D152=1,H152*$K$28, IF(I$148-$D152>=2,H152*$L$28))))),2) ->  | J152: =ROUND(IF($D152>J$148,0,IF(J$148=$D152,OFFSET('Program Info'!$E$48,0,J$148-1,1,1),IF($D152+'Program Info'!$G$24=J$148,0,IF(J$148-$D152=1,I152*$K$28, IF(J$148-$D152>=2,I152*$L$28))))),2) ->  | K152: =ROUND(IF($D152>K$148,0,IF(K$148=$D152,OFFSET('Program Info'!$E$48,0,K$148-1,1,1),IF($D152+'Program Info'!$G$24=K$148,0,IF(K$148-$D152=1,J152*$K$28, IF(K$148-$D152>=2,J152*$L$28))))),2) ->  | L152: =ROUND(IF($D152>L$148,0,IF(L$148=$D152,OFFSET('Program Info'!$E$48,0,L$148-1,1,1),IF($D152+'Program Info'!$G$24=L$148,0,IF(L$148-$D152=1,K152*$K$28, IF(L$148-$D152>=2,K152*$L$28))))),2) ->  | M152: =ROUND(IF($D152>M$148,0,IF(M$148=$D152,OFFSET('Program Info'!$E$48,0,M$148-1,1,1),IF($D152+'Program Info'!$G$24=M$148,0,IF(M$148-$D152=1,L152*$K$28, IF(M$148-$D152>=2,L152*$L$28))))),2) ->  | N152: =ROUND(IF($D152>N$148,0,IF(N$148=$D152,OFFSET('Program Info'!$E$48,0,N$148-1,1,1),IF($D152+'Program Info'!$G$24=N$148,0,IF(N$148-$D152=1,M152*$K$28, IF(N$148-$D152>=2,M152*$L$28))))),2) ->  | O152: =ROUND(IF($D152>O$148,0,IF(O$148=$D152,OFFSET('Program Info'!$E$48,0,O$148-1,1,1),IF($D152+'Program Info'!$G$24=O$148,0,IF(O$148-$D152=1,N152*$K$28, IF(O$148-$D152>=2,N152*$L$28))))),2) -> 
B153: 2 | C153: Part Time | D153: 5 | E153: =ROUND(IF($D153>E$148,0,IF(E$148=$D153,OFFSET('Program Info'!$E$48,0,E$148-1,1,1),IF($D153+'Program Info'!$G$24=E$148,0,IF(E$148-$D153=1,D153*$K$28, IF(E$148-$D153>=2,D153*$L$28))))),2) -> 0 | F153: =ROUND(IF($D153>F$148,0,IF(F$148=$D153,OFFSET('Program Info'!$E$48,0,F$148-1,1,1),IF($D153+'Program Info'!$G$24=F$148,0,IF(F$148-$D153=1,E153*$K$28, IF(F$148-$D153>=2,E153*$L$28))))),2) -> 0 | G153: =ROUND(IF($D153>G$148,0,IF(G$148=$D153,OFFSET('Program Info'!$E$48,0,G$148-1,1,1),IF($D153+'Program Info'!$G$24=G$148,0,IF(G$148-$D153=1,F153*$K$28, IF(G$148-$D153>=2,F153*$L$28))))),2) -> 0 | H153: =ROUND(IF($D153>H$148,0,IF(H$148=$D153,OFFSET('Program Info'!$E$48,0,H$148-1,1,1),IF($D153+'Program Info'!$G$24=H$148,0,IF(H$148-$D153=1,G153*$K$28, IF(H$148-$D153>=2,G153*$L$28))))),2) -> 0 | I153: =ROUND(IF($D153>I$148,0,IF(I$148=$D153,OFFSET('Program Info'!$E$48,0,I$148-1,1,1),IF($D153+'Program Info'!$G$24=I$148,0,IF(I$148-$D153=1,H153*$K$28, IF(I$148-$D153>=2,H153*$L$28))))),2) -> 0 | J153: =ROUND(IF($D153>J$148,0,IF(J$148=$D153,OFFSET('Program Info'!$E$48,0,J$148-1,1,1),IF($D153+'Program Info'!$G$24=J$148,0,IF(J$148-$D153=1,I153*$K$28, IF(J$148-$D153>=2,I153*$L$28))))),2) ->  | K153: =ROUND(IF($D153>K$148,0,IF(K$148=$D153,OFFSET('Program Info'!$E$48,0,K$148-1,1,1),IF($D153+'Program Info'!$G$24=K$148,0,IF(K$148-$D153=1,J153*$K$28, IF(K$148-$D153>=2,J153*$L$28))))),2) ->  | L153: =ROUND(IF($D153>L$148,0,IF(L$148=$D153,OFFSET('Program Info'!$E$48,0,L$148-1,1,1),IF($D153+'Program Info'!$G$24=L$148,0,IF(L$148-$D153=1,K153*$K$28, IF(L$148-$D153>=2,K153*$L$28))))),2) ->  | M153: =ROUND(IF($D153>M$148,0,IF(M$148=$D153,OFFSET('Program Info'!$E$48,0,M$148-1,1,1),IF($D153+'Program Info'!$G$24=M$148,0,IF(M$148-$D153=1,L153*$K$28, IF(M$148-$D153>=2,L153*$L$28))))),2) ->  | N153: =ROUND(IF($D153>N$148,0,IF(N$148=$D153,OFFSET('Program Info'!$E$48,0,N$148-1,1,1),IF($D153+'Program Info'!$G$24=N$148,0,IF(N$148-$D153=1,M153*$K$28, IF(N$148-$D153>=2,M153*$L$28))))),2) ->  | O153: =ROUND(IF($D153>O$148,0,IF(O$148=$D153,OFFSET('Program Info'!$E$48,0,O$148-1,1,1),IF($D153+'Program Info'!$G$24=O$148,0,IF(O$148-$D153=1,N153*$K$28, IF(O$148-$D153>=2,N153*$L$28))))),2) -> 
B154: 2 | C154: Part Time | D154: 6 | E154: =ROUND(IF($D154>E$148,0,IF(E$148=$D154,OFFSET('Program Info'!$E$48,0,E$148-1,1,1),IF($D154+'Program Info'!$G$24=E$148,0,IF(E$148-$D154=1,D154*$K$28, IF(E$148-$D154>=2,D154*$L$28))))),2) -> 0 | F154: =ROUND(IF($D154>F$148,0,IF(F$148=$D154,OFFSET('Program Info'!$E$48,0,F$148-1,1,1),IF($D154+'Program Info'!$G$24=F$148,0,IF(F$148-$D154=1,E154*$K$28, IF(F$148-$D154>=2,E154*$L$28))))),2) -> 0 | G154: =ROUND(IF($D154>G$148,0,IF(G$148=$D154,OFFSET('Program Info'!$E$48,0,G$148-1,1,1),IF($D154+'Program Info'!$G$24=G$148,0,IF(G$148-$D154=1,F154*$K$28, IF(G$148-$D154>=2,F154*$L$28))))),2) -> 0 | H154: =ROUND(IF($D154>H$148,0,IF(H$148=$D154,OFFSET('Program Info'!$E$48,0,H$148-1,1,1),IF($D154+'Program Info'!$G$24=H$148,0,IF(H$148-$D154=1,G154*$K$28, IF(H$148-$D154>=2,G154*$L$28))))),2) -> 0 | I154: =ROUND(IF($D154>I$148,0,IF(I$148=$D154,OFFSET('Program Info'!$E$48,0,I$148-1,1,1),IF($D154+'Program Info'!$G$24=I$148,0,IF(I$148-$D154=1,H154*$K$28, IF(I$148-$D154>=2,H154*$L$28))))),2) -> 0 | J154: =ROUND(IF($D154>J$148,0,IF(J$148=$D154,OFFSET('Program Info'!$E$48,0,J$148-1,1,1),IF($D154+'Program Info'!$G$24=J$148,0,IF(J$148-$D154=1,I154*$K$28, IF(J$148-$D154>=2,I154*$L$28))))),2) -> 0 | K154: =ROUND(IF($D154>K$148,0,IF(K$148=$D154,OFFSET('Program Info'!$E$48,0,K$148-1,1,1),IF($D154+'Program Info'!$G$24=K$148,0,IF(K$148-$D154=1,J154*$K$28, IF(K$148-$D154>=2,J154*$L$28))))),2) ->  | L154: =ROUND(IF($D154>L$148,0,IF(L$148=$D154,OFFSET('Program Info'!$E$48,0,L$148-1,1,1),IF($D154+'Program Info'!$G$24=L$148,0,IF(L$148-$D154=1,K154*$K$28, IF(L$148-$D154>=2,K154*$L$28))))),2) ->  | M154: =ROUND(IF($D154>M$148,0,IF(M$148=$D154,OFFSET('Program Info'!$E$48,0,M$148-1,1,1),IF($D154+'Program Info'!$G$24=M$148,0,IF(M$148-$D154=1,L154*$K$28, IF(M$148-$D154>=2,L154*$L$28))))),2) ->  | N154: =ROUND(IF($D154>N$148,0,IF(N$148=$D154,OFFSET('Program Info'!$E$48,0,N$148-1,1,1),IF($D154+'Program Info'!$G$24=N$148,0,IF(N$148-$D154=1,M154*$K$28, IF(N$148-$D154>=2,M154*$L$28))))),2) ->  | O154: =ROUND(IF($D154>O$148,0,IF(O$148=$D154,OFFSET('Program Info'!$E$48,0,O$148-1,1,1),IF($D154+'Program Info'!$G$24=O$148,0,IF(O$148-$D154=1,N154*$K$28, IF(O$148-$D154>=2,N154*$L$28))))),2) -> 
B155: 2 | C155: Part Time | D155: 7 | E155: =ROUND(IF($D155>E$148,0,IF(E$148=$D155,OFFSET('Program Info'!$E$48,0,E$148-1,1,1),IF($D155+'Program Info'!$G$24=E$148,0,IF(E$148-$D155=1,D155*$K$28, IF(E$148-$D155>=2,D155*$L$28))))),2) -> 0 | F155: =ROUND(IF($D155>F$148,0,IF(F$148=$D155,OFFSET('Program Info'!$E$48,0,F$148-1,1,1),IF($D155+'Program Info'!$G$24=F$148,0,IF(F$148-$D155=1,E155*$K$28, IF(F$148-$D155>=2,E155*$L$28))))),2) -> 0 | G155: =ROUND(IF($D155>G$148,0,IF(G$148=$D155,OFFSET('Program Info'!$E$48,0,G$148-1,1,1),IF($D155+'Program Info'!$G$24=G$148,0,IF(G$148-$D155=1,F155*$K$28, IF(G$148-$D155>=2,F155*$L$28))))),2) -> 0 | H155: =ROUND(IF($D155>H$148,0,IF(H$148=$D155,OFFSET('Program Info'!$E$48,0,H$148-1,1,1),IF($D155+'Program Info'!$G$24=H$148,0,IF(H$148-$D155=1,G155*$K$28, IF(H$148-$D155>=2,G155*$L$28))))),2) -> 0 | I155: =ROUND(IF($D155>I$148,0,IF(I$148=$D155,OFFSET('Program Info'!$E$48,0,I$148-1,1,1),IF($D155+'Program Info'!$G$24=I$148,0,IF(I$148-$D155=1,H155*$K$28, IF(I$148-$D155>=2,H155*$L$28))))),2) -> 0 | J155: =ROUND(IF($D155>J$148,0,IF(J$148=$D155,OFFSET('Program Info'!$E$48,0,J$148-1,1,1),IF($D155+'Program Info'!$G$24=J$148,0,IF(J$148-$D155=1,I155*$K$28, IF(J$148-$D155>=2,I155*$L$28))))),2) -> 0 | K155: =ROUND(IF($D155>K$148,0,IF(K$148=$D155,OFFSET('Program Info'!$E$48,0,K$148-1,1,1),IF($D155+'Program Info'!$G$24=K$148,0,IF(K$148-$D155=1,J155*$K$28, IF(K$148-$D155>=2,J155*$L$28))))),2) -> 0 | L155: =ROUND(IF($D155>L$148,0,IF(L$148=$D155,OFFSET('Program Info'!$E$48,0,L$148-1,1,1),IF($D155+'Program Info'!$G$24=L$148,0,IF(L$148-$D155=1,K155*$K$28, IF(L$148-$D155>=2,K155*$L$28))))),2) ->  | M155: =ROUND(IF($D155>M$148,0,IF(M$148=$D155,OFFSET('Program Info'!$E$48,0,M$148-1,1,1),IF($D155+'Program Info'!$G$24=M$148,0,IF(M$148-$D155=1,L155*$K$28, IF(M$148-$D155>=2,L155*$L$28))))),2) ->  | N155: =ROUND(IF($D155>N$148,0,IF(N$148=$D155,OFFSET('Program Info'!$E$48,0,N$148-1,1,1),IF($D155+'Program Info'!$G$24=N$148,0,IF(N$148-$D155=1,M155*$K$28, IF(N$148-$D155>=2,M155*$L$28))))),2) ->  | O155: =ROUND(IF($D155>O$148,0,IF(O$148=$D155,OFFSET('Program Info'!$E$48,0,O$148-1,1,1),IF($D155+'Program Info'!$G$24=O$148,0,IF(O$148-$D155=1,N155*$K$28, IF(O$148-$D155>=2,N155*$L$28))))),2) -> 
B156: 2 | C156: Part Time | D156: 8 | E156: =ROUND(IF($D156>E$148,0,IF(E$148=$D156,OFFSET('Program Info'!$E$48,0,E$148-1,1,1),IF($D156+'Program Info'!$G$24=E$148,0,IF(E$148-$D156=1,D156*$K$28, IF(E$148-$D156>=2,D156*$L$28))))),2) -> 0 | F156: =ROUND(IF($D156>F$148,0,IF(F$148=$D156,OFFSET('Program Info'!$E$48,0,F$148-1,1,1),IF($D156+'Program Info'!$G$24=F$148,0,IF(F$148-$D156=1,E156*$K$28, IF(F$148-$D156>=2,E156*$L$28))))),2) -> 0 | G156: =ROUND(IF($D156>G$148,0,IF(G$148=$D156,OFFSET('Program Info'!$E$48,0,G$148-1,1,1),IF($D156+'Program Info'!$G$24=G$148,0,IF(G$148-$D156=1,F156*$K$28, IF(G$148-$D156>=2,F156*$L$28))))),2) -> 0 | H156: =ROUND(IF($D156>H$148,0,IF(H$148=$D156,OFFSET('Program Info'!$E$48,0,H$148-1,1,1),IF($D156+'Program Info'!$G$24=H$148,0,IF(H$148-$D156=1,G156*$K$28, IF(H$148-$D156>=2,G156*$L$28))))),2) -> 0 | I156: =ROUND(IF($D156>I$148,0,IF(I$148=$D156,OFFSET('Program Info'!$E$48,0,I$148-1,1,1),IF($D156+'Program Info'!$G$24=I$148,0,IF(I$148-$D156=1,H156*$K$28, IF(I$148-$D156>=2,H156*$L$28))))),2) -> 0 | J156: =ROUND(IF($D156>J$148,0,IF(J$148=$D156,OFFSET('Program Info'!$E$48,0,J$148-1,1,1),IF($D156+'Program Info'!$G$24=J$148,0,IF(J$148-$D156=1,I156*$K$28, IF(J$148-$D156>=2,I156*$L$28))))),2) -> 0 | K156: =ROUND(IF($D156>K$148,0,IF(K$148=$D156,OFFSET('Program Info'!$E$48,0,K$148-1,1,1),IF($D156+'Program Info'!$G$24=K$148,0,IF(K$148-$D156=1,J156*$K$28, IF(K$148-$D156>=2,J156*$L$28))))),2) -> 0 | L156: =ROUND(IF($D156>L$148,0,IF(L$148=$D156,OFFSET('Program Info'!$E$48,0,L$148-1,1,1),IF($D156+'Program Info'!$G$24=L$148,0,IF(L$148-$D156=1,K156*$K$28, IF(L$148-$D156>=2,K156*$L$28))))),2) -> 0 | M156: =ROUND(IF($D156>M$148,0,IF(M$148=$D156,OFFSET('Program Info'!$E$48,0,M$148-1,1,1),IF($D156+'Program Info'!$G$24=M$148,0,IF(M$148-$D156=1,L156*$K$28, IF(M$148-$D156>=2,L156*$L$28))))),2) ->  | N156: =ROUND(IF($D156>N$148,0,IF(N$148=$D156,OFFSET('Program Info'!$E$48,0,N$148-1,1,1),IF($D156+'Program Info'!$G$24=N$148,0,IF(N$148-$D156=1,M156*$K$28, IF(N$148-$D156>=2,M156*$L$28))))),2) ->  | O156: =ROUND(IF($D156>O$148,0,IF(O$148=$D156,OFFSET('Program Info'!$E$48,0,O$148-1,1,1),IF($D156+'Program Info'!$G$24=O$148,0,IF(O$148-$D156=1,N156*$K$28, IF(O$148-$D156>=2,N156*$L$28))))),2) -> 
B157: 2 | C157: Part Time | D157: 9 | E157: =ROUND(IF($D157>E$148,0,IF(E$148=$D157,OFFSET('Program Info'!$E$48,0,E$148-1,1,1),IF($D157+'Program Info'!$G$24=E$148,0,IF(E$148-$D157=1,D157*$K$28, IF(E$148-$D157>=2,D157*$L$28))))),2) -> 0 | F157: =ROUND(IF($D157>F$148,0,IF(F$148=$D157,OFFSET('Program Info'!$E$48,0,F$148-1,1,1),IF($D157+'Program Info'!$G$24=F$148,0,IF(F$148-$D157=1,E157*$K$28, IF(F$148-$D157>=2,E157*$L$28))))),2) -> 0 | G157: =ROUND(IF($D157>G$148,0,IF(G$148=$D157,OFFSET('Program Info'!$E$48,0,G$148-1,1,1),IF($D157+'Program Info'!$G$24=G$148,0,IF(G$148-$D157=1,F157*$K$28, IF(G$148-$D157>=2,F157*$L$28))))),2) -> 0 | H157: =ROUND(IF($D157>H$148,0,IF(H$148=$D157,OFFSET('Program Info'!$E$48,0,H$148-1,1,1),IF($D157+'Program Info'!$G$24=H$148,0,IF(H$148-$D157=1,G157*$K$28, IF(H$148-$D157>=2,G157*$L$28))))),2) -> 0 | I157: =ROUND(IF($D157>I$148,0,IF(I$148=$D157,OFFSET('Program Info'!$E$48,0,I$148-1,1,1),IF($D157+'Program Info'!$G$24=I$148,0,IF(I$148-$D157=1,H157*$K$28, IF(I$148-$D157>=2,H157*$L$28))))),2) -> 0 | J157: =ROUND(IF($D157>J$148,0,IF(J$148=$D157,OFFSET('Program Info'!$E$48,0,J$148-1,1,1),IF($D157+'Program Info'!$G$24=J$148,0,IF(J$148-$D157=1,I157*$K$28, IF(J$148-$D157>=2,I157*$L$28))))),2) -> 0 | K157: =ROUND(IF($D157>K$148,0,IF(K$148=$D157,OFFSET('Program Info'!$E$48,0,K$148-1,1,1),IF($D157+'Program Info'!$G$24=K$148,0,IF(K$148-$D157=1,J157*$K$28, IF(K$148-$D157>=2,J157*$L$28))))),2) -> 0 | L157: =ROUND(IF($D157>L$148,0,IF(L$148=$D157,OFFSET('Program Info'!$E$48,0,L$148-1,1,1),IF($D157+'Program Info'!$G$24=L$148,0,IF(L$148-$D157=1,K157*$K$28, IF(L$148-$D157>=2,K157*$L$28))))),2) -> 0 | M157: =ROUND(IF($D157>M$148,0,IF(M$148=$D157,OFFSET('Program Info'!$E$48,0,M$148-1,1,1),IF($D157+'Program Info'!$G$24=M$148,0,IF(M$148-$D157=1,L157*$K$28, IF(M$148-$D157>=2,L157*$L$28))))),2) -> 0 | N157: =ROUND(IF($D157>N$148,0,IF(N$148=$D157,OFFSET('Program Info'!$E$48,0,N$148-1,1,1),IF($D157+'Program Info'!$G$24=N$148,0,IF(N$148-$D157=1,M157*$K$28, IF(N$148-$D157>=2,M157*$L$28))))),2) ->  | O157: =ROUND(IF($D157>O$148,0,IF(O$148=$D157,OFFSET('Program Info'!$E$48,0,O$148-1,1,1),IF($D157+'Program Info'!$G$24=O$148,0,IF(O$148-$D157=1,N157*$K$28, IF(O$148-$D157>=2,N157*$L$28))))),2) -> 
B158: 2 | C158: Part Time | D158: 10 | E158: =ROUND(IF($D158>E$148,0,IF(E$148=$D158,OFFSET('Program Info'!$E$48,0,E$148-1,1,1),IF($D158+'Program Info'!$G$24=E$148,0,IF(E$148-$D158=1,D158*$K$28, IF(E$148-$D158>=2,D158*$L$28))))),2) -> 0 | F158: =ROUND(IF($D158>F$148,0,IF(F$148=$D158,OFFSET('Program Info'!$E$48,0,F$148-1,1,1),IF($D158+'Program Info'!$G$24=F$148,0,IF(F$148-$D158=1,E158*$K$28, IF(F$148-$D158>=2,E158*$L$28))))),2) -> 0 | G158: =ROUND(IF($D158>G$148,0,IF(G$148=$D158,OFFSET('Program Info'!$E$48,0,G$148-1,1,1),IF($D158+'Program Info'!$G$24=G$148,0,IF(G$148-$D158=1,F158*$K$28, IF(G$148-$D158>=2,F158*$L$28))))),2) -> 0 | H158: =ROUND(IF($D158>H$148,0,IF(H$148=$D158,OFFSET('Program Info'!$E$48,0,H$148-1,1,1),IF($D158+'Program Info'!$G$24=H$148,0,IF(H$148-$D158=1,G158*$K$28, IF(H$148-$D158>=2,G158*$L$28))))),2) -> 0 | I158: =ROUND(IF($D158>I$148,0,IF(I$148=$D158,OFFSET('Program Info'!$E$48,0,I$148-1,1,1),IF($D158+'Program Info'!$G$24=I$148,0,IF(I$148-$D158=1,H158*$K$28, IF(I$148-$D158>=2,H158*$L$28))))),2) -> 0 | J158: =ROUND(IF($D158>J$148,0,IF(J$148=$D158,OFFSET('Program Info'!$E$48,0,J$148-1,1,1),IF($D158+'Program Info'!$G$24=J$148,0,IF(J$148-$D158=1,I158*$K$28, IF(J$148-$D158>=2,I158*$L$28))))),2) -> 0 | K158: =ROUND(IF($D158>K$148,0,IF(K$148=$D158,OFFSET('Program Info'!$E$48,0,K$148-1,1,1),IF($D158+'Program Info'!$G$24=K$148,0,IF(K$148-$D158=1,J158*$K$28, IF(K$148-$D158>=2,J158*$L$28))))),2) -> 0 | L158: =ROUND(IF($D158>L$148,0,IF(L$148=$D158,OFFSET('Program Info'!$E$48,0,L$148-1,1,1),IF($D158+'Program Info'!$G$24=L$148,0,IF(L$148-$D158=1,K158*$K$28, IF(L$148-$D158>=2,K158*$L$28))))),2) -> 0 | M158: =ROUND(IF($D158>M$148,0,IF(M$148=$D158,OFFSET('Program Info'!$E$48,0,M$148-1,1,1),IF($D158+'Program Info'!$G$24=M$148,0,IF(M$148-$D158=1,L158*$K$28, IF(M$148-$D158>=2,L158*$L$28))))),2) -> 0 | N158: =ROUND(IF($D158>N$148,0,IF(N$148=$D158,OFFSET('Program Info'!$E$48,0,N$148-1,1,1),IF($D158+'Program Info'!$G$24=N$148,0,IF(N$148-$D158=1,M158*$K$28, IF(N$148-$D158>=2,M158*$L$28))))),2) -> 0 | O158: =ROUND(IF($D158>O$148,0,IF(O$148=$D158,OFFSET('Program Info'!$E$48,0,O$148-1,1,1),IF($D158+'Program Info'!$G$24=O$148,0,IF(O$148-$D158=1,N158*$K$28, IF(O$148-$D158>=2,N158*$L$28))))),2) -> 
E159: =SUM(E149:E158) -> 0 | O159: =SUM(O149:O158) -> 
C161: Student Year Level | D161: 1 | E161: =IF(OR(E$69+1>11,$D161>E$69),0,INDEX(Student2,E$69-$D161+2,E$69+1)) -> 0 | F161: 0 | G161: 0 | H161: 0 | I161: 0 | J161: 0 | K161: 0 | L161: 0 | M161: 0 | N161: 0 | P161: =IF('Program Info'!$E$25="YES",('Program Info'!$H$24*2+'Program Info'!$H$25),('Program Info'!$H$24*2)) -> 12 | Q161: =IF('Program Info'!$E$25="YES",('Program Info'!$H$24*2+'Program Info'!$H$25),('Program Info'!$H$24*2)) -> 12 | S161: =IF('Program Info'!$E$25="YES",('Program Info'!$H$24*2),('Program Info'!$H$24*2)) -> 12
D162: 2 | E162: 0 | P162: =IF(SUM(P$161:P161)>='Program Info'!$K$20,0,IF(AND('Program Info'!$E$25="YES",SUM(P$161:P161)+'Program Info'!$H$24*2+'Program Info'!$H$25<'Program Info'!$K$20),('Program Info'!$H$24*2+'Program Info'!$H$25),IF(AND('Program Info'!$E$25="NO",SUM(P$161:P161)+'Program Info'!$H$24*2<'Program Info'!$K$20),('Program Info'!$H$24*2),'Program Info'!$K$20-SUM(P$161:P161)))) ->  | Q162: =IF(SUM(Q$161:Q161)>='Program Info'!$K$20,0,IF(AND('Program Info'!$E$25="YES",SUM(Q$161:Q161)+'Program Info'!$H$24*2+'Program Info'!$H$25<'Program Info'!$K$20),('Program Info'!$H$24*2+'Program Info'!$H$25),IF(AND('Program Info'!$E$25="NO",SUM(Q$161:Q161)+'Program Info'!$H$24*2<'Program Info'!$K$20),('Program Info'!$H$24*2),'Program Info'!$K$20-SUM(Q$161:Q161)))) ->  | S162: =IF(SUM(S$161:S161)>='Program Info'!$K$20,0,IF(SUM(S$161:S161)+'Program Info'!$H$24*2<'Program Info'!$K$20,('Program Info'!$H$24*2),'Program Info'!$K$20-SUM(S$161:S161))) -> 
D163: 3 | E163: 0 | F163: 0 | P163: =IF(SUM(P$161:P162)>='Program Info'!$K$20,0,IF(AND('Program Info'!$E$25="YES",SUM(P$161:P162)+'Program Info'!$H$24*2+'Program Info'!$H$25<'Program Info'!$K$20),('Program Info'!$H$24*2+'Program Info'!$H$25),IF(AND('Program Info'!$E$25="NO",SUM(P$161:P162)+'Program Info'!$H$24*2<'Program Info'!$K$20),('Program Info'!$H$24*2),'Program Info'!$K$20-SUM(P$161:P162)))) ->  | Q163: =IF(SUM(Q$161:Q162)>='Program Info'!$K$20,0,IF(AND('Program Info'!$E$25="YES",SUM(Q$161:Q162)+'Program Info'!$H$24*2+'Program Info'!$H$25<'Program Info'!$K$20),('Program Info'!$H$24*2+'Program Info'!$H$25),IF(AND('Program Info'!$E$25="NO",SUM(Q$161:Q162)+'Program Info'!$H$24*2<'Program Info'!$K$20),('Program Info'!$H$24*2),'Program Info'!$K$20-SUM(Q$161:Q162)))) ->  | S163: =IF(SUM(S$161:S162)>='Program Info'!$K$20,0,IF(SUM(S$161:S162)+'Program Info'!$H$24*2<'Program Info'!$K$20,('Program Info'!$H$24*2),'Program Info'!$K$20-SUM(S$161:S162))) -> 
D164: 4 | E164: 0 | F164: 0 | G164: 0 | P164: =IF(SUM(P$161:P163)>='Program Info'!$K$20,0,IF(AND('Program Info'!$E$25="YES",SUM(P$161:P163)+'Program Info'!$H$24*2+'Program Info'!$H$25<'Program Info'!$K$20),('Program Info'!$H$24*2+'Program Info'!$H$25),IF(AND('Program Info'!$E$25="NO",SUM(P$161:P163)+'Program Info'!$H$24*2<'Program Info'!$K$20),('Program Info'!$H$24*2),'Program Info'!$K$20-SUM(P$161:P163)))) ->  | Q164: =IF(SUM(Q$161:Q163)>='Program Info'!$K$20,0,IF(AND('Program Info'!E27="YES",SUM(Q$161:Q163)+'Program Info'!$H$24*2+'Program Info'!$H$25<'Program Info'!$K$20),('Program Info'!$H$24*2+'Program Info'!$H$25),IF(AND('Program Info'!$E$25="NO",SUM(Q$161:Q163)+'Program Info'!$H$24*2<'Program Info'!$K$20),('Program Info'!$H$24*2),'Program Info'!$K$20-SUM(Q$161:Q163)))) ->  | S164: =IF(SUM(S$161:S163)>='Program Info'!$K$20,0,IF(SUM(S$161:S163)+'Program Info'!$H$24*2<'Program Info'!$K$20,('Program Info'!$H$24*2),'Program Info'!$K$20-SUM(S$161:S163))) -> 
D165: 5 | E165: 0 | F165: 0 | G165: 0 | H165: 0 | P165: =IF(SUM(P$161:P164)>='Program Info'!$K$20,0,IF(AND('Program Info'!$E$25="YES",SUM(P$161:P164)+'Program Info'!$H$24*2+'Program Info'!$H$25<'Program Info'!$K$20),('Program Info'!$H$24*2+'Program Info'!$H$25),IF(AND('Program Info'!$E$25="NO",SUM(P$161:P164)+'Program Info'!$H$24*2<'Program Info'!$K$20),('Program Info'!$H$24*2),'Program Info'!$K$20-SUM(P$161:P164)))) ->  | Q165: =IF(SUM(Q$161:Q164)>='Program Info'!$K$20,0,IF(AND('Program Info'!$E$25="YES",SUM(Q$161:Q164)+'Program Info'!$H$24*2+'Program Info'!$H$25<'Program Info'!$K$20),('Program Info'!$H$24*2+'Program Info'!$H$25),IF(AND('Program Info'!$E$25="NO",SUM(Q$161:Q164)+'Program Info'!$H$24*2<'Program Info'!$K$20),('Program Info'!$H$24*2),'Program Info'!$K$20-SUM(Q$161:Q164)))) ->  | S165: =IF(SUM(S$161:S164)>='Program Info'!$K$20,0,IF(SUM(S$161:S164)+'Program Info'!$H$24*2<'Program Info'!$K$20,('Program Info'!$H$24*2),'Program Info'!$K$20-SUM(S$161:S164))) -> 
D166: 6 | E166: 0 | F166: 0 | G166: 0 | H166: 0 | I166: 0 | P166: =IF(SUM(P$161:P165)>='Program Info'!$K$20,0,IF(AND('Program Info'!$E$25="YES",SUM(P$161:P165)+'Program Info'!$H$24*2+'Program Info'!$H$25<'Program Info'!$K$20),('Program Info'!$H$24*2+'Program Info'!$H$25),IF(AND('Program Info'!$E$25="NO",SUM(P$161:P165)+'Program Info'!$H$24*2<'Program Info'!$K$20),('Program Info'!$H$24*2),'Program Info'!$K$20-SUM(P$161:P165)))) ->  | Q166: =IF(SUM(Q$161:Q165)>='Program Info'!$K$20,0,IF(AND('Program Info'!$E$25="YES",SUM(Q$161:Q165)+'Program Info'!$H$24*2+'Program Info'!$H$25<'Program Info'!$K$20),('Program Info'!$H$24*2+'Program Info'!$H$25),IF(AND('Program Info'!$E$25="NO",SUM(Q$161:Q165)+'Program Info'!$H$24*2<'Program Info'!$K$20),('Program Info'!$H$24*2),'Program Info'!$K$20-SUM(Q$161:Q165)))) ->  | S166: =IF(SUM(S$161:S165)>='Program Info'!$K$20,0,IF(SUM(S$161:S165)+'Program Info'!$H$24*2<'Program Info'!$K$20,('Program Info'!$H$24*2),'Program Info'!$K$20-SUM(S$161:S165))) -> 
D167: 7 | E167: 0 | F167: 0 | G167: 0 | H167: 0 | I167: 0 | J167: 0 | P167: =IF(SUM(P$161:P166)>='Program Info'!$K$20,0,IF(AND('Program Info'!$E$25="YES",SUM(P$161:P166)+'Program Info'!$H$24*2+'Program Info'!$H$25<'Program Info'!$K$20),('Program Info'!$H$24*2+'Program Info'!$H$25),IF(AND('Program Info'!$E$25="NO",SUM(P$161:P166)+'Program Info'!$H$24*2<'Program Info'!$K$20),('Program Info'!$H$24*2),'Program Info'!$K$20-SUM(P$161:P166)))) ->  | Q167: =IF(SUM(Q$161:Q166)>='Program Info'!$K$20,0,IF(AND('Program Info'!$E$25="YES",SUM(Q$161:Q166)+'Program Info'!$H$24*2+'Program Info'!$H$25<'Program Info'!$K$20),('Program Info'!$H$24*2+'Program Info'!$H$25),IF(AND('Program Info'!$E$25="NO",SUM(Q$161:Q166)+'Program Info'!$H$24*2<'Program Info'!$K$20),('Program Info'!$H$24*2),'Program Info'!$K$20-SUM(Q$161:Q166)))) ->  | S167: =IF(SUM(S$161:S166)>='Program Info'!$K$20,0,IF(SUM(S$161:S166)+'Program Info'!$H$24*2<'Program Info'!$K$20,('Program Info'!$H$24*2),'Program Info'!$K$20-SUM(S$161:S166))) -> 
D168: 8 | E168: 0 | F168: 0 | G168: 0 | H168: 0 | I168: 0 | J168: 0 | K168: 0 | P168: =IF(SUM(P$161:P167)>='Program Info'!$K$20,0,IF(AND('Program Info'!$E$25="YES",SUM(P$161:P167)+'Program Info'!$H$24*2+'Program Info'!$H$25<'Program Info'!$K$20),('Program Info'!$H$24*2+'Program Info'!$H$25),IF(AND('Program Info'!$E$25="NO",SUM(P$161:P167)+'Program Info'!$H$24*2<'Program Info'!$K$20),('Program Info'!$H$24*2),'Program Info'!$K$20-SUM(P$161:P167)))) ->  | Q168: =IF(SUM(Q$161:Q167)>='Program Info'!$K$20,0,IF(AND('Program Info'!$E$25="YES",SUM(Q$161:Q167)+'Program Info'!$H$24*2+'Program Info'!$H$25<'Program Info'!$K$20),('Program Info'!$H$24*2+'Program Info'!$H$25),IF(AND('Program Info'!$E$25="NO",SUM(Q$161:Q167)+'Program Info'!$H$24*2<'Program Info'!$K$20),('Program Info'!$H$24*2),'Program Info'!$K$20-SUM(Q$161:Q167)))) ->  | S168: =IF(SUM(S$161:S167)>='Program Info'!$K$20,0,IF(SUM(S$161:S167)+'Program Info'!$H$24*2<'Program Info'!$K$20,('Program Info'!$H$24*2),'Program Info'!$K$20-SUM(S$161:S167))) -> 
D169: 9 | E169: 0 | F169: 0 | G169: 0 | H169: 0 | I169: 0 | J169: 0 | K169: 0 | L169: 0 | P169: =IF(SUM(P$161:P168)>='Program Info'!$K$20,0,IF(AND('Program Info'!$E$25="YES",SUM(P$161:P168)+'Program Info'!$H$24*2+'Program Info'!$H$25<'Program Info'!$K$20),('Program Info'!$H$24*2+'Program Info'!$H$25),IF(AND('Program Info'!$E$25="NO",SUM(P$161:P168)+'Program Info'!$H$24*2<'Program Info'!$K$20),('Program Info'!$H$24*2),'Program Info'!$K$20-SUM(P$161:P168)))) ->  | Q169: =IF(SUM(Q$161:Q168)>='Program Info'!$K$20,0,IF(AND('Program Info'!$E$25="YES",SUM(Q$161:Q168)+'Program Info'!$H$24*2+'Program Info'!$H$25<'Program Info'!$K$20),('Program Info'!$H$24*2+'Program Info'!$H$25),IF(AND('Program Info'!$E$25="NO",SUM(Q$161:Q168)+'Program Info'!$H$24*2<'Program Info'!$K$20),('Program Info'!$H$24*2),'Program Info'!$K$20-SUM(Q$161:Q168)))) ->  | S169: =IF(SUM(S$161:S168)>='Program Info'!$K$20,0,IF(SUM(S$161:S168)+'Program Info'!$H$24*2<'Program Info'!$K$20,('Program Info'!$H$24*2),'Program Info'!$K$20-SUM(S$161:S168))) -> 
D170: 10 | E170: 0 | F170: 0 | G170: 0 | H170: 0 | I170: 0 | J170: 0 | K170: 0 | L170: 0 | M170: 0 | P170: =IF(SUM(P$161:P169)>='Program Info'!$K$20,0,IF(AND('Program Info'!$E$25="YES",SUM(P$161:P169)+'Program Info'!$H$24*2+'Program Info'!$H$25<'Program Info'!$K$20),('Program Info'!$H$24*2+'Program Info'!$H$25),IF(AND('Program Info'!$E$25="NO",SUM(P$161:P169)+'Program Info'!$H$24*2<'Program Info'!$K$20),('Program Info'!$H$24*2),'Program Info'!$K$20-SUM(P$161:P169)))) ->  | Q170: =IF(SUM(Q$161:Q169)>='Program Info'!$K$20,0,IF(AND('Program Info'!$E$25="YES",SUM(Q$161:Q169)+'Program Info'!$H$24*2+'Program Info'!$H$25<'Program Info'!$K$20),('Program Info'!$H$24*2+'Program Info'!$H$25),IF(AND('Program Info'!$E$25="NO",SUM(Q$161:Q169)+'Program Info'!$H$24*2<'Program Info'!$K$20),('Program Info'!$H$24*2),'Program Info'!$K$20-SUM(Q$161:Q169)))) ->  | S170: =IF(SUM(S$161:S169)>='Program Info'!$K$20,0,IF(SUM(S$161:S169)+'Program Info'!$H$24*2<'Program Info'!$K$20,('Program Info'!$H$24*2),'Program Info'!$K$20-SUM(S$161:S169))) -> 
E171: =SUM(E161:E170) -> 0 | P171: =SUM(P161:P170) -> 
C173: CrHr Demand | E173: =SUMPRODUCT(E161:E170,$P$161:$P$170) -> 
E175: =+E147 -> 0 | F175: 0-1
C176: Total Students | E176: =E116+E171+E124+E132 -> 
C177: Total CrHr Demand | E177: =E145+E173 ->  | F177: =F145+F173 ->  | P177: 20 | Q177: Avg Section Size
C178: Number of Sections | E178: =ROUNDUP(E177/$P178,0) ->  | P178: =P177*3 -> 60 | Q178: SCrHr Gen'd / Section
C179: Estimated FTE | E179: =ROUNDUP(E178/$P179,0) ->  | F179: =ROUNDUP(F178/$P179,0) ->  | G179: =ROUNDUP(G178/$P179,0) ->  | H179: =ROUNDUP(H178/$P179,0) ->  | I179: =ROUNDUP(I178/$P179,0) ->  | P179: =VLOOKUP('Program Info'!E14,MaskTable,14,FALSE) ->  | Q179: Faculty Course Load/Acad Year
R181: =IF('Program Info'!$H$14="Grad",ROUND(('Program Info'!K20/'Program Info'!G23),0),"-") ->  | S181: Avg SCH / Year FT Grad
C182: Students by Billing Status | R182: =IF('Program Info'!$H$14="Grad",ROUND(R181/2,0),"-") ->  | S182: Avg SCH / Semester FT Grad
C183: Full Time - UG | E183: =IF('Program Info'!$H$14="UG",E143*VLOOKUP($R184,$R187:$S198,2,FALSE),0) ->  | F183: =IF('Program Info'!$H$14="UG",F143*VLOOKUP($R184,$R187:$S198,2,FALSE),0) ->  | G183: =IF('Program Info'!$H$14="UG",G143*VLOOKUP($R184,$R187:$S198,2,FALSE),0) ->  | H183: =IF('Program Info'!$H$14="UG",H143*VLOOKUP($R184,$R187:$S198,2,FALSE),0) ->  | I183: =IF('Program Info'!$H$14="UG",I143*VLOOKUP($R184,$R187:$S198,2,FALSE),0) ->  | J183: =IF('Program Info'!$H$14="UG",J143*VLOOKUP($R184,$R187:$S198,2,FALSE),0) ->  | K183: =IF('Program Info'!$H$14="UG",K143*VLOOKUP($R184,$R187:$S198,2,FALSE),0) ->  | L183: =IF('Program Info'!$H$14="UG",L143*VLOOKUP($R184,$R187:$S198,2,FALSE),0) ->  | M183: =IF('Program Info'!$H$14="UG",M143*VLOOKUP($R184,$R187:$S198,2,FALSE),0) ->  | N183: =IF('Program Info'!$H$14="UG",N143*VLOOKUP($R184,$R187:$S198,2,FALSE),0) ->  | R183: =IF('Program Info'!$H$14="UG",'Program Info'!K20/'Program Info'!G23,"-") ->  | S183: Avg SCH / Year FT Undergrad
C184: Part Time - UG | E184: =IF('Program Info'!$H$14="UG",E159*VLOOKUP($R184,$R187:$S198,2,FALSE),0) ->  | F184: =IF('Program Info'!$H$14="UG",F159*VLOOKUP($R184,$R187:$S198,2,FALSE),0) ->  | G184: =IF('Program Info'!$H$14="UG",G159*VLOOKUP($R184,$R187:$S198,2,FALSE),0) ->  | H184: =IF('Program Info'!$H$14="UG",H159*VLOOKUP($R184,$R187:$S198,2,FALSE),0) ->  | I184: =IF('Program Info'!$H$14="UG",I159*VLOOKUP($R184,$R187:$S198,2,FALSE),0) ->  | J184: =IF('Program Info'!$H$14="UG",J159*VLOOKUP($R184,$R187:$S198,2,FALSE),0) ->  | K184: =IF('Program Info'!$H$14="UG",K159*VLOOKUP($R184,$R187:$S198,2,FALSE),0) ->  | L184: =IF('Program Info'!$H$14="UG",L159*VLOOKUP($R184,$R187:$S198,2,FALSE),0) ->  | M184: =IF('Program Info'!$H$14="UG",M159*VLOOKUP($R184,$R187:$S198,2,FALSE),0) ->  | N184: =IF('Program Info'!$H$14="UG",N159*VLOOKUP($R184,$R187:$S198,2,FALSE),0) ->  | R184: =IF('Program Info'!$H$14="UG",ROUND(R183/2,0),"-") ->  | S184: Avg SCH / Semester FT Undergrad
C185: Full Time - Grad | E185: =IF('Program Info'!$H$14="Grad",E80*VLOOKUP($R$182,$R$187:$S$199,2,FALSE),0) ->  | F185: =IF('Program Info'!$H$14="Grad",F80*VLOOKUP($R$182,$R$187:$S$199,2,FALSE),0) ->  | G185: =IF('Program Info'!$H$14="Grad",G80*VLOOKUP($R$182,$R$187:$S$199,2,FALSE),0) ->  | H185: =IF('Program Info'!$H$14="Grad",H80*VLOOKUP($R$182,$R$187:$S$199,2,FALSE),0) ->  | I185: =IF('Program Info'!$H$14="Grad",I80*VLOOKUP($R$182,$R$187:$S$199,2,FALSE),0) ->  | J185: =IF('Program Info'!$H$14="Grad",J80*VLOOKUP($R$182,$R$187:$S$199,2,FALSE),0) ->  | K185: =IF('Program Info'!$H$14="Grad",K80*VLOOKUP($R$182,$R$187:$S$199,2,FALSE),0) ->  | L185: =IF('Program Info'!$H$14="Grad",L80*VLOOKUP($R$182,$R$187:$S$199,2,FALSE),0) ->  | M185: =IF('Program Info'!$H$14="Grad",M80*VLOOKUP($R$182,$R$187:$S$199,2,FALSE),0) ->  | N185: =IF('Program Info'!$H$14="Grad",N80*VLOOKUP($R$182,$R$187:$S$199,2,FALSE),0) -> 
C186: Part Time - Grad | E186: =IF('Program Info'!$H$14="Grad",E80+E159-E185,0) ->  | F186: =IF('Program Info'!$H$14="Grad",F80+F159-F185,0) ->  | G186: =IF('Program Info'!$H$14="Grad",G80+G159-G185,0) ->  | H186: =IF('Program Info'!$H$14="Grad",H80+H159-H185,0) ->  | I186: =IF('Program Info'!$H$14="Grad",I80+I159-I185,0) ->  | J186: =IF('Program Info'!$H$14="Grad",J80+J159-J185,0) ->  | K186: =IF('Program Info'!$H$14="Grad",K80+K159-K185,0) ->  | L186: =IF('Program Info'!$H$14="Grad",L80+L159-L185,0) ->  | M186: =IF('Program Info'!$H$14="Grad",M80+M159-M185,0) ->  | N186: =IF('Program Info'!$H$14="Grad",N80+N159-N185,0) ->  | S186: Pct > 12CrHr
E187: =SUM(E183:E186) ->  | R187: 6 | S187: 0
R188: 7 | S188: 0
C189: St CrHrs by Billing Status | R189: 8 | S189: 0
C190: Full Time - UG | E190: =IF('Program Info'!$H$14="UG",E145,0) ->  | F190: =IF('Program Info'!$H$14="UG",F145,0) ->  | G190: =IF('Program Info'!$H$14="UG",G145,0) ->  | H190: =IF('Program Info'!$H$14="UG",H145,0) ->  | I190: =IF('Program Info'!$H$14="UG",I145,0) ->  | J190: =IF('Program Info'!$H$14="UG",J145,0) ->  | K190: =IF('Program Info'!$H$14="UG",K145,0) ->  | L190: =IF('Program Info'!$H$14="UG",L145,0) ->  | M190: =IF('Program Info'!$H$14="UG",M145,0) ->  | N190: =IF('Program Info'!$H$14="UG",N145,0) ->  | R190: 9 | S190: 0
C191: Part Time - UG | E191: =IF('Program Info'!$H$14="UG",E173,0) ->  | F191: =IF('Program Info'!$H$14="UG",F173,0) ->  | G191: =IF('Program Info'!$H$14="UG",G173,0) ->  | H191: =IF('Program Info'!$H$14="UG",H173,0) ->  | I191: =IF('Program Info'!$H$14="UG",I173,0) ->  | J191: =IF('Program Info'!$H$14="UG",J173,0) ->  | K191: =IF('Program Info'!$H$14="UG",K173,0) ->  | L191: =IF('Program Info'!$H$14="UG",L173,0) ->  | M191: =IF('Program Info'!$H$14="UG",M173,0) ->  | N191: =IF('Program Info'!$H$14="UG",N173,0) ->  | R191: 10 | S191: 0
C192: Full Time - Grad | E192: =IF(AND('Program Info'!$H$14="Grad",E185>0),E145,0) ->  | F192: =IF(AND('Program Info'!$H$14="Grad",F185>0),F145,0) ->  | G192: =IF(AND('Program Info'!$H$14="Grad",G185>0),G145,0) ->  | H192: =IF(AND('Program Info'!$H$14="Grad",H185>0),H145,0) ->  | I192: =IF(AND('Program Info'!$H$14="Grad",I185>0),I145,0) ->  | J192: =IF(AND('Program Info'!$H$14="Grad",J185>0),J145,0) ->  | K192: =IF(AND('Program Info'!$H$14="Grad",K185>0),K145,0) ->  | L192: =IF(AND('Program Info'!$H$14="Grad",L185>0),L145,0) ->  | M192: =IF(AND('Program Info'!$H$14="Grad",M185>0),M145,0) ->  | N192: =IF(AND('Program Info'!$H$14="Grad",N185>0),N145,0) ->  | O192: =IF('Program Info'!$H$14="Grad",$R$182*2*O185,0) ->  | R192: 11 | S192: 0
C193: Part Time - Grad | E193: =IF('Program Info'!$H$14="Grad",E177-E192,0) ->  | F193: =IF('Program Info'!$H$14="Grad",F177-F192,0) ->  | G193: =IF('Program Info'!$H$14="Grad",G177-G192,0) ->  | H193: =IF('Program Info'!$H$14="Grad",H177-H192,0) ->  | I193: =IF('Program Info'!$H$14="Grad",I177-I192,0) ->  | J193: =IF('Program Info'!$H$14="Grad",J177-J192,0) ->  | K193: =IF('Program Info'!$H$14="Grad",K177-K192,0) ->  | L193: =IF('Program Info'!$H$14="Grad",L177-L192,0) ->  | M193: =IF('Program Info'!$H$14="Grad",M177-M192,0) ->  | N193: =IF('Program Info'!$H$14="Grad",N177-N192,0) ->  | R193: 12 | S193: 1
E194: =SUM(E190:E193) ->  | R194: 13 | S194: 1
C195: Average Grad Load/Sem | E195: =IF('Program Info'!$H$14="Grad",E194/E187/2,"-") ->  | F195: =IF('Program Info'!$H$14="Grad",F194/F187/2,"-") ->  | G195: =IF('Program Info'!$H$14="Grad",G194/G187/2,"-") ->  | H195: =IF('Program Info'!$H$14="Grad",H194/H187/2,"-") ->  | I195: =IF('Program Info'!$H$14="Grad",I194/I187/2,"-") ->  | J195: =IF('Program Info'!$H$14="Grad",J194/J187/2,"-") ->  | K195: =IF('Program Info'!$H$14="Grad",K194/K187/2,"-") ->  | L195: =IF('Program Info'!$H$14="Grad",L194/L187/2,"-") ->  | M195: =IF('Program Info'!$H$14="Grad",M194/M187/2,"-") ->  | N195: =IF('Program Info'!$H$14="Grad",N194/N187/2,"-") ->  | R195: 14 | S195: 1
R196: 15 | S196: 1
R197: 16 | S197: 1
C198: Gross Tuition Revenue | E198: =+E175 -> 0 | F198: 0-1 | R198: 17 | S198: 1
C199: Full Time - UG | E199: =IF('Program Info'!$E$15="NO",E183*R203,'Calculation Worksheet'!E190*'Calculation Worksheet'!R205) ->  | F199: =IF('Program Info'!$E$15="NO",F183*S203,'Calculation Worksheet'!F190*'Calculation Worksheet'!S205) ->  | G199: =IF('Program Info'!$E$15="NO",G183*T203,'Calculation Worksheet'!G190*'Calculation Worksheet'!T205) ->  | H199: =IF('Program Info'!$E$15="NO",H183*U203,'Calculation Worksheet'!H190*'Calculation Worksheet'!U205) ->  | I199: =IF('Program Info'!$E$15="NO",I183*V203,'Calculation Worksheet'!I190*'Calculation Worksheet'!V205) ->  | J199: =IF('Program Info'!$E$15="NO",J183*W203,'Calculation Worksheet'!J190*'Calculation Worksheet'!W205) ->  | K199: =IF('Program Info'!$E$15="NO",K183*X203,'Calculation Worksheet'!K190*'Calculation Worksheet'!X205) ->  | L199: =IF('Program Info'!$E$15="NO",L183*Y203,'Calculation Worksheet'!L190*'Calculation Worksheet'!Y205) ->  | M199: =IF('Program Info'!$E$15="NO",M183*Z203,'Calculation Worksheet'!M190*'Calculation Worksheet'!Z205) ->  | N199: =IF('Program Info'!$E$15="NO",N183*AA203,'Calculation Worksheet'!N190*'Calculation Worksheet'!AA205) ->  | R199: 18 | S199: 1
C200: Part Time - UG | E200: =IF('Program Info'!$E$15="NO",E191*R205,'Calculation Worksheet'!E191*'Calculation Worksheet'!R205) ->  | F200: =IF('Program Info'!$E$15="NO",F191*S205,'Calculation Worksheet'!F191*'Calculation Worksheet'!S205) ->  | G200: =IF('Program Info'!$E$15="NO",G191*T205,'Calculation Worksheet'!G191*'Calculation Worksheet'!T205) ->  | H200: =IF('Program Info'!$E$15="NO",H191*U205,'Calculation Worksheet'!H191*'Calculation Worksheet'!U205) ->  | I200: =IF('Program Info'!$E$15="NO",I191*V205,'Calculation Worksheet'!I191*'Calculation Worksheet'!V205) ->  | J200: =IF('Program Info'!$E$15="NO",J191*W205,'Calculation Worksheet'!J191*'Calculation Worksheet'!W205) ->  | K200: =IF('Program Info'!$E$15="NO",K191*X205,'Calculation Worksheet'!K191*'Calculation Worksheet'!X205) ->  | L200: =IF('Program Info'!$E$15="NO",L191*Y205,'Calculation Worksheet'!L191*'Calculation Worksheet'!Y205) ->  | M200: =IF('Program Info'!$E$15="NO",M191*Z205,'Calculation Worksheet'!M191*'Calculation Worksheet'!Z205) ->  | N200: =IF('Program Info'!$E$15="NO",N191*AA205,'Calculation Worksheet'!N191*'Calculation Worksheet'!AA205) -> 
C201: Full Time - Grad | E201: =IF('Program Info'!$E$15="NO",E185*R203,'Calculation Worksheet'!E192*'Calculation Worksheet'!R205) ->  | F201: =IF('Program Info'!$E$15="NO",F185*S203,'Calculation Worksheet'!F192*'Calculation Worksheet'!S205) ->  | G201: =IF('Program Info'!$E$15="NO",G185*T203,'Calculation Worksheet'!G192*'Calculation Worksheet'!T205) ->  | H201: =IF('Program Info'!$E$15="NO",H185*U203,'Calculation Worksheet'!H192*'Calculation Worksheet'!U205) ->  | I201: =IF('Program Info'!$E$15="NO",I185*V203,'Calculation Worksheet'!I192*'Calculation Worksheet'!V205) ->  | J201: =IF('Program Info'!$E$15="NO",J185*W203,'Calculation Worksheet'!J192*'Calculation Worksheet'!W205) ->  | K201: =IF('Program Info'!$E$15="NO",K185*X203,'Calculation Worksheet'!K192*'Calculation Worksheet'!X205) ->  | L201: =IF('Program Info'!$E$15="NO",L185*Y203,'Calculation Worksheet'!L192*'Calculation Worksheet'!Y205) ->  | M201: =IF('Program Info'!$E$15="NO",M185*Z203,'Calculation Worksheet'!M192*'Calculation Worksheet'!Z205) ->  | N201: =IF('Program Info'!$E$15="NO",N185*AA203,'Calculation Worksheet'!N192*'Calculation Worksheet'!AA205) ->  | R201: Tuition
C202: Part Time - Grad | E202: =IF('Program Info'!$E$15="NO",E193*R205,'Calculation Worksheet'!E193*'Calculation Worksheet'!R205) ->  | F202: =IF('Program Info'!$E$15="NO",F193*S205,'Calculation Worksheet'!F193*'Calculation Worksheet'!S205) ->  | G202: =IF('Program Info'!$E$15="NO",G193*T205,'Calculation Worksheet'!G193*'Calculation Worksheet'!T205) ->  | H202: =IF('Program Info'!$E$15="NO",H193*U205,'Calculation Worksheet'!H193*'Calculation Worksheet'!U205) ->  | I202: =IF('Program Info'!$E$15="NO",I193*V205,'Calculation Worksheet'!I193*'Calculation Worksheet'!V205) ->  | J202: =IF('Program Info'!$E$15="NO",J193*W205,'Calculation Worksheet'!J193*'Calculation Worksheet'!W205) ->  | K202: =IF('Program Info'!$E$15="NO",K193*X205,'Calculation Worksheet'!K193*'Calculation Worksheet'!X205) ->  | L202: =IF('Program Info'!$E$15="NO",L193*Y205,'Calculation Worksheet'!L193*'Calculation Worksheet'!Y205) ->  | M202: =IF('Program Info'!$E$15="NO",M193*Z205,'Calculation Worksheet'!M193*'Calculation Worksheet'!Z205) ->  | N202: =IF('Program Info'!$E$15="NO",N193*AA205,'Calculation Worksheet'!N193*'Calculation Worksheet'!AA205) ->  | P202: Assessment Year | R202: =+'Program Info'!E7 -> 0 | S202: =CONCATENATE(RIGHT(R202,4),"-",RIGHT(R202,4)+1) -> 0-1
E203: =SUM(E199:E202) ->  | P203: Full-time semester/annual/other tuition | R203: =IF(AND('Program Info'!$H$14="Grad",'Program Info'!$E$15="NO"),LOOKUP(R$202,Assumptions!$B$15:$Z$15,Assumptions!$B$16:$Z$16),IF(AND('Program Info'!$H$14="UG",'Program Info'!$E$15="NO"),LOOKUP(R$202,Assumptions!$B$20:$Z$20,Assumptions!$B$21:$Z$21),IF(AND('Program Info'!$H$14="Grad",'Program Info'!$E$15="yes"),LOOKUP(R$202,Assumptions!$B$15:$Z$15,Assumptions!$B$27:$Z$27),IF(AND('Program Info'!$H$14="UG",'Program Info'!$E$15="yes"),LOOKUP(R$202,Assumptions!$B$15:$Z$15,Assumptions!$B$33:$Z$33))))) ->  | S203: =IF(AND('Program Info'!$H$14="Grad",'Program Info'!$E$15="NO"),LOOKUP(S$202,Assumptions!$B$15:$Z$15,Assumptions!$B$16:$Z$16),IF(AND('Program Info'!$H$14="UG",'Program Info'!$E$15="NO"),LOOKUP(S$202,Assumptions!$B$20:$Z$20,Assumptions!$B$21:$Z$21),IF(AND('Program Info'!$H$14="Grad",'Program Info'!$E$15="yes"),LOOKUP(S$202,Assumptions!$B$15:$Z$15,Assumptions!$B$27:$Z$27),IF(AND('Program Info'!$H$14="UG",'Program Info'!$E$15="yes"),LOOKUP(S$202,Assumptions!$B$15:$Z$15,Assumptions!$B$33:$Z$33))))) ->  | T203: =IF(AND('Program Info'!$H$14="Grad",'Program Info'!$E$15="NO"),LOOKUP(T$202,Assumptions!$B$15:$Z$15,Assumptions!$B$16:$Z$16),IF(AND('Program Info'!$H$14="UG",'Program Info'!$E$15="NO"),LOOKUP(T$202,Assumptions!$B$20:$Z$20,Assumptions!$B$21:$Z$21),IF(AND('Program Info'!$H$14="Grad",'Program Info'!$E$15="yes"),LOOKUP(T$202,Assumptions!$B$15:$Z$15,Assumptions!$B$27:$Z$27),IF(AND('Program Info'!$H$14="UG",'Program Info'!$E$15="yes"),LOOKUP(T$202,Assumptions!$B$15:$Z$15,Assumptions!$B$33:$Z$33))))) ->  | U203: =IF(AND('Program Info'!$H$14="Grad",'Program Info'!$E$15="NO"),LOOKUP(U$202,Assumptions!$B$15:$Z$15,Assumptions!$B$16:$Z$16),IF(AND('Program Info'!$H$14="UG",'Program Info'!$E$15="NO"),LOOKUP(U$202,Assumptions!$B$20:$Z$20,Assumptions!$B$21:$Z$21),IF(AND('Program Info'!$H$14="Grad",'Program Info'!$E$15="yes"),LOOKUP(U$202,Assumptions!$B$15:$Z$15,Assumptions!$B$27:$Z$27),IF(AND('Program Info'!$H$14="UG",'Program Info'!$E$15="yes"),LOOKUP(U$202,Assumptions!$B$15:$Z$15,Assumptions!$B$33:$Z$33))))) ->  | V203: =IF(AND('Program Info'!$H$14="Grad",'Program Info'!$E$15="NO"),LOOKUP(V$202,Assumptions!$B$15:$Z$15,Assumptions!$B$16:$Z$16),IF(AND('Program Info'!$H$14="UG",'Program Info'!$E$15="NO"),LOOKUP(V$202,Assumptions!$B$20:$Z$20,Assumptions!$B$21:$Z$21),IF(AND('Program Info'!$H$14="Grad",'Program Info'!$E$15="yes"),LOOKUP(V$202,Assumptions!$B$15:$Z$15,Assumptions!$B$27:$Z$27),IF(AND('Program Info'!$H$14="UG",'Program Info'!$E$15="yes"),LOOKUP(V$202,Assumptions!$B$15:$Z$15,Assumptions!$B$33:$Z$33))))) ->  | W203: =IF(AND('Program Info'!$H$14="Grad",'Program Info'!$E$15="NO"),LOOKUP(W$202,Assumptions!$B$15:$Z$15,Assumptions!$B$16:$Z$16),IF(AND('Program Info'!$H$14="UG",'Program Info'!$E$15="NO"),LOOKUP(W$202,Assumptions!$B$20:$Z$20,Assumptions!$B$21:$Z$21),IF(AND('Program Info'!$H$14="Grad",'Program Info'!$E$15="yes"),LOOKUP(W$202,Assumptions!$B$15:$Z$15,Assumptions!$B$27:$Z$27),IF(AND('Program Info'!$H$14="UG",'Program Info'!$E$15="yes"),LOOKUP(W$202,Assumptions!$B$15:$Z$15,Assumptions!$B$33:$Z$33))))) ->  | X203: =IF(AND('Program Info'!$H$14="Grad",'Program Info'!$E$15="NO"),LOOKUP(X$202,Assumptions!$B$15:$Z$15,Assumptions!$B$16:$Z$16),IF(AND('Program Info'!$H$14="UG",'Program Info'!$E$15="NO"),LOOKUP(X$202,Assumptions!$B$20:$Z$20,Assumptions!$B$21:$Z$21),IF(AND('Program Info'!$H$14="Grad",'Program Info'!$E$15="yes"),LOOKUP(X$202,Assumptions!$B$15:$Z$15,Assumptions!$B$27:$Z$27),IF(AND('Program Info'!$H$14="UG",'Program Info'!$E$15="yes"),LOOKUP(X$202,Assumptions!$B$15:$Z$15,Assumptions!$B$33:$Z$33))))) ->  | Y203: =IF(AND('Program Info'!$H$14="Grad",'Program Info'!$E$15="NO"),LOOKUP(Y$202,Assumptions!$B$15:$Z$15,Assumptions!$B$16:$Z$16),IF(AND('Program Info'!$H$14="UG",'Program Info'!$E$15="NO"),LOOKUP(Y$202,Assumptions!$B$20:$Z$20,Assumptions!$B$21:$Z$21),IF(AND('Program Info'!$H$14="Grad",'Program Info'!$E$15="yes"),LOOKUP(Y$202,Assumptions!$B$15:$Z$15,Assumptions!$B$27:$Z$27),IF(AND('Program Info'!$H$14="UG",'Program Info'!$E$15="yes"),LOOKUP(Y$202,Assumptions!$B$15:$Z$15,Assumptions!$B$33:$Z$33))))) ->  | Z203: =IF(AND('Program Info'!$H$14="Grad",'Program Info'!$E$15="NO"),LOOKUP(Z$202,Assumptions!$B$15:$Z$15,Assumptions!$B$16:$Z$16),IF(AND('Program Info'!$H$14="UG",'Program Info'!$E$15="NO"),LOOKUP(Z$202,Assumptions!$B$20:$Z$20,Assumptions!$B$21:$Z$21),IF(AND('Program Info'!$H$14="Grad",'Program Info'!$E$15="yes"),LOOKUP(Z$202,Assumptions!$B$15:$Z$15,Assumptions!$B$27:$Z$27),IF(AND('Program Info'!$H$14="UG",'Program Info'!$E$15="yes"),LOOKUP(Z$202,Assumptions!$B$15:$Z$15,Assumptions!$B$33:$Z$33))))) ->  | AA203: =IF(AND('Program Info'!$H$14="Grad",'Program Info'!$E$15="NO"),LOOKUP(AA$202,Assumptions!$B$15:$Z$15,Assumptions!$B$16:$Z$16),IF(AND('Program Info'!$H$14="UG",'Program Info'!$E$15="NO"),LOOKUP(AA$202,Assumptions!$B$20:$Z$20,Assumptions!$B$21:$Z$21),IF(AND('Program Info'!$H$14="Grad",'Program Info'!$E$15="yes"),LOOKUP(AA$202,Assumptions!$B$15:$Z$15,Assumptions!$B$27:$Z$27),IF(AND('Program Info'!$H$14="UG",'Program Info'!$E$15="yes"),LOOKUP(AA$202,Assumptions!$B$15:$Z$15,Assumptions!$B$33:$Z$33))))) -> 
P204: Per Semester Tuition | R204: =IF(AND('Program Info'!$H$14="Grad",'Program Info'!$E$15="NO"),LOOKUP(R$202,Assumptions!$B$15:$Z$15,Assumptions!$B$17:$Z$17),IF(AND('Program Info'!$H$14="UG",'Program Info'!$E$15="NO"),LOOKUP(R$202,Assumptions!$B$20:$Z$20,Assumptions!$B$22:$Z$22),IF(AND('Program Info'!$H$14="Grad",'Program Info'!$E$15="yes"),LOOKUP(R$202,Assumptions!$B$15:$Z$15,Assumptions!$B$28:$Z$28),IF(AND('Program Info'!$H$14="UG",'Program Info'!$E$15="yes"),LOOKUP(R$202,Assumptions!$B$15:$Z$15,Assumptions!$B$34:$Z$34))))) ->  | S204: =IF(AND('Program Info'!$H$14="Grad",'Program Info'!$E$15="NO"),LOOKUP(S$202,Assumptions!$B$15:$Z$15,Assumptions!$B$17:$Z$17),IF(AND('Program Info'!$H$14="UG",'Program Info'!$E$15="NO"),LOOKUP(S$202,Assumptions!$B$20:$Z$20,Assumptions!$B$22:$Z$22),IF(AND('Program Info'!$H$14="Grad",'Program Info'!$E$15="yes"),LOOKUP(S$202,Assumptions!$B$15:$Z$15,Assumptions!$B$28:$Z$28),IF(AND('Program Info'!$H$14="UG",'Program Info'!$E$15="yes"),LOOKUP(S$202,Assumptions!$B$15:$Z$15,Assumptions!$B$34:$Z$34))))) ->  | T204: =IF(AND('Program Info'!$H$14="Grad",'Program Info'!$E$15="NO"),LOOKUP(T$202,Assumptions!$B$15:$Z$15,Assumptions!$B$17:$Z$17),IF(AND('Program Info'!$H$14="UG",'Program Info'!$E$15="NO"),LOOKUP(T$202,Assumptions!$B$20:$Z$20,Assumptions!$B$22:$Z$22),IF(AND('Program Info'!$H$14="Grad",'Program Info'!$E$15="yes"),LOOKUP(T$202,Assumptions!$B$15:$Z$15,Assumptions!$B$28:$Z$28),IF(AND('Program Info'!$H$14="UG",'Program Info'!$E$15="yes"),LOOKUP(T$202,Assumptions!$B$15:$Z$15,Assumptions!$B$34:$Z$34))))) ->  | U204: =IF(AND('Program Info'!$H$14="Grad",'Program Info'!$E$15="NO"),LOOKUP(U$202,Assumptions!$B$15:$Z$15,Assumptions!$B$17:$Z$17),IF(AND('Program Info'!$H$14="UG",'Program Info'!$E$15="NO"),LOOKUP(U$202,Assumptions!$B$20:$Z$20,Assumptions!$B$22:$Z$22),IF(AND('Program Info'!$H$14="Grad",'Program Info'!$E$15="yes"),LOOKUP(U$202,Assumptions!$B$15:$Z$15,Assumptions!$B$28:$Z$28),IF(AND('Program Info'!$H$14="UG",'Program Info'!$E$15="yes"),LOOKUP(U$202,Assumptions!$B$15:$Z$15,Assumptions!$B$34:$Z$34))))) ->  | V204: =IF(AND('Program Info'!$H$14="Grad",'Program Info'!$E$15="NO"),LOOKUP(V$202,Assumptions!$B$15:$Z$15,Assumptions!$B$17:$Z$17),IF(AND('Program Info'!$H$14="UG",'Program Info'!$E$15="NO"),LOOKUP(V$202,Assumptions!$B$20:$Z$20,Assumptions!$B$22:$Z$22),IF(AND('Program Info'!$H$14="Grad",'Program Info'!$E$15="yes"),LOOKUP(V$202,Assumptions!$B$15:$Z$15,Assumptions!$B$28:$Z$28),IF(AND('Program Info'!$H$14="UG",'Program Info'!$E$15="yes"),LOOKUP(V$202,Assumptions!$B$15:$Z$15,Assumptions!$B$34:$Z$34))))) ->  | W204: =IF(AND('Program Info'!$H$14="Grad",'Program Info'!$E$15="NO"),LOOKUP(W$202,Assumptions!$B$15:$Z$15,Assumptions!$B$17:$Z$17),IF(AND('Program Info'!$H$14="UG",'Program Info'!$E$15="NO"),LOOKUP(W$202,Assumptions!$B$20:$Z$20,Assumptions!$B$22:$Z$22),IF(AND('Program Info'!$H$14="Grad",'Program Info'!$E$15="yes"),LOOKUP(W$202,Assumptions!$B$15:$Z$15,Assumptions!$B$28:$Z$28),IF(AND('Program Info'!$H$14="UG",'Program Info'!$E$15="yes"),LOOKUP(W$202,Assumptions!$B$15:$Z$15,Assumptions!$B$34:$Z$34))))) ->  | X204: =IF(AND('Program Info'!$H$14="Grad",'Program Info'!$E$15="NO"),LOOKUP(X$202,Assumptions!$B$15:$Z$15,Assumptions!$B$17:$Z$17),IF(AND('Program Info'!$H$14="UG",'Program Info'!$E$15="NO"),LOOKUP(X$202,Assumptions!$B$20:$Z$20,Assumptions!$B$22:$Z$22),IF(AND('Program Info'!$H$14="Grad",'Program Info'!$E$15="yes"),LOOKUP(X$202,Assumptions!$B$15:$Z$15,Assumptions!$B$28:$Z$28),IF(AND('Program Info'!$H$14="UG",'Program Info'!$E$15="yes"),LOOKUP(X$202,Assumptions!$B$15:$Z$15,Assumptions!$B$34:$Z$34))))) ->  | Y204: =IF(AND('Program Info'!$H$14="Grad",'Program Info'!$E$15="NO"),LOOKUP(Y$202,Assumptions!$B$15:$Z$15,Assumptions!$B$17:$Z$17),IF(AND('Program Info'!$H$14="UG",'Program Info'!$E$15="NO"),LOOKUP(Y$202,Assumptions!$B$20:$Z$20,Assumptions!$B$22:$Z$22),IF(AND('Program Info'!$H$14="Grad",'Program Info'!$E$15="yes"),LOOKUP(Y$202,Assumptions!$B$15:$Z$15,Assumptions!$B$28:$Z$28),IF(AND('Program Info'!$H$14="UG",'Program Info'!$E$15="yes"),LOOKUP(Y$202,Assumptions!$B$15:$Z$15,Assumptions!$B$34:$Z$34))))) ->  | Z204: =IF(AND('Program Info'!$H$14="Grad",'Program Info'!$E$15="NO"),LOOKUP(Z$202,Assumptions!$B$15:$Z$15,Assumptions!$B$17:$Z$17),IF(AND('Program Info'!$H$14="UG",'Program Info'!$E$15="NO"),LOOKUP(Z$202,Assumptions!$B$20:$Z$20,Assumptions!$B$22:$Z$22),IF(AND('Program Info'!$H$14="Grad",'Program Info'!$E$15="yes"),LOOKUP(Z$202,Assumptions!$B$15:$Z$15,Assumptions!$B$28:$Z$28),IF(AND('Program Info'!$H$14="UG",'Program Info'!$E$15="yes"),LOOKUP(Z$202,Assumptions!$B$15:$Z$15,Assumptions!$B$34:$Z$34))))) ->  | AA204: =IF(AND('Program Info'!$H$14="Grad",'Program Info'!$E$15="NO"),LOOKUP(AA$202,Assumptions!$B$15:$Z$15,Assumptions!$B$17:$Z$17),IF(AND('Program Info'!$H$14="UG",'Program Info'!$E$15="NO"),LOOKUP(AA$202,Assumptions!$B$20:$Z$20,Assumptions!$B$22:$Z$22),IF(AND('Program Info'!$H$14="Grad",'Program Info'!$E$15="yes"),LOOKUP(AA$202,Assumptions!$B$15:$Z$15,Assumptions!$B$28:$Z$28),IF(AND('Program Info'!$H$14="UG",'Program Info'!$E$15="yes"),LOOKUP(AA$202,Assumptions!$B$15:$Z$15,Assumptions!$B$34:$Z$34))))) -> 
P205: Per Credit Tuition | R205: =IF(AND('Program Info'!$H$14="Grad",'Program Info'!$E$15="NO"),LOOKUP(R$202,Assumptions!$B$15:$Z$15,Assumptions!$B$18:$Z$18),IF(AND('Program Info'!$H$14="UG",'Program Info'!$E$15="NO"),LOOKUP(R$202,Assumptions!$B$20:$Z$20,Assumptions!$B$23:$Z$23),IF(AND('Program Info'!$H$14="Grad",'Program Info'!$E$15="yes"),LOOKUP(R$202,Assumptions!$B$15:$Z$15,Assumptions!$B$29:$Z$29),IF(AND('Program Info'!$H$14="UG",'Program Info'!$E$15="yes"),LOOKUP(R$202,Assumptions!$B$15:$Z$15,Assumptions!$B$35:$Z$35))))) ->  | S205: =IF(AND('Program Info'!$H$14="Grad",'Program Info'!$E$15="NO"),LOOKUP(S$202,Assumptions!$B$15:$Z$15,Assumptions!$B$18:$Z$18),IF(AND('Program Info'!$H$14="UG",'Program Info'!$E$15="NO"),LOOKUP(S$202,Assumptions!$B$20:$Z$20,Assumptions!$B$23:$Z$23),IF(AND('Program Info'!$H$14="Grad",'Program Info'!$E$15="yes"),LOOKUP(S$202,Assumptions!$B$15:$Z$15,Assumptions!$B$29:$Z$29),IF(AND('Program Info'!$H$14="UG",'Program Info'!$E$15="yes"),LOOKUP(S$202,Assumptions!$B$15:$Z$15,Assumptions!$B$35:$Z$35))))) ->  | T205: =IF(AND('Program Info'!$H$14="Grad",'Program Info'!$E$15="NO"),LOOKUP(T$202,Assumptions!$B$15:$Z$15,Assumptions!$B$18:$Z$18),IF(AND('Program Info'!$H$14="UG",'Program Info'!$E$15="NO"),LOOKUP(T$202,Assumptions!$B$20:$Z$20,Assumptions!$B$23:$Z$23),IF(AND('Program Info'!$H$14="Grad",'Program Info'!$E$15="yes"),LOOKUP(T$202,Assumptions!$B$15:$Z$15,Assumptions!$B$29:$Z$29),IF(AND('Program Info'!$H$14="UG",'Program Info'!$E$15="yes"),LOOKUP(T$202,Assumptions!$B$15:$Z$15,Assumptions!$B$35:$Z$35))))) ->  | U205: =IF(AND('Program Info'!$H$14="Grad",'Program Info'!$E$15="NO"),LOOKUP(U$202,Assumptions!$B$15:$Z$15,Assumptions!$B$18:$Z$18),IF(AND('Program Info'!$H$14="UG",'Program Info'!$E$15="NO"),LOOKUP(U$202,Assumptions!$B$20:$Z$20,Assumptions!$B$23:$Z$23),IF(AND('Program Info'!$H$14="Grad",'Program Info'!$E$15="yes"),LOOKUP(U$202,Assumptions!$B$15:$Z$15,Assumptions!$B$29:$Z$29),IF(AND('Program Info'!$H$14="UG",'Program Info'!$E$15="yes"),LOOKUP(U$202,Assumptions!$B$15:$Z$15,Assumptions!$B$35:$Z$35))))) ->  | V205: =IF(AND('Program Info'!$H$14="Grad",'Program Info'!$E$15="NO"),LOOKUP(V$202,Assumptions!$B$15:$Z$15,Assumptions!$B$18:$Z$18),IF(AND('Program Info'!$H$14="UG",'Program Info'!$E$15="NO"),LOOKUP(V$202,Assumptions!$B$20:$Z$20,Assumptions!$B$23:$Z$23),IF(AND('Program Info'!$H$14="Grad",'Program Info'!$E$15="yes"),LOOKUP(V$202,Assumptions!$B$15:$Z$15,Assumptions!$B$29:$Z$29),IF(AND('Program Info'!$H$14="UG",'Program Info'!$E$15="yes"),LOOKUP(V$202,Assumptions!$B$15:$Z$15,Assumptions!$B$35:$Z$35))))) ->  | W205: =IF(AND('Program Info'!$H$14="Grad",'Program Info'!$E$15="NO"),LOOKUP(W$202,Assumptions!$B$15:$Z$15,Assumptions!$B$18:$Z$18),IF(AND('Program Info'!$H$14="UG",'Program Info'!$E$15="NO"),LOOKUP(W$202,Assumptions!$B$20:$Z$20,Assumptions!$B$23:$Z$23),IF(AND('Program Info'!$H$14="Grad",'Program Info'!$E$15="yes"),LOOKUP(W$202,Assumptions!$B$15:$Z$15,Assumptions!$B$29:$Z$29),IF(AND('Program Info'!$H$14="UG",'Program Info'!$E$15="yes"),LOOKUP(W$202,Assumptions!$B$15:$Z$15,Assumptions!$B$35:$Z$35))))) ->  | X205: =IF(AND('Program Info'!$H$14="Grad",'Program Info'!$E$15="NO"),LOOKUP(X$202,Assumptions!$B$15:$Z$15,Assumptions!$B$18:$Z$18),IF(AND('Program Info'!$H$14="UG",'Program Info'!$E$15="NO"),LOOKUP(X$202,Assumptions!$B$20:$Z$20,Assumptions!$B$23:$Z$23),IF(AND('Program Info'!$H$14="Grad",'Program Info'!$E$15="yes"),LOOKUP(X$202,Assumptions!$B$15:$Z$15,Assumptions!$B$29:$Z$29),IF(AND('Program Info'!$H$14="UG",'Program Info'!$E$15="yes"),LOOKUP(X$202,Assumptions!$B$15:$Z$15,Assumptions!$B$35:$Z$35))))) ->  | Y205: =IF(AND('Program Info'!$H$14="Grad",'Program Info'!$E$15="NO"),LOOKUP(Y$202,Assumptions!$B$15:$Z$15,Assumptions!$B$18:$Z$18),IF(AND('Program Info'!$H$14="UG",'Program Info'!$E$15="NO"),LOOKUP(Y$202,Assumptions!$B$20:$Z$20,Assumptions!$B$23:$Z$23),IF(AND('Program Info'!$H$14="Grad",'Program Info'!$E$15="yes"),LOOKUP(Y$202,Assumptions!$B$15:$Z$15,Assumptions!$B$29:$Z$29),IF(AND('Program Info'!$H$14="UG",'Program Info'!$E$15="yes"),LOOKUP(Y$202,Assumptions!$B$15:$Z$15,Assumptions!$B$35:$Z$35))))) ->  | Z205: =IF(AND('Program Info'!$H$14="Grad",'Program Info'!$E$15="NO"),LOOKUP(Z$202,Assumptions!$B$15:$Z$15,Assumptions!$B$18:$Z$18),IF(AND('Program Info'!$H$14="UG",'Program Info'!$E$15="NO"),LOOKUP(Z$202,Assumptions!$B$20:$Z$20,Assumptions!$B$23:$Z$23),IF(AND('Program Info'!$H$14="Grad",'Program Info'!$E$15="yes"),LOOKUP(Z$202,Assumptions!$B$15:$Z$15,Assumptions!$B$29:$Z$29),IF(AND('Program Info'!$H$14="UG",'Program Info'!$E$15="yes"),LOOKUP(Z$202,Assumptions!$B$15:$Z$15,Assumptions!$B$35:$Z$35))))) ->  | AA205: =IF(AND('Program Info'!$H$14="Grad",'Program Info'!$E$15="NO"),LOOKUP(AA$202,Assumptions!$B$15:$Z$15,Assumptions!$B$18:$Z$18),IF(AND('Program Info'!$H$14="UG",'Program Info'!$E$15="NO"),LOOKUP(AA$202,Assumptions!$B$20:$Z$20,Assumptions!$B$23:$Z$23),IF(AND('Program Info'!$H$14="Grad",'Program Info'!$E$15="yes"),LOOKUP(AA$202,Assumptions!$B$15:$Z$15,Assumptions!$B$29:$Z$29),IF(AND('Program Info'!$H$14="UG",'Program Info'!$E$15="yes"),LOOKUP(AA$202,Assumptions!$B$15:$Z$15,Assumptions!$B$35:$Z$35))))) -> 
C206: Financial Aid | E206: =+E198 -> 0 | F206: 0-1
C207: Full Time - UG | E207: =IF('Program Info'!$E$15="YES",0,+E199*Assumptions!$B$38) ->  | F207: =IF('Program Info'!$E$15="YES",0,+F199*Assumptions!$B$38) ->  | G207: =IF('Program Info'!$E$15="YES",0,+G199*Assumptions!$B$38) ->  | H207: =IF('Program Info'!$E$15="YES",0,+H199*Assumptions!$B$38) ->  | I207: =IF('Program Info'!$E$15="YES",0,+I199*Assumptions!$B$38) ->  | J207: =IF('Program Info'!$E$15="YES",0,+J199*Assumptions!$B$38) ->  | K207: =IF('Program Info'!$E$15="YES",0,+K199*Assumptions!$B$38) ->  | L207: =IF('Program Info'!$E$15="YES",0,+L199*Assumptions!$B$38) ->  | M207: =IF('Program Info'!$E$15="YES",0,+M199*Assumptions!$B$38) ->  | N207: =IF('Program Info'!$E$15="YES",0,+N199*Assumptions!$B$38) ->  | P207: Assessment Year | R207: =+R202 -> 0 | S207: 0-1 | X207: =+X202 ->  | Y207: =+Y202 ->  | Z207: =+Z202 ->  | AA207: =+AA202 -> 
C208: Part Time - UG | P208: Tuition Charged | R208: =IF('Program Info'!$H$14="Grad",LOOKUP(R$202,Assumptions!$B$15:$Z$15,Assumptions!$B$16:$Z$16),LOOKUP(R207,Assumptions!$B$20:$Z$20,Assumptions!$B$21:$Z$21)) ->  | S208: =IF('Program Info'!$H$14="Grad",LOOKUP(S$202,Assumptions!$B$15:$Z$15,Assumptions!$B$16:$Z$16),LOOKUP(S207,Assumptions!$B$20:$Z$20,Assumptions!$B$21:$Z$21)) ->  | T208: =IF('Program Info'!$H$14="Grad",LOOKUP(T$202,Assumptions!$B$15:$Z$15,Assumptions!$B$16:$Z$16),LOOKUP(T207,Assumptions!$B$20:$Z$20,Assumptions!$B$21:$Z$21)) ->  | U208: =IF('Program Info'!$H$14="Grad",LOOKUP(U$202,Assumptions!$B$15:$Z$15,Assumptions!$B$16:$Z$16),LOOKUP(U207,Assumptions!$B$20:$Z$20,Assumptions!$B$21:$Z$21)) ->  | V208: =IF('Program Info'!$H$14="Grad",LOOKUP(V$202,Assumptions!$B$15:$Z$15,Assumptions!$B$16:$Z$16),LOOKUP(V207,Assumptions!$B$20:$Z$20,Assumptions!$B$21:$Z$21)) ->  | W208: =IF('Program Info'!$H$14="Grad",LOOKUP(W$202,Assumptions!$B$15:$Z$15,Assumptions!$B$16:$Z$16),LOOKUP(W207,Assumptions!$B$20:$Z$20,Assumptions!$B$21:$Z$21)) ->  | X208: =IF('Program Info'!$H$14="Grad",LOOKUP(X$202,Assumptions!$B$15:$Z$15,Assumptions!$B$16:$Z$16),LOOKUP(X207,Assumptions!$B$20:$Z$20,Assumptions!$B$21:$Z$21)) ->  | Y208: =IF('Program Info'!$H$14="Grad",LOOKUP(Y$202,Assumptions!$B$15:$Z$15,Assumptions!$B$16:$Z$16),LOOKUP(Y207,Assumptions!$B$20:$Z$20,Assumptions!$B$21:$Z$21)) ->  | Z208: =IF('Program Info'!$H$14="Grad",LOOKUP(Z$202,Assumptions!$B$15:$Z$15,Assumptions!$B$16:$Z$16),LOOKUP(Z207,Assumptions!$B$20:$Z$20,Assumptions!$B$21:$Z$21)) ->  | AA208: =IF('Program Info'!$H$14="Grad",LOOKUP(AA$202,Assumptions!$B$15:$Z$15,Assumptions!$B$16:$Z$16),LOOKUP(AA207,Assumptions!$B$20:$Z$20,Assumptions!$B$21:$Z$21)) -> 
C209: Full Time - Grad | E209: =IF('Program Info'!$E$15="YES",0,+E201*Assumptions!$B$39) ->  | F209: =IF('Program Info'!$E$15="YES",0,+F201*Assumptions!$B$39) ->  | G209: =IF('Program Info'!$E$15="YES",0,+G201*Assumptions!$B$39) ->  | H209: =IF('Program Info'!$E$15="YES",0,+H201*Assumptions!$B$39) ->  | I209: =IF('Program Info'!$E$15="YES",0,+I201*Assumptions!$B$39) ->  | J209: =IF('Program Info'!$E$15="YES",0,+J201*Assumptions!$B$39) ->  | K209: =IF('Program Info'!$E$15="YES",0,+K201*Assumptions!$B$39) ->  | L209: =IF('Program Info'!$E$15="YES",0,+L201*Assumptions!$B$39) ->  | M209: =IF('Program Info'!$E$15="YES",0,+M201*Assumptions!$B$39) ->  | N209: =IF('Program Info'!$E$15="YES",0,+N201*Assumptions!$B$39) -> 
C210: Part Time - Grad | E210: =IF('Program Info'!$E$15="YES",0,+E202*Assumptions!$B$39) ->  | F210: =IF('Program Info'!$E$15="YES",0,+F202*Assumptions!$B$39) ->  | G210: =IF('Program Info'!$E$15="YES",0,+G202*Assumptions!$B$39) ->  | H210: =IF('Program Info'!$E$15="YES",0,+H202*Assumptions!$B$39) ->  | I210: =IF('Program Info'!$E$15="YES",0,+I202*Assumptions!$B$39) ->  | J210: =IF('Program Info'!$E$15="YES",0,+J202*Assumptions!$B$39) ->  | K210: =IF('Program Info'!$E$15="YES",0,+K202*Assumptions!$B$39) ->  | L210: =IF('Program Info'!$E$15="YES",0,+L202*Assumptions!$B$39) ->  | M210: =IF('Program Info'!$E$15="YES",0,+M202*Assumptions!$B$39) ->  | N210: =IF('Program Info'!$E$15="YES",0,+N202*Assumptions!$B$39) ->  | P210: For Lookup Calculation | R210: =R207 -> 0 | S210: 0-1 | W210: =W207 -> 
E211: =SUM(E207:E210) -> 
A213: Note: This sheet is password protected to maintain the formulas

Sheet Data Pull (hidden)
A1: Program Name | B1: Home College | C1: Home Department | D1: Program Type | E1: ILI Affiliation | F1: Status | G1: Anticipated Start | H1: Data Source | I1: Transaction Type | J1: ='Program Summary'!B7 -> 0 | K1: ='Program Summary'!C7 -> 0-1 | L1: ='Program Summary'!D7 ->  | M1: ='Program Summary'!E7 ->  | N1: ='Program Summary'!F7 ->  | O1: Total | P1: Upload
A2: ='Program Info'!$E$10 -> 0 | B2: ='Program Info'!$E$11 -> 0 | C2: ='Program Info'!$E$13 -> 0 | D2: ='Program Info'!$E$14 -> 0 | E2: ='Program Info'!$E$15 -> NO | F2: ='Program Info'!$E$6 -> 0 | G2: ='Program Info'!$E$7 -> 0 | H2: Projection | I2: ='APR 5 Year Projection'!A10 -> Tuition | J2: ='APR 5 Year Projection'!B10 ->  | K2: ='APR 5 Year Projection'!C10 ->  | L2: ='APR 5 Year Projection'!D10 ->  | M2: ='APR 5 Year Projection'!E10 ->  | N2: ='APR 5 Year Projection'!F10 ->  | O2: ='APR 5 Year Projection'!G10 ->  | P2: X
A3: ='Program Info'!$E$10 -> 0 | B3: ='Program Info'!$E$11 -> 0 | C3: ='Program Info'!$E$13 -> 0 | D3: ='Program Info'!$E$14 -> 0 | E3: ='Program Info'!$E$15 -> NO | F3: ='Program Info'!$E$6 -> 0 | G3: ='Program Info'!$E$7 -> 0 | H3: Projection | I3: ='APR 5 Year Projection'!A11 -> Unfunded Aid | J3: ='APR 5 Year Projection'!B11 ->  | K3: ='APR 5 Year Projection'!C11 ->  | L3: ='APR 5 Year Projection'!D11 ->  | M3: ='APR 5 Year Projection'!E11 ->  | N3: ='APR 5 Year Projection'!F11 ->  | O3: ='APR 5 Year Projection'!G11 ->  | P3: X
A4: ='Program Info'!$E$10 -> 0 | B4: ='Program Info'!$E$11 -> 0 | C4: ='Program Info'!$E$13 -> 0 | D4: ='Program Info'!$E$14 -> 0 | E4: ='Program Info'!$E$15 -> NO | F4: ='Program Info'!$E$6 -> 0 | G4: ='Program Info'!$E$7 -> 0 | H4: Projection | I4: ='APR 5 Year Projection'!A12 -> Net Tuition | J4: ='APR 5 Year Projection'!B12 ->  | K4: ='APR 5 Year Projection'!C12 ->  | L4: ='APR 5 Year Projection'!D12 ->  | M4: ='APR 5 Year Projection'!E12 ->  | N4: ='APR 5 Year Projection'!F12 ->  | O4: ='APR 5 Year Projection'!G12 ->  | P4: X
A5: ='Program Info'!$E$10 -> 0 | B5: ='Program Info'!$E$11 -> 0 | C5: ='Program Info'!$E$13 -> 0 | D5: ='Program Info'!$E$14 -> 0 | E5: ='Program Info'!$E$15 -> NO | F5: ='Program Info'!$E$6 -> 0 | G5: ='Program Info'!$E$7 -> 0 | H5: Projection | I5: =CONCATENATE('APR 5 Year Projection'!A16,""," Faculty Projection") -> CAST Faculty Projection | J5: ='APR 5 Year Projection'!B16 ->  | K5: ='APR 5 Year Projection'!C16 ->  | L5: ='APR 5 Year Projection'!D16 ->  | M5: ='APR 5 Year Projection'!E16 ->  | N5: ='APR 5 Year Projection'!F16 ->  | O5: ='APR 5 Year Projection'!G16 ->  | P5: X
A6: ='Program Info'!$E$10 -> 0 | B6: ='Program Info'!$E$11 -> 0 | C6: ='Program Info'!$E$13 -> 0 | D6: ='Program Info'!$E$14 -> 0 | E6: ='Program Info'!$E$15 -> NO | F6: ='Program Info'!$E$6 -> 0 | G6: ='Program Info'!$E$7 -> 0 | H6: Projection | I6: =CONCATENATE('APR 5 Year Projection'!A17,""," Faculty Projection") -> CHST Faculty Projection | J6: ='APR 5 Year Projection'!B17 ->  | K6: ='APR 5 Year Projection'!C17 ->  | L6: ='APR 5 Year Projection'!D17 ->  | M6: ='APR 5 Year Projection'!E17 ->  | N6: ='APR 5 Year Projection'!F17 ->  | O6: ='APR 5 Year Projection'!G17 ->  | P6: X
